Workbook

Sheet 乱数表示
J1: 本日の日付 | K1: =TODAY() -> 2022-11-16
D4: 担当コード入力 | G4: 151 | H4: =VLOOKUP(G4,入力!E2238:G2656,3,0) -> 宮木 | I4: a | J4: 乱数切り替え
D5: ク ラ ス 入 力 | G5: *11 | I5: =VLOOKUP(I7,曜日コード!C5:D52,2,0) -> 0 | J5: 入力コード
D6: 同一日同一科目コントロールセル | G6: 10 | I6: =VLOOKUP(I5,曜日コード!$D$5:$E$52,2,0) -> なし | J6: 曜日時間
D7: 同一日同一教科コントロールセル | G7: 100 | I7: =教科担当一覧2!BB456 -> 0 | J7: 入力位置の番号
D8: ＊制御は１０，解除は１００ | I8: =教科担当一覧2!BB451 -> 0 | J8: 入力可能セルの個数
D9: マクロコマ入力コピー用 | G9: =I5 -> 0
F11: 未入力授業コマ数 | I11: =入力!AC2224 -> 0
F12: 入力済授業コマ数 | I12: =I13-I11 -> 524
F13: 授 業 コ マ 数 | I13: =入力!E2224 -> 524
F14: 分 掌 等 コ マ 数 | I14: =入力!BB2658 -> 197
F15: コ マ 総 数 | I15: =SUM(I13:I14) -> 721
B18: ① | C18: 担当科目調査 | E18: ② | F18: 担当科目調査 | H18: ③ | I18: 担当科目調査 | K18: ④ | L18: 担当科目調査
C19: 1 | D19: =VLOOKUP(C19*2-1,教科担当一覧2!$D$9:$BA$428,4,0) -> 小杉 | F19: 29 | G19: =VLOOKUP(F19*2-1,教科担当一覧2!$D$9:$BA$428,4,0) -> t29 | I19: 30 | J19: =VLOOKUP(I19*2-1,教科担当一覧2!$D$9:$BA$428,4,0) -> t30 | L19: 4 | M19: =VLOOKUP(L19*2-1,教科担当一覧2!$D$9:$BA$428,4,0) -> 榎本
C20: 32 | D20: =VLOOKUP(C20,曜日コード!$B$5:$E$52,4,0) -> 水２限 | F20: 32 | G20: =VLOOKUP(F20,曜日コード!$B$5:$E$52,4,0) -> 水２限 | I20: 32 | J20: =VLOOKUP(I20,曜日コード!$B$5:$E$52,4,0) -> 水２限 | L20: 32 | M20: =VLOOKUP(L20,曜日コード!$B$5:$E$52,4,0) -> 水２限
C21: =VLOOKUP(C19*2-1,教科担当一覧2!$D$9:$BA$428,VLOOKUP(C20,曜日コード!$B$5:$C$52,2,0)+3+1,0) -> ・ | D21: =VLOOKUP(C19*2,教科担当一覧2!$D$9:$BA$428,VLOOKUP(C20,曜日コード!$B$5:$C$52,2,0)+3+1,0) ->  | F21: =VLOOKUP(F19*2-1,教科担当一覧2!$D$9:$BA$428,VLOOKUP(F20,曜日コード!$B$5:$C$52,2,0)+3+1,0) -> ・ | G21: =VLOOKUP(F19*2,教科担当一覧2!$D$9:$BA$428,VLOOKUP(F20,曜日コード!$B$5:$C$52,2,0)+3+1,0) ->  | I21: =VLOOKUP(I19*2-1,教科担当一覧2!$D$9:$BA$428,VLOOKUP(I20,曜日コード!$B$5:$C$52,2,0)+3+1,0) -> ・ | J21: =VLOOKUP(I19*2,教科担当一覧2!$D$9:$BA$428,VLOOKUP(I20,曜日コード!$B$5:$C$52,2,0)+3+1,0) ->  | L21: =VLOOKUP(L19*2-1,教科担当一覧2!$D$9:$BA$428,VLOOKUP(L20,曜日コード!$B$5:$C$52,2,0)+3+1,0) -> 2-5 | M21: =VLOOKUP(L19*2,教科担当一覧2!$D$9:$BA$428,VLOOKUP(L20,曜日コード!$B$5:$C$52,2,0)+3+1,0) -> 国Ⅱ
D26: 1 | AA26: 1 | AC26: 210ninn60kurasujikannwarisisutemusiyoubannver1.xlsm | AD26: 210ninn60kurasujikannwarisisutemusiyoubannver1.xlsm

Sheet 担当ｸ入力可能性
B2: クラス担当者別入力可能性調査ﾃｰﾌﾞﾙ
B4: =乱数表示!G9 -> 0 | C4: ←曜日コード入力 | F4: =ROUNDDOWN(B4/10,0) -> 0
B5: =VLOOKUP(B4,曜日コード!$D$7:$E$52,2) ->  | D5: ←曜日時間 | F5: =VLOOKUP(F4,曜日コード!$G$5:$H$10,2) -> 
B7: ｵﾌｾｯﾄ番号 | C7: ｸﾗｽｺｰﾄﾞ入力→ | D7: =乱数表示!G5 -> *11 | V7: =担当曜日別調査!J5 -> 月曜
B8: 1 | D8: =VLOOKUP(B8,ｸ別担当準備!$A$5:$BM$24,VALUE(MID($D$7,2,5))-8+1) -> 2 | E8: ① | F8: 担当科目調査 | H8: ② | I8: 担当科目調査 | K8: ③ | L8: 担当科目調査 | N8: ④ | O8: 担当科目調査 | T8: 1 | U8: 2 | V8: 3 | W8: 4 | X8: 5 | Y8: 6 | Z8: 7 | AA8: 8
B9: 2 | D9: =VLOOKUP(B9,ｸ別担当準備!$A$5:$BM$24,VALUE(MID($D$7,2,5))-8+1) -> 21 | F9: =D8 -> 2 | G9: =IF(ISERROR(VLOOKUP(F9*2-1,教科担当一覧2!$D$9:$BA$428,4,0))=TRUE,"",VLOOKUP(F9*2-1,教科担当一覧2!$D$9:$BA$428,4,0)) -> 桜井 | I9: =D9 -> 21 | J9: =IF(ISERROR(VLOOKUP(I9*2-1,教科担当一覧2!$D$9:$BA$428,4,0))=TRUE,"",VLOOKUP(I9*2-1,教科担当一覧2!$D$9:$BA$428,4,0)) -> 新井 | L9: =D10 -> 44 | M9: =IF(ISERROR(VLOOKUP(L9*2-1,教科担当一覧2!$D$9:$BA$428,4,0))=TRUE,"",VLOOKUP(L9*2-1,教科担当一覧2!$D$9:$BA$428,4,0)) -> 市ノ川 | O9: =D11 -> 61 | P9: =IF(ISERROR(VLOOKUP(O9*2-1,教科担当一覧2!$D$9:$BA$428,4,0))=TRUE,"",VLOOKUP(O9*2-1,教科担当一覧2!$D$9:$BA$428,4,0)) -> 関 | S9: 1 | T9: =IF(ISERR(担当曜日別調査!H7=VLOOKUP($D7,ｸﾗｽｺｰﾄﾞ等!$B$4:$C$2106,2))=1,1,IF(担当曜日別調査!$H7=VLOOKUP($D7,ｸﾗｽｺｰﾄﾞ等!$B$4:$C$2106,2),1,0)) -> 0 | U9: =IF(ISERR(担当曜日別調査!I7=VLOOKUP($D7,ｸﾗｽｺｰﾄﾞ等!$B$4:$C$2106,2))=1,1,IF(担当曜日別調査!$H7=VLOOKUP($D7,ｸﾗｽｺｰﾄﾞ等!$B$4:$C$2106,2),1,0)) -> 0 | V9: =IF(ISERR(担当曜日別調査!J7=VLOOKUP($D7,ｸﾗｽｺｰﾄﾞ等!$B$4:$C$2106,2))=1,1,IF(担当曜日別調査!$H7=VLOOKUP($D7,ｸﾗｽｺｰﾄﾞ等!$B$4:$C$2106,2),1,0)) -> 0 | W9: =IF(ISERR(担当曜日別調査!K7=VLOOKUP($D7,ｸﾗｽｺｰﾄﾞ等!$B$4:$C$2106,2))=1,1,IF(担当曜日別調査!$H7=VLOOKUP($D7,ｸﾗｽｺｰﾄﾞ等!$B$4:$C$2106,2),1,0)) -> 0 | X9: =IF(ISERR(担当曜日別調査!L7=VLOOKUP($D7,ｸﾗｽｺｰﾄﾞ等!$B$4:$C$2106,2))=1,1,IF(担当曜日別調査!$H7=VLOOKUP($D7,ｸﾗｽｺｰﾄﾞ等!$B$4:$C$2106,2),1,0)) -> 0 | Y9: =IF(ISERR(担当曜日別調査!M7=VLOOKUP($D7,ｸﾗｽｺｰﾄﾞ等!$B$4:$C$2106,2))=1,1,IF(担当曜日別調査!$H7=VLOOKUP($D7,ｸﾗｽｺｰﾄﾞ等!$B$4:$C$2106,2),1,0)) -> 0 | Z9: =IF(ISERR(担当曜日別調査!N7=VLOOKUP($D7,ｸﾗｽｺｰﾄﾞ等!$B$4:$C$2106,2))=1,1,IF(担当曜日別調査!$H7=VLOOKUP($D7,ｸﾗｽｺｰﾄﾞ等!$B$4:$C$2106,2),1,0)) -> 0 | AA9: =IF(ISERR(担当曜日別調査!O7=VLOOKUP($D7,ｸﾗｽｺｰﾄﾞ等!$B$4:$C$2106,2))=1,1,IF(担当曜日別調査!$H7=VLOOKUP($D7,ｸﾗｽｺｰﾄﾞ等!$B$4:$C$2106,2),1,0)) -> 0 | AB9: =SUM(T9:AA9) -> 0
B10: 3 | C10: 担 | D10: =VLOOKUP(B10,ｸ別担当準備!$A$5:$BM$24,VALUE(MID($D$7,2,5))-8+1) -> 44 | F10: =B4 -> 0 | G10: =IF(ISERROR(VLOOKUP(F10,曜日コード!$B$5:$E$52,4,0))=TRUE,"",VLOOKUP(F10,曜日コード!$B$5:$E$52,4,0)) -> なし | I10: =B4 -> 0 | J10: =IF(ISERROR(VLOOKUP(I10,曜日コード!$B$5:$E$52,4,0))=TRUE,"",VLOOKUP(I10,曜日コード!$B$5:$E$52,4,0)) -> なし | L10: =B4 -> 0 | M10: =IF(ISERROR(VLOOKUP(L10,曜日コード!$B$5:$E$52,4,0))=TRUE,"",VLOOKUP(L10,曜日コード!$B$5:$E$52,4,0)) -> なし | O10: =B4 -> 0 | P10: =IF(ISERROR(VLOOKUP(O10,曜日コード!$B$5:$E$52,4,0))=TRUE,"",VLOOKUP(O10,曜日コード!$B$5:$E$52,4,0)) -> なし | S10: 2 | T10: =IF(ISERR(担当曜日別調査!H9=VLOOKUP($D7,ｸﾗｽｺｰﾄﾞ等!$B$4:$C$2106,2))=1,1,IF(担当曜日別調査!H9=VLOOKUP($D7,ｸﾗｽｺｰﾄﾞ等!$B$4:$C$2106,2),1,0)) -> 0 | U10: =IF(ISERR(担当曜日別調査!I9=VLOOKUP($D7,ｸﾗｽｺｰﾄﾞ等!$B$4:$C$2106,2))=1,1,IF(担当曜日別調査!I9=VLOOKUP($D7,ｸﾗｽｺｰﾄﾞ等!$B$4:$C$2106,2),1,0)) -> 0 | V10: =IF(ISERR(担当曜日別調査!J9=VLOOKUP($D7,ｸﾗｽｺｰﾄﾞ等!$B$4:$C$2106,2))=1,1,IF(担当曜日別調査!J9=VLOOKUP($D7,ｸﾗｽｺｰﾄﾞ等!$B$4:$C$2106,2),1,0)) -> 0 | W10: =IF(ISERR(担当曜日別調査!K9=VLOOKUP($D7,ｸﾗｽｺｰﾄﾞ等!$B$4:$C$2106,2))=1,1,IF(担当曜日別調査!K9=VLOOKUP($D7,ｸﾗｽｺｰﾄﾞ等!$B$4:$C$2106,2),1,0)) -> 0 | X10: =IF(ISERR(担当曜日別調査!L9=VLOOKUP($D7,ｸﾗｽｺｰﾄﾞ等!$B$4:$C$2106,2))=1,1,IF(担当曜日別調査!L9=VLOOKUP($D7,ｸﾗｽｺｰﾄﾞ等!$B$4:$C$2106,2),1,0)) -> 0 | Y10: =IF(ISERR(担当曜日別調査!M9=VLOOKUP($D7,ｸﾗｽｺｰﾄﾞ等!$B$4:$C$2106,2))=1,1,IF(担当曜日別調査!M9=VLOOKUP($D7,ｸﾗｽｺｰﾄﾞ等!$B$4:$C$2106,2),1,0)) -> 0 | Z10: =IF(ISERR(担当曜日別調査!N9=VLOOKUP($D7,ｸﾗｽｺｰﾄﾞ等!$B$4:$C$2106,2))=1,1,IF(担当曜日別調査!N9=VLOOKUP($D7,ｸﾗｽｺｰﾄﾞ等!$B$4:$C$2106,2),1,0)) -> 0 | AA10: =IF(ISERR(担当曜日別調査!O9=VLOOKUP($D7,ｸﾗｽｺｰﾄﾞ等!$B$4:$C$2106,2))=1,1,IF(担当曜日別調査!O9=VLOOKUP($D7,ｸﾗｽｺｰﾄﾞ等!$B$4:$C$2106,2),1,0)) -> 0 | AB10: 0
B11: 4 | D11: =VLOOKUP(B11,ｸ別担当準備!$A$5:$BM$24,VALUE(MID($D$7,2,5))-8+1) -> 61 | E11: =IF(ISERR(IF(AND(F11="・",AB5=0),"●","×"))=1,"",IF(AND(F11="・",AB5=0),"●",IF(F11="","","×"))) -> × | F11: =IF(ISERROR(VLOOKUP(F9*2-1,教科担当一覧2!$D$9:$BA$428,VLOOKUP(F10,曜日コード!$B$5:$C$52,2,0)+3+1,0))=TRUE,"",VLOOKUP(F9*2-1,教科担当一覧2!$D$9:$BA$428,VLOOKUP(F10,曜日コード!$B$5:$C$52,2,0)+3+1,0)) -> 桜井 | G11: =IF(ISERROR(VLOOKUP(F9*2,教科担当一覧2!$D$9:$BA$428,VLOOKUP(F10,曜日コード!$B$5:$C$52,2,0)+3+1,0))=TRUE,"",VLOOKUP(F9*2,教科担当一覧2!$D$9:$BA$428,VLOOKUP(F10,曜日コード!$B$5:$C$52,2,0)+3+1,0)) -> 1-6担 | H11: =IF(ISERR(IF(AND(I11="・",AE5=0),"●","×"))=1,"",IF(AND(I11="・",AE5=0),"●",IF(I11="","","×"))) -> × | I11: =IF(ISERROR(VLOOKUP(I9*2-1,教科担当一覧2!$D$9:$BA$428,VLOOKUP(I10,曜日コード!$B$5:$C$52,2,0)+3+1,0))=TRUE,"",VLOOKUP(I9*2-1,教科担当一覧2!$D$9:$BA$428,VLOOKUP(I10,曜日コード!$B$5:$C$52,2,0)+3+1,0)) -> 新井 | J11: =IF(ISERROR(VLOOKUP(I9*2,教科担当一覧2!$D$9:$BA$428,VLOOKUP(I10,曜日コード!$B$5:$C$52,2,0)+3+1,0))=TRUE,"",VLOOKUP(I9*2,教科担当一覧2!$D$9:$BA$428,VLOOKUP(I10,曜日コード!$B$5:$C$52,2,0)+3+1,0)) -> 1-2担 | K11: =IF(ISERR(IF(AND(L11="・",AH5=0),"●","×"))=1,"",IF(AND(L11="・",AH5=0),"●",IF(L11="","","×"))) -> × | L11: =IF(ISERROR(VLOOKUP(L9*2-1,教科担当一覧2!$D$9:$BA$428,VLOOKUP(L10,曜日コード!$B$5:$C$52,2,0)+3+1,0))=TRUE,"",VLOOKUP(L9*2-1,教科担当一覧2!$D$9:$BA$428,VLOOKUP(L10,曜日コード!$B$5:$C$52,2,0)+3+1,0)) -> 市ノ川 | M11: =IF(ISERROR(VLOOKUP(L9*2,教科担当一覧2!$D$9:$BA$428,VLOOKUP(L10,曜日コード!$B$5:$C$52,2,0)+3+1,0))=TRUE,"",VLOOKUP(L9*2,教科担当一覧2!$D$9:$BA$428,VLOOKUP(L10,曜日コード!$B$5:$C$52,2,0)+3+1,0)) -> 2-8担 | N11: =IF(ISERR(IF(AND(O11="・",AK5=0),"●","×"))=1,"",IF(AND(O11="・",AK5=0),"●",IF(O11="","","×"))) -> × | O11: =IF(ISERROR(VLOOKUP(O9*2-1,教科担当一覧2!$D$9:$BA$428,VLOOKUP(O10,曜日コード!$B$5:$C$52,2,0)+3+1,0))=TRUE,"",VLOOKUP(O9*2-1,教科担当一覧2!$D$9:$BA$428,VLOOKUP(O10,曜日コード!$B$5:$C$52,2,0)+3+1,0)) -> 関 | P11: =IF(ISERROR(VLOOKUP(O9*2,教科担当一覧2!$D$9:$BA$428,VLOOKUP(O10,曜日コード!$B$5:$C$52,2,0)+3+1,0))=TRUE,"",VLOOKUP(O9*2,教科担当一覧2!$D$9:$BA$428,VLOOKUP(O10,曜日コード!$B$5:$C$52,2,0)+3+1,0)) -> 1-1担 | S11: 3 | T11: =IF(ISERR(担当曜日別調査!H11=VLOOKUP($D7,ｸﾗｽｺｰﾄﾞ等!$B$4:$C$2106,2))=1,1,IF(担当曜日別調査!H11=VLOOKUP($D7,ｸﾗｽｺｰﾄﾞ等!$B$4:$C$2106,2),1,0)) -> 0 | U11: =IF(ISERR(担当曜日別調査!I11=VLOOKUP($D7,ｸﾗｽｺｰﾄﾞ等!$B$4:$C$2106,2))=1,1,IF(担当曜日別調査!I11=VLOOKUP($D7,ｸﾗｽｺｰﾄﾞ等!$B$4:$C$2106,2),1,0)) -> 0 | V11: =IF(ISERR(担当曜日別調査!J11=VLOOKUP($D7,ｸﾗｽｺｰﾄﾞ等!$B$4:$C$2106,2))=1,1,IF(担当曜日別調査!J11=VLOOKUP($D7,ｸﾗｽｺｰﾄﾞ等!$B$4:$C$2106,2),1,0)) -> 0 | W11: =IF(ISERR(担当曜日別調査!K11=VLOOKUP($D7,ｸﾗｽｺｰﾄﾞ等!$B$4:$C$2106,2))=1,1,IF(担当曜日別調査!K11=VLOOKUP($D7,ｸﾗｽｺｰﾄﾞ等!$B$4:$C$2106,2),1,0)) -> 0 | X11: =IF(ISERR(担当曜日別調査!L11=VLOOKUP($D7,ｸﾗｽｺｰﾄﾞ等!$B$4:$C$2106,2))=1,1,IF(担当曜日別調査!L11=VLOOKUP($D7,ｸﾗｽｺｰﾄﾞ等!$B$4:$C$2106,2),1,0)) -> 1 | Y11: =IF(ISERR(担当曜日別調査!M11=VLOOKUP($D7,ｸﾗｽｺｰﾄﾞ等!$B$4:$C$2106,2))=1,1,IF(担当曜日別調査!M11=VLOOKUP($D7,ｸﾗｽｺｰﾄﾞ等!$B$4:$C$2106,2),1,0)) -> 0 | Z11: =IF(ISERR(担当曜日別調査!N11=VLOOKUP($D7,ｸﾗｽｺｰﾄﾞ等!$B$4:$C$2106,2))=1,1,IF(担当曜日別調査!N11=VLOOKUP($D7,ｸﾗｽｺｰﾄﾞ等!$B$4:$C$2106,2),1,0)) -> 0 | AA11: =IF(ISERR(担当曜日別調査!O11=VLOOKUP($D7,ｸﾗｽｺｰﾄﾞ等!$B$4:$C$2106,2))=1,1,IF(担当曜日別調査!O11=VLOOKUP($D7,ｸﾗｽｺｰﾄﾞ等!$B$4:$C$2106,2),1,0)) -> 0 | AB11: 1
B12: 5 | D12: =VLOOKUP(B12,ｸ別担当準備!$A$5:$BM$24,VALUE(MID($D$7,2,5))-8+1) -> 81 | S12: 4 | T12: =IF(ISERR(担当曜日別調査!H13=VLOOKUP($D7,ｸﾗｽｺｰﾄﾞ等!$B$4:$C$2106,2))=1,1,IF(担当曜日別調査!H13=VLOOKUP($D7,ｸﾗｽｺｰﾄﾞ等!$B$4:$C$2106,2),1,0)) -> 0 | U12: =IF(ISERR(担当曜日別調査!I13=VLOOKUP($D7,ｸﾗｽｺｰﾄﾞ等!$B$4:$C$2106,2))=1,1,IF(担当曜日別調査!I13=VLOOKUP($D7,ｸﾗｽｺｰﾄﾞ等!$B$4:$C$2106,2),1,0)) -> 0 | V12: =IF(ISERR(担当曜日別調査!J13=VLOOKUP($D7,ｸﾗｽｺｰﾄﾞ等!$B$4:$C$2106,2))=1,1,IF(担当曜日別調査!J13=VLOOKUP($D7,ｸﾗｽｺｰﾄﾞ等!$B$4:$C$2106,2),1,0)) -> 0 | W12: =IF(ISERR(担当曜日別調査!K13=VLOOKUP($D7,ｸﾗｽｺｰﾄﾞ等!$B$4:$C$2106,2))=1,1,IF(担当曜日別調査!K13=VLOOKUP($D7,ｸﾗｽｺｰﾄﾞ等!$B$4:$C$2106,2),1,0)) -> 0 | X12: =IF(ISERR(担当曜日別調査!L13=VLOOKUP($D7,ｸﾗｽｺｰﾄﾞ等!$B$4:$C$2106,2))=1,1,IF(担当曜日別調査!L13=VLOOKUP($D7,ｸﾗｽｺｰﾄﾞ等!$B$4:$C$2106,2),1,0)) -> 0 | Y12: =IF(ISERR(担当曜日別調査!M13=VLOOKUP($D7,ｸﾗｽｺｰﾄﾞ等!$B$4:$C$2106,2))=1,1,IF(担当曜日別調査!M13=VLOOKUP($D7,ｸﾗｽｺｰﾄﾞ等!$B$4:$C$2106,2),1,0)) -> 1 | Z12: =IF(ISERR(担当曜日別調査!N13=VLOOKUP($D7,ｸﾗｽｺｰﾄﾞ等!$B$4:$C$2106,2))=1,1,IF(担当曜日別調査!N13=VLOOKUP($D7,ｸﾗｽｺｰﾄﾞ等!$B$4:$C$2106,2),1,0)) -> 0 | AA12: =IF(ISERR(担当曜日別調査!O13=VLOOKUP($D7,ｸﾗｽｺｰﾄﾞ等!$B$4:$C$2106,2))=1,1,IF(担当曜日別調査!O13=VLOOKUP($D7,ｸﾗｽｺｰﾄﾞ等!$B$4:$C$2106,2),1,0)) -> 0 | AB12: 1
B13: 6 | D13: =VLOOKUP(B13,ｸ別担当準備!$A$5:$BM$24,VALUE(MID($D$7,2,5))-8+1) -> 86 | E13: ⑤ | F13: 担当科目調査 | H13: ⑥ | I13: 担当科目調査 | K13: ⑦ | L13: 担当科目調査 | N13: ⑧ | O13: 担当科目調査 | S13: 5 | T13: =IF(ISERR(担当曜日別調査!H15=VLOOKUP($D7,ｸﾗｽｺｰﾄﾞ等!$B$4:$C$2106,2))=1,1,IF(担当曜日別調査!H15=VLOOKUP($D7,ｸﾗｽｺｰﾄﾞ等!$B$4:$C$2106,2),1,0)) -> 0 | U13: =IF(ISERR(担当曜日別調査!I15=VLOOKUP($D7,ｸﾗｽｺｰﾄﾞ等!$B$4:$C$2106,2))=1,1,IF(担当曜日別調査!I15=VLOOKUP($D7,ｸﾗｽｺｰﾄﾞ等!$B$4:$C$2106,2),1,0)) -> 0 | V13: =IF(ISERR(担当曜日別調査!J15=VLOOKUP($D7,ｸﾗｽｺｰﾄﾞ等!$B$4:$C$2106,2))=1,1,IF(担当曜日別調査!J15=VLOOKUP($D7,ｸﾗｽｺｰﾄﾞ等!$B$4:$C$2106,2),1,0)) -> 0 | W13: =IF(ISERR(担当曜日別調査!K15=VLOOKUP($D7,ｸﾗｽｺｰﾄﾞ等!$B$4:$C$2106,2))=1,1,IF(担当曜日別調査!K15=VLOOKUP($D7,ｸﾗｽｺｰﾄﾞ等!$B$4:$C$2106,2),1,0)) -> 0 | X13: =IF(ISERR(担当曜日別調査!L15=VLOOKUP($D7,ｸﾗｽｺｰﾄﾞ等!$B$4:$C$2106,2))=1,1,IF(担当曜日別調査!L15=VLOOKUP($D7,ｸﾗｽｺｰﾄﾞ等!$B$4:$C$2106,2),1,0)) -> 0 | Y13: =IF(ISERR(担当曜日別調査!M15=VLOOKUP($D7,ｸﾗｽｺｰﾄﾞ等!$B$4:$C$2106,2))=1,1,IF(担当曜日別調査!M15=VLOOKUP($D7,ｸﾗｽｺｰﾄﾞ等!$B$4:$C$2106,2),1,0)) -> 0 | Z13: =IF(ISERR(担当曜日別調査!N15=VLOOKUP($D7,ｸﾗｽｺｰﾄﾞ等!$B$4:$C$2106,2))=1,1,IF(担当曜日別調査!N15=VLOOKUP($D7,ｸﾗｽｺｰﾄﾞ等!$B$4:$C$2106,2),1,0)) -> 0 | AA13: =IF(ISERR(担当曜日別調査!O15=VLOOKUP($D7,ｸﾗｽｺｰﾄﾞ等!$B$4:$C$2106,2))=1,1,IF(担当曜日別調査!O15=VLOOKUP($D7,ｸﾗｽｺｰﾄﾞ等!$B$4:$C$2106,2),1,0)) -> 0 | AB13: 0
B14: 7 | D14: =VLOOKUP(B14,ｸ別担当準備!$A$5:$BM$24,VALUE(MID($D$7,2,5))-8+1) -> 103 | F14: =D12 -> 81 | G14: =IF(ISERROR(VLOOKUP(F14*2-1,教科担当一覧2!$D$9:$BA$428,4,0))=TRUE,"",VLOOKUP(F14*2-1,教科担当一覧2!$D$9:$BA$428,4,0)) -> 名児耶 | I14: =D13 -> 86 | J14: =IF(ISERROR(VLOOKUP(I14*2-1,教科担当一覧2!$D$9:$BA$428,4,0))=TRUE,"",VLOOKUP(I14*2-1,教科担当一覧2!$D$9:$BA$428,4,0)) -> 山崎 | L14: =D14 -> 103 | M14: =IF(ISERROR(VLOOKUP(L14*2-1,教科担当一覧2!$D$9:$BA$428,4,0))=TRUE,"",VLOOKUP(L14*2-1,教科担当一覧2!$D$9:$BA$428,4,0)) -> 後藤 | O14: =D15 -> 121 | P14: =IF(ISERROR(VLOOKUP(O14*2-1,教科担当一覧2!$D$9:$BA$428,4,0))=TRUE,"",VLOOKUP(O14*2-1,教科担当一覧2!$D$9:$BA$428,4,0)) -> 木島 | S14: 6 | T14: =IF(ISERR(担当曜日別調査!H17=VLOOKUP($D7,ｸﾗｽｺｰﾄﾞ等!$B$4:$C$2106,2))=1,1,IF(担当曜日別調査!H17=VLOOKUP($D7,ｸﾗｽｺｰﾄﾞ等!$B$4:$C$2106,2),1,0)) -> 0 | U14: =IF(ISERR(担当曜日別調査!I17=VLOOKUP($D7,ｸﾗｽｺｰﾄﾞ等!$B$4:$C$2106,2))=1,1,IF(担当曜日別調査!I17=VLOOKUP($D7,ｸﾗｽｺｰﾄﾞ等!$B$4:$C$2106,2),1,0)) -> 0 | V14: =IF(ISERR(担当曜日別調査!J17=VLOOKUP($D7,ｸﾗｽｺｰﾄﾞ等!$B$4:$C$2106,2))=1,1,IF(担当曜日別調査!J17=VLOOKUP($D7,ｸﾗｽｺｰﾄﾞ等!$B$4:$C$2106,2),1,0)) -> 0 | W14: =IF(ISERR(担当曜日別調査!K17=VLOOKUP($D7,ｸﾗｽｺｰﾄﾞ等!$B$4:$C$2106,2))=1,1,IF(担当曜日別調査!K17=VLOOKUP($D7,ｸﾗｽｺｰﾄﾞ等!$B$4:$C$2106,2),1,0)) -> 0 | X14: =IF(ISERR(担当曜日別調査!L17=VLOOKUP($D7,ｸﾗｽｺｰﾄﾞ等!$B$4:$C$2106,2))=1,1,IF(担当曜日別調査!L17=VLOOKUP($D7,ｸﾗｽｺｰﾄﾞ等!$B$4:$C$2106,2),1,0)) -> 0 | Y14: =IF(ISERR(担当曜日別調査!M17=VLOOKUP($D7,ｸﾗｽｺｰﾄﾞ等!$B$4:$C$2106,2))=1,1,IF(担当曜日別調査!M17=VLOOKUP($D7,ｸﾗｽｺｰﾄﾞ等!$B$4:$C$2106,2),1,0)) -> 0 | Z14: =IF(ISERR(担当曜日別調査!N17=VLOOKUP($D7,ｸﾗｽｺｰﾄﾞ等!$B$4:$C$2106,2))=1,1,IF(担当曜日別調査!N17=VLOOKUP($D7,ｸﾗｽｺｰﾄﾞ等!$B$4:$C$2106,2),1,0)) -> 0 | AA14: =IF(ISERR(担当曜日別調査!O17=VLOOKUP($D7,ｸﾗｽｺｰﾄﾞ等!$B$4:$C$2106,2))=1,1,IF(担当曜日別調査!O17=VLOOKUP($D7,ｸﾗｽｺｰﾄﾞ等!$B$4:$C$2106,2),1,0)) -> 0 | AB14: 0
B15: 8 | D15: =VLOOKUP(B15,ｸ別担当準備!$A$5:$BM$24,VALUE(MID($D$7,2,5))-8+1) -> 121 | F15: =B4 -> 0 | G15: =IF(ISERROR(VLOOKUP(F15,曜日コード!$B$5:$E$52,4,0))=TRUE,"",VLOOKUP(F15,曜日コード!$B$5:$E$52,4,0)) -> なし | I15: =B4 -> 0 | J15: =IF(ISERROR(VLOOKUP(I15,曜日コード!$B$5:$E$52,4,0))=TRUE,"",VLOOKUP(I15,曜日コード!$B$5:$E$52,4,0)) -> なし | L15: =B4 -> 0 | M15: =IF(ISERROR(VLOOKUP(L15,曜日コード!$B$5:$E$52,4,0))=TRUE,"",VLOOKUP(L15,曜日コード!$B$5:$E$52,4,0)) -> なし | O15: =B4 -> 0 | P15: =IF(ISERROR(VLOOKUP(O15,曜日コード!$B$5:$E$52,4,0))=TRUE,"",VLOOKUP(O15,曜日コード!$B$5:$E$52,4,0)) -> なし | S15: 7 | T15: =IF(ISERR(担当曜日別調査!H19=VLOOKUP($D7,ｸﾗｽｺｰﾄﾞ等!$B$4:$C$2106,2))=1,1,IF(担当曜日別調査!H19=VLOOKUP($D7,ｸﾗｽｺｰﾄﾞ等!$B$4:$C$2106,2),1,0)) -> 0 | U15: =IF(ISERR(担当曜日別調査!I19=VLOOKUP($D7,ｸﾗｽｺｰﾄﾞ等!$B$4:$C$2106,2))=1,1,IF(担当曜日別調査!I19=VLOOKUP($D7,ｸﾗｽｺｰﾄﾞ等!$B$4:$C$2106,2),1,0)) -> 0 | V15: =IF(ISERR(担当曜日別調査!J19=VLOOKUP($D7,ｸﾗｽｺｰﾄﾞ等!$B$4:$C$2106,2))=1,1,IF(担当曜日別調査!J19=VLOOKUP($D7,ｸﾗｽｺｰﾄﾞ等!$B$4:$C$2106,2),1,0)) -> 0 | W15: =IF(ISERR(担当曜日別調査!K19=VLOOKUP($D7,ｸﾗｽｺｰﾄﾞ等!$B$4:$C$2106,2))=1,1,IF(担当曜日別調査!K19=VLOOKUP($D7,ｸﾗｽｺｰﾄﾞ等!$B$4:$C$2106,2),1,0)) -> 0 | X15: =IF(ISERR(担当曜日別調査!L19=VLOOKUP($D7,ｸﾗｽｺｰﾄﾞ等!$B$4:$C$2106,2))=1,1,IF(担当曜日別調査!L19=VLOOKUP($D7,ｸﾗｽｺｰﾄﾞ等!$B$4:$C$2106,2),1,0)) -> 0 | Y15: =IF(ISERR(担当曜日別調査!M19=VLOOKUP($D7,ｸﾗｽｺｰﾄﾞ等!$B$4:$C$2106,2))=1,1,IF(担当曜日別調査!M19=VLOOKUP($D7,ｸﾗｽｺｰﾄﾞ等!$B$4:$C$2106,2),1,0)) -> 0 | Z15: =IF(ISERR(担当曜日別調査!N19=VLOOKUP($D7,ｸﾗｽｺｰﾄﾞ等!$B$4:$C$2106,2))=1,1,IF(担当曜日別調査!N19=VLOOKUP($D7,ｸﾗｽｺｰﾄﾞ等!$B$4:$C$2106,2),1,0)) -> 0 | AA15: =IF(ISERR(担当曜日別調査!O19=VLOOKUP($D7,ｸﾗｽｺｰﾄﾞ等!$B$4:$C$2106,2))=1,1,IF(担当曜日別調査!O19=VLOOKUP($D7,ｸﾗｽｺｰﾄﾞ等!$B$4:$C$2106,2),1,0)) -> 0 | AB15: 0
B16: 9 | D16: =VLOOKUP(B16,ｸ別担当準備!$A$5:$BM$24,VALUE(MID($D$7,2,5))-8+1) -> 128 | E16: =IF(ISERR(IF(AND(F16="・",AB10=0),"●","×"))=1,"",IF(AND(F16="・",AB10=0),"●",IF(F16="","","×"))) -> × | F16: =IF(ISERROR(VLOOKUP(F14*2-1,教科担当一覧2!$D$9:$BA$428,VLOOKUP(F15,曜日コード!$B$5:$C$52,2,0)+3+1,0))=TRUE,"",VLOOKUP(F14*2-1,教科担当一覧2!$D$9:$BA$428,VLOOKUP(F15,曜日コード!$B$5:$C$52,2,0)+3+1,0)) -> 名児耶 | G16: =IF(ISERROR(VLOOKUP(F14*2,教科担当一覧2!$D$9:$BA$428,VLOOKUP(F15,曜日コード!$B$5:$C$52,2,0)+3+1,0))=TRUE,"",VLOOKUP(F14*2,教科担当一覧2!$D$9:$BA$428,VLOOKUP(F15,曜日コード!$B$5:$C$52,2,0)+3+1,0)) -> 1-4担 | H16: =IF(ISERR(IF(AND(I16="・",AE10=0),"●","×"))=1,"",IF(AND(I16="・",AE10=0),"●",IF(I16="","","×"))) -> × | I16: =IF(ISERROR(VLOOKUP(I14*2-1,教科担当一覧2!$D$9:$BA$428,VLOOKUP(I15,曜日コード!$B$5:$C$52,2,0)+3+1,0))=TRUE,"",VLOOKUP(I14*2-1,教科担当一覧2!$D$9:$BA$428,VLOOKUP(I15,曜日コード!$B$5:$C$52,2,0)+3+1,0)) -> 山崎 | J16: =IF(ISERROR(VLOOKUP(I14*2,教科担当一覧2!$D$9:$BA$428,VLOOKUP(I15,曜日コード!$B$5:$C$52,2,0)+3+1,0))=TRUE,"",VLOOKUP(I14*2,教科担当一覧2!$D$9:$BA$428,VLOOKUP(I15,曜日コード!$B$5:$C$52,2,0)+3+1,0)) -> 3-2担 | K16: =IF(ISERR(IF(AND(L16="・",AH10=0),"●","×"))=1,"",IF(AND(L16="・",AH10=0),"●",IF(L16="","","×"))) -> × | L16: =IF(ISERROR(VLOOKUP(L14*2-1,教科担当一覧2!$D$9:$BA$428,VLOOKUP(L15,曜日コード!$B$5:$C$52,2,0)+3+1,0))=TRUE,"",VLOOKUP(L14*2-1,教科担当一覧2!$D$9:$BA$428,VLOOKUP(L15,曜日コード!$B$5:$C$52,2,0)+3+1,0)) -> 後藤 | M16: =IF(ISERROR(VLOOKUP(L14*2,教科担当一覧2!$D$9:$BA$428,VLOOKUP(L15,曜日コード!$B$5:$C$52,2,0)+3+1,0))=TRUE,"",VLOOKUP(L14*2,教科担当一覧2!$D$9:$BA$428,VLOOKUP(L15,曜日コード!$B$5:$C$52,2,0)+3+1,0)) -> 3-6副 | N16: =IF(ISERR(IF(AND(O16="・",AK10=0),"●","×"))=1,"",IF(AND(O16="・",AK10=0),"●",IF(O16="","","×"))) -> × | O16: =IF(ISERROR(VLOOKUP(O14*2-1,教科担当一覧2!$D$9:$BA$428,VLOOKUP(O15,曜日コード!$B$5:$C$52,2,0)+3+1,0))=TRUE,"",VLOOKUP(O14*2-1,教科担当一覧2!$D$9:$BA$428,VLOOKUP(O15,曜日コード!$B$5:$C$52,2,0)+3+1,0)) -> 木島 | P16: =IF(ISERROR(VLOOKUP(O14*2,教科担当一覧2!$D$9:$BA$428,VLOOKUP(O15,曜日コード!$B$5:$C$52,2,0)+3+1,0))=TRUE,"",VLOOKUP(O14*2,教科担当一覧2!$D$9:$BA$428,VLOOKUP(O15,曜日コード!$B$5:$C$52,2,0)+3+1,0)) -> 1-3担 | S16: 8 | T16: =IF(ISERR(担当曜日別調査!H21=VLOOKUP($D7,ｸﾗｽｺｰﾄﾞ等!$B$4:$C$2106,2))=1,1,IF(担当曜日別調査!H21=VLOOKUP($D7,ｸﾗｽｺｰﾄﾞ等!$B$4:$C$2106,2),1,0)) -> 0 | U16: =IF(ISERR(担当曜日別調査!I21=VLOOKUP($D7,ｸﾗｽｺｰﾄﾞ等!$B$4:$C$2106,2))=1,1,IF(担当曜日別調査!I21=VLOOKUP($D7,ｸﾗｽｺｰﾄﾞ等!$B$4:$C$2106,2),1,0)) -> 1 | V16: =IF(ISERR(担当曜日別調査!J21=VLOOKUP($D7,ｸﾗｽｺｰﾄﾞ等!$B$4:$C$2106,2))=1,1,IF(担当曜日別調査!J21=VLOOKUP($D7,ｸﾗｽｺｰﾄﾞ等!$B$4:$C$2106,2),1,0)) -> 0 | W16: =IF(ISERR(担当曜日別調査!K21=VLOOKUP($D7,ｸﾗｽｺｰﾄﾞ等!$B$4:$C$2106,2))=1,1,IF(担当曜日別調査!K21=VLOOKUP($D7,ｸﾗｽｺｰﾄﾞ等!$B$4:$C$2106,2),1,0)) -> 0 | X16: =IF(ISERR(担当曜日別調査!L21=VLOOKUP($D7,ｸﾗｽｺｰﾄﾞ等!$B$4:$C$2106,2))=1,1,IF(担当曜日別調査!L21=VLOOKUP($D7,ｸﾗｽｺｰﾄﾞ等!$B$4:$C$2106,2),1,0)) -> 0 | Y16: =IF(ISERR(担当曜日別調査!M21=VLOOKUP($D7,ｸﾗｽｺｰﾄﾞ等!$B$4:$C$2106,2))=1,1,IF(担当曜日別調査!M21=VLOOKUP($D7,ｸﾗｽｺｰﾄﾞ等!$B$4:$C$2106,2),1,0)) -> 0 | Z16: =IF(ISERR(担当曜日別調査!N21=VLOOKUP($D7,ｸﾗｽｺｰﾄﾞ等!$B$4:$C$2106,2))=1,1,IF(担当曜日別調査!N21=VLOOKUP($D7,ｸﾗｽｺｰﾄﾞ等!$B$4:$C$2106,2),1,0)) -> 0 | AA16: =IF(ISERR(担当曜日別調査!O21=VLOOKUP($D7,ｸﾗｽｺｰﾄﾞ等!$B$4:$C$2106,2))=1,1,IF(担当曜日別調査!O21=VLOOKUP($D7,ｸﾗｽｺｰﾄﾞ等!$B$4:$C$2106,2),1,0)) -> 0 | AB16: 1
B17: 10 | D17: =VLOOKUP(B17,ｸ別担当準備!$A$5:$BM$24,VALUE(MID($D$7,2,5))-8+1) -> 141 | S17: 9 | T17: =IF(ISERR(担当曜日別調査!H23=VLOOKUP($D7,ｸﾗｽｺｰﾄﾞ等!$B$4:$C$2106,2))=1,1,IF(担当曜日別調査!H23=VLOOKUP($D7,ｸﾗｽｺｰﾄﾞ等!$B$4:$C$2106,2),1,0)) -> 0 | U17: =IF(ISERR(担当曜日別調査!I23=VLOOKUP($D7,ｸﾗｽｺｰﾄﾞ等!$B$4:$C$2106,2))=1,1,IF(担当曜日別調査!I23=VLOOKUP($D7,ｸﾗｽｺｰﾄﾞ等!$B$4:$C$2106,2),1,0)) -> 0 | V17: =IF(ISERR(担当曜日別調査!J23=VLOOKUP($D7,ｸﾗｽｺｰﾄﾞ等!$B$4:$C$2106,2))=1,1,IF(担当曜日別調査!J23=VLOOKUP($D7,ｸﾗｽｺｰﾄﾞ等!$B$4:$C$2106,2),1,0)) -> 0 | W17: =IF(ISERR(担当曜日別調査!K23=VLOOKUP($D7,ｸﾗｽｺｰﾄﾞ等!$B$4:$C$2106,2))=1,1,IF(担当曜日別調査!K23=VLOOKUP($D7,ｸﾗｽｺｰﾄﾞ等!$B$4:$C$2106,2),1,0)) -> 0 | X17: =IF(ISERR(担当曜日別調査!L23=VLOOKUP($D7,ｸﾗｽｺｰﾄﾞ等!$B$4:$C$2106,2))=1,1,IF(担当曜日別調査!L23=VLOOKUP($D7,ｸﾗｽｺｰﾄﾞ等!$B$4:$C$2106,2),1,0)) -> 0 | Y17: =IF(ISERR(担当曜日別調査!M23=VLOOKUP($D7,ｸﾗｽｺｰﾄﾞ等!$B$4:$C$2106,2))=1,1,IF(担当曜日別調査!M23=VLOOKUP($D7,ｸﾗｽｺｰﾄﾞ等!$B$4:$C$2106,2),1,0)) -> 0 | Z17: =IF(ISERR(担当曜日別調査!N23=VLOOKUP($D7,ｸﾗｽｺｰﾄﾞ等!$B$4:$C$2106,2))=1,1,IF(担当曜日別調査!N23=VLOOKUP($D7,ｸﾗｽｺｰﾄﾞ等!$B$4:$C$2106,2),1,0)) -> 0 | AA17: =IF(ISERR(担当曜日別調査!O23=VLOOKUP($D7,ｸﾗｽｺｰﾄﾞ等!$B$4:$C$2106,2))=1,1,IF(担当曜日別調査!O23=VLOOKUP($D7,ｸﾗｽｺｰﾄﾞ等!$B$4:$C$2106,2),1,0)) -> 0 | AB17: 0
B18: 11 | C18: 当 | D18: =VLOOKUP(B18,ｸ別担当準備!$A$5:$BM$24,VALUE(MID($D$7,2,5))-8+1) -> 151 | E18: ⑨ | F18: 担当科目調査 | H18: ⑩ | I18: 担当科目調査 | K18: ⑪ | L18: 担当科目調査 | N18: ⑫ | O18: 担当科目調査 | S18: 10 | T18: =IF(ISERR(担当曜日別調査!H25=VLOOKUP($D7,ｸﾗｽｺｰﾄﾞ等!$B$4:$C$2106,2))=1,1,IF(担当曜日別調査!H25=VLOOKUP($D7,ｸﾗｽｺｰﾄﾞ等!$B$4:$C$2106,2),1,0)) -> 0 | U18: =IF(ISERR(担当曜日別調査!I25=VLOOKUP($D7,ｸﾗｽｺｰﾄﾞ等!$B$4:$C$2106,2))=1,1,IF(担当曜日別調査!I25=VLOOKUP($D7,ｸﾗｽｺｰﾄﾞ等!$B$4:$C$2106,2),1,0)) -> 0 | V18: =IF(ISERR(担当曜日別調査!J25=VLOOKUP($D7,ｸﾗｽｺｰﾄﾞ等!$B$4:$C$2106,2))=1,1,IF(担当曜日別調査!J25=VLOOKUP($D7,ｸﾗｽｺｰﾄﾞ等!$B$4:$C$2106,2),1,0)) -> 0 | W18: =IF(ISERR(担当曜日別調査!K25=VLOOKUP($D7,ｸﾗｽｺｰﾄﾞ等!$B$4:$C$2106,2))=1,1,IF(担当曜日別調査!K25=VLOOKUP($D7,ｸﾗｽｺｰﾄﾞ等!$B$4:$C$2106,2),1,0)) -> 0 | X18: =IF(ISERR(担当曜日別調査!L25=VLOOKUP($D7,ｸﾗｽｺｰﾄﾞ等!$B$4:$C$2106,2))=1,1,IF(担当曜日別調査!L25=VLOOKUP($D7,ｸﾗｽｺｰﾄﾞ等!$B$4:$C$2106,2),1,0)) -> 0 | Y18: =IF(ISERR(担当曜日別調査!M25=VLOOKUP($D7,ｸﾗｽｺｰﾄﾞ等!$B$4:$C$2106,2))=1,1,IF(担当曜日別調査!M25=VLOOKUP($D7,ｸﾗｽｺｰﾄﾞ等!$B$4:$C$2106,2),1,0)) -> 0 | Z18: =IF(ISERR(担当曜日別調査!N25=VLOOKUP($D7,ｸﾗｽｺｰﾄﾞ等!$B$4:$C$2106,2))=1,1,IF(担当曜日別調査!N25=VLOOKUP($D7,ｸﾗｽｺｰﾄﾞ等!$B$4:$C$2106,2),1,0)) -> 0 | AA18: =IF(ISERR(担当曜日別調査!O25=VLOOKUP($D7,ｸﾗｽｺｰﾄﾞ等!$B$4:$C$2106,2))=1,1,IF(担当曜日別調査!O25=VLOOKUP($D7,ｸﾗｽｺｰﾄﾞ等!$B$4:$C$2106,2),1,0)) -> 0 | AB18: 0
B19: 12 | D19: =VLOOKUP(B19,ｸ別担当準備!$A$5:$BM$24,VALUE(MID($D$7,2,5))-8+1) -> 0 | F19: =D16 -> 128 | G19: =IF(ISERROR(VLOOKUP(F19*2-1,教科担当一覧2!$D$9:$BA$428,4,0))=TRUE,"",VLOOKUP(F19*2-1,教科担当一覧2!$D$9:$BA$428,4,0)) -> 小林 | I19: =D17 -> 141 | J19: =IF(ISERROR(VLOOKUP(I19*2-1,教科担当一覧2!$D$9:$BA$428,4,0))=TRUE,"",VLOOKUP(I19*2-1,教科担当一覧2!$D$9:$BA$428,4,0)) -> 村山 | L19: =D18 -> 151 | M19: =IF(ISERROR(VLOOKUP(L19*2-1,教科担当一覧2!$D$9:$BA$428,4,0))=TRUE,"",VLOOKUP(L19*2-1,教科担当一覧2!$D$9:$BA$428,4,0)) -> 宮木 | O19: =D19 -> 0 | P19: =IF(ISERROR(VLOOKUP(O19*2-1,教科担当一覧2!$D$9:$BA$428,4,0))=TRUE,"",VLOOKUP(O19*2-1,教科担当一覧2!$D$9:$BA$428,4,0)) ->  | S19: 11 | T19: =IF(ISERR(担当曜日別調査!H27=VLOOKUP($D7,ｸﾗｽｺｰﾄﾞ等!$B$4:$C$2106,2))=1,1,IF(担当曜日別調査!H27=VLOOKUP($D7,ｸﾗｽｺｰﾄﾞ等!$B$4:$C$2106,2),1,0)) -> 0 | U19: =IF(ISERR(担当曜日別調査!I27=VLOOKUP($D7,ｸﾗｽｺｰﾄﾞ等!$B$4:$C$2106,2))=1,1,IF(担当曜日別調査!I27=VLOOKUP($D7,ｸﾗｽｺｰﾄﾞ等!$B$4:$C$2106,2),1,0)) -> 0 | V19: =IF(ISERR(担当曜日別調査!J27=VLOOKUP($D7,ｸﾗｽｺｰﾄﾞ等!$B$4:$C$2106,2))=1,1,IF(担当曜日別調査!J27=VLOOKUP($D7,ｸﾗｽｺｰﾄﾞ等!$B$4:$C$2106,2),1,0)) -> 0 | W19: =IF(ISERR(担当曜日別調査!K27=VLOOKUP($D7,ｸﾗｽｺｰﾄﾞ等!$B$4:$C$2106,2))=1,1,IF(担当曜日別調査!K27=VLOOKUP($D7,ｸﾗｽｺｰﾄﾞ等!$B$4:$C$2106,2),1,0)) -> 1 | X19: =IF(ISERR(担当曜日別調査!L27=VLOOKUP($D7,ｸﾗｽｺｰﾄﾞ等!$B$4:$C$2106,2))=1,1,IF(担当曜日別調査!L27=VLOOKUP($D7,ｸﾗｽｺｰﾄﾞ等!$B$4:$C$2106,2),1,0)) -> 0 | Y19: =IF(ISERR(担当曜日別調査!M27=VLOOKUP($D7,ｸﾗｽｺｰﾄﾞ等!$B$4:$C$2106,2))=1,1,IF(担当曜日別調査!M27=VLOOKUP($D7,ｸﾗｽｺｰﾄﾞ等!$B$4:$C$2106,2),1,0)) -> 0 | Z19: =IF(ISERR(担当曜日別調査!N27=VLOOKUP($D7,ｸﾗｽｺｰﾄﾞ等!$B$4:$C$2106,2))=1,1,IF(担当曜日別調査!N27=VLOOKUP($D7,ｸﾗｽｺｰﾄﾞ等!$B$4:$C$2106,2),1,0)) -> 0 | AA19: =IF(ISERR(担当曜日別調査!O27=VLOOKUP($D7,ｸﾗｽｺｰﾄﾞ等!$B$4:$C$2106,2))=1,1,IF(担当曜日別調査!O27=VLOOKUP($D7,ｸﾗｽｺｰﾄﾞ等!$B$4:$C$2106,2),1,0)) -> 0 | AB19: 1
B20: 13 | D20: =VLOOKUP(B20,ｸ別担当準備!$A$5:$BM$24,VALUE(MID($D$7,2,5))-8+1) -> 0 | F20: =B4 -> 0 | G20: =IF(ISERROR(VLOOKUP(F20,曜日コード!$B$5:$E$52,4,0))=TRUE,"",VLOOKUP(F20,曜日コード!$B$5:$E$52,4,0)) -> なし | I20: =B4 -> 0 | J20: =IF(ISERROR(VLOOKUP(I20,曜日コード!$B$5:$E$52,4,0))=TRUE,"",VLOOKUP(I20,曜日コード!$B$5:$E$52,4,0)) -> なし | L20: =B4 -> 0 | M20: =IF(ISERROR(VLOOKUP(L20,曜日コード!$B$5:$E$52,4,0))=TRUE,"",VLOOKUP(L20,曜日コード!$B$5:$E$52,4,0)) -> なし | O20: =B4 -> 0 | P20: =IF(ISERROR(VLOOKUP(O20,曜日コード!$B$5:$E$52,4,0))=TRUE,"",VLOOKUP(O20,曜日コード!$B$5:$E$52,4,0)) -> なし | S20: 12 | T20: =IF(ISERR(担当曜日別調査!H29=VLOOKUP($D7,ｸﾗｽｺｰﾄﾞ等!$B$4:$C$2106,2))=1,1,IF(担当曜日別調査!H29=VLOOKUP($D7,ｸﾗｽｺｰﾄﾞ等!$B$4:$C$2106,2),1,0)) -> 0 | U20: =IF(ISERR(担当曜日別調査!I29=VLOOKUP($D7,ｸﾗｽｺｰﾄﾞ等!$B$4:$C$2106,2))=1,1,IF(担当曜日別調査!I29=VLOOKUP($D7,ｸﾗｽｺｰﾄﾞ等!$B$4:$C$2106,2),1,0)) -> 0 | V20: =IF(ISERR(担当曜日別調査!J29=VLOOKUP($D7,ｸﾗｽｺｰﾄﾞ等!$B$4:$C$2106,2))=1,1,IF(担当曜日別調査!J29=VLOOKUP($D7,ｸﾗｽｺｰﾄﾞ等!$B$4:$C$2106,2),1,0)) -> 0 | W20: =IF(ISERR(担当曜日別調査!K29=VLOOKUP($D7,ｸﾗｽｺｰﾄﾞ等!$B$4:$C$2106,2))=1,1,IF(担当曜日別調査!K29=VLOOKUP($D7,ｸﾗｽｺｰﾄﾞ等!$B$4:$C$2106,2),1,0)) -> 0 | X20: =IF(ISERR(担当曜日別調査!L29=VLOOKUP($D7,ｸﾗｽｺｰﾄﾞ等!$B$4:$C$2106,2))=1,1,IF(担当曜日別調査!L29=VLOOKUP($D7,ｸﾗｽｺｰﾄﾞ等!$B$4:$C$2106,2),1,0)) -> 0 | Y20: =IF(ISERR(担当曜日別調査!M29=VLOOKUP($D7,ｸﾗｽｺｰﾄﾞ等!$B$4:$C$2106,2))=1,1,IF(担当曜日別調査!M29=VLOOKUP($D7,ｸﾗｽｺｰﾄﾞ等!$B$4:$C$2106,2),1,0)) -> 0 | Z20: =IF(ISERR(担当曜日別調査!N29=VLOOKUP($D7,ｸﾗｽｺｰﾄﾞ等!$B$4:$C$2106,2))=1,1,IF(担当曜日別調査!N29=VLOOKUP($D7,ｸﾗｽｺｰﾄﾞ等!$B$4:$C$2106,2),1,0)) -> 0 | AA20: =IF(ISERR(担当曜日別調査!O29=VLOOKUP($D7,ｸﾗｽｺｰﾄﾞ等!$B$4:$C$2106,2))=1,1,IF(担当曜日別調査!O29=VLOOKUP($D7,ｸﾗｽｺｰﾄﾞ等!$B$4:$C$2106,2),1,0)) -> 0 | AB20: 0
B21: 14 | D21: =VLOOKUP(B21,ｸ別担当準備!$A$5:$BM$24,VALUE(MID($D$7,2,5))-8+1) -> 0 | E21: =IF(ISERR(IF(AND(F21="・",AB15=0),"●","×"))=1,"",IF(AND(F21="・",AB15=0),"●",IF(F21="","","×"))) -> × | F21: =IF(ISERROR(VLOOKUP(F19*2-1,教科担当一覧2!$D$9:$BA$428,VLOOKUP(F20,曜日コード!$B$5:$C$52,2,0)+3+1,0))=TRUE,"",VLOOKUP(F19*2-1,教科担当一覧2!$D$9:$BA$428,VLOOKUP(F20,曜日コード!$B$5:$C$52,2,0)+3+1,0)) -> 小林 | G21: =IF(ISERROR(VLOOKUP(F19*2,教科担当一覧2!$D$9:$BA$428,VLOOKUP(F20,曜日コード!$B$5:$C$52,2,0)+3+1,0))=TRUE,"",VLOOKUP(F19*2,教科担当一覧2!$D$9:$BA$428,VLOOKUP(F20,曜日コード!$B$5:$C$52,2,0)+3+1,0)) -> 3-7副 | H21: =IF(ISERR(IF(AND(I21="・",AE15=0),"●","×"))=1,"",IF(AND(I21="・",AE15=0),"●",IF(I21="","","×"))) -> × | I21: =IF(ISERROR(VLOOKUP(I19*2-1,教科担当一覧2!$D$9:$BA$428,VLOOKUP(I20,曜日コード!$B$5:$C$52,2,0)+3+1,0))=TRUE,"",VLOOKUP(I19*2-1,教科担当一覧2!$D$9:$BA$428,VLOOKUP(I20,曜日コード!$B$5:$C$52,2,0)+3+1,0)) -> 村山 | J21: =IF(ISERROR(VLOOKUP(I19*2,教科担当一覧2!$D$9:$BA$428,VLOOKUP(I20,曜日コード!$B$5:$C$52,2,0)+3+1,0))=TRUE,"",VLOOKUP(I19*2,教科担当一覧2!$D$9:$BA$428,VLOOKUP(I20,曜日コード!$B$5:$C$52,2,0)+3+1,0)) -> 1-1副 | K21: =IF(ISERR(IF(AND(L21="・",AH15=0),"●","×"))=1,"",IF(AND(L21="・",AH15=0),"●",IF(L21="","","×"))) -> × | L21: =IF(ISERROR(VLOOKUP(L19*2-1,教科担当一覧2!$D$9:$BA$428,VLOOKUP(L20,曜日コード!$B$5:$C$52,2,0)+3+1,0))=TRUE,"",VLOOKUP(L19*2-1,教科担当一覧2!$D$9:$BA$428,VLOOKUP(L20,曜日コード!$B$5:$C$52,2,0)+3+1,0)) -> 宮木 | M21: =IF(ISERROR(VLOOKUP(L19*2,教科担当一覧2!$D$9:$BA$428,VLOOKUP(L20,曜日コード!$B$5:$C$52,2,0)+3+1,0))=TRUE,"",VLOOKUP(L19*2,教科担当一覧2!$D$9:$BA$428,VLOOKUP(L20,曜日コード!$B$5:$C$52,2,0)+3+1,0)) -> 1-8副 | N21: =IF(ISERR(IF(AND(O21="・",AK15=0),"●","×"))=1,"",IF(AND(O21="・",AK15=0),"●",IF(O21="","","×"))) ->  | O21: =IF(ISERROR(VLOOKUP(O19*2-1,教科担当一覧2!$D$9:$BA$428,VLOOKUP(O20,曜日コード!$B$5:$C$52,2,0)+3+1,0))=TRUE,"",VLOOKUP(O19*2-1,教科担当一覧2!$D$9:$BA$428,VLOOKUP(O20,曜日コード!$B$5:$C$52,2,0)+3+1,0)) ->  | P21: =IF(ISERROR(VLOOKUP(O19*2,教科担当一覧2!$D$9:$BA$428,VLOOKUP(O20,曜日コード!$B$5:$C$52,2,0)+3+1,0))=TRUE,"",VLOOKUP(O19*2,教科担当一覧2!$D$9:$BA$428,VLOOKUP(O20,曜日コード!$B$5:$C$52,2,0)+3+1,0)) ->  | S21: 13 | T21: =IF(ISERR(担当曜日別調査!H31=VLOOKUP($D7,ｸﾗｽｺｰﾄﾞ等!$B$4:$C$2106,2))=1,1,IF(担当曜日別調査!H31=VLOOKUP($D7,ｸﾗｽｺｰﾄﾞ等!$B$4:$C$2106,2),1,0)) -> 0 | U21: =IF(ISERR(担当曜日別調査!I31=VLOOKUP($D7,ｸﾗｽｺｰﾄﾞ等!$B$4:$C$2106,2))=1,1,IF(担当曜日別調査!I31=VLOOKUP($D7,ｸﾗｽｺｰﾄﾞ等!$B$4:$C$2106,2),1,0)) -> 0 | V21: =IF(ISERR(担当曜日別調査!J31=VLOOKUP($D7,ｸﾗｽｺｰﾄﾞ等!$B$4:$C$2106,2))=1,1,IF(担当曜日別調査!J31=VLOOKUP($D7,ｸﾗｽｺｰﾄﾞ等!$B$4:$C$2106,2),1,0)) -> 0 | W21: =IF(ISERR(担当曜日別調査!K31=VLOOKUP($D7,ｸﾗｽｺｰﾄﾞ等!$B$4:$C$2106,2))=1,1,IF(担当曜日別調査!K31=VLOOKUP($D7,ｸﾗｽｺｰﾄﾞ等!$B$4:$C$2106,2),1,0)) -> 0 | X21: =IF(ISERR(担当曜日別調査!L31=VLOOKUP($D7,ｸﾗｽｺｰﾄﾞ等!$B$4:$C$2106,2))=1,1,IF(担当曜日別調査!L31=VLOOKUP($D7,ｸﾗｽｺｰﾄﾞ等!$B$4:$C$2106,2),1,0)) -> 0 | Y21: =IF(ISERR(担当曜日別調査!M31=VLOOKUP($D7,ｸﾗｽｺｰﾄﾞ等!$B$4:$C$2106,2))=1,1,IF(担当曜日別調査!M31=VLOOKUP($D7,ｸﾗｽｺｰﾄﾞ等!$B$4:$C$2106,2),1,0)) -> 0 | Z21: =IF(ISERR(担当曜日別調査!N31=VLOOKUP($D7,ｸﾗｽｺｰﾄﾞ等!$B$4:$C$2106,2))=1,1,IF(担当曜日別調査!N31=VLOOKUP($D7,ｸﾗｽｺｰﾄﾞ等!$B$4:$C$2106,2),1,0)) -> 0 | AA21: =IF(ISERR(担当曜日別調査!O31=VLOOKUP($D7,ｸﾗｽｺｰﾄﾞ等!$B$4:$C$2106,2))=1,1,IF(担当曜日別調査!O31=VLOOKUP($D7,ｸﾗｽｺｰﾄﾞ等!$B$4:$C$2106,2),1,0)) -> 0 | AB21: 0
B22: 15 | D22: =VLOOKUP(B22,ｸ別担当準備!$A$5:$BM$24,VALUE(MID($D$7,2,5))-8+1) -> 0 | S22: 14 | T22: =IF(ISERR(担当曜日別調査!H33=VLOOKUP($D7,ｸﾗｽｺｰﾄﾞ等!$B$4:$C$2106,2))=1,1,IF(担当曜日別調査!H33=VLOOKUP($D7,ｸﾗｽｺｰﾄﾞ等!$B$4:$C$2106,2),1,0)) -> 0 | U22: =IF(ISERR(担当曜日別調査!I33=VLOOKUP($D7,ｸﾗｽｺｰﾄﾞ等!$B$4:$C$2106,2))=1,1,IF(担当曜日別調査!I33=VLOOKUP($D7,ｸﾗｽｺｰﾄﾞ等!$B$4:$C$2106,2),1,0)) -> 0 | V22: =IF(ISERR(担当曜日別調査!J33=VLOOKUP($D7,ｸﾗｽｺｰﾄﾞ等!$B$4:$C$2106,2))=1,1,IF(担当曜日別調査!J33=VLOOKUP($D7,ｸﾗｽｺｰﾄﾞ等!$B$4:$C$2106,2),1,0)) -> 0 | W22: =IF(ISERR(担当曜日別調査!K33=VLOOKUP($D7,ｸﾗｽｺｰﾄﾞ等!$B$4:$C$2106,2))=1,1,IF(担当曜日別調査!K33=VLOOKUP($D7,ｸﾗｽｺｰﾄﾞ等!$B$4:$C$2106,2),1,0)) -> 0 | X22: =IF(ISERR(担当曜日別調査!L33=VLOOKUP($D7,ｸﾗｽｺｰﾄﾞ等!$B$4:$C$2106,2))=1,1,IF(担当曜日別調査!L33=VLOOKUP($D7,ｸﾗｽｺｰﾄﾞ等!$B$4:$C$2106,2),1,0)) -> 0 | Y22: =IF(ISERR(担当曜日別調査!M33=VLOOKUP($D7,ｸﾗｽｺｰﾄﾞ等!$B$4:$C$2106,2))=1,1,IF(担当曜日別調査!M33=VLOOKUP($D7,ｸﾗｽｺｰﾄﾞ等!$B$4:$C$2106,2),1,0)) -> 0 | Z22: =IF(ISERR(担当曜日別調査!N33=VLOOKUP($D7,ｸﾗｽｺｰﾄﾞ等!$B$4:$C$2106,2))=1,1,IF(担当曜日別調査!N33=VLOOKUP($D7,ｸﾗｽｺｰﾄﾞ等!$B$4:$C$2106,2),1,0)) -> 0 | AA22: =IF(ISERR(担当曜日別調査!O33=VLOOKUP($D7,ｸﾗｽｺｰﾄﾞ等!$B$4:$C$2106,2))=1,1,IF(担当曜日別調査!O33=VLOOKUP($D7,ｸﾗｽｺｰﾄﾞ等!$B$4:$C$2106,2),1,0)) -> 0 | AB22: 0
B23: 16 | D23: =VLOOKUP(B23,ｸ別担当準備!$A$5:$BM$24,VALUE(MID($D$7,2,5))-8+1) -> 0 | E23: ⑬ | F23: 担当科目調査 | H23: ⑭ | I23: 担当科目調査 | K23: ⑮ | L23: 担当科目調査 | N23: ⑯ | O23: 担当科目調査 | S23: 15 | T23: =IF(ISERR(担当曜日別調査!H35=VLOOKUP($D7,ｸﾗｽｺｰﾄﾞ等!$B$4:$C$2106,2))=1,1,IF(担当曜日別調査!H35=VLOOKUP($D7,ｸﾗｽｺｰﾄﾞ等!$B$4:$C$2106,2),1,0)) -> 0 | U23: =IF(ISERR(担当曜日別調査!I35=VLOOKUP($D7,ｸﾗｽｺｰﾄﾞ等!$B$4:$C$2106,2))=1,1,IF(担当曜日別調査!I35=VLOOKUP($D7,ｸﾗｽｺｰﾄﾞ等!$B$4:$C$2106,2),1,0)) -> 0 | V23: =IF(ISERR(担当曜日別調査!J35=VLOOKUP($D7,ｸﾗｽｺｰﾄﾞ等!$B$4:$C$2106,2))=1,1,IF(担当曜日別調査!J35=VLOOKUP($D7,ｸﾗｽｺｰﾄﾞ等!$B$4:$C$2106,2),1,0)) -> 0 | W23: =IF(ISERR(担当曜日別調査!K35=VLOOKUP($D7,ｸﾗｽｺｰﾄﾞ等!$B$4:$C$2106,2))=1,1,IF(担当曜日別調査!K35=VLOOKUP($D7,ｸﾗｽｺｰﾄﾞ等!$B$4:$C$2106,2),1,0)) -> 0 | X23: =IF(ISERR(担当曜日別調査!L35=VLOOKUP($D7,ｸﾗｽｺｰﾄﾞ等!$B$4:$C$2106,2))=1,1,IF(担当曜日別調査!L35=VLOOKUP($D7,ｸﾗｽｺｰﾄﾞ等!$B$4:$C$2106,2),1,0)) -> 0 | Y23: =IF(ISERR(担当曜日別調査!M35=VLOOKUP($D7,ｸﾗｽｺｰﾄﾞ等!$B$4:$C$2106,2))=1,1,IF(担当曜日別調査!M35=VLOOKUP($D7,ｸﾗｽｺｰﾄﾞ等!$B$4:$C$2106,2),1,0)) -> 0 | Z23: =IF(ISERR(担当曜日別調査!N35=VLOOKUP($D7,ｸﾗｽｺｰﾄﾞ等!$B$4:$C$2106,2))=1,1,IF(担当曜日別調査!N35=VLOOKUP($D7,ｸﾗｽｺｰﾄﾞ等!$B$4:$C$2106,2),1,0)) -> 0 | AA23: =IF(ISERR(担当曜日別調査!O35=VLOOKUP($D7,ｸﾗｽｺｰﾄﾞ等!$B$4:$C$2106,2))=1,1,IF(担当曜日別調査!O35=VLOOKUP($D7,ｸﾗｽｺｰﾄﾞ等!$B$4:$C$2106,2),1,0)) -> 0 | AB23: 0
B24: 17 | D24: =VLOOKUP(B24,ｸ別担当準備!$A$5:$BM$24,VALUE(MID($D$7,2,5))-8+1) -> 0 | F24: =D20 -> 0 | G24: =IF(ISERROR(VLOOKUP(F24*2-1,教科担当一覧2!$D$9:$BA$428,4,0))=TRUE,"",VLOOKUP(F24*2-1,教科担当一覧2!$D$9:$BA$428,4,0)) ->  | I24: =D21 -> 0 | J24: =IF(ISERROR(VLOOKUP(I24*2-1,教科担当一覧2!$D$9:$BA$428,4,0))=TRUE,"",VLOOKUP(I24*2-1,教科担当一覧2!$D$9:$BA$428,4,0)) ->  | L24: =D22 -> 0 | M24: =IF(ISERROR(VLOOKUP(L24*2-1,教科担当一覧2!$D$9:$BA$428,4,0))=TRUE,"",VLOOKUP(L24*2-1,教科担当一覧2!$D$9:$BA$428,4,0)) ->  | O24: =D23 -> 0 | P24: =IF(ISERROR(VLOOKUP(O24*2-1,教科担当一覧2!$D$9:$BA$428,4,0))=TRUE,"",VLOOKUP(O24*2-1,教科担当一覧2!$D$9:$BA$428,4,0)) ->  | S24: 16 | T24: =IF(ISERR(担当曜日別調査!H37=VLOOKUP($D7,ｸﾗｽｺｰﾄﾞ等!$B$4:$C$2106,2))=1,1,IF(担当曜日別調査!H37=VLOOKUP($D7,ｸﾗｽｺｰﾄﾞ等!$B$4:$C$2106,2),1,0)) -> 0 | U24: =IF(ISERR(担当曜日別調査!I37=VLOOKUP($D7,ｸﾗｽｺｰﾄﾞ等!$B$4:$C$2106,2))=1,1,IF(担当曜日別調査!I37=VLOOKUP($D7,ｸﾗｽｺｰﾄﾞ等!$B$4:$C$2106,2),1,0)) -> 0 | V24: =IF(ISERR(担当曜日別調査!J37=VLOOKUP($D7,ｸﾗｽｺｰﾄﾞ等!$B$4:$C$2106,2))=1,1,IF(担当曜日別調査!J37=VLOOKUP($D7,ｸﾗｽｺｰﾄﾞ等!$B$4:$C$2106,2),1,0)) -> 0 | W24: =IF(ISERR(担当曜日別調査!K37=VLOOKUP($D7,ｸﾗｽｺｰﾄﾞ等!$B$4:$C$2106,2))=1,1,IF(担当曜日別調査!K37=VLOOKUP($D7,ｸﾗｽｺｰﾄﾞ等!$B$4:$C$2106,2),1,0)) -> 0 | X24: =IF(ISERR(担当曜日別調査!L37=VLOOKUP($D7,ｸﾗｽｺｰﾄﾞ等!$B$4:$C$2106,2))=1,1,IF(担当曜日別調査!L37=VLOOKUP($D7,ｸﾗｽｺｰﾄﾞ等!$B$4:$C$2106,2),1,0)) -> 0 | Y24: =IF(ISERR(担当曜日別調査!M37=VLOOKUP($D7,ｸﾗｽｺｰﾄﾞ等!$B$4:$C$2106,2))=1,1,IF(担当曜日別調査!M37=VLOOKUP($D7,ｸﾗｽｺｰﾄﾞ等!$B$4:$C$2106,2),1,0)) -> 0 | Z24: =IF(ISERR(担当曜日別調査!N37=VLOOKUP($D7,ｸﾗｽｺｰﾄﾞ等!$B$4:$C$2106,2))=1,1,IF(担当曜日別調査!N37=VLOOKUP($D7,ｸﾗｽｺｰﾄﾞ等!$B$4:$C$2106,2),1,0)) -> 0 | AA24: =IF(ISERR(担当曜日別調査!O37=VLOOKUP($D7,ｸﾗｽｺｰﾄﾞ等!$B$4:$C$2106,2))=1,1,IF(担当曜日別調査!O37=VLOOKUP($D7,ｸﾗｽｺｰﾄﾞ等!$B$4:$C$2106,2),1,0)) -> 0 | AB24: 0
B25: 18 | C25: 者 | D25: =VLOOKUP(B25,ｸ別担当準備!$A$5:$BM$24,VALUE(MID($D$7,2,5))-8+1) -> 0 | F25: =B4 -> 0 | G25: =IF(ISERROR(VLOOKUP(F25,曜日コード!$B$5:$E$52,4,0))=TRUE,"",VLOOKUP(F25,曜日コード!$B$5:$E$52,4,0)) -> なし | I25: =B4 -> 0 | J25: =IF(ISERROR(VLOOKUP(I25,曜日コード!$B$5:$E$52,4,0))=TRUE,"",VLOOKUP(I25,曜日コード!$B$5:$E$52,4,0)) -> なし | L25: =B4 -> 0 | M25: =IF(ISERROR(VLOOKUP(L25,曜日コード!$B$5:$E$52,4,0))=TRUE,"",VLOOKUP(L25,曜日コード!$B$5:$E$52,4,0)) -> なし | O25: =B4 -> 0 | P25: =IF(ISERROR(VLOOKUP(O25,曜日コード!$B$5:$E$52,4,0))=TRUE,"",VLOOKUP(O25,曜日コード!$B$5:$E$52,4,0)) -> なし | S25: 17 | T25: =IF(ISERR(担当曜日別調査!H39=VLOOKUP($D7,ｸﾗｽｺｰﾄﾞ等!$B$4:$C$2106,2))=1,1,IF(担当曜日別調査!H39=VLOOKUP($D7,ｸﾗｽｺｰﾄﾞ等!$B$4:$C$2106,2),1,0)) -> 0 | U25: =IF(ISERR(担当曜日別調査!I39=VLOOKUP($D7,ｸﾗｽｺｰﾄﾞ等!$B$4:$C$2106,2))=1,1,IF(担当曜日別調査!I39=VLOOKUP($D7,ｸﾗｽｺｰﾄﾞ等!$B$4:$C$2106,2),1,0)) -> 0 | V25: =IF(ISERR(担当曜日別調査!J39=VLOOKUP($D7,ｸﾗｽｺｰﾄﾞ等!$B$4:$C$2106,2))=1,1,IF(担当曜日別調査!J39=VLOOKUP($D7,ｸﾗｽｺｰﾄﾞ等!$B$4:$C$2106,2),1,0)) -> 0 | W25: =IF(ISERR(担当曜日別調査!K39=VLOOKUP($D7,ｸﾗｽｺｰﾄﾞ等!$B$4:$C$2106,2))=1,1,IF(担当曜日別調査!K39=VLOOKUP($D7,ｸﾗｽｺｰﾄﾞ等!$B$4:$C$2106,2),1,0)) -> 0 | X25: =IF(ISERR(担当曜日別調査!L39=VLOOKUP($D7,ｸﾗｽｺｰﾄﾞ等!$B$4:$C$2106,2))=1,1,IF(担当曜日別調査!L39=VLOOKUP($D7,ｸﾗｽｺｰﾄﾞ等!$B$4:$C$2106,2),1,0)) -> 0 | Y25: =IF(ISERR(担当曜日別調査!M39=VLOOKUP($D7,ｸﾗｽｺｰﾄﾞ等!$B$4:$C$2106,2))=1,1,IF(担当曜日別調査!M39=VLOOKUP($D7,ｸﾗｽｺｰﾄﾞ等!$B$4:$C$2106,2),1,0)) -> 0 | Z25: =IF(ISERR(担当曜日別調査!N39=VLOOKUP($D7,ｸﾗｽｺｰﾄﾞ等!$B$4:$C$2106,2))=1,1,IF(担当曜日別調査!N39=VLOOKUP($D7,ｸﾗｽｺｰﾄﾞ等!$B$4:$C$2106,2),1,0)) -> 0 | AA25: =IF(ISERR(担当曜日別調査!O39=VLOOKUP($D7,ｸﾗｽｺｰﾄﾞ等!$B$4:$C$2106,2))=1,1,IF(担当曜日別調査!O39=VLOOKUP($D7,ｸﾗｽｺｰﾄﾞ等!$B$4:$C$2106,2),1,0)) -> 0 | AB25: 0
B26: 19 | D26: =VLOOKUP(B26,ｸ別担当準備!$A$5:$BM$24,VALUE(MID($D$7,2,5))-8+1) -> 0 | E26: =IF(ISERR(IF(AND(F26="・",AB20=0),"●","×"))=1,"",IF(AND(F26="・",AB20=0),"●",IF(F26="","","×"))) ->  | F26: =IF(ISERROR(VLOOKUP(F24*2-1,教科担当一覧2!$D$9:$BA$428,VLOOKUP(F25,曜日コード!$B$5:$C$52,2,0)+3+1,0))=TRUE,"",VLOOKUP(F24*2-1,教科担当一覧2!$D$9:$BA$428,VLOOKUP(F25,曜日コード!$B$5:$C$52,2,0)+3+1,0)) ->  | G26: =IF(ISERROR(VLOOKUP(F24*2,教科担当一覧2!$D$9:$BA$428,VLOOKUP(F25,曜日コード!$B$5:$C$52,2,0)+3+1,0))=TRUE,"",VLOOKUP(F24*2,教科担当一覧2!$D$9:$BA$428,VLOOKUP(F25,曜日コード!$B$5:$C$52,2,0)+3+1,0)) ->  | H26: =IF(ISERR(IF(AND(I26="・",AE20=0),"●","×"))=1,"",IF(AND(I26="・",AE20=0),"●",IF(I26="","","×"))) ->  | I26: =IF(ISERROR(VLOOKUP(I24*2-1,教科担当一覧2!$D$9:$BA$428,VLOOKUP(I25,曜日コード!$B$5:$C$52,2,0)+3+1,0))=TRUE,"",VLOOKUP(I24*2-1,教科担当一覧2!$D$9:$BA$428,VLOOKUP(I25,曜日コード!$B$5:$C$52,2,0)+3+1,0)) ->  | J26: =IF(ISERROR(VLOOKUP(I24*2,教科担当一覧2!$D$9:$BA$428,VLOOKUP(I25,曜日コード!$B$5:$C$52,2,0)+3+1,0))=TRUE,"",VLOOKUP(I24*2,教科担当一覧2!$D$9:$BA$428,VLOOKUP(I25,曜日コード!$B$5:$C$52,2,0)+3+1,0)) ->  | K26: =IF(ISERR(IF(AND(L26="・",AH20=0),"●","×"))=1,"",IF(AND(L26="・",AH20=0),"●",IF(L26="","","×"))) ->  | L26: =IF(ISERROR(VLOOKUP(L24*2-1,教科担当一覧2!$D$9:$BA$428,VLOOKUP(L25,曜日コード!$B$5:$C$52,2,0)+3+1,0))=TRUE,"",VLOOKUP(L24*2-1,教科担当一覧2!$D$9:$BA$428,VLOOKUP(L25,曜日コード!$B$5:$C$52,2,0)+3+1,0)) ->  | M26: =IF(ISERROR(VLOOKUP(L24*2,教科担当一覧2!$D$9:$BA$428,VLOOKUP(L25,曜日コード!$B$5:$C$52,2,0)+3+1,0))=TRUE,"",VLOOKUP(L24*2,教科担当一覧2!$D$9:$BA$428,VLOOKUP(L25,曜日コード!$B$5:$C$52,2,0)+3+1,0)) ->  | N26: =IF(ISERR(IF(AND(O26="・",AK20=0),"●","×"))=1,"",IF(AND(O26="・",AK20=0),"●",IF(O26="","","×"))) ->  | O26: =IF(ISERROR(VLOOKUP(O24*2-1,教科担当一覧2!$D$9:$BA$428,VLOOKUP(O25,曜日コード!$B$5:$C$52,2,0)+3+1,0))=TRUE,"",VLOOKUP(O24*2-1,教科担当一覧2!$D$9:$BA$428,VLOOKUP(O25,曜日コード!$B$5:$C$52,2,0)+3+1,0)) ->  | P26: =IF(ISERROR(VLOOKUP(O24*2,教科担当一覧2!$D$9:$BA$428,VLOOKUP(O25,曜日コード!$B$5:$C$52,2,0)+3+1,0))=TRUE,"",VLOOKUP(O24*2,教科担当一覧2!$D$9:$BA$428,VLOOKUP(O25,曜日コード!$B$5:$C$52,2,0)+3+1,0)) ->  | S26: 18 | T26: =IF(ISERR(担当曜日別調査!H41=VLOOKUP($D7,ｸﾗｽｺｰﾄﾞ等!$B$4:$C$2106,2))=1,1,IF(担当曜日別調査!H41=VLOOKUP($D7,ｸﾗｽｺｰﾄﾞ等!$B$4:$C$2106,2),1,0)) -> 0 | U26: =IF(ISERR(担当曜日別調査!I41=VLOOKUP($D7,ｸﾗｽｺｰﾄﾞ等!$B$4:$C$2106,2))=1,1,IF(担当曜日別調査!I41=VLOOKUP($D7,ｸﾗｽｺｰﾄﾞ等!$B$4:$C$2106,2),1,0)) -> 0 | V26: =IF(ISERR(担当曜日別調査!J41=VLOOKUP($D7,ｸﾗｽｺｰﾄﾞ等!$B$4:$C$2106,2))=1,1,IF(担当曜日別調査!J41=VLOOKUP($D7,ｸﾗｽｺｰﾄﾞ等!$B$4:$C$2106,2),1,0)) -> 0 | W26: =IF(ISERR(担当曜日別調査!K41=VLOOKUP($D7,ｸﾗｽｺｰﾄﾞ等!$B$4:$C$2106,2))=1,1,IF(担当曜日別調査!K41=VLOOKUP($D7,ｸﾗｽｺｰﾄﾞ等!$B$4:$C$2106,2),1,0)) -> 0 | X26: =IF(ISERR(担当曜日別調査!L41=VLOOKUP($D7,ｸﾗｽｺｰﾄﾞ等!$B$4:$C$2106,2))=1,1,IF(担当曜日別調査!L41=VLOOKUP($D7,ｸﾗｽｺｰﾄﾞ等!$B$4:$C$2106,2),1,0)) -> 0 | Y26: =IF(ISERR(担当曜日別調査!M41=VLOOKUP($D7,ｸﾗｽｺｰﾄﾞ等!$B$4:$C$2106,2))=1,1,IF(担当曜日別調査!M41=VLOOKUP($D7,ｸﾗｽｺｰﾄﾞ等!$B$4:$C$2106,2),1,0)) -> 0 | Z26: =IF(ISERR(担当曜日別調査!N41=VLOOKUP($D7,ｸﾗｽｺｰﾄﾞ等!$B$4:$C$2106,2))=1,1,IF(担当曜日別調査!N41=VLOOKUP($D7,ｸﾗｽｺｰﾄﾞ等!$B$4:$C$2106,2),1,0)) -> 0 | AA26: =IF(ISERR(担当曜日別調査!O41=VLOOKUP($D7,ｸﾗｽｺｰﾄﾞ等!$B$4:$C$2106,2))=1,1,IF(担当曜日別調査!O41=VLOOKUP($D7,ｸﾗｽｺｰﾄﾞ等!$B$4:$C$2106,2),1,0)) -> 0 | AB26: 0
B27: 20 | D27: =VLOOKUP(B27,ｸ別担当準備!$A$5:$BM$24,VALUE(MID($D$7,2,5))-8+1) -> 0 | S27: 19 | T27: =IF(ISERR(担当曜日別調査!H43=VLOOKUP($D7,ｸﾗｽｺｰﾄﾞ等!$B$4:$C$2106,2))=1,1,IF(担当曜日別調査!H43=VLOOKUP($D7,ｸﾗｽｺｰﾄﾞ等!$B$4:$C$2106,2),1,0)) -> 0 | U27: =IF(ISERR(担当曜日別調査!I43=VLOOKUP($D7,ｸﾗｽｺｰﾄﾞ等!$B$4:$C$2106,2))=1,1,IF(担当曜日別調査!I43=VLOOKUP($D7,ｸﾗｽｺｰﾄﾞ等!$B$4:$C$2106,2),1,0)) -> 0 | V27: =IF(ISERR(担当曜日別調査!J43=VLOOKUP($D7,ｸﾗｽｺｰﾄﾞ等!$B$4:$C$2106,2))=1,1,IF(担当曜日別調査!J43=VLOOKUP($D7,ｸﾗｽｺｰﾄﾞ等!$B$4:$C$2106,2),1,0)) -> 0 | W27: =IF(ISERR(担当曜日別調査!K43=VLOOKUP($D7,ｸﾗｽｺｰﾄﾞ等!$B$4:$C$2106,2))=1,1,IF(担当曜日別調査!K43=VLOOKUP($D7,ｸﾗｽｺｰﾄﾞ等!$B$4:$C$2106,2),1,0)) -> 0 | X27: =IF(ISERR(担当曜日別調査!L43=VLOOKUP($D7,ｸﾗｽｺｰﾄﾞ等!$B$4:$C$2106,2))=1,1,IF(担当曜日別調査!L43=VLOOKUP($D7,ｸﾗｽｺｰﾄﾞ等!$B$4:$C$2106,2),1,0)) -> 0 | Y27: =IF(ISERR(担当曜日別調査!M43=VLOOKUP($D7,ｸﾗｽｺｰﾄﾞ等!$B$4:$C$2106,2))=1,1,IF(担当曜日別調査!M43=VLOOKUP($D7,ｸﾗｽｺｰﾄﾞ等!$B$4:$C$2106,2),1,0)) -> 0 | Z27: =IF(ISERR(担当曜日別調査!N43=VLOOKUP($D7,ｸﾗｽｺｰﾄﾞ等!$B$4:$C$2106,2))=1,1,IF(担当曜日別調査!N43=VLOOKUP($D7,ｸﾗｽｺｰﾄﾞ等!$B$4:$C$2106,2),1,0)) -> 0 | AA27: =IF(ISERR(担当曜日別調査!O43=VLOOKUP($D7,ｸﾗｽｺｰﾄﾞ等!$B$4:$C$2106,2))=1,1,IF(担当曜日別調査!O43=VLOOKUP($D7,ｸﾗｽｺｰﾄﾞ等!$B$4:$C$2106,2),1,0)) -> 0 | AB27: 0
E28: ⑰ | F28: 担当科目調査 | H28: ⑱ | I28: 担当科目調査 | K28: ⑲ | L28: 担当科目調査 | N28: ⑳ | O28: 担当科目調査 | S28: 20 | T28: =IF(ISERR(担当曜日別調査!H45=VLOOKUP($D7,ｸﾗｽｺｰﾄﾞ等!$B$4:$C$2106,2))=1,1,IF(担当曜日別調査!H45=VLOOKUP($D7,ｸﾗｽｺｰﾄﾞ等!$B$4:$C$2106,2),1,0)) -> 0 | U28: =IF(ISERR(担当曜日別調査!I45=VLOOKUP($D7,ｸﾗｽｺｰﾄﾞ等!$B$4:$C$2106,2))=1,1,IF(担当曜日別調査!I45=VLOOKUP($D7,ｸﾗｽｺｰﾄﾞ等!$B$4:$C$2106,2),1,0)) -> 0 | V28: =IF(ISERR(担当曜日別調査!J45=VLOOKUP($D7,ｸﾗｽｺｰﾄﾞ等!$B$4:$C$2106,2))=1,1,IF(担当曜日別調査!J45=VLOOKUP($D7,ｸﾗｽｺｰﾄﾞ等!$B$4:$C$2106,2),1,0)) -> 0 | W28: =IF(ISERR(担当曜日別調査!K45=VLOOKUP($D7,ｸﾗｽｺｰﾄﾞ等!$B$4:$C$2106,2))=1,1,IF(担当曜日別調査!K45=VLOOKUP($D7,ｸﾗｽｺｰﾄﾞ等!$B$4:$C$2106,2),1,0)) -> 0 | X28: =IF(ISERR(担当曜日別調査!L45=VLOOKUP($D7,ｸﾗｽｺｰﾄﾞ等!$B$4:$C$2106,2))=1,1,IF(担当曜日別調査!L45=VLOOKUP($D7,ｸﾗｽｺｰﾄﾞ等!$B$4:$C$2106,2),1,0)) -> 0 | Y28: =IF(ISERR(担当曜日別調査!M45=VLOOKUP($D7,ｸﾗｽｺｰﾄﾞ等!$B$4:$C$2106,2))=1,1,IF(担当曜日別調査!M45=VLOOKUP($D7,ｸﾗｽｺｰﾄﾞ等!$B$4:$C$2106,2),1,0)) -> 0 | Z28: =IF(ISERR(担当曜日別調査!N45=VLOOKUP($D7,ｸﾗｽｺｰﾄﾞ等!$B$4:$C$2106,2))=1,1,IF(担当曜日別調査!N45=VLOOKUP($D7,ｸﾗｽｺｰﾄﾞ等!$B$4:$C$2106,2),1,0)) -> 0 | AA28: =IF(ISERR(担当曜日別調査!O45=VLOOKUP($D7,ｸﾗｽｺｰﾄﾞ等!$B$4:$C$2106,2))=1,1,IF(担当曜日別調査!O45=VLOOKUP($D7,ｸﾗｽｺｰﾄﾞ等!$B$4:$C$2106,2),1,0)) -> 0 | AB28: 0
F29: =D24 -> 0 | G29: =IF(ISERROR(VLOOKUP(F29*2-1,教科担当一覧2!$D$9:$BA$428,4,0))=TRUE,"",VLOOKUP(F29*2-1,教科担当一覧2!$D$9:$BA$428,4,0)) ->  | I29: =D25 -> 0 | J29: =IF(ISERROR(VLOOKUP(I29*2-1,教科担当一覧2!$D$9:$BA$428,4,0))=TRUE,"",VLOOKUP(I29*2-1,教科担当一覧2!$D$9:$BA$428,4,0)) ->  | L29: =D26 -> 0 | M29: =IF(ISERROR(VLOOKUP(L29*2-1,教科担当一覧2!$D$9:$BA$428,4,0))=TRUE,"",VLOOKUP(L29*2-1,教科担当一覧2!$D$9:$BA$428,4,0)) ->  | O29: =D27 -> 0 | P29: =IF(ISERROR(VLOOKUP(O29*2-1,教科担当一覧2!$D$9:$BA$428,4,0))=TRUE,"",VLOOKUP(O29*2-1,教科担当一覧2!$D$9:$BA$428,4,0)) -> 
F30: =B4 -> 0 | G30: =IF(ISERROR(VLOOKUP(F30,曜日コード!$B$5:$E$52,4,0))=TRUE,"",VLOOKUP(F30,曜日コード!$B$5:$E$52,4,0)) -> なし | I30: =B4 -> 0 | J30: =IF(ISERROR(VLOOKUP(I30,曜日コード!$B$5:$E$52,4,0))=TRUE,"",VLOOKUP(I30,曜日コード!$B$5:$E$52,4,0)) -> なし | L30: =B4 -> 0 | M30: =IF(ISERROR(VLOOKUP(L30,曜日コード!$B$5:$E$52,4,0))=TRUE,"",VLOOKUP(L30,曜日コード!$B$5:$E$52,4,0)) -> なし | O30: =B4 -> 0 | P30: =IF(ISERROR(VLOOKUP(O30,曜日コード!$B$5:$E$52,4,0))=TRUE,"",VLOOKUP(O30,曜日コード!$B$5:$E$52,4,0)) -> なし
E31: =IF(ISERR(IF(AND(F31="・",AB25=0),"●","×"))=1,"",IF(AND(F31="・",AB25=0),"●",IF(F31="","","×"))) ->  | F31: =IF(ISERROR(VLOOKUP(F29*2-1,教科担当一覧2!$D$9:$BA$428,VLOOKUP(F30,曜日コード!$B$5:$C$52,2,0)+3+1,0))=TRUE,"",VLOOKUP(F29*2-1,教科担当一覧2!$D$9:$BA$428,VLOOKUP(F30,曜日コード!$B$5:$C$52,2,0)+3+1,0)) ->  | G31: =IF(ISERROR(VLOOKUP(F29*2,教科担当一覧2!$D$9:$BA$428,VLOOKUP(F30,曜日コード!$B$5:$C$52,2,0)+3+1,0))=TRUE,"",VLOOKUP(F29*2,教科担当一覧2!$D$9:$BA$428,VLOOKUP(F30,曜日コード!$B$5:$C$52,2,0)+3+1,0)) ->  | H31: =IF(ISERR(IF(AND(I31="・",AE25=0),"●","×"))=1,"",IF(AND(I31="・",AE25=0),"●",IF(I31="","","×"))) ->  | I31: =IF(ISERROR(VLOOKUP(I29*2-1,教科担当一覧2!$D$9:$BA$428,VLOOKUP(I30,曜日コード!$B$5:$C$52,2,0)+3+1,0))=TRUE,"",VLOOKUP(I29*2-1,教科担当一覧2!$D$9:$BA$428,VLOOKUP(I30,曜日コード!$B$5:$C$52,2,0)+3+1,0)) ->  | J31: =IF(ISERROR(VLOOKUP(I29*2,教科担当一覧2!$D$9:$BA$428,VLOOKUP(I30,曜日コード!$B$5:$C$52,2,0)+3+1,0))=TRUE,"",VLOOKUP(I29*2,教科担当一覧2!$D$9:$BA$428,VLOOKUP(I30,曜日コード!$B$5:$C$52,2,0)+3+1,0)) ->  | K31: =IF(ISERR(IF(AND(L31="・",AH25=0),"●","×"))=1,"",IF(AND(L31="・",AH25=0),"●",IF(L31="","","×"))) ->  | L31: =IF(ISERROR(VLOOKUP(L29*2-1,教科担当一覧2!$D$9:$BA$428,VLOOKUP(L30,曜日コード!$B$5:$C$52,2,0)+3+1,0))=TRUE,"",VLOOKUP(L29*2-1,教科担当一覧2!$D$9:$BA$428,VLOOKUP(L30,曜日コード!$B$5:$C$52,2,0)+3+1,0)) ->  | M31: =IF(ISERROR(VLOOKUP(L29*2,教科担当一覧2!$D$9:$BA$428,VLOOKUP(L30,曜日コード!$B$5:$C$52,2,0)+3+1,0))=TRUE,"",VLOOKUP(L29*2,教科担当一覧2!$D$9:$BA$428,VLOOKUP(L30,曜日コード!$B$5:$C$52,2,0)+3+1,0)) ->  | N31: =IF(ISERR(IF(AND(O31="・",AK25=0),"●","×"))=1,"",IF(AND(O31="・",AK25=0),"●",IF(O31="","","×"))) ->  | O31: =IF(ISERROR(VLOOKUP(O29*2-1,教科担当一覧2!$D$9:$BA$428,VLOOKUP(O30,曜日コード!$B$5:$C$52,2,0)+3+1,0))=TRUE,"",VLOOKUP(O29*2-1,教科担当一覧2!$D$9:$BA$428,VLOOKUP(O30,曜日コード!$B$5:$C$52,2,0)+3+1,0)) ->  | P31: =IF(ISERROR(VLOOKUP(O29*2,教科担当一覧2!$D$9:$BA$428,VLOOKUP(O30,曜日コード!$B$5:$C$52,2,0)+3+1,0))=TRUE,"",VLOOKUP(O29*2,教科担当一覧2!$D$9:$BA$428,VLOOKUP(O30,曜日コード!$B$5:$C$52,2,0)+3+1,0)) -> 
A36: ① | C36: ←曜日コード入力 | F36: =ROUNDDOWN(B36/10,0) -> 0
B37: =VLOOKUP(B36,曜日コード!$D$7:$E$52,2) ->  | D37: ←曜日時間 | F37: =VLOOKUP(F36,曜日コード!$G$5:$H$10,2) -> 
B39: ｵﾌｾｯﾄ番号 | C39: ｸﾗｽｺｰﾄﾞ入力→ | V39: =担当曜日別調査!J55 -> 火曜
B40: 1 | D40: =VLOOKUP(B40,ｸ別担当準備!$A$5:$BM$24,VALUE(MID($D$39,2,5))-8+1) ->  | E40: ① | F40: 担当科目調査 | H40: ② | I40: 担当科目調査 | K40: ③ | L40: 担当科目調査 | N40: ④ | O40: 担当科目調査 | T40: 1 | U40: 2 | V40: 3 | W40: 4 | X40: 5 | Y40: 6 | Z40: 7 | AA40: 8
B41: 2 | D41: =VLOOKUP(B41,ｸ別担当準備!$A$5:$BM$24,VALUE(MID($D$39,2,5))-8+1) ->  | F41: =D40 ->  | G41: =IF(ISERROR(VLOOKUP(F41*2-1,教科担当一覧2!$D$9:$BA$428,4,0))=TRUE,"",VLOOKUP(F41*2-1,教科担当一覧2!$D$9:$BA$428,4,0)) ->  | I41: =D41 ->  | J41: =IF(ISERROR(VLOOKUP(I41*2-1,教科担当一覧2!$D$9:$BA$428,4,0))=TRUE,"",VLOOKUP(I41*2-1,教科担当一覧2!$D$9:$BA$428,4,0)) ->  | L41: =D42 ->  | M41: =IF(ISERROR(VLOOKUP(L41*2-1,教科担当一覧2!$D$9:$BA$428,4,0))=TRUE,"",VLOOKUP(L41*2-1,教科担当一覧2!$D$9:$BA$428,4,0)) ->  | O41: =D43 ->  | P41: =IF(ISERROR(VLOOKUP(O41*2-1,教科担当一覧2!$D$9:$BA$428,4,0))=TRUE,"",VLOOKUP(O41*2-1,教科担当一覧2!$D$9:$BA$428,4,0)) ->  | S41: 1 | T41: =IF(ISERR(担当曜日別調査!H57=VLOOKUP($D39,ｸﾗｽｺｰﾄﾞ等!$B$4:$C$2106,2))=1,1,IF(担当曜日別調査!$H57=VLOOKUP($D39,ｸﾗｽｺｰﾄﾞ等!$B$4:$C$2106,2),1,0)) -> 1 | U41: =IF(ISERR(担当曜日別調査!I57=VLOOKUP($D39,ｸﾗｽｺｰﾄﾞ等!$B$4:$C$2106,2))=1,1,IF(担当曜日別調査!$H57=VLOOKUP($D39,ｸﾗｽｺｰﾄﾞ等!$B$4:$C$2106,2),1,0)) -> 1 | V41: =IF(ISERR(担当曜日別調査!J57=VLOOKUP($D39,ｸﾗｽｺｰﾄﾞ等!$B$4:$C$2106,2))=1,1,IF(担当曜日別調査!$H57=VLOOKUP($D39,ｸﾗｽｺｰﾄﾞ等!$B$4:$C$2106,2),1,0)) -> 1 | W41: =IF(ISERR(担当曜日別調査!K57=VLOOKUP($D39,ｸﾗｽｺｰﾄﾞ等!$B$4:$C$2106,2))=1,1,IF(担当曜日別調査!$H57=VLOOKUP($D39,ｸﾗｽｺｰﾄﾞ等!$B$4:$C$2106,2),1,0)) -> 1 | X41: =IF(ISERR(担当曜日別調査!L57=VLOOKUP($D39,ｸﾗｽｺｰﾄﾞ等!$B$4:$C$2106,2))=1,1,IF(担当曜日別調査!$H57=VLOOKUP($D39,ｸﾗｽｺｰﾄﾞ等!$B$4:$C$2106,2),1,0)) -> 1 | Y41: =IF(ISERR(担当曜日別調査!M57=VLOOKUP($D39,ｸﾗｽｺｰﾄﾞ等!$B$4:$C$2106,2))=1,1,IF(担当曜日別調査!$H57=VLOOKUP($D39,ｸﾗｽｺｰﾄﾞ等!$B$4:$C$2106,2),1,0)) -> 1 | Z41: =IF(ISERR(担当曜日別調査!N57=VLOOKUP($D39,ｸﾗｽｺｰﾄﾞ等!$B$4:$C$2106,2))=1,1,IF(担当曜日別調査!$H57=VLOOKUP($D39,ｸﾗｽｺｰﾄﾞ等!$B$4:$C$2106,2),1,0)) -> 1 | AA41: =IF(ISERR(担当曜日別調査!O57=VLOOKUP($D39,ｸﾗｽｺｰﾄﾞ等!$B$4:$C$2106,2))=1,1,IF(担当曜日別調査!$H57=VLOOKUP($D39,ｸﾗｽｺｰﾄﾞ等!$B$4:$C$2106,2),1,0)) -> 1 | AB41: =SUM(T41:AA41) -> 8
B42: 3 | C42: 担 | D42: =VLOOKUP(B42,ｸ別担当準備!$A$5:$BM$24,VALUE(MID($D$39,2,5))-8+1) ->  | F42: =B36 -> 0 | G42: =IF(ISERROR(VLOOKUP(F42,曜日コード!$B$5:$E$52,4,0))=TRUE,"",VLOOKUP(F42,曜日コード!$B$5:$E$52,4,0)) -> なし | I42: =B36 -> 0 | J42: =IF(ISERROR(VLOOKUP(I42,曜日コード!$B$5:$E$52,4,0))=TRUE,"",VLOOKUP(I42,曜日コード!$B$5:$E$52,4,0)) -> なし | L42: =B36 -> 0 | M42: =IF(ISERROR(VLOOKUP(L42,曜日コード!$B$5:$E$52,4,0))=TRUE,"",VLOOKUP(L42,曜日コード!$B$5:$E$52,4,0)) -> なし | O42: =B36 -> 0 | P42: =IF(ISERROR(VLOOKUP(O42,曜日コード!$B$5:$E$52,4,0))=TRUE,"",VLOOKUP(O42,曜日コード!$B$5:$E$52,4,0)) -> なし | S42: 2 | T42: =IF(ISERR(担当曜日別調査!H59=VLOOKUP($D39,ｸﾗｽｺｰﾄﾞ等!$B$4:$C$2106,2))=1,1,IF(担当曜日別調査!H59=VLOOKUP($D39,ｸﾗｽｺｰﾄﾞ等!$B$4:$C$2106,2),1,0)) -> 1 | U42: =IF(ISERR(担当曜日別調査!I59=VLOOKUP($D39,ｸﾗｽｺｰﾄﾞ等!$B$4:$C$2106,2))=1,1,IF(担当曜日別調査!I59=VLOOKUP($D39,ｸﾗｽｺｰﾄﾞ等!$B$4:$C$2106,2),1,0)) -> 1 | V42: =IF(ISERR(担当曜日別調査!J59=VLOOKUP($D39,ｸﾗｽｺｰﾄﾞ等!$B$4:$C$2106,2))=1,1,IF(担当曜日別調査!J59=VLOOKUP($D39,ｸﾗｽｺｰﾄﾞ等!$B$4:$C$2106,2),1,0)) -> 1 | W42: =IF(ISERR(担当曜日別調査!K59=VLOOKUP($D39,ｸﾗｽｺｰﾄﾞ等!$B$4:$C$2106,2))=1,1,IF(担当曜日別調査!K59=VLOOKUP($D39,ｸﾗｽｺｰﾄﾞ等!$B$4:$C$2106,2),1,0)) -> 1 | X42: =IF(ISERR(担当曜日別調査!L59=VLOOKUP($D39,ｸﾗｽｺｰﾄﾞ等!$B$4:$C$2106,2))=1,1,IF(担当曜日別調査!L59=VLOOKUP($D39,ｸﾗｽｺｰﾄﾞ等!$B$4:$C$2106,2),1,0)) -> 1 | Y42: =IF(ISERR(担当曜日別調査!M59=VLOOKUP($D39,ｸﾗｽｺｰﾄﾞ等!$B$4:$C$2106,2))=1,1,IF(担当曜日別調査!M59=VLOOKUP($D39,ｸﾗｽｺｰﾄﾞ等!$B$4:$C$2106,2),1,0)) -> 1 | Z42: =IF(ISERR(担当曜日別調査!N59=VLOOKUP($D39,ｸﾗｽｺｰﾄﾞ等!$B$4:$C$2106,2))=1,1,IF(担当曜日別調査!N59=VLOOKUP($D39,ｸﾗｽｺｰﾄﾞ等!$B$4:$C$2106,2),1,0)) -> 1 | AA42: =IF(ISERR(担当曜日別調査!O59=VLOOKUP($D39,ｸﾗｽｺｰﾄﾞ等!$B$4:$C$2106,2))=1,1,IF(担当曜日別調査!O59=VLOOKUP($D39,ｸﾗｽｺｰﾄﾞ等!$B$4:$C$2106,2),1,0)) -> 1 | AB42: 8
B43: 4 | D43: =VLOOKUP(B43,ｸ別担当準備!$A$5:$BM$24,VALUE(MID($D$39,2,5))-8+1) ->  | E43: =IF(ISERR(IF(AND(F43="・",AB37=0),"●","×"))=1,"",IF(AND(F43="・",AB37=0),"●",IF(F43="","","×"))) ->  | F43: =IF(ISERROR(VLOOKUP(F41*2-1,教科担当一覧2!$D$9:$BA$428,VLOOKUP(F42,曜日コード!$B$5:$C$52,2,0)+3+1,0))=TRUE,"",VLOOKUP(F41*2-1,教科担当一覧2!$D$9:$BA$428,VLOOKUP(F42,曜日コード!$B$5:$C$52,2,0)+3+1,0)) ->  | G43: =IF(ISERROR(VLOOKUP(F41*2,教科担当一覧2!$D$9:$BA$428,VLOOKUP(F42,曜日コード!$B$5:$C$52,2,0)+3+1,0))=TRUE,"",VLOOKUP(F41*2,教科担当一覧2!$D$9:$BA$428,VLOOKUP(F42,曜日コード!$B$5:$C$52,2,0)+3+1,0)) ->  | H43: =IF(ISERR(IF(AND(I43="・",AE37=0),"●","×"))=1,"",IF(AND(I43="・",AE37=0),"●",IF(I43="","","×"))) ->  | I43: =IF(ISERROR(VLOOKUP(I41*2-1,教科担当一覧2!$D$9:$BA$428,VLOOKUP(I42,曜日コード!$B$5:$C$52,2,0)+3+1,0))=TRUE,"",VLOOKUP(I41*2-1,教科担当一覧2!$D$9:$BA$428,VLOOKUP(I42,曜日コード!$B$5:$C$52,2,0)+3+1,0)) ->  | J43: =IF(ISERROR(VLOOKUP(I41*2,教科担当一覧2!$D$9:$BA$428,VLOOKUP(I42,曜日コード!$B$5:$C$52,2,0)+3+1,0))=TRUE,"",VLOOKUP(I41*2,教科担当一覧2!$D$9:$BA$428,VLOOKUP(I42,曜日コード!$B$5:$C$52,2,0)+3+1,0)) ->  | K43: =IF(ISERR(IF(AND(L43="・",AH37=0),"●","×"))=1,"",IF(AND(L43="・",AH37=0),"●",IF(L43="","","×"))) ->  | L43: =IF(ISERROR(VLOOKUP(L41*2-1,教科担当一覧2!$D$9:$BA$428,VLOOKUP(L42,曜日コード!$B$5:$C$52,2,0)+3+1,0))=TRUE,"",VLOOKUP(L41*2-1,教科担当一覧2!$D$9:$BA$428,VLOOKUP(L42,曜日コード!$B$5:$C$52,2,0)+3+1,0)) ->  | M43: =IF(ISERROR(VLOOKUP(L41*2,教科担当一覧2!$D$9:$BA$428,VLOOKUP(L42,曜日コード!$B$5:$C$52,2,0)+3+1,0))=TRUE,"",VLOOKUP(L41*2,教科担当一覧2!$D$9:$BA$428,VLOOKUP(L42,曜日コード!$B$5:$C$52,2,0)+3+1,0)) ->  | N43: =IF(ISERR(IF(AND(O43="・",AK37=0),"●","×"))=1,"",IF(AND(O43="・",AK37=0),"●",IF(O43="","","×"))) ->  | O43: =IF(ISERROR(VLOOKUP(O41*2-1,教科担当一覧2!$D$9:$BA$428,VLOOKUP(O42,曜日コード!$B$5:$C$52,2,0)+3+1,0))=TRUE,"",VLOOKUP(O41*2-1,教科担当一覧2!$D$9:$BA$428,VLOOKUP(O42,曜日コード!$B$5:$C$52,2,0)+3+1,0)) ->  | P43: =IF(ISERROR(VLOOKUP(O41*2,教科担当一覧2!$D$9:$BA$428,VLOOKUP(O42,曜日コード!$B$5:$C$52,2,0)+3+1,0))=TRUE,"",VLOOKUP(O41*2,教科担当一覧2!$D$9:$BA$428,VLOOKUP(O42,曜日コード!$B$5:$C$52,2,0)+3+1,0)) ->  | S43: 3 | T43: =IF(ISERR(担当曜日別調査!H61=VLOOKUP($D39,ｸﾗｽｺｰﾄﾞ等!$B$4:$C$2106,2))=1,1,IF(担当曜日別調査!H61=VLOOKUP($D39,ｸﾗｽｺｰﾄﾞ等!$B$4:$C$2106,2),1,0)) -> 1 | U43: =IF(ISERR(担当曜日別調査!I61=VLOOKUP($D39,ｸﾗｽｺｰﾄﾞ等!$B$4:$C$2106,2))=1,1,IF(担当曜日別調査!I61=VLOOKUP($D39,ｸﾗｽｺｰﾄﾞ等!$B$4:$C$2106,2),1,0)) -> 1 | V43: =IF(ISERR(担当曜日別調査!J61=VLOOKUP($D39,ｸﾗｽｺｰﾄﾞ等!$B$4:$C$2106,2))=1,1,IF(担当曜日別調査!J61=VLOOKUP($D39,ｸﾗｽｺｰﾄﾞ等!$B$4:$C$2106,2),1,0)) -> 1 | W43: =IF(ISERR(担当曜日別調査!K61=VLOOKUP($D39,ｸﾗｽｺｰﾄﾞ等!$B$4:$C$2106,2))=1,1,IF(担当曜日別調査!K61=VLOOKUP($D39,ｸﾗｽｺｰﾄﾞ等!$B$4:$C$2106,2),1,0)) -> 1 | X43: =IF(ISERR(担当曜日別調査!L61=VLOOKUP($D39,ｸﾗｽｺｰﾄﾞ等!$B$4:$C$2106,2))=1,1,IF(担当曜日別調査!L61=VLOOKUP($D39,ｸﾗｽｺｰﾄﾞ等!$B$4:$C$2106,2),1,0)) -> 1 | Y43: =IF(ISERR(担当曜日別調査!M61=VLOOKUP($D39,ｸﾗｽｺｰﾄﾞ等!$B$4:$C$2106,2))=1,1,IF(担当曜日別調査!M61=VLOOKUP($D39,ｸﾗｽｺｰﾄﾞ等!$B$4:$C$2106,2),1,0)) -> 1 | Z43: =IF(ISERR(担当曜日別調査!N61=VLOOKUP($D39,ｸﾗｽｺｰﾄﾞ等!$B$4:$C$2106,2))=1,1,IF(担当曜日別調査!N61=VLOOKUP($D39,ｸﾗｽｺｰﾄﾞ等!$B$4:$C$2106,2),1,0)) -> 1 | AA43: =IF(ISERR(担当曜日別調査!O61=VLOOKUP($D39,ｸﾗｽｺｰﾄﾞ等!$B$4:$C$2106,2))=1,1,IF(担当曜日別調査!O61=VLOOKUP($D39,ｸﾗｽｺｰﾄﾞ等!$B$4:$C$2106,2),1,0)) -> 1 | AB43: 8
B44: 5 | D44: =VLOOKUP(B44,ｸ別担当準備!$A$5:$BM$24,VALUE(MID($D$39,2,5))-8+1) ->  | S44: 4 | T44: =IF(ISERR(担当曜日別調査!H63=VLOOKUP($D39,ｸﾗｽｺｰﾄﾞ等!$B$4:$C$2106,2))=1,1,IF(担当曜日別調査!H63=VLOOKUP($D39,ｸﾗｽｺｰﾄﾞ等!$B$4:$C$2106,2),1,0)) -> 1 | U44: =IF(ISERR(担当曜日別調査!I63=VLOOKUP($D39,ｸﾗｽｺｰﾄﾞ等!$B$4:$C$2106,2))=1,1,IF(担当曜日別調査!I63=VLOOKUP($D39,ｸﾗｽｺｰﾄﾞ等!$B$4:$C$2106,2),1,0)) -> 1 | V44: =IF(ISERR(担当曜日別調査!J63=VLOOKUP($D39,ｸﾗｽｺｰﾄﾞ等!$B$4:$C$2106,2))=1,1,IF(担当曜日別調査!J63=VLOOKUP($D39,ｸﾗｽｺｰﾄﾞ等!$B$4:$C$2106,2),1,0)) -> 1 | W44: =IF(ISERR(担当曜日別調査!K63=VLOOKUP($D39,ｸﾗｽｺｰﾄﾞ等!$B$4:$C$2106,2))=1,1,IF(担当曜日別調査!K63=VLOOKUP($D39,ｸﾗｽｺｰﾄﾞ等!$B$4:$C$2106,2),1,0)) -> 1 | X44: =IF(ISERR(担当曜日別調査!L63=VLOOKUP($D39,ｸﾗｽｺｰﾄﾞ等!$B$4:$C$2106,2))=1,1,IF(担当曜日別調査!L63=VLOOKUP($D39,ｸﾗｽｺｰﾄﾞ等!$B$4:$C$2106,2),1,0)) -> 1 | Y44: =IF(ISERR(担当曜日別調査!M63=VLOOKUP($D39,ｸﾗｽｺｰﾄﾞ等!$B$4:$C$2106,2))=1,1,IF(担当曜日別調査!M63=VLOOKUP($D39,ｸﾗｽｺｰﾄﾞ等!$B$4:$C$2106,2),1,0)) -> 1 | Z44: =IF(ISERR(担当曜日別調査!N63=VLOOKUP($D39,ｸﾗｽｺｰﾄﾞ等!$B$4:$C$2106,2))=1,1,IF(担当曜日別調査!N63=VLOOKUP($D39,ｸﾗｽｺｰﾄﾞ等!$B$4:$C$2106,2),1,0)) -> 1 | AA44: =IF(ISERR(担当曜日別調査!O63=VLOOKUP($D39,ｸﾗｽｺｰﾄﾞ等!$B$4:$C$2106,2))=1,1,IF(担当曜日別調査!O63=VLOOKUP($D39,ｸﾗｽｺｰﾄﾞ等!$B$4:$C$2106,2),1,0)) -> 1 | AB44: 8
B45: 6 | D45: =VLOOKUP(B45,ｸ別担当準備!$A$5:$BM$24,VALUE(MID($D$39,2,5))-8+1) ->  | E45: ⑤ | F45: 担当科目調査 | H45: ⑥ | I45: 担当科目調査 | K45: ⑦ | L45: 担当科目調査 | N45: ⑧ | O45: 担当科目調査 | S45: 5 | T45: =IF(ISERR(担当曜日別調査!H65=VLOOKUP($D39,ｸﾗｽｺｰﾄﾞ等!$B$4:$C$2106,2))=1,1,IF(担当曜日別調査!H65=VLOOKUP($D39,ｸﾗｽｺｰﾄﾞ等!$B$4:$C$2106,2),1,0)) -> 1 | U45: =IF(ISERR(担当曜日別調査!I65=VLOOKUP($D39,ｸﾗｽｺｰﾄﾞ等!$B$4:$C$2106,2))=1,1,IF(担当曜日別調査!I65=VLOOKUP($D39,ｸﾗｽｺｰﾄﾞ等!$B$4:$C$2106,2),1,0)) -> 1 | V45: =IF(ISERR(担当曜日別調査!J65=VLOOKUP($D39,ｸﾗｽｺｰﾄﾞ等!$B$4:$C$2106,2))=1,1,IF(担当曜日別調査!J65=VLOOKUP($D39,ｸﾗｽｺｰﾄﾞ等!$B$4:$C$2106,2),1,0)) -> 1 | W45: =IF(ISERR(担当曜日別調査!K65=VLOOKUP($D39,ｸﾗｽｺｰﾄﾞ等!$B$4:$C$2106,2))=1,1,IF(担当曜日別調査!K65=VLOOKUP($D39,ｸﾗｽｺｰﾄﾞ等!$B$4:$C$2106,2),1,0)) -> 1 | X45: =IF(ISERR(担当曜日別調査!L65=VLOOKUP($D39,ｸﾗｽｺｰﾄﾞ等!$B$4:$C$2106,2))=1,1,IF(担当曜日別調査!L65=VLOOKUP($D39,ｸﾗｽｺｰﾄﾞ等!$B$4:$C$2106,2),1,0)) -> 1 | Y45: =IF(ISERR(担当曜日別調査!M65=VLOOKUP($D39,ｸﾗｽｺｰﾄﾞ等!$B$4:$C$2106,2))=1,1,IF(担当曜日別調査!M65=VLOOKUP($D39,ｸﾗｽｺｰﾄﾞ等!$B$4:$C$2106,2),1,0)) -> 1 | Z45: =IF(ISERR(担当曜日別調査!N65=VLOOKUP($D39,ｸﾗｽｺｰﾄﾞ等!$B$4:$C$2106,2))=1,1,IF(担当曜日別調査!N65=VLOOKUP($D39,ｸﾗｽｺｰﾄﾞ等!$B$4:$C$2106,2),1,0)) -> 1 | AA45: =IF(ISERR(担当曜日別調査!O65=VLOOKUP($D39,ｸﾗｽｺｰﾄﾞ等!$B$4:$C$2106,2))=1,1,IF(担当曜日別調査!O65=VLOOKUP($D39,ｸﾗｽｺｰﾄﾞ等!$B$4:$C$2106,2),1,0)) -> 1 | AB45: 8
B46: 7 | D46: =VLOOKUP(B46,ｸ別担当準備!$A$5:$BM$24,VALUE(MID($D$39,2,5))-8+1) ->  | F46: =D44 ->  | G46: =IF(ISERROR(VLOOKUP(F46*2-1,教科担当一覧2!$D$9:$BA$428,4,0))=TRUE,"",VLOOKUP(F46*2-1,教科担当一覧2!$D$9:$BA$428,4,0)) ->  | I46: =D45 ->  | J46: =IF(ISERROR(VLOOKUP(I46*2-1,教科担当一覧2!$D$9:$BA$428,4,0))=TRUE,"",VLOOKUP(I46*2-1,教科担当一覧2!$D$9:$BA$428,4,0)) ->  | L46: =D46 ->  | M46: =IF(ISERROR(VLOOKUP(L46*2-1,教科担当一覧2!$D$9:$BA$428,4,0))=TRUE,"",VLOOKUP(L46*2-1,教科担当一覧2!$D$9:$BA$428,4,0)) ->  | O46: =D47 ->  | P46: =IF(ISERROR(VLOOKUP(O46*2-1,教科担当一覧2!$D$9:$BA$428,4,0))=TRUE,"",VLOOKUP(O46*2-1,教科担当一覧2!$D$9:$BA$428,4,0)) ->  | S46: 6 | T46: =IF(ISERR(担当曜日別調査!H67=VLOOKUP($D39,ｸﾗｽｺｰﾄﾞ等!$B$4:$C$2106,2))=1,1,IF(担当曜日別調査!H67=VLOOKUP($D39,ｸﾗｽｺｰﾄﾞ等!$B$4:$C$2106,2),1,0)) -> 1 | U46: =IF(ISERR(担当曜日別調査!I67=VLOOKUP($D39,ｸﾗｽｺｰﾄﾞ等!$B$4:$C$2106,2))=1,1,IF(担当曜日別調査!I67=VLOOKUP($D39,ｸﾗｽｺｰﾄﾞ等!$B$4:$C$2106,2),1,0)) -> 1 | V46: =IF(ISERR(担当曜日別調査!J67=VLOOKUP($D39,ｸﾗｽｺｰﾄﾞ等!$B$4:$C$2106,2))=1,1,IF(担当曜日別調査!J67=VLOOKUP($D39,ｸﾗｽｺｰﾄﾞ等!$B$4:$C$2106,2),1,0)) -> 1 | W46: =IF(ISERR(担当曜日別調査!K67=VLOOKUP($D39,ｸﾗｽｺｰﾄﾞ等!$B$4:$C$2106,2))=1,1,IF(担当曜日別調査!K67=VLOOKUP($D39,ｸﾗｽｺｰﾄﾞ等!$B$4:$C$2106,2),1,0)) -> 1 | X46: =IF(ISERR(担当曜日別調査!L67=VLOOKUP($D39,ｸﾗｽｺｰﾄﾞ等!$B$4:$C$2106,2))=1,1,IF(担当曜日別調査!L67=VLOOKUP($D39,ｸﾗｽｺｰﾄﾞ等!$B$4:$C$2106,2),1,0)) -> 1 | Y46: =IF(ISERR(担当曜日別調査!M67=VLOOKUP($D39,ｸﾗｽｺｰﾄﾞ等!$B$4:$C$2106,2))=1,1,IF(担当曜日別調査!M67=VLOOKUP($D39,ｸﾗｽｺｰﾄﾞ等!$B$4:$C$2106,2),1,0)) -> 1 | Z46: =IF(ISERR(担当曜日別調査!N67=VLOOKUP($D39,ｸﾗｽｺｰﾄﾞ等!$B$4:$C$2106,2))=1,1,IF(担当曜日別調査!N67=VLOOKUP($D39,ｸﾗｽｺｰﾄﾞ等!$B$4:$C$2106,2),1,0)) -> 1 | AA46: =IF(ISERR(担当曜日別調査!O67=VLOOKUP($D39,ｸﾗｽｺｰﾄﾞ等!$B$4:$C$2106,2))=1,1,IF(担当曜日別調査!O67=VLOOKUP($D39,ｸﾗｽｺｰﾄﾞ等!$B$4:$C$2106,2),1,0)) -> 1 | AB46: 8
B47: 8 | D47: =VLOOKUP(B47,ｸ別担当準備!$A$5:$BM$24,VALUE(MID($D$39,2,5))-8+1) ->  | F47: =B36 -> 0 | G47: =IF(ISERROR(VLOOKUP(F47,曜日コード!$B$5:$E$52,4,0))=TRUE,"",VLOOKUP(F47,曜日コード!$B$5:$E$52,4,0)) -> なし | I47: =B36 -> 0 | J47: =IF(ISERROR(VLOOKUP(I47,曜日コード!$B$5:$E$52,4,0))=TRUE,"",VLOOKUP(I47,曜日コード!$B$5:$E$52,4,0)) -> なし | L47: =B36 -> 0 | M47: =IF(ISERROR(VLOOKUP(L47,曜日コード!$B$5:$E$52,4,0))=TRUE,"",VLOOKUP(L47,曜日コード!$B$5:$E$52,4,0)) -> なし | O47: =B36 -> 0 | P47: =IF(ISERROR(VLOOKUP(O47,曜日コード!$B$5:$E$52,4,0))=TRUE,"",VLOOKUP(O47,曜日コード!$B$5:$E$52,4,0)) -> なし | S47: 7 | T47: =IF(ISERR(担当曜日別調査!H69=VLOOKUP($D39,ｸﾗｽｺｰﾄﾞ等!$B$4:$C$2106,2))=1,1,IF(担当曜日別調査!H69=VLOOKUP($D39,ｸﾗｽｺｰﾄﾞ等!$B$4:$C$2106,2),1,0)) -> 1 | U47: =IF(ISERR(担当曜日別調査!I69=VLOOKUP($D39,ｸﾗｽｺｰﾄﾞ等!$B$4:$C$2106,2))=1,1,IF(担当曜日別調査!I69=VLOOKUP($D39,ｸﾗｽｺｰﾄﾞ等!$B$4:$C$2106,2),1,0)) -> 1 | V47: =IF(ISERR(担当曜日別調査!J69=VLOOKUP($D39,ｸﾗｽｺｰﾄﾞ等!$B$4:$C$2106,2))=1,1,IF(担当曜日別調査!J69=VLOOKUP($D39,ｸﾗｽｺｰﾄﾞ等!$B$4:$C$2106,2),1,0)) -> 1 | W47: =IF(ISERR(担当曜日別調査!K69=VLOOKUP($D39,ｸﾗｽｺｰﾄﾞ等!$B$4:$C$2106,2))=1,1,IF(担当曜日別調査!K69=VLOOKUP($D39,ｸﾗｽｺｰﾄﾞ等!$B$4:$C$2106,2),1,0)) -> 1 | X47: =IF(ISERR(担当曜日別調査!L69=VLOOKUP($D39,ｸﾗｽｺｰﾄﾞ等!$B$4:$C$2106,2))=1,1,IF(担当曜日別調査!L69=VLOOKUP($D39,ｸﾗｽｺｰﾄﾞ等!$B$4:$C$2106,2),1,0)) -> 1 | Y47: =IF(ISERR(担当曜日別調査!M69=VLOOKUP($D39,ｸﾗｽｺｰﾄﾞ等!$B$4:$C$2106,2))=1,1,IF(担当曜日別調査!M69=VLOOKUP($D39,ｸﾗｽｺｰﾄﾞ等!$B$4:$C$2106,2),1,0)) -> 1 | Z47: =IF(ISERR(担当曜日別調査!N69=VLOOKUP($D39,ｸﾗｽｺｰﾄﾞ等!$B$4:$C$2106,2))=1,1,IF(担当曜日別調査!N69=VLOOKUP($D39,ｸﾗｽｺｰﾄﾞ等!$B$4:$C$2106,2),1,0)) -> 1 | AA47: =IF(ISERR(担当曜日別調査!O69=VLOOKUP($D39,ｸﾗｽｺｰﾄﾞ等!$B$4:$C$2106,2))=1,1,IF(担当曜日別調査!O69=VLOOKUP($D39,ｸﾗｽｺｰﾄﾞ等!$B$4:$C$2106,2),1,0)) -> 1 | AB47: 8
B48: 9 | D48: =VLOOKUP(B48,ｸ別担当準備!$A$5:$BM$24,VALUE(MID($D$39,2,5))-8+1) ->  | E48: =IF(ISERR(IF(AND(F48="・",AB42=0),"●","×"))=1,"",IF(AND(F48="・",AB42=0),"●",IF(F48="","","×"))) ->  | F48: =IF(ISERROR(VLOOKUP(F46*2-1,教科担当一覧2!$D$9:$BA$428,VLOOKUP(F47,曜日コード!$B$5:$C$52,2,0)+3+1,0))=TRUE,"",VLOOKUP(F46*2-1,教科担当一覧2!$D$9:$BA$428,VLOOKUP(F47,曜日コード!$B$5:$C$52,2,0)+3+1,0)) ->  | G48: =IF(ISERROR(VLOOKUP(F46*2,教科担当一覧2!$D$9:$BA$428,VLOOKUP(F47,曜日コード!$B$5:$C$52,2,0)+3+1,0))=TRUE,"",VLOOKUP(F46*2,教科担当一覧2!$D$9:$BA$428,VLOOKUP(F47,曜日コード!$B$5:$C$52,2,0)+3+1,0)) ->  | H48: =IF(ISERR(IF(AND(I48="・",AE42=0),"●","×"))=1,"",IF(AND(I48="・",AE42=0),"●",IF(I48="","","×"))) ->  | I48: =IF(ISERROR(VLOOKUP(I46*2-1,教科担当一覧2!$D$9:$BA$428,VLOOKUP(I47,曜日コード!$B$5:$C$52,2,0)+3+1,0))=TRUE,"",VLOOKUP(I46*2-1,教科担当一覧2!$D$9:$BA$428,VLOOKUP(I47,曜日コード!$B$5:$C$52,2,0)+3+1,0)) ->  | J48: =IF(ISERROR(VLOOKUP(I46*2,教科担当一覧2!$D$9:$BA$428,VLOOKUP(I47,曜日コード!$B$5:$C$52,2,0)+3+1,0))=TRUE,"",VLOOKUP(I46*2,教科担当一覧2!$D$9:$BA$428,VLOOKUP(I47,曜日コード!$B$5:$C$52,2,0)+3+1,0)) ->  | K48: =IF(ISERR(IF(AND(L48="・",AH42=0),"●","×"))=1,"",IF(AND(L48="・",AH42=0),"●",IF(L48="","","×"))) ->  | L48: =IF(ISERROR(VLOOKUP(L46*2-1,教科担当一覧2!$D$9:$BA$428,VLOOKUP(L47,曜日コード!$B$5:$C$52,2,0)+3+1,0))=TRUE,"",VLOOKUP(L46*2-1,教科担当一覧2!$D$9:$BA$428,VLOOKUP(L47,曜日コード!$B$5:$C$52,2,0)+3+1,0)) ->  | M48: =IF(ISERROR(VLOOKUP(L46*2,教科担当一覧2!$D$9:$BA$428,VLOOKUP(L47,曜日コード!$B$5:$C$52,2,0)+3+1,0))=TRUE,"",VLOOKUP(L46*2,教科担当一覧2!$D$9:$BA$428,VLOOKUP(L47,曜日コード!$B$5:$C$52,2,0)+3+1,0)) ->  | N48: =IF(ISERR(IF(AND(O48="・",AK42=0),"●","×"))=1,"",IF(AND(O48="・",AK42=0),"●",IF(O48="","","×"))) ->  | O48: =IF(ISERROR(VLOOKUP(O46*2-1,教科担当一覧2!$D$9:$BA$428,VLOOKUP(O47,曜日コード!$B$5:$C$52,2,0)+3+1,0))=TRUE,"",VLOOKUP(O46*2-1,教科担当一覧2!$D$9:$BA$428,VLOOKUP(O47,曜日コード!$B$5:$C$52,2,0)+3+1,0)) ->  | P48: =IF(ISERROR(VLOOKUP(O46*2,教科担当一覧2!$D$9:$BA$428,VLOOKUP(O47,曜日コード!$B$5:$C$52,2,0)+3+1,0))=TRUE,"",VLOOKUP(O46*2,教科担当一覧2!$D$9:$BA$428,VLOOKUP(O47,曜日コード!$B$5:$C$52,2,0)+3+1,0)) ->  | S48: 8 | T48: =IF(ISERR(担当曜日別調査!H71=VLOOKUP($D39,ｸﾗｽｺｰﾄﾞ等!$B$4:$C$2106,2))=1,1,IF(担当曜日別調査!H71=VLOOKUP($D39,ｸﾗｽｺｰﾄﾞ等!$B$4:$C$2106,2),1,0)) -> 1 | U48: =IF(ISERR(担当曜日別調査!I71=VLOOKUP($D39,ｸﾗｽｺｰﾄﾞ等!$B$4:$C$2106,2))=1,1,IF(担当曜日別調査!I71=VLOOKUP($D39,ｸﾗｽｺｰﾄﾞ等!$B$4:$C$2106,2),1,0)) -> 1 | V48: =IF(ISERR(担当曜日別調査!J71=VLOOKUP($D39,ｸﾗｽｺｰﾄﾞ等!$B$4:$C$2106,2))=1,1,IF(担当曜日別調査!J71=VLOOKUP($D39,ｸﾗｽｺｰﾄﾞ等!$B$4:$C$2106,2),1,0)) -> 1 | W48: =IF(ISERR(担当曜日別調査!K71=VLOOKUP($D39,ｸﾗｽｺｰﾄﾞ等!$B$4:$C$2106,2))=1,1,IF(担当曜日別調査!K71=VLOOKUP($D39,ｸﾗｽｺｰﾄﾞ等!$B$4:$C$2106,2),1,0)) -> 1 | X48: =IF(ISERR(担当曜日別調査!L71=VLOOKUP($D39,ｸﾗｽｺｰﾄﾞ等!$B$4:$C$2106,2))=1,1,IF(担当曜日別調査!L71=VLOOKUP($D39,ｸﾗｽｺｰﾄﾞ等!$B$4:$C$2106,2),1,0)) -> 1 | Y48: =IF(ISERR(担当曜日別調査!M71=VLOOKUP($D39,ｸﾗｽｺｰﾄﾞ等!$B$4:$C$2106,2))=1,1,IF(担当曜日別調査!M71=VLOOKUP($D39,ｸﾗｽｺｰﾄﾞ等!$B$4:$C$2106,2),1,0)) -> 1 | Z48: =IF(ISERR(担当曜日別調査!N71=VLOOKUP($D39,ｸﾗｽｺｰﾄﾞ等!$B$4:$C$2106,2))=1,1,IF(担当曜日別調査!N71=VLOOKUP($D39,ｸﾗｽｺｰﾄﾞ等!$B$4:$C$2106,2),1,0)) -> 1 | AA48: =IF(ISERR(担当曜日別調査!O71=VLOOKUP($D39,ｸﾗｽｺｰﾄﾞ等!$B$4:$C$2106,2))=1,1,IF(担当曜日別調査!O71=VLOOKUP($D39,ｸﾗｽｺｰﾄﾞ等!$B$4:$C$2106,2),1,0)) -> 1 | AB48: 8
B49: 10 | D49: =VLOOKUP(B49,ｸ別担当準備!$A$5:$BM$24,VALUE(MID($D$39,2,5))-8+1) ->  | S49: 9 | T49: =IF(ISERR(担当曜日別調査!H73=VLOOKUP($D39,ｸﾗｽｺｰﾄﾞ等!$B$4:$C$2106,2))=1,1,IF(担当曜日別調査!H73=VLOOKUP($D39,ｸﾗｽｺｰﾄﾞ等!$B$4:$C$2106,2),1,0)) -> 1 | U49: =IF(ISERR(担当曜日別調査!I73=VLOOKUP($D39,ｸﾗｽｺｰﾄﾞ等!$B$4:$C$2106,2))=1,1,IF(担当曜日別調査!I73=VLOOKUP($D39,ｸﾗｽｺｰﾄﾞ等!$B$4:$C$2106,2),1,0)) -> 1 | V49: =IF(ISERR(担当曜日別調査!J73=VLOOKUP($D39,ｸﾗｽｺｰﾄﾞ等!$B$4:$C$2106,2))=1,1,IF(担当曜日別調査!J73=VLOOKUP($D39,ｸﾗｽｺｰﾄﾞ等!$B$4:$C$2106,2),1,0)) -> 1 | W49: =IF(ISERR(担当曜日別調査!K73=VLOOKUP($D39,ｸﾗｽｺｰﾄﾞ等!$B$4:$C$2106,2))=1,1,IF(担当曜日別調査!K73=VLOOKUP($D39,ｸﾗｽｺｰﾄﾞ等!$B$4:$C$2106,2),1,0)) -> 1 | X49: =IF(ISERR(担当曜日別調査!L73=VLOOKUP($D39,ｸﾗｽｺｰﾄﾞ等!$B$4:$C$2106,2))=1,1,IF(担当曜日別調査!L73=VLOOKUP($D39,ｸﾗｽｺｰﾄﾞ等!$B$4:$C$2106,2),1,0)) -> 1 | Y49: =IF(ISERR(担当曜日別調査!M73=VLOOKUP($D39,ｸﾗｽｺｰﾄﾞ等!$B$4:$C$2106,2))=1,1,IF(担当曜日別調査!M73=VLOOKUP($D39,ｸﾗｽｺｰﾄﾞ等!$B$4:$C$2106,2),1,0)) -> 1 | Z49: =IF(ISERR(担当曜日別調査!N73=VLOOKUP($D39,ｸﾗｽｺｰﾄﾞ等!$B$4:$C$2106,2))=1,1,IF(担当曜日別調査!N73=VLOOKUP($D39,ｸﾗｽｺｰﾄﾞ等!$B$4:$C$2106,2),1,0)) -> 1 | AA49: =IF(ISERR(担当曜日別調査!O73=VLOOKUP($D39,ｸﾗｽｺｰﾄﾞ等!$B$4:$C$2106,2))=1,1,IF(担当曜日別調査!O73=VLOOKUP($D39,ｸﾗｽｺｰﾄﾞ等!$B$4:$C$2106,2),1,0)) -> 1 | AB49: 8
B50: 11 | C50: 当 | D50: =VLOOKUP(B50,ｸ別担当準備!$A$5:$BM$24,VALUE(MID($D$39,2,5))-8+1) ->  | E50: ⑨ | F50: 担当科目調査 | H50: ⑩ | I50: 担当科目調査 | K50: ⑪ | L50: 担当科目調査 | N50: ⑫ | O50: 担当科目調査 | S50: 10 | T50: =IF(ISERR(担当曜日別調査!H75=VLOOKUP($D39,ｸﾗｽｺｰﾄﾞ等!$B$4:$C$2106,2))=1,1,IF(担当曜日別調査!H75=VLOOKUP($D39,ｸﾗｽｺｰﾄﾞ等!$B$4:$C$2106,2),1,0)) -> 1 | U50: =IF(ISERR(担当曜日別調査!I75=VLOOKUP($D39,ｸﾗｽｺｰﾄﾞ等!$B$4:$C$2106,2))=1,1,IF(担当曜日別調査!I75=VLOOKUP($D39,ｸﾗｽｺｰﾄﾞ等!$B$4:$C$2106,2),1,0)) -> 1 | V50: =IF(ISERR(担当曜日別調査!J75=VLOOKUP($D39,ｸﾗｽｺｰﾄﾞ等!$B$4:$C$2106,2))=1,1,IF(担当曜日別調査!J75=VLOOKUP($D39,ｸﾗｽｺｰﾄﾞ等!$B$4:$C$2106,2),1,0)) -> 1 | W50: =IF(ISERR(担当曜日別調査!K75=VLOOKUP($D39,ｸﾗｽｺｰﾄﾞ等!$B$4:$C$2106,2))=1,1,IF(担当曜日別調査!K75=VLOOKUP($D39,ｸﾗｽｺｰﾄﾞ等!$B$4:$C$2106,2),1,0)) -> 1 | X50: =IF(ISERR(担当曜日別調査!L75=VLOOKUP($D39,ｸﾗｽｺｰﾄﾞ等!$B$4:$C$2106,2))=1,1,IF(担当曜日別調査!L75=VLOOKUP($D39,ｸﾗｽｺｰﾄﾞ等!$B$4:$C$2106,2),1,0)) -> 1 | Y50: =IF(ISERR(担当曜日別調査!M75=VLOOKUP($D39,ｸﾗｽｺｰﾄﾞ等!$B$4:$C$2106,2))=1,1,IF(担当曜日別調査!M75=VLOOKUP($D39,ｸﾗｽｺｰﾄﾞ等!$B$4:$C$2106,2),1,0)) -> 1 | Z50: =IF(ISERR(担当曜日別調査!N75=VLOOKUP($D39,ｸﾗｽｺｰﾄﾞ等!$B$4:$C$2106,2))=1,1,IF(担当曜日別調査!N75=VLOOKUP($D39,ｸﾗｽｺｰﾄﾞ等!$B$4:$C$2106,2),1,0)) -> 1 | AA50: =IF(ISERR(担当曜日別調査!O75=VLOOKUP($D39,ｸﾗｽｺｰﾄﾞ等!$B$4:$C$2106,2))=1,1,IF(担当曜日別調査!O75=VLOOKUP($D39,ｸﾗｽｺｰﾄﾞ等!$B$4:$C$2106,2),1,0)) -> 1 | AB50: 8
B51: 12 | D51: =VLOOKUP(B51,ｸ別担当準備!$A$5:$BM$24,VALUE(MID($D$39,2,5))-8+1) ->  | F51: =D48 ->  | G51: =IF(ISERROR(VLOOKUP(F51*2-1,教科担当一覧2!$D$9:$BA$428,4,0))=TRUE,"",VLOOKUP(F51*2-1,教科担当一覧2!$D$9:$BA$428,4,0)) ->  | I51: =D49 ->  | J51: =IF(ISERROR(VLOOKUP(I51*2-1,教科担当一覧2!$D$9:$BA$428,4,0))=TRUE,"",VLOOKUP(I51*2-1,教科担当一覧2!$D$9:$BA$428,4,0)) ->  | L51: =D50 ->  | M51: =IF(ISERROR(VLOOKUP(L51*2-1,教科担当一覧2!$D$9:$BA$428,4,0))=TRUE,"",VLOOKUP(L51*2-1,教科担当一覧2!$D$9:$BA$428,4,0)) ->  | O51: =D51 ->  | P51: =IF(ISERROR(VLOOKUP(O51*2-1,教科担当一覧2!$D$9:$BA$428,4,0))=TRUE,"",VLOOKUP(O51*2-1,教科担当一覧2!$D$9:$BA$428,4,0)) ->  | S51: 11 | T51: =IF(ISERR(担当曜日別調査!H77=VLOOKUP($D39,ｸﾗｽｺｰﾄﾞ等!$B$4:$C$2106,2))=1,1,IF(担当曜日別調査!H77=VLOOKUP($D39,ｸﾗｽｺｰﾄﾞ等!$B$4:$C$2106,2),1,0)) -> 1 | U51: =IF(ISERR(担当曜日別調査!I77=VLOOKUP($D39,ｸﾗｽｺｰﾄﾞ等!$B$4:$C$2106,2))=1,1,IF(担当曜日別調査!I77=VLOOKUP($D39,ｸﾗｽｺｰﾄﾞ等!$B$4:$C$2106,2),1,0)) -> 1 | V51: =IF(ISERR(担当曜日別調査!J77=VLOOKUP($D39,ｸﾗｽｺｰﾄﾞ等!$B$4:$C$2106,2))=1,1,IF(担当曜日別調査!J77=VLOOKUP($D39,ｸﾗｽｺｰﾄﾞ等!$B$4:$C$2106,2),1,0)) -> 1 | W51: =IF(ISERR(担当曜日別調査!K77=VLOOKUP($D39,ｸﾗｽｺｰﾄﾞ等!$B$4:$C$2106,2))=1,1,IF(担当曜日別調査!K77=VLOOKUP($D39,ｸﾗｽｺｰﾄﾞ等!$B$4:$C$2106,2),1,0)) -> 1 | X51: =IF(ISERR(担当曜日別調査!L77=VLOOKUP($D39,ｸﾗｽｺｰﾄﾞ等!$B$4:$C$2106,2))=1,1,IF(担当曜日別調査!L77=VLOOKUP($D39,ｸﾗｽｺｰﾄﾞ等!$B$4:$C$2106,2),1,0)) -> 1 | Y51: =IF(ISERR(担当曜日別調査!M77=VLOOKUP($D39,ｸﾗｽｺｰﾄﾞ等!$B$4:$C$2106,2))=1,1,IF(担当曜日別調査!M77=VLOOKUP($D39,ｸﾗｽｺｰﾄﾞ等!$B$4:$C$2106,2),1,0)) -> 1 | Z51: =IF(ISERR(担当曜日別調査!N77=VLOOKUP($D39,ｸﾗｽｺｰﾄﾞ等!$B$4:$C$2106,2))=1,1,IF(担当曜日別調査!N77=VLOOKUP($D39,ｸﾗｽｺｰﾄﾞ等!$B$4:$C$2106,2),1,0)) -> 1 | AA51: =IF(ISERR(担当曜日別調査!O77=VLOOKUP($D39,ｸﾗｽｺｰﾄﾞ等!$B$4:$C$2106,2))=1,1,IF(担当曜日別調査!O77=VLOOKUP($D39,ｸﾗｽｺｰﾄﾞ等!$B$4:$C$2106,2),1,0)) -> 1 | AB51: 8
B52: 13 | D52: =VLOOKUP(B52,ｸ別担当準備!$A$5:$BM$24,VALUE(MID($D$39,2,5))-8+1) ->  | F52: =B36 -> 0 | G52: =IF(ISERROR(VLOOKUP(F52,曜日コード!$B$5:$E$52,4,0))=TRUE,"",VLOOKUP(F52,曜日コード!$B$5:$E$52,4,0)) -> なし | I52: =B36 -> 0 | J52: =IF(ISERROR(VLOOKUP(I52,曜日コード!$B$5:$E$52,4,0))=TRUE,"",VLOOKUP(I52,曜日コード!$B$5:$E$52,4,0)) -> なし | L52: =B36 -> 0 | M52: =IF(ISERROR(VLOOKUP(L52,曜日コード!$B$5:$E$52,4,0))=TRUE,"",VLOOKUP(L52,曜日コード!$B$5:$E$52,4,0)) -> なし | O52: =B36 -> 0 | P52: =IF(ISERROR(VLOOKUP(O52,曜日コード!$B$5:$E$52,4,0))=TRUE,"",VLOOKUP(O52,曜日コード!$B$5:$E$52,4,0)) -> なし | S52: 12 | T52: =IF(ISERR(担当曜日別調査!H79=VLOOKUP($D39,ｸﾗｽｺｰﾄﾞ等!$B$4:$C$2106,2))=1,1,IF(担当曜日別調査!H79=VLOOKUP($D39,ｸﾗｽｺｰﾄﾞ等!$B$4:$C$2106,2),1,0)) -> 1 | U52: =IF(ISERR(担当曜日別調査!I79=VLOOKUP($D39,ｸﾗｽｺｰﾄﾞ等!$B$4:$C$2106,2))=1,1,IF(担当曜日別調査!I79=VLOOKUP($D39,ｸﾗｽｺｰﾄﾞ等!$B$4:$C$2106,2),1,0)) -> 1 | V52: =IF(ISERR(担当曜日別調査!J79=VLOOKUP($D39,ｸﾗｽｺｰﾄﾞ等!$B$4:$C$2106,2))=1,1,IF(担当曜日別調査!J79=VLOOKUP($D39,ｸﾗｽｺｰﾄﾞ等!$B$4:$C$2106,2),1,0)) -> 1 | W52: =IF(ISERR(担当曜日別調査!K79=VLOOKUP($D39,ｸﾗｽｺｰﾄﾞ等!$B$4:$C$2106,2))=1,1,IF(担当曜日別調査!K79=VLOOKUP($D39,ｸﾗｽｺｰﾄﾞ等!$B$4:$C$2106,2),1,0)) -> 1 | X52: =IF(ISERR(担当曜日別調査!L79=VLOOKUP($D39,ｸﾗｽｺｰﾄﾞ等!$B$4:$C$2106,2))=1,1,IF(担当曜日別調査!L79=VLOOKUP($D39,ｸﾗｽｺｰﾄﾞ等!$B$4:$C$2106,2),1,0)) -> 1 | Y52: =IF(ISERR(担当曜日別調査!M79=VLOOKUP($D39,ｸﾗｽｺｰﾄﾞ等!$B$4:$C$2106,2))=1,1,IF(担当曜日別調査!M79=VLOOKUP($D39,ｸﾗｽｺｰﾄﾞ等!$B$4:$C$2106,2),1,0)) -> 1 | Z52: =IF(ISERR(担当曜日別調査!N79=VLOOKUP($D39,ｸﾗｽｺｰﾄﾞ等!$B$4:$C$2106,2))=1,1,IF(担当曜日別調査!N79=VLOOKUP($D39,ｸﾗｽｺｰﾄﾞ等!$B$4:$C$2106,2),1,0)) -> 1 | AA52: =IF(ISERR(担当曜日別調査!O79=VLOOKUP($D39,ｸﾗｽｺｰﾄﾞ等!$B$4:$C$2106,2))=1,1,IF(担当曜日別調査!O79=VLOOKUP($D39,ｸﾗｽｺｰﾄﾞ等!$B$4:$C$2106,2),1,0)) -> 1 | AB52: 8
B53: 14 | D53: =VLOOKUP(B53,ｸ別担当準備!$A$5:$BM$24,VALUE(MID($D$39,2,5))-8+1) ->  | E53: =IF(ISERR(IF(AND(F53="・",AB47=0),"●","×"))=1,"",IF(AND(F53="・",AB47=0),"●",IF(F53="","","×"))) ->  | F53: =IF(ISERROR(VLOOKUP(F51*2-1,教科担当一覧2!$D$9:$BA$428,VLOOKUP(F52,曜日コード!$B$5:$C$52,2,0)+3+1,0))=TRUE,"",VLOOKUP(F51*2-1,教科担当一覧2!$D$9:$BA$428,VLOOKUP(F52,曜日コード!$B$5:$C$52,2,0)+3+1,0)) ->  | G53: =IF(ISERROR(VLOOKUP(F51*2,教科担当一覧2!$D$9:$BA$428,VLOOKUP(F52,曜日コード!$B$5:$C$52,2,0)+3+1,0))=TRUE,"",VLOOKUP(F51*2,教科担当一覧2!$D$9:$BA$428,VLOOKUP(F52,曜日コード!$B$5:$C$52,2,0)+3+1,0)) ->  | H53: =IF(ISERR(IF(AND(I53="・",AE47=0),"●","×"))=1,"",IF(AND(I53="・",AE47=0),"●",IF(I53="","","×"))) ->  | I53: =IF(ISERROR(VLOOKUP(I51*2-1,教科担当一覧2!$D$9:$BA$428,VLOOKUP(I52,曜日コード!$B$5:$C$52,2,0)+3+1,0))=TRUE,"",VLOOKUP(I51*2-1,教科担当一覧2!$D$9:$BA$428,VLOOKUP(I52,曜日コード!$B$5:$C$52,2,0)+3+1,0)) ->  | J53: =IF(ISERROR(VLOOKUP(I51*2,教科担当一覧2!$D$9:$BA$428,VLOOKUP(I52,曜日コード!$B$5:$C$52,2,0)+3+1,0))=TRUE,"",VLOOKUP(I51*2,教科担当一覧2!$D$9:$BA$428,VLOOKUP(I52,曜日コード!$B$5:$C$52,2,0)+3+1,0)) ->  | K53: =IF(ISERR(IF(AND(L53="・",AH47=0),"●","×"))=1,"",IF(AND(L53="・",AH47=0),"●",IF(L53="","","×"))) ->  | L53: =IF(ISERROR(VLOOKUP(L51*2-1,教科担当一覧2!$D$9:$BA$428,VLOOKUP(L52,曜日コード!$B$5:$C$52,2,0)+3+1,0))=TRUE,"",VLOOKUP(L51*2-1,教科担当一覧2!$D$9:$BA$428,VLOOKUP(L52,曜日コード!$B$5:$C$52,2,0)+3+1,0)) ->  | M53: =IF(ISERROR(VLOOKUP(L51*2,教科担当一覧2!$D$9:$BA$428,VLOOKUP(L52,曜日コード!$B$5:$C$52,2,0)+3+1,0))=TRUE,"",VLOOKUP(L51*2,教科担当一覧2!$D$9:$BA$428,VLOOKUP(L52,曜日コード!$B$5:$C$52,2,0)+3+1,0)) ->  | N53: =IF(ISERR(IF(AND(O53="・",AK47=0),"●","×"))=1,"",IF(AND(O53="・",AK47=0),"●",IF(O53="","","×"))) ->  | O53: =IF(ISERROR(VLOOKUP(O51*2-1,教科担当一覧2!$D$9:$BA$428,VLOOKUP(O52,曜日コード!$B$5:$C$52,2,0)+3+1,0))=TRUE,"",VLOOKUP(O51*2-1,教科担当一覧2!$D$9:$BA$428,VLOOKUP(O52,曜日コード!$B$5:$C$52,2,0)+3+1,0)) ->  | P53: =IF(ISERROR(VLOOKUP(O51*2,教科担当一覧2!$D$9:$BA$428,VLOOKUP(O52,曜日コード!$B$5:$C$52,2,0)+3+1,0))=TRUE,"",VLOOKUP(O51*2,教科担当一覧2!$D$9:$BA$428,VLOOKUP(O52,曜日コード!$B$5:$C$52,2,0)+3+1,0)) ->  | S53: 13 | T53: =IF(ISERR(担当曜日別調査!H81=VLOOKUP($D39,ｸﾗｽｺｰﾄﾞ等!$B$4:$C$2106,2))=1,1,IF(担当曜日別調査!H81=VLOOKUP($D39,ｸﾗｽｺｰﾄﾞ等!$B$4:$C$2106,2),1,0)) -> 1 | U53: =IF(ISERR(担当曜日別調査!I81=VLOOKUP($D39,ｸﾗｽｺｰﾄﾞ等!$B$4:$C$2106,2))=1,1,IF(担当曜日別調査!I81=VLOOKUP($D39,ｸﾗｽｺｰﾄﾞ等!$B$4:$C$2106,2),1,0)) -> 1 | V53: =IF(ISERR(担当曜日別調査!J81=VLOOKUP($D39,ｸﾗｽｺｰﾄﾞ等!$B$4:$C$2106,2))=1,1,IF(担当曜日別調査!J81=VLOOKUP($D39,ｸﾗｽｺｰﾄﾞ等!$B$4:$C$2106,2),1,0)) -> 1 | W53: =IF(ISERR(担当曜日別調査!K81=VLOOKUP($D39,ｸﾗｽｺｰﾄﾞ等!$B$4:$C$2106,2))=1,1,IF(担当曜日別調査!K81=VLOOKUP($D39,ｸﾗｽｺｰﾄﾞ等!$B$4:$C$2106,2),1,0)) -> 1 | X53: =IF(ISERR(担当曜日別調査!L81=VLOOKUP($D39,ｸﾗｽｺｰﾄﾞ等!$B$4:$C$2106,2))=1,1,IF(担当曜日別調査!L81=VLOOKUP($D39,ｸﾗｽｺｰﾄﾞ等!$B$4:$C$2106,2),1,0)) -> 1 | Y53: =IF(ISERR(担当曜日別調査!M81=VLOOKUP($D39,ｸﾗｽｺｰﾄﾞ等!$B$4:$C$2106,2))=1,1,IF(担当曜日別調査!M81=VLOOKUP($D39,ｸﾗｽｺｰﾄﾞ等!$B$4:$C$2106,2),1,0)) -> 1 | Z53: =IF(ISERR(担当曜日別調査!N81=VLOOKUP($D39,ｸﾗｽｺｰﾄﾞ等!$B$4:$C$2106,2))=1,1,IF(担当曜日別調査!N81=VLOOKUP($D39,ｸﾗｽｺｰﾄﾞ等!$B$4:$C$2106,2),1,0)) -> 1 | AA53: =IF(ISERR(担当曜日別調査!O81=VLOOKUP($D39,ｸﾗｽｺｰﾄﾞ等!$B$4:$C$2106,2))=1,1,IF(担当曜日別調査!O81=VLOOKUP($D39,ｸﾗｽｺｰﾄﾞ等!$B$4:$C$2106,2),1,0)) -> 1 | AB53: 8
B54: 15 | D54: =VLOOKUP(B54,ｸ別担当準備!$A$5:$BM$24,VALUE(MID($D$39,2,5))-8+1) ->  | S54: 14 | T54: =IF(ISERR(担当曜日別調査!H83=VLOOKUP($D39,ｸﾗｽｺｰﾄﾞ等!$B$4:$C$2106,2))=1,1,IF(担当曜日別調査!H83=VLOOKUP($D39,ｸﾗｽｺｰﾄﾞ等!$B$4:$C$2106,2),1,0)) -> 1 | U54: =IF(ISERR(担当曜日別調査!I83=VLOOKUP($D39,ｸﾗｽｺｰﾄﾞ等!$B$4:$C$2106,2))=1,1,IF(担当曜日別調査!I83=VLOOKUP($D39,ｸﾗｽｺｰﾄﾞ等!$B$4:$C$2106,2),1,0)) -> 1 | V54: =IF(ISERR(担当曜日別調査!J83=VLOOKUP($D39,ｸﾗｽｺｰﾄﾞ等!$B$4:$C$2106,2))=1,1,IF(担当曜日別調査!J83=VLOOKUP($D39,ｸﾗｽｺｰﾄﾞ等!$B$4:$C$2106,2),1,0)) -> 1 | W54: =IF(ISERR(担当曜日別調査!K83=VLOOKUP($D39,ｸﾗｽｺｰﾄﾞ等!$B$4:$C$2106,2))=1,1,IF(担当曜日別調査!K83=VLOOKUP($D39,ｸﾗｽｺｰﾄﾞ等!$B$4:$C$2106,2),1,0)) -> 1 | X54: =IF(ISERR(担当曜日別調査!L83=VLOOKUP($D39,ｸﾗｽｺｰﾄﾞ等!$B$4:$C$2106,2))=1,1,IF(担当曜日別調査!L83=VLOOKUP($D39,ｸﾗｽｺｰﾄﾞ等!$B$4:$C$2106,2),1,0)) -> 1 | Y54: =IF(ISERR(担当曜日別調査!M83=VLOOKUP($D39,ｸﾗｽｺｰﾄﾞ等!$B$4:$C$2106,2))=1,1,IF(担当曜日別調査!M83=VLOOKUP($D39,ｸﾗｽｺｰﾄﾞ等!$B$4:$C$2106,2),1,0)) -> 1 | Z54: =IF(ISERR(担当曜日別調査!N83=VLOOKUP($D39,ｸﾗｽｺｰﾄﾞ等!$B$4:$C$2106,2))=1,1,IF(担当曜日別調査!N83=VLOOKUP($D39,ｸﾗｽｺｰﾄﾞ等!$B$4:$C$2106,2),1,0)) -> 1 | AA54: =IF(ISERR(担当曜日別調査!O83=VLOOKUP($D39,ｸﾗｽｺｰﾄﾞ等!$B$4:$C$2106,2))=1,1,IF(担当曜日別調査!O83=VLOOKUP($D39,ｸﾗｽｺｰﾄﾞ等!$B$4:$C$2106,2),1,0)) -> 1 | AB54: 8
B55: 16 | D55: =VLOOKUP(B55,ｸ別担当準備!$A$5:$BM$24,VALUE(MID($D$39,2,5))-8+1) ->  | E55: ⑬ | F55: 担当科目調査 | H55: ⑭ | I55: 担当科目調査 | K55: ⑮ | L55: 担当科目調査 | N55: ⑯ | O55: 担当科目調査 | S55: 15 | T55: =IF(ISERR(担当曜日別調査!H85=VLOOKUP($D39,ｸﾗｽｺｰﾄﾞ等!$B$4:$C$2106,2))=1,1,IF(担当曜日別調査!H85=VLOOKUP($D39,ｸﾗｽｺｰﾄﾞ等!$B$4:$C$2106,2),1,0)) -> 1 | U55: =IF(ISERR(担当曜日別調査!I85=VLOOKUP($D39,ｸﾗｽｺｰﾄﾞ等!$B$4:$C$2106,2))=1,1,IF(担当曜日別調査!I85=VLOOKUP($D39,ｸﾗｽｺｰﾄﾞ等!$B$4:$C$2106,2),1,0)) -> 1 | V55: =IF(ISERR(担当曜日別調査!J85=VLOOKUP($D39,ｸﾗｽｺｰﾄﾞ等!$B$4:$C$2106,2))=1,1,IF(担当曜日別調査!J85=VLOOKUP($D39,ｸﾗｽｺｰﾄﾞ等!$B$4:$C$2106,2),1,0)) -> 1 | W55: =IF(ISERR(担当曜日別調査!K85=VLOOKUP($D39,ｸﾗｽｺｰﾄﾞ等!$B$4:$C$2106,2))=1,1,IF(担当曜日別調査!K85=VLOOKUP($D39,ｸﾗｽｺｰﾄﾞ等!$B$4:$C$2106,2),1,0)) -> 1 | X55: =IF(ISERR(担当曜日別調査!L85=VLOOKUP($D39,ｸﾗｽｺｰﾄﾞ等!$B$4:$C$2106,2))=1,1,IF(担当曜日別調査!L85=VLOOKUP($D39,ｸﾗｽｺｰﾄﾞ等!$B$4:$C$2106,2),1,0)) -> 1 | Y55: =IF(ISERR(担当曜日別調査!M85=VLOOKUP($D39,ｸﾗｽｺｰﾄﾞ等!$B$4:$C$2106,2))=1,1,IF(担当曜日別調査!M85=VLOOKUP($D39,ｸﾗｽｺｰﾄﾞ等!$B$4:$C$2106,2),1,0)) -> 1 | Z55: =IF(ISERR(担当曜日別調査!N85=VLOOKUP($D39,ｸﾗｽｺｰﾄﾞ等!$B$4:$C$2106,2))=1,1,IF(担当曜日別調査!N85=VLOOKUP($D39,ｸﾗｽｺｰﾄﾞ等!$B$4:$C$2106,2),1,0)) -> 1 | AA55: =IF(ISERR(担当曜日別調査!O85=VLOOKUP($D39,ｸﾗｽｺｰﾄﾞ等!$B$4:$C$2106,2))=1,1,IF(担当曜日別調査!O85=VLOOKUP($D39,ｸﾗｽｺｰﾄﾞ等!$B$4:$C$2106,2),1,0)) -> 1 | AB55: 8
B56: 17 | D56: =VLOOKUP(B56,ｸ別担当準備!$A$5:$BM$24,VALUE(MID($D$39,2,5))-8+1) ->  | F56: =D52 ->  | G56: =IF(ISERROR(VLOOKUP(F56*2-1,教科担当一覧2!$D$9:$BA$428,4,0))=TRUE,"",VLOOKUP(F56*2-1,教科担当一覧2!$D$9:$BA$428,4,0)) ->  | I56: =D53 ->  | J56: =IF(ISERROR(VLOOKUP(I56*2-1,教科担当一覧2!$D$9:$BA$428,4,0))=TRUE,"",VLOOKUP(I56*2-1,教科担当一覧2!$D$9:$BA$428,4,0)) ->  | L56: =D54 ->  | M56: =IF(ISERROR(VLOOKUP(L56*2-1,教科担当一覧2!$D$9:$BA$428,4,0))=TRUE,"",VLOOKUP(L56*2-1,教科担当一覧2!$D$9:$BA$428,4,0)) ->  | O56: =D55 ->  | P56: =IF(ISERROR(VLOOKUP(O56*2-1,教科担当一覧2!$D$9:$BA$428,4,0))=TRUE,"",VLOOKUP(O56*2-1,教科担当一覧2!$D$9:$BA$428,4,0)) ->  | S56: 16 | T56: =IF(ISERR(担当曜日別調査!H87=VLOOKUP($D39,ｸﾗｽｺｰﾄﾞ等!$B$4:$C$2106,2))=1,1,IF(担当曜日別調査!H87=VLOOKUP($D39,ｸﾗｽｺｰﾄﾞ等!$B$4:$C$2106,2),1,0)) -> 1 | U56: =IF(ISERR(担当曜日別調査!I87=VLOOKUP($D39,ｸﾗｽｺｰﾄﾞ等!$B$4:$C$2106,2))=1,1,IF(担当曜日別調査!I87=VLOOKUP($D39,ｸﾗｽｺｰﾄﾞ等!$B$4:$C$2106,2),1,0)) -> 1 | V56: =IF(ISERR(担当曜日別調査!J87=VLOOKUP($D39,ｸﾗｽｺｰﾄﾞ等!$B$4:$C$2106,2))=1,1,IF(担当曜日別調査!J87=VLOOKUP($D39,ｸﾗｽｺｰﾄﾞ等!$B$4:$C$2106,2),1,0)) -> 1 | W56: =IF(ISERR(担当曜日別調査!K87=VLOOKUP($D39,ｸﾗｽｺｰﾄﾞ等!$B$4:$C$2106,2))=1,1,IF(担当曜日別調査!K87=VLOOKUP($D39,ｸﾗｽｺｰﾄﾞ等!$B$4:$C$2106,2),1,0)) -> 1 | X56: =IF(ISERR(担当曜日別調査!L87=VLOOKUP($D39,ｸﾗｽｺｰﾄﾞ等!$B$4:$C$2106,2))=1,1,IF(担当曜日別調査!L87=VLOOKUP($D39,ｸﾗｽｺｰﾄﾞ等!$B$4:$C$2106,2),1,0)) -> 1 | Y56: =IF(ISERR(担当曜日別調査!M87=VLOOKUP($D39,ｸﾗｽｺｰﾄﾞ等!$B$4:$C$2106,2))=1,1,IF(担当曜日別調査!M87=VLOOKUP($D39,ｸﾗｽｺｰﾄﾞ等!$B$4:$C$2106,2),1,0)) -> 1 | Z56: =IF(ISERR(担当曜日別調査!N87=VLOOKUP($D39,ｸﾗｽｺｰﾄﾞ等!$B$4:$C$2106,2))=1,1,IF(担当曜日別調査!N87=VLOOKUP($D39,ｸﾗｽｺｰﾄﾞ等!$B$4:$C$2106,2),1,0)) -> 1 | AA56: =IF(ISERR(担当曜日別調査!O87=VLOOKUP($D39,ｸﾗｽｺｰﾄﾞ等!$B$4:$C$2106,2))=1,1,IF(担当曜日別調査!O87=VLOOKUP($D39,ｸﾗｽｺｰﾄﾞ等!$B$4:$C$2106,2),1,0)) -> 1 | AB56: 8
B57: 18 | C57: 者 | D57: =VLOOKUP(B57,ｸ別担当準備!$A$5:$BM$24,VALUE(MID($D$39,2,5))-8+1) ->  | F57: =B36 -> 0 | G57: =IF(ISERROR(VLOOKUP(F57,曜日コード!$B$5:$E$52,4,0))=TRUE,"",VLOOKUP(F57,曜日コード!$B$5:$E$52,4,0)) -> なし | I57: =B36 -> 0 | J57: =IF(ISERROR(VLOOKUP(I57,曜日コード!$B$5:$E$52,4,0))=TRUE,"",VLOOKUP(I57,曜日コード!$B$5:$E$52,4,0)) -> なし | L57: =B36 -> 0 | M57: =IF(ISERROR(VLOOKUP(L57,曜日コード!$B$5:$E$52,4,0))=TRUE,"",VLOOKUP(L57,曜日コード!$B$5:$E$52,4,0)) -> なし | O57: =B36 -> 0 | P57: =IF(ISERROR(VLOOKUP(O57,曜日コード!$B$5:$E$52,4,0))=TRUE,"",VLOOKUP(O57,曜日コード!$B$5:$E$52,4,0)) -> なし | S57: 17 | T57: =IF(ISERR(担当曜日別調査!H89=VLOOKUP($D39,ｸﾗｽｺｰﾄﾞ等!$B$4:$C$2106,2))=1,1,IF(担当曜日別調査!H89=VLOOKUP($D39,ｸﾗｽｺｰﾄﾞ等!$B$4:$C$2106,2),1,0)) -> 1 | U57: =IF(ISERR(担当曜日別調査!I89=VLOOKUP($D39,ｸﾗｽｺｰﾄﾞ等!$B$4:$C$2106,2))=1,1,IF(担当曜日別調査!I89=VLOOKUP($D39,ｸﾗｽｺｰﾄﾞ等!$B$4:$C$2106,2),1,0)) -> 1 | V57: =IF(ISERR(担当曜日別調査!J89=VLOOKUP($D39,ｸﾗｽｺｰﾄﾞ等!$B$4:$C$2106,2))=1,1,IF(担当曜日別調査!J89=VLOOKUP($D39,ｸﾗｽｺｰﾄﾞ等!$B$4:$C$2106,2),1,0)) -> 1 | W57: =IF(ISERR(担当曜日別調査!K89=VLOOKUP($D39,ｸﾗｽｺｰﾄﾞ等!$B$4:$C$2106,2))=1,1,IF(担当曜日別調査!K89=VLOOKUP($D39,ｸﾗｽｺｰﾄﾞ等!$B$4:$C$2106,2),1,0)) -> 1 | X57: =IF(ISERR(担当曜日別調査!L89=VLOOKUP($D39,ｸﾗｽｺｰﾄﾞ等!$B$4:$C$2106,2))=1,1,IF(担当曜日別調査!L89=VLOOKUP($D39,ｸﾗｽｺｰﾄﾞ等!$B$4:$C$2106,2),1,0)) -> 1 | Y57: =IF(ISERR(担当曜日別調査!M89=VLOOKUP($D39,ｸﾗｽｺｰﾄﾞ等!$B$4:$C$2106,2))=1,1,IF(担当曜日別調査!M89=VLOOKUP($D39,ｸﾗｽｺｰﾄﾞ等!$B$4:$C$2106,2),1,0)) -> 1 | Z57: =IF(ISERR(担当曜日別調査!N89=VLOOKUP($D39,ｸﾗｽｺｰﾄﾞ等!$B$4:$C$2106,2))=1,1,IF(担当曜日別調査!N89=VLOOKUP($D39,ｸﾗｽｺｰﾄﾞ等!$B$4:$C$2106,2),1,0)) -> 1 | AA57: =IF(ISERR(担当曜日別調査!O89=VLOOKUP($D39,ｸﾗｽｺｰﾄﾞ等!$B$4:$C$2106,2))=1,1,IF(担当曜日別調査!O89=VLOOKUP($D39,ｸﾗｽｺｰﾄﾞ等!$B$4:$C$2106,2),1,0)) -> 1 | AB57: 8
B58: 19 | D58: =VLOOKUP(B58,ｸ別担当準備!$A$5:$BM$24,VALUE(MID($D$39,2,5))-8+1) ->  | E58: =IF(ISERR(IF(AND(F58="・",AB52=0),"●","×"))=1,"",IF(AND(F58="・",AB52=0),"●",IF(F58="","","×"))) ->  | F58: =IF(ISERROR(VLOOKUP(F56*2-1,教科担当一覧2!$D$9:$BA$428,VLOOKUP(F57,曜日コード!$B$5:$C$52,2,0)+3+1,0))=TRUE,"",VLOOKUP(F56*2-1,教科担当一覧2!$D$9:$BA$428,VLOOKUP(F57,曜日コード!$B$5:$C$52,2,0)+3+1,0)) ->  | G58: =IF(ISERROR(VLOOKUP(F56*2,教科担当一覧2!$D$9:$BA$428,VLOOKUP(F57,曜日コード!$B$5:$C$52,2,0)+3+1,0))=TRUE,"",VLOOKUP(F56*2,教科担当一覧2!$D$9:$BA$428,VLOOKUP(F57,曜日コード!$B$5:$C$52,2,0)+3+1,0)) ->  | H58: =IF(ISERR(IF(AND(I58="・",AE52=0),"●","×"))=1,"",IF(AND(I58="・",AE52=0),"●",IF(I58="","","×"))) ->  | I58: =IF(ISERROR(VLOOKUP(I56*2-1,教科担当一覧2!$D$9:$BA$428,VLOOKUP(I57,曜日コード!$B$5:$C$52,2,0)+3+1,0))=TRUE,"",VLOOKUP(I56*2-1,教科担当一覧2!$D$9:$BA$428,VLOOKUP(I57,曜日コード!$B$5:$C$52,2,0)+3+1,0)) ->  | J58: =IF(ISERROR(VLOOKUP(I56*2,教科担当一覧2!$D$9:$BA$428,VLOOKUP(I57,曜日コード!$B$5:$C$52,2,0)+3+1,0))=TRUE,"",VLOOKUP(I56*2,教科担当一覧2!$D$9:$BA$428,VLOOKUP(I57,曜日コード!$B$5:$C$52,2,0)+3+1,0)) ->  | K58: =IF(ISERR(IF(AND(L58="・",AH52=0),"●","×"))=1,"",IF(AND(L58="・",AH52=0),"●",IF(L58="","","×"))) ->  | L58: =IF(ISERROR(VLOOKUP(L56*2-1,教科担当一覧2!$D$9:$BA$428,VLOOKUP(L57,曜日コード!$B$5:$C$52,2,0)+3+1,0))=TRUE,"",VLOOKUP(L56*2-1,教科担当一覧2!$D$9:$BA$428,VLOOKUP(L57,曜日コード!$B$5:$C$52,2,0)+3+1,0)) ->  | M58: =IF(ISERROR(VLOOKUP(L56*2,教科担当一覧2!$D$9:$BA$428,VLOOKUP(L57,曜日コード!$B$5:$C$52,2,0)+3+1,0))=TRUE,"",VLOOKUP(L56*2,教科担当一覧2!$D$9:$BA$428,VLOOKUP(L57,曜日コード!$B$5:$C$52,2,0)+3+1,0)) ->  | N58: =IF(ISERR(IF(AND(O58="・",AK52=0),"●","×"))=1,"",IF(AND(O58="・",AK52=0),"●",IF(O58="","","×"))) ->  | O58: =IF(ISERROR(VLOOKUP(O56*2-1,教科担当一覧2!$D$9:$BA$428,VLOOKUP(O57,曜日コード!$B$5:$C$52,2,0)+3+1,0))=TRUE,"",VLOOKUP(O56*2-1,教科担当一覧2!$D$9:$BA$428,VLOOKUP(O57,曜日コード!$B$5:$C$52,2,0)+3+1,0)) ->  | P58: =IF(ISERROR(VLOOKUP(O56*2,教科担当一覧2!$D$9:$BA$428,VLOOKUP(O57,曜日コード!$B$5:$C$52,2,0)+3+1,0))=TRUE,"",VLOOKUP(O56*2,教科担当一覧2!$D$9:$BA$428,VLOOKUP(O57,曜日コード!$B$5:$C$52,2,0)+3+1,0)) ->  | S58: 18 | T58: =IF(ISERR(担当曜日別調査!H91=VLOOKUP($D39,ｸﾗｽｺｰﾄﾞ等!$B$4:$C$2106,2))=1,1,IF(担当曜日別調査!H91=VLOOKUP($D39,ｸﾗｽｺｰﾄﾞ等!$B$4:$C$2106,2),1,0)) -> 1 | U58: =IF(ISERR(担当曜日別調査!I91=VLOOKUP($D39,ｸﾗｽｺｰﾄﾞ等!$B$4:$C$2106,2))=1,1,IF(担当曜日別調査!I91=VLOOKUP($D39,ｸﾗｽｺｰﾄﾞ等!$B$4:$C$2106,2),1,0)) -> 1 | V58: =IF(ISERR(担当曜日別調査!J91=VLOOKUP($D39,ｸﾗｽｺｰﾄﾞ等!$B$4:$C$2106,2))=1,1,IF(担当曜日別調査!J91=VLOOKUP($D39,ｸﾗｽｺｰﾄﾞ等!$B$4:$C$2106,2),1,0)) -> 1 | W58: =IF(ISERR(担当曜日別調査!K91=VLOOKUP($D39,ｸﾗｽｺｰﾄﾞ等!$B$4:$C$2106,2))=1,1,IF(担当曜日別調査!K91=VLOOKUP($D39,ｸﾗｽｺｰﾄﾞ等!$B$4:$C$2106,2),1,0)) -> 1 | X58: =IF(ISERR(担当曜日別調査!L91=VLOOKUP($D39,ｸﾗｽｺｰﾄﾞ等!$B$4:$C$2106,2))=1,1,IF(担当曜日別調査!L91=VLOOKUP($D39,ｸﾗｽｺｰﾄﾞ等!$B$4:$C$2106,2),1,0)) -> 1 | Y58: =IF(ISERR(担当曜日別調査!M91=VLOOKUP($D39,ｸﾗｽｺｰﾄﾞ等!$B$4:$C$2106,2))=1,1,IF(担当曜日別調査!M91=VLOOKUP($D39,ｸﾗｽｺｰﾄﾞ等!$B$4:$C$2106,2),1,0)) -> 1 | Z58: =IF(ISERR(担当曜日別調査!N91=VLOOKUP($D39,ｸﾗｽｺｰﾄﾞ等!$B$4:$C$2106,2))=1,1,IF(担当曜日別調査!N91=VLOOKUP($D39,ｸﾗｽｺｰﾄﾞ等!$B$4:$C$2106,2),1,0)) -> 1 | AA58: =IF(ISERR(担当曜日別調査!O91=VLOOKUP($D39,ｸﾗｽｺｰﾄﾞ等!$B$4:$C$2106,2))=1,1,IF(担当曜日別調査!O91=VLOOKUP($D39,ｸﾗｽｺｰﾄﾞ等!$B$4:$C$2106,2),1,0)) -> 1 | AB58: 8
B59: 20 | D59: =VLOOKUP(B59,ｸ別担当準備!$A$5:$BM$24,VALUE(MID($D$39,2,5))-8+1) ->  | S59: 19 | T59: =IF(ISERR(担当曜日別調査!H93=VLOOKUP($D39,ｸﾗｽｺｰﾄﾞ等!$B$4:$C$2106,2))=1,1,IF(担当曜日別調査!H93=VLOOKUP($D39,ｸﾗｽｺｰﾄﾞ等!$B$4:$C$2106,2),1,0)) -> 1 | U59: =IF(ISERR(担当曜日別調査!I93=VLOOKUP($D39,ｸﾗｽｺｰﾄﾞ等!$B$4:$C$2106,2))=1,1,IF(担当曜日別調査!I93=VLOOKUP($D39,ｸﾗｽｺｰﾄﾞ等!$B$4:$C$2106,2),1,0)) -> 1 | V59: =IF(ISERR(担当曜日別調査!J93=VLOOKUP($D39,ｸﾗｽｺｰﾄﾞ等!$B$4:$C$2106,2))=1,1,IF(担当曜日別調査!J93=VLOOKUP($D39,ｸﾗｽｺｰﾄﾞ等!$B$4:$C$2106,2),1,0)) -> 1 | W59: =IF(ISERR(担当曜日別調査!K93=VLOOKUP($D39,ｸﾗｽｺｰﾄﾞ等!$B$4:$C$2106,2))=1,1,IF(担当曜日別調査!K93=VLOOKUP($D39,ｸﾗｽｺｰﾄﾞ等!$B$4:$C$2106,2),1,0)) -> 1 | X59: =IF(ISERR(担当曜日別調査!L93=VLOOKUP($D39,ｸﾗｽｺｰﾄﾞ等!$B$4:$C$2106,2))=1,1,IF(担当曜日別調査!L93=VLOOKUP($D39,ｸﾗｽｺｰﾄﾞ等!$B$4:$C$2106,2),1,0)) -> 1 | Y59: =IF(ISERR(担当曜日別調査!M93=VLOOKUP($D39,ｸﾗｽｺｰﾄﾞ等!$B$4:$C$2106,2))=1,1,IF(担当曜日別調査!M93=VLOOKUP($D39,ｸﾗｽｺｰﾄﾞ等!$B$4:$C$2106,2),1,0)) -> 1 | Z59: =IF(ISERR(担当曜日別調査!N93=VLOOKUP($D39,ｸﾗｽｺｰﾄﾞ等!$B$4:$C$2106,2))=1,1,IF(担当曜日別調査!N93=VLOOKUP($D39,ｸﾗｽｺｰﾄﾞ等!$B$4:$C$2106,2),1,0)) -> 1 | AA59: =IF(ISERR(担当曜日別調査!O93=VLOOKUP($D39,ｸﾗｽｺｰﾄﾞ等!$B$4:$C$2106,2))=1,1,IF(担当曜日別調査!O93=VLOOKUP($D39,ｸﾗｽｺｰﾄﾞ等!$B$4:$C$2106,2),1,0)) -> 1 | AB59: 8
E60: ⑰ | F60: 担当科目調査 | H60: ⑱ | I60: 担当科目調査 | K60: ⑲ | L60: 担当科目調査 | N60: ⑳ | O60: 担当科目調査 | S60: 20 | T60: =IF(ISERR(担当曜日別調査!H95=VLOOKUP($D39,ｸﾗｽｺｰﾄﾞ等!$B$4:$C$2106,2))=1,1,IF(担当曜日別調査!H95=VLOOKUP($D39,ｸﾗｽｺｰﾄﾞ等!$B$4:$C$2106,2),1,0)) -> 1 | U60: =IF(ISERR(担当曜日別調査!I95=VLOOKUP($D39,ｸﾗｽｺｰﾄﾞ等!$B$4:$C$2106,2))=1,1,IF(担当曜日別調査!I95=VLOOKUP($D39,ｸﾗｽｺｰﾄﾞ等!$B$4:$C$2106,2),1,0)) -> 1 | V60: =IF(ISERR(担当曜日別調査!J95=VLOOKUP($D39,ｸﾗｽｺｰﾄﾞ等!$B$4:$C$2106,2))=1,1,IF(担当曜日別調査!J95=VLOOKUP($D39,ｸﾗｽｺｰﾄﾞ等!$B$4:$C$2106,2),1,0)) -> 1 | W60: =IF(ISERR(担当曜日別調査!K95=VLOOKUP($D39,ｸﾗｽｺｰﾄﾞ等!$B$4:$C$2106,2))=1,1,IF(担当曜日別調査!K95=VLOOKUP($D39,ｸﾗｽｺｰﾄﾞ等!$B$4:$C$2106,2),1,0)) -> 1 | X60: =IF(ISERR(担当曜日別調査!L95=VLOOKUP($D39,ｸﾗｽｺｰﾄﾞ等!$B$4:$C$2106,2))=1,1,IF(担当曜日別調査!L95=VLOOKUP($D39,ｸﾗｽｺｰﾄﾞ等!$B$4:$C$2106,2),1,0)) -> 1 | Y60: =IF(ISERR(担当曜日別調査!M95=VLOOKUP($D39,ｸﾗｽｺｰﾄﾞ等!$B$4:$C$2106,2))=1,1,IF(担当曜日別調査!M95=VLOOKUP($D39,ｸﾗｽｺｰﾄﾞ等!$B$4:$C$2106,2),1,0)) -> 1 | Z60: =IF(ISERR(担当曜日別調査!N95=VLOOKUP($D39,ｸﾗｽｺｰﾄﾞ等!$B$4:$C$2106,2))=1,1,IF(担当曜日別調査!N95=VLOOKUP($D39,ｸﾗｽｺｰﾄﾞ等!$B$4:$C$2106,2),1,0)) -> 1 | AA60: =IF(ISERR(担当曜日別調査!O95=VLOOKUP($D39,ｸﾗｽｺｰﾄﾞ等!$B$4:$C$2106,2))=1,1,IF(担当曜日別調査!O95=VLOOKUP($D39,ｸﾗｽｺｰﾄﾞ等!$B$4:$C$2106,2),1,0)) -> 1 | AB60: 8
F61: =D56 ->  | G61: =IF(ISERROR(VLOOKUP(F61*2-1,教科担当一覧2!$D$9:$BA$428,4,0))=TRUE,"",VLOOKUP(F61*2-1,教科担当一覧2!$D$9:$BA$428,4,0)) ->  | I61: =D57 ->  | J61: =IF(ISERROR(VLOOKUP(I61*2-1,教科担当一覧2!$D$9:$BA$428,4,0))=TRUE,"",VLOOKUP(I61*2-1,教科担当一覧2!$D$9:$BA$428,4,0)) ->  | L61: =D58 ->  | M61: =IF(ISERROR(VLOOKUP(L61*2-1,教科担当一覧2!$D$9:$BA$428,4,0))=TRUE,"",VLOOKUP(L61*2-1,教科担当一覧2!$D$9:$BA$428,4,0)) ->  | O61: =D59 ->  | P61: =IF(ISERROR(VLOOKUP(O61*2-1,教科担当一覧2!$D$9:$BA$428,4,0))=TRUE,"",VLOOKUP(O61*2-1,教科担当一覧2!$D$9:$BA$428,4,0)) -> 
F62: =B36 -> 0 | G62: =IF(ISERROR(VLOOKUP(F62,曜日コード!$B$5:$E$52,4,0))=TRUE,"",VLOOKUP(F62,曜日コード!$B$5:$E$52,4,0)) -> なし | I62: =B36 -> 0 | J62: =IF(ISERROR(VLOOKUP(I62,曜日コード!$B$5:$E$52,4,0))=TRUE,"",VLOOKUP(I62,曜日コード!$B$5:$E$52,4,0)) -> なし | L62: =B36 -> 0 | M62: =IF(ISERROR(VLOOKUP(L62,曜日コード!$B$5:$E$52,4,0))=TRUE,"",VLOOKUP(L62,曜日コード!$B$5:$E$52,4,0)) -> なし | O62: =B36 -> 0 | P62: =IF(ISERROR(VLOOKUP(O62,曜日コード!$B$5:$E$52,4,0))=TRUE,"",VLOOKUP(O62,曜日コード!$B$5:$E$52,4,0)) -> なし
... 66 more rows

Sheet 調整ﾃｰﾌﾞﾙA
D2: 調整テーブルA | O2: 名前入力による担当者コード調査
P3: 担当者 | Q3: コード
N4: 担当者入力→ | P4: 斉藤ﾄ | Q4: =VLOOKUP(P4,曜日コード!$B$56:$C$265,2,1) -> 43
F5: 担当者ｺｰﾄﾞ調査A1 | Q5: 担当者ｺｰﾄﾞ調査A1 | AB5: 担当者ｺｰﾄﾞ調査A1 | AM5: 担当者ｺｰﾄﾞ調査A1 | AX5: 担当者ｺｰﾄﾞ調査A1 | BI5: 担当者ｺｰﾄﾞ調査A1 | BT5: 担当者ｺｰﾄﾞ調査A1 | CE5: 担当者ｺｰﾄﾞ調査A1
G6: ｺｰﾄﾞ | H6: 出力 | R6: ｺｰﾄﾞ | S6: 出力 | AC6: ｺｰﾄﾞ | AD6: 出力 | AN6: ｺｰﾄﾞ | AO6: 出力 | AY6: ｺｰﾄﾞ | AZ6: 出力 | BJ6: ｺｰﾄﾞ | BK6: 出力 | BU6: ｺｰﾄﾞ | BV6: 出力 | CF6: ｺｰﾄﾞ | CG6: 出力
D7: 曜日時間ｺｰﾄﾞ入力→ | G7: 45 | H7: =VLOOKUP(G7,曜日コード!$D$5:$E$52,2,0) -> 木５限 | J7: =MID(H7,1,1) -> 木 | K7: =MID(H7,2,3) -> ５限 | O7: 曜日時間ｺｰﾄﾞ入力→ | R7: 45 | S7: =VLOOKUP(R7,曜日コード!$D$5:$E$52,2,0) -> 木５限 | U7: =MID(S7,1,1) -> 木 | V7: =MID(S7,2,3) -> ５限 | Z7: 曜日時間ｺｰﾄﾞ入力→ | AC7: 45 | AD7: =VLOOKUP(AC7,曜日コード!$D$5:$E$52,2,0) -> 木５限 | AF7: =MID(AD7,1,1) -> 木 | AG7: =MID(AD7,2,3) -> ５限 | AK7: 曜日時間ｺｰﾄﾞ入力→ | AN7: 45 | AO7: =VLOOKUP(AN7,曜日コード!$D$5:$E$52,2,0) -> 木５限 | AQ7: =MID(AO7,1,1) -> 木 | AR7: =MID(AO7,2,3) -> ５限 | AV7: 曜日時間ｺｰﾄﾞ入力→ | AY7: 45 | AZ7: =VLOOKUP(AY7,曜日コード!$D$5:$E$52,2,0) -> 木５限 | BB7: =MID(AZ7,1,1) -> 木 | BC7: =MID(AZ7,2,3) -> ５限 | BG7: 曜日時間ｺｰﾄﾞ入力→ | BJ7: 45 | BK7: =VLOOKUP(BJ7,曜日コード!$D$5:$E$52,2,0) -> 木５限 | BM7: =MID(BK7,1,1) -> 木 | BN7: =MID(BK7,2,3) -> ５限 | BR7: 曜日時間ｺｰﾄﾞ入力→ | BU7: 45 | BV7: =VLOOKUP(BU7,曜日コード!$D$5:$E$52,2,0) -> 木５限 | BX7: =MID(BV7,1,1) -> 木 | BY7: =MID(BV7,2,3) -> ５限 | CC7: 曜日時間ｺｰﾄﾞ入力→ | CF7: 45 | CG7: =VLOOKUP(CF7,曜日コード!$D$5:$E$52,2,0) -> 木５限 | CI7: =MID(CG7,1,1) -> 木 | CJ7: =MID(CG7,2,3) -> ５限
D8: ｸﾗｽｺｰﾄﾞ入力→ | G8: 35 | H8: =VLOOKUP(G8,ｸﾗｽｺｰﾄﾞ等!$B$4:$C$2110,2,0) -> 3-5 | J8: =VLOOKUP(J7,曜日コード!$G$13:$H$18,2,1) -> 4 | K8: =VLOOKUP(K7,曜日コード!$G$21:$H$28,2,1) -> 5 | O8: ｸﾗｽｺｰﾄﾞ入力→ | R8: 35 | S8: =VLOOKUP(R8,ｸﾗｽｺｰﾄﾞ等!$B$4:$C$2110,2,0) -> 3-5 | U8: =VLOOKUP(U7,曜日コード!$G$13:$H$18,2,1) -> 4 | V8: =VLOOKUP(V7,曜日コード!$G$21:$H$28,2,1) -> 5 | Z8: ｸﾗｽｺｰﾄﾞ入力→ | AC8: 35 | AD8: =VLOOKUP(AC8,ｸﾗｽｺｰﾄﾞ等!$B$4:$C$2110,2,0) -> 3-5 | AF8: =VLOOKUP(AF7,曜日コード!$G$13:$H$18,2,1) -> 4 | AG8: =VLOOKUP(AG7,曜日コード!$G$21:$H$28,2,1) -> 5 | AK8: ｸﾗｽｺｰﾄﾞ入力→ | AN8: 35 | AO8: =VLOOKUP(AN8,ｸﾗｽｺｰﾄﾞ等!$B$4:$C$2110,2,0) -> 3-5 | AQ8: =VLOOKUP(AQ7,曜日コード!$G$13:$H$18,2,1) -> 4 | AR8: =VLOOKUP(AR7,曜日コード!$G$21:$H$28,2,1) -> 5 | AV8: ｸﾗｽｺｰﾄﾞ入力→ | AY8: 35 | AZ8: =VLOOKUP(AY8,ｸﾗｽｺｰﾄﾞ等!$B$4:$C$2110,2,0) -> 3-5 | BB8: =VLOOKUP(BB7,曜日コード!$G$13:$H$18,2,1) -> 4 | BC8: =VLOOKUP(BC7,曜日コード!$G$21:$H$28,2,1) -> 5 | BG8: ｸﾗｽｺｰﾄﾞ入力→ | BJ8: 35 | BK8: =VLOOKUP(BJ8,ｸﾗｽｺｰﾄﾞ等!$B$4:$C$2110,2,0) -> 3-5 | BM8: =VLOOKUP(BM7,曜日コード!$G$13:$H$18,2,1) -> 4 | BN8: =VLOOKUP(BN7,曜日コード!$G$21:$H$28,2,1) -> 5 | BR8: ｸﾗｽｺｰﾄﾞ入力→ | BU8: 35 | BV8: =VLOOKUP(BU8,ｸﾗｽｺｰﾄﾞ等!$B$4:$C$2110,2,0) -> 3-5 | BX8: =VLOOKUP(BX7,曜日コード!$G$13:$H$18,2,1) -> 4 | BY8: =VLOOKUP(BY7,曜日コード!$G$21:$H$28,2,1) -> 5 | CC8: ｸﾗｽｺｰﾄﾞ入力→ | CF8: 35 | CG8: =VLOOKUP(CF8,ｸﾗｽｺｰﾄﾞ等!$B$4:$C$2110,2,0) -> 3-5 | CI8: =VLOOKUP(CI7,曜日コード!$G$13:$H$18,2,1) -> 4 | CJ8: =VLOOKUP(CJ7,曜日コード!$G$21:$H$28,2,1) -> 5
D9: 担当者ｺｰﾄﾞ→ | G9: =VLOOKUP(H9,曜日コード!$B$56:$C$265,2,1) -> 45 | H9: =IF(G8<=19,VLOOKUP(2*(G8-10),ｸﾗｽ一覧60!$B$125:$AZ$244,5+(J8-1)*8+K8,1),IF(G8<=29,VLOOKUP(2*G8,ｸﾗｽ一覧60!$B$125:$AZ$244,5+(J8-1)*8+K8,1),IF(G8<=39,VLOOKUP(2*(G8+10),ｸﾗｽ一覧60!$B$125:$AZ$244,5+(J8-1)*8+K8,1),IF(G8<=120,VLOOKUP(2*(G8-100),ｸﾗｽ一覧60!$B$125:$AZ$244,5+(J8-1)*8+K8,1),IF(G8<=220,VLOOKUP(2*(G8-180),ｸﾗｽ一覧60!$B$125:$AZ$244,5+(J8-1)*8+K8,1),IF(G7393,VLOOKUP(2*(G8-260),ｸﾗｽ一覧60!$B$125:$AZ$244,5+(J8-1)*8+K8,1),"なし")))))) -> 多田 | J9: =VLOOKUP(H8,ｸﾗｽｺｰﾄﾞ等!$Q$4:$R$63,2,1) -> 175 | O9: 担当者ｺｰﾄﾞ→ | R9: =VLOOKUP(S9,曜日コード!$B$56:$C$265,2,1) -> 45 | S9: =IF(R8<=19,VLOOKUP(2*(R8-10),ｸﾗｽ一覧60!$B$125:$AZ$244,5+(U8-1)*8+V8,1),IF(R8<=29,VLOOKUP(2*R8,ｸﾗｽ一覧60!$B$125:$AZ$244,5+(U8-1)*8+V8,1),IF(R8<=39,VLOOKUP(2*(R8+10),ｸﾗｽ一覧60!$B$125:$AZ$244,5+(U8-1)*8+V8,1),IF(R8<=120,VLOOKUP(2*(R8-100),ｸﾗｽ一覧60!$B$125:$AZ$244,5+(U8-1)*8+V8,1),IF(R8<=220,VLOOKUP(2*(R8-180),ｸﾗｽ一覧60!$B$125:$AZ$244,5+(U8-1)*8+V8,1),IF(R7393,VLOOKUP(2*(R8-260),ｸﾗｽ一覧60!$B$125:$AZ$244,5+(U8-1)*8+V8,1),"なし")))))) -> 多田 | U9: =VLOOKUP(S8,ｸﾗｽｺｰﾄﾞ等!$Q$4:$R$63,2,1) -> 175 | Z9: 担当者ｺｰﾄﾞ→ | AC9: =VLOOKUP(AD9,曜日コード!$B$56:$C$265,2,1) -> 45 | AD9: =IF(AC8<=19,VLOOKUP(2*(AC8-10),ｸﾗｽ一覧60!$B$125:$AZ$244,5+(AF8-1)*8+AG8,1),IF(AC8<=29,VLOOKUP(2*AC8,ｸﾗｽ一覧60!$B$125:$AZ$244,5+(AF8-1)*8+AG8,1),IF(AC8<=39,VLOOKUP(2*(AC8+10),ｸﾗｽ一覧60!$B$125:$AZ$244,5+(AF8-1)*8+AG8,1),IF(AC8<=120,VLOOKUP(2*(AC8-100),ｸﾗｽ一覧60!$B$125:$AZ$244,5+(AF8-1)*8+AG8,1),IF(AC8<=220,VLOOKUP(2*(AC8-180),ｸﾗｽ一覧60!$B$125:$AZ$244,5+(AF8-1)*8+AG8,1),IF(AC7393,VLOOKUP(2*(AC8-260),ｸﾗｽ一覧60!$B$125:$AZ$244,5+(AF8-1)*8+AG8,1),"なし")))))) -> 多田 | AF9: =VLOOKUP(AD8,ｸﾗｽｺｰﾄﾞ等!$Q$4:$R$63,2,1) -> 175 | AK9: 担当者ｺｰﾄﾞ→ | AN9: =VLOOKUP(AO9,曜日コード!$B$56:$C$265,2,1) -> 45 | AO9: =IF(AN8<=19,VLOOKUP(2*(AN8-10),ｸﾗｽ一覧60!$B$125:$AZ$244,5+(AQ8-1)*8+AR8,1),IF(AN8<=29,VLOOKUP(2*AN8,ｸﾗｽ一覧60!$B$125:$AZ$244,5+(AQ8-1)*8+AR8,1),IF(AN8<=39,VLOOKUP(2*(AN8+10),ｸﾗｽ一覧60!$B$125:$AZ$244,5+(AQ8-1)*8+AR8,1),IF(AN8<=120,VLOOKUP(2*(AN8-100),ｸﾗｽ一覧60!$B$125:$AZ$244,5+(AQ8-1)*8+AR8,1),IF(AN8<=220,VLOOKUP(2*(AN8-180),ｸﾗｽ一覧60!$B$125:$AZ$244,5+(AQ8-1)*8+AR8,1),IF(AN7393,VLOOKUP(2*(AN8-260),ｸﾗｽ一覧60!$B$125:$AZ$244,5+(AQ8-1)*8+AR8,1),"なし")))))) -> 多田 | AQ9: =VLOOKUP(AO8,ｸﾗｽｺｰﾄﾞ等!$Q$4:$R$63,2,1) -> 175 | AV9: 担当者ｺｰﾄﾞ→ | AY9: =VLOOKUP(AZ9,曜日コード!$B$56:$C$265,2,1) -> 45 | AZ9: =IF(AY8<=19,VLOOKUP(2*(AY8-10),ｸﾗｽ一覧60!$B$125:$AZ$244,5+(BB8-1)*8+BC8,1),IF(AY8<=29,VLOOKUP(2*AY8,ｸﾗｽ一覧60!$B$125:$AZ$244,5+(BB8-1)*8+BC8,1),IF(AY8<=39,VLOOKUP(2*(AY8+10),ｸﾗｽ一覧60!$B$125:$AZ$244,5+(BB8-1)*8+BC8,1),IF(AY8<=120,VLOOKUP(2*(AY8-100),ｸﾗｽ一覧60!$B$125:$AZ$244,5+(BB8-1)*8+BC8,1),IF(AY8<=220,VLOOKUP(2*(AY8-180),ｸﾗｽ一覧60!$B$125:$AZ$244,5+(BB8-1)*8+BC8,1),IF(AY7393,VLOOKUP(2*(AY8-260),ｸﾗｽ一覧60!$B$125:$AZ$244,5+(BB8-1)*8+BC8,1),"なし")))))) -> 多田 | BB9: =VLOOKUP(AZ8,ｸﾗｽｺｰﾄﾞ等!$Q$4:$R$63,2,1) -> 175 | BG9: 担当者ｺｰﾄﾞ→ | BJ9: =VLOOKUP(BK9,曜日コード!$B$56:$C$265,2,1) -> 45 | BK9: =IF(BJ8<=19,VLOOKUP(2*(BJ8-10),ｸﾗｽ一覧60!$B$125:$AZ$244,5+(BM8-1)*8+BN8,1),IF(BJ8<=29,VLOOKUP(2*BJ8,ｸﾗｽ一覧60!$B$125:$AZ$244,5+(BM8-1)*8+BN8,1),IF(BJ8<=39,VLOOKUP(2*(BJ8+10),ｸﾗｽ一覧60!$B$125:$AZ$244,5+(BM8-1)*8+BN8,1),IF(BJ8<=120,VLOOKUP(2*(BJ8-100),ｸﾗｽ一覧60!$B$125:$AZ$244,5+(BM8-1)*8+BN8,1),IF(BJ8<=220,VLOOKUP(2*(BJ8-180),ｸﾗｽ一覧60!$B$125:$AZ$244,5+(BM8-1)*8+BN8,1),IF(BJ7393,VLOOKUP(2*(BJ8-260),ｸﾗｽ一覧60!$B$125:$AZ$244,5+(BM8-1)*8+BN8,1),"なし")))))) -> 多田 | BM9: =VLOOKUP(BK8,ｸﾗｽｺｰﾄﾞ等!$Q$4:$R$63,2,1) -> 175 | BR9: 担当者ｺｰﾄﾞ→ | BU9: =VLOOKUP(BV9,曜日コード!$B$56:$C$265,2,1) -> 45 | BV9: =IF(BU8<=19,VLOOKUP(2*(BU8-10),ｸﾗｽ一覧60!$B$125:$AZ$244,5+(BX8-1)*8+BY8,1),IF(BU8<=29,VLOOKUP(2*BU8,ｸﾗｽ一覧60!$B$125:$AZ$244,5+(BX8-1)*8+BY8,1),IF(BU8<=39,VLOOKUP(2*(BU8+10),ｸﾗｽ一覧60!$B$125:$AZ$244,5+(BX8-1)*8+BY8,1),IF(BU8<=120,VLOOKUP(2*(BU8-100),ｸﾗｽ一覧60!$B$125:$AZ$244,5+(BX8-1)*8+BY8,1),IF(BU8<=220,VLOOKUP(2*(BU8-180),ｸﾗｽ一覧60!$B$125:$AZ$244,5+(BX8-1)*8+BY8,1),IF(BU7393,VLOOKUP(2*(BU8-260),ｸﾗｽ一覧60!$B$125:$AZ$244,5+(BX8-1)*8+BY8,1),"なし")))))) -> 多田 | BX9: =VLOOKUP(BV8,ｸﾗｽｺｰﾄﾞ等!$Q$4:$R$63,2,1) -> 175 | CC9: 担当者ｺｰﾄﾞ→ | CF9: =VLOOKUP(CG9,曜日コード!$B$56:$C$265,2,1) -> 45 | CG9: =IF(CF8<=19,VLOOKUP(2*(CF8-10),ｸﾗｽ一覧60!$B$125:$AZ$244,5+(CI8-1)*8+CJ8,1),IF(CF8<=29,VLOOKUP(2*CF8,ｸﾗｽ一覧60!$B$125:$AZ$244,5+(CI8-1)*8+CJ8,1),IF(CF8<=39,VLOOKUP(2*(CF8+10),ｸﾗｽ一覧60!$B$125:$AZ$244,5+(CI8-1)*8+CJ8,1),IF(CF8<=120,VLOOKUP(2*(CF8-100),ｸﾗｽ一覧60!$B$125:$AZ$244,5+(CI8-1)*8+CJ8,1),IF(CF8<=220,VLOOKUP(2*(CF8-180),ｸﾗｽ一覧60!$B$125:$AZ$244,5+(CI8-1)*8+CJ8,1),IF(CF7393,VLOOKUP(2*(CF8-260),ｸﾗｽ一覧60!$B$125:$AZ$244,5+(CI8-1)*8+CJ8,1),"なし")))))) -> 多田 | CI9: =VLOOKUP(CG8,ｸﾗｽｺｰﾄﾞ等!$Q$4:$R$63,2,1) -> 175
B11: A1 | C11: 曜日ｺｰﾄﾞ | D11: 教科 | G11: =VLOOKUP(C12,曜日コード!$G$5:$H$10,2) -> 水曜 | M11: B1 | N11: 曜日ｺｰﾄﾞ | O11: 教科 | R11: =VLOOKUP(N12,曜日コード!$G$5:$H$10,2) -> 月曜 | X11: C1 | Y11: 曜日ｺｰﾄﾞ | Z11: 教科 | AC11: =VLOOKUP(Y12,曜日コード!$G$5:$H$10,2) -> 火曜 | AI11: D1 | AJ11: 曜日ｺｰﾄﾞ | AK11: 教科 | AN11: =VLOOKUP(AJ12,曜日コード!$G$5:$H$10,2) -> 水曜 | AT11: E1 | AU11: 曜日ｺｰﾄﾞ | AV11: 教科 | AY11: =VLOOKUP(AU12,曜日コード!$G$5:$H$10,2) -> 金曜 | BE11: F1 | BF11: 曜日ｺｰﾄﾞ | BG11: 教科 | BJ11: =VLOOKUP(BF12,曜日コード!$G$5:$H$10,2) -> 土曜 | BP11: G1 | BQ11: 曜日ｺｰﾄﾞ | BR11: 教科 | BU11: =VLOOKUP(BQ12,曜日コード!$G$5:$H$10,2) -> 火曜 | CA11: H1 | CB11: 曜日ｺｰﾄﾞ | CC11: 教科 | CF11: =VLOOKUP(CB12,曜日コード!$G$5:$H$10,2) -> 金曜 | CO11: A1 | CP11: ｵﾌｾｯﾄ | CS11: =VLOOKUP(C12,曜日コード!$G$5:$H$10,2) -> 水曜 | CZ11: B1 | DA11: ｵﾌｾｯﾄ | DD11: =VLOOKUP(N12,曜日コード!$G$5:$H$10,2) -> 月曜 | DK11: C1 | DL11: ｵﾌｾｯﾄ | DO11: =VLOOKUP(Y12,曜日コード!$G$5:$H$10,2) -> 火曜 | DV11: D1 | DW11: ｵﾌｾｯﾄ | DZ11: =VLOOKUP(AJ12,曜日コード!$G$5:$H$10,2) -> 水曜 | EG11: E1 | EH11: ｵﾌｾｯﾄ | EK11: =VLOOKUP(AU12,曜日コード!$G$5:$H$10,2) -> 金曜 | ER11: F1 | ES11: ｵﾌｾｯﾄ | EV11: =VLOOKUP(BF12,曜日コード!$G$5:$H$10,2) -> 土曜 | FC11: G1 | FD11: ｵﾌｾｯﾄ | FG11: =VLOOKUP(BQ12,曜日コード!$G$5:$H$10,2) -> 火曜 | FN11: H1 | FO11: ｵﾌｾｯﾄ | FR11: =VLOOKUP(CB12,曜日コード!$G$5:$H$10,2) -> 金曜
C12: 3 | D12: 担当 | E12: 1 | F12: 2 | G12: 3 | H12: 4 | I12: 5 | J12: 6 | K12: 7 | L12: 8 | N12: 1 | O12: 担当 | P12: 1 | Q12: 2 | R12: 3 | S12: 4 | T12: 5 | U12: 6 | V12: 7 | W12: 8 | Y12: 2 | Z12: 担当 | AA12: 1 | AB12: 2 | AC12: 3 | AD12: 4 | AE12: 5 | AF12: 6 | AG12: 7 | AH12: 8 | AJ12: 3 | AK12: 担当 | AL12: 1 | AM12: 2 | AN12: 3 | AO12: 4 | AP12: 5 | AQ12: 6 | AR12: 7 | AS12: 8 | AU12: 5 | AV12: 担当 | AW12: 1 | AX12: 2 | AY12: 3 | AZ12: 4 | BA12: 5 | BB12: 6 | BC12: 7 | BD12: 8 | BF12: 6 | BG12: 担当 | BH12: 1 | BI12: 2 | BJ12: 3 | BK12: 4 | BL12: 5 | BM12: 6 | BN12: 7 | BO12: 8 | BQ12: 2 | BR12: 担当 | BS12: 1 | BT12: 2 | BU12: 3 | BV12: 4 | BW12: 5 | BX12: 6 | BY12: 7 | BZ12: 8 | CB12: 5 | CC12: 担当 | CD12: 1 | CE12: 2 | CF12: 3 | CG12: 4 | CH12: 5 | CI12: 6 | CJ12: 7 | CK12: 8 | CP12: 番号 | CQ12: 1 | CR12: 2 | CS12: 3 | CT12: 4 | CU12: 5 | CV12: 6 | CW12: 7 | CX12: 8 | DA12: 番号 | DB12: 1 | DC12: 2 | DD12: 3 | DE12: 4 | DF12: 5 | DG12: 6 | DH12: 7 | DI12: 8 | DL12: 番号 | DM12: 1 | DN12: 2 | DO12: 3 | DP12: 4 | DQ12: 5 | DR12: 6 | DS12: 7 | DT12: 8 | DW12: 番号 | DX12: 1 | DY12: 2 | DZ12: 3 | EA12: 4 | EB12: 5 | EC12: 6 | ED12: 7 | EE12: 8 | EH12: 番号 | EI12: 1 | EJ12: 2 | EK12: 3 | EL12: 4 | EM12: 5 | EN12: 6 | EO12: 7 | EP12: 8 | ES12: 番号 | ET12: 1 | EU12: 2 | EV12: 3 | EW12: 4 | EX12: 5 | EY12: 6 | EZ12: 7 | FA12: 8 | FD12: 番号 | FE12: 1 | FF12: 2 | FG12: 3 | FH12: 4 | FI12: 5 | FJ12: 6 | FK12: 7 | FL12: 8 | FO12: 番号 | FP12: 1 | FQ12: 2 | FR12: 3 | FS12: 4 | FT12: 5 | FU12: 6 | FV12: 7 | FW12: 8
C13: 担当ｺｰﾄﾞ | D13: =VLOOKUP(CP13,教科担当一覧2!$D$9:$BA$428,4) -> 菊川 | E13: =VLOOKUP(CP13,教科担当一覧2!$D$9:$BA$428,CQ13) -> 3-7 | F13: =VLOOKUP(CP13,教科担当一覧2!$D$9:$BA$428,CR13) -> 3-8 | G13: =VLOOKUP(CP13,教科担当一覧2!$D$9:$BA$428,CS13) -> ・ | H13: =VLOOKUP(CP13,教科担当一覧2!$D$9:$BA$428,CT13) -> * | I13: =VLOOKUP(CP13,教科担当一覧2!$D$9:$BA$428,CU13) -> * | J13: =VLOOKUP(CP13,教科担当一覧2!$D$9:$BA$428,CV13) -> * | K13: =VLOOKUP(CP13,教科担当一覧2!$D$9:$BA$428,CW13) -> * | L13: =VLOOKUP(CP13,教科担当一覧2!$D$9:$BA$428,CX13) -> * | N13: 担当ｺｰﾄﾞ | O13: =VLOOKUP(DA13,教科担当一覧2!$D$9:$BA$428,4) -> 金室 | P13: =VLOOKUP(DA13,教科担当一覧2!$D$9:$BA$428,DB13) -> 2-8 | Q13: =VLOOKUP(DA13,教科担当一覧2!$D$9:$BA$428,DC13) -> ・ | R13: =VLOOKUP(DA13,教科担当一覧2!$D$9:$BA$428,DD13) -> 2-6 | S13: =VLOOKUP(DA13,教科担当一覧2!$D$9:$BA$428,DE13) -> ・ | T13: =VLOOKUP(DA13,教科担当一覧2!$D$9:$BA$428,DF13) -> 2-1 | U13: =VLOOKUP(DA13,教科担当一覧2!$D$9:$BA$428,DG13) -> ・ | V13: =VLOOKUP(DA13,教科担当一覧2!$D$9:$BA$428,DH13) -> * | W13: =VLOOKUP(DA13,教科担当一覧2!$D$9:$BA$428,DI13) -> * | Y13: 担当ｺｰﾄﾞ | Z13: =VLOOKUP(DL13,教科担当一覧2!$D$9:$BA$428,4) -> 高橋 | AA13: =VLOOKUP(DL13,教科担当一覧2!$D$9:$BA$428,DM13) -> ・ | AB13: =VLOOKUP(DL13,教科担当一覧2!$D$9:$BA$428,DN13) -> ・ | AC13: =VLOOKUP(DL13,教科担当一覧2!$D$9:$BA$428,DO13) -> ・ | AD13: =VLOOKUP(DL13,教科担当一覧2!$D$9:$BA$428,DP13) -> 2-3 | AE13: =VLOOKUP(DL13,教科担当一覧2!$D$9:$BA$428,DQ13) -> 2-4 | AF13: =VLOOKUP(DL13,教科担当一覧2!$D$9:$BA$428,DR13) -> 2-5 | AG13: =VLOOKUP(DL13,教科担当一覧2!$D$9:$BA$428,DS13) -> * | AH13: =VLOOKUP(DL13,教科担当一覧2!$D$9:$BA$428,DT13) -> * | AJ13: 担当ｺｰﾄﾞ | AK13: =VLOOKUP(DW13,教科担当一覧2!$D$9:$BA$428,4) -> 榎本 | AL13: =VLOOKUP(DW13,教科担当一覧2!$D$9:$BA$428,DX13) -> 2-4 | AM13: =VLOOKUP(DW13,教科担当一覧2!$D$9:$BA$428,DY13) -> 2-5 | AN13: =VLOOKUP(DW13,教科担当一覧2!$D$9:$BA$428,DZ13) -> ・ | AO13: =VLOOKUP(DW13,教科担当一覧2!$D$9:$BA$428,EA13) -> ・ | AP13: =VLOOKUP(DW13,教科担当一覧2!$D$9:$BA$428,EB13) -> ・ | AQ13: =VLOOKUP(DW13,教科担当一覧2!$D$9:$BA$428,EC13) -> ・ | AR13: =VLOOKUP(DW13,教科担当一覧2!$D$9:$BA$428,ED13) -> * | AS13: =VLOOKUP(DW13,教科担当一覧2!$D$9:$BA$428,EE13) -> * | AU13: 担当ｺｰﾄﾞ | AV13: =VLOOKUP(EH13,教科担当一覧2!$D$9:$BA$428,4) -> 斉藤ﾄ | AW13: =VLOOKUP(EH13,教科担当一覧2!$D$9:$BA$428,EI13) -> 2-3 | AX13: =VLOOKUP(EH13,教科担当一覧2!$D$9:$BA$428,EJ13) -> 2-2 | AY13: =VLOOKUP(EH13,教科担当一覧2!$D$9:$BA$428,EK13) -> 教科会 | AZ13: =VLOOKUP(EH13,教科担当一覧2!$D$9:$BA$428,EL13) -> ・ | BA13: =VLOOKUP(EH13,教科担当一覧2!$D$9:$BA$428,EM13) -> 教育課 | BB13: =VLOOKUP(EH13,教科担当一覧2!$D$9:$BA$428,EN13) -> 土1,2 | BC13: =VLOOKUP(EH13,教科担当一覧2!$D$9:$BA$428,EO13) -> * | BD13: =VLOOKUP(EH13,教科担当一覧2!$D$9:$BA$428,EP13) -> * | BF13: 担当ｺｰﾄﾞ | BG13: =VLOOKUP(ES13,教科担当一覧2!$D$9:$BA$428,4) -> 木島 | BH13: =VLOOKUP(ES13,教科担当一覧2!$D$9:$BA$428,ET13) -> ・ | BI13: =VLOOKUP(ES13,教科担当一覧2!$D$9:$BA$428,EU13) -> 1-1 | BJ13: =VLOOKUP(ES13,教科担当一覧2!$D$9:$BA$428,EV13) -> 必修ク | BK13: =VLOOKUP(ES13,教科担当一覧2!$D$9:$BA$428,EW13) -> 必修ク | BL13: =VLOOKUP(ES13,教科担当一覧2!$D$9:$BA$428,EX13) -> * | BM13: =VLOOKUP(ES13,教科担当一覧2!$D$9:$BA$428,EY13) -> * | BN13: =VLOOKUP(ES13,教科担当一覧2!$D$9:$BA$428,EZ13) ->  | BO13: =VLOOKUP(ES13,教科担当一覧2!$D$9:$BA$428,FA13) ->  | BQ13: 担当ｺｰﾄﾞ | BR13: =VLOOKUP(FD13,教科担当一覧2!$D$9:$BA$428,4) -> 清水ﾀ | BS13: =VLOOKUP(FD13,教科担当一覧2!$D$9:$BA$428,FE13) -> ・ | BT13: =VLOOKUP(FD13,教科担当一覧2!$D$9:$BA$428,FF13) -> ・ | BU13: =VLOOKUP(FD13,教科担当一覧2!$D$9:$BA$428,FG13) -> 2-56 | BV13: =VLOOKUP(FD13,教科担当一覧2!$D$9:$BA$428,FH13) -> 学年会 | BW13: =VLOOKUP(FD13,教科担当一覧2!$D$9:$BA$428,FI13) -> 2-12 | BX13: =VLOOKUP(FD13,教科担当一覧2!$D$9:$BA$428,FJ13) -> 1-8 | BY13: =VLOOKUP(FD13,教科担当一覧2!$D$9:$BA$428,FK13) -> * | BZ13: =VLOOKUP(FD13,教科担当一覧2!$D$9:$BA$428,FL13) -> * | CB13: 担当ｺｰﾄﾞ | CC13: =VLOOKUP(FO13,教科担当一覧2!$D$9:$BA$428,4) -> 新井 | CD13: =VLOOKUP(FO13,教科担当一覧2!$D$9:$BA$428,FP13) -> 3-2 | CE13: =VLOOKUP(FO13,教科担当一覧2!$D$9:$BA$428,FQ13) -> ・ | CF13: =VLOOKUP(FO13,教科担当一覧2!$D$9:$BA$428,FR13) -> ・ | CG13: =VLOOKUP(FO13,教科担当一覧2!$D$9:$BA$428,FS13) -> 3-1 | CH13: =VLOOKUP(FO13,教科担当一覧2!$D$9:$BA$428,FT13) -> 1-2 | CI13: =VLOOKUP(FO13,教科担当一覧2!$D$9:$BA$428,FU13) -> 土1,2 | CJ13: =VLOOKUP(FO13,教科担当一覧2!$D$9:$BA$428,FV13) -> * | CK13: =VLOOKUP(FO13,教科担当一覧2!$D$9:$BA$428,FW13) -> * | CP13: =C14*2-1 -> 91 | CQ13: =8*(C12-1)+5 -> 21 | CR13: =8*(C12-1)+6 -> 22 | CS13: =8*(C12-1)+7 -> 23 | CT13: =8*(C12-1)+8 -> 24 | CU13: =8*(C12-1)+9 -> 25 | CV13: =8*(C12-1)+10 -> 26 | CW13: =8*(C12-1)+11 -> 27 | CX13: =8*(C12-1)+12 -> 28 | DA13: =N14*2-1 -> 127 | DB13: =8*(N12-1)+5 -> 5 | DC13: =8*(N12-1)+6 -> 6 | DD13: =8*(N12-1)+7 -> 7 | DE13: =8*(N12-1)+8 -> 8 | DF13: =8*(N12-1)+9 -> 9 | DG13: =8*(N12-1)+10 -> 10 | DH13: =8*(N12-1)+11 -> 11 | DI13: =8*(N12-1)+12 -> 12 | DL13: =Y14*2-1 -> 55 | DM13: =8*(Y12-1)+5 -> 13 | DN13: =8*(Y12-1)+6 -> 14 | DO13: =8*(Y12-1)+7 -> 15 | DP13: =8*(Y12-1)+8 -> 16 | DQ13: =8*(Y12-1)+9 -> 17 | DR13: =8*(Y12-1)+10 -> 18 | DS13: =8*(Y12-1)+11 -> 19 | DT13: =8*(Y12-1)+12 -> 20 | DW13: =AJ14*2-1 -> 7 | DX13: =8*(AJ12-1)+5 -> 21 | DY13: =8*(AJ12-1)+6 -> 22 | DZ13: =8*(AJ12-1)+7 -> 23 | EA13: =8*(AJ12-1)+8 -> 24 | EB13: =8*(AJ12-1)+9 -> 25 | EC13: =8*(AJ12-1)+10 -> 26 | ED13: =8*(AJ12-1)+11 -> 27 | EE13: =8*(AJ12-1)+12 -> 28 | EH13: =AU14*2-1 -> 85 | EI13: =8*(AU12-1)+5 -> 37 | EJ13: =8*(AU12-1)+6 -> 38 | EK13: =8*(AU12-1)+7 -> 39 | EL13: =8*(AU12-1)+8 -> 40 | EM13: =8*(AU12-1)+9 -> 41 | EN13: =8*(AU12-1)+10 -> 42 | EO13: =8*(AU12-1)+11 -> 43 | EP13: =8*(AU12-1)+12 -> 44 | ES13: =BF14*2-1 -> 241 | ET13: =8*(BF12-1)+5 -> 45 | EU13: =8*(BF12-1)+6 -> 46 | EV13: =8*(BF12-1)+7 -> 47 | EW13: =8*(BF12-1)+8 -> 48 | EX13: =8*(BF12-1)+9 -> 49 | EY13: =8*(BF12-1)+10 -> 50 | EZ13: =8*(BF12-1)+11 -> 51 | FA13: =8*(BF12-1)+12 -> 52 | FD13: =BQ14*2-1 -> 247 | FE13: =8*(BQ12-1)+5 -> 13 | FF13: =8*(BQ12-1)+6 -> 14 | FG13: =8*(BQ12-1)+7 -> 15 | FH13: =8*(BQ12-1)+8 -> 16 | FI13: =8*(BQ12-1)+9 -> 17 | FJ13: =8*(BQ12-1)+10 -> 18 | FK13: =8*(BQ12-1)+11 -> 19 | FL13: =8*(BQ12-1)+12 -> 20 | FO13: =CB14*2-1 -> 41 | FP13: =8*(CB12-1)+5 -> 37 | FQ13: =8*(CB12-1)+6 -> 38 | FR13: =8*(CB12-1)+7 -> 39 | FS13: =8*(CB12-1)+8 -> 40 | FT13: =8*(CB12-1)+9 -> 41 | FU13: =8*(CB12-1)+10 -> 42 | FV13: =8*(CB12-1)+11 -> 43 | FW13: =8*(CB12-1)+12 -> 44
C14: 46 | D14: =VLOOKUP(CP14,教科担当一覧2!$D$9:$BA$428,4) -> 進路主 | E14: =VLOOKUP(CP14,教科担当一覧2!$D$9:$BA$428,CQ13) -> 数Ⅱ | F14: =VLOOKUP(CP14,教科担当一覧2!$D$9:$BA$428,CR13) -> 数Ⅱ | G14: =VLOOKUP(CP14,教科担当一覧2!$D$9:$BA$428,CS13) ->  | H14: =VLOOKUP(CP14,教科担当一覧2!$D$9:$BA$428,CT13) ->  | I14: =VLOOKUP(CP14,教科担当一覧2!$D$9:$BA$428,CU13) ->  | J14: =VLOOKUP(CP14,教科担当一覧2!$D$9:$BA$428,CV13) ->  | K14: =VLOOKUP(CP14,教科担当一覧2!$D$9:$BA$428,CW13) -> * | L14: =VLOOKUP(CP14,教科担当一覧2!$D$9:$BA$428,CX13) -> * | N14: 64 | O14: =VLOOKUP(DA14,教科担当一覧2!$D$9:$BA$428,4) -> 2-8副 | P14: =VLOOKUP(DA14,教科担当一覧2!$D$9:$BA$428,DB13) -> 物Ｄ | Q14: =VLOOKUP(DA14,教科担当一覧2!$D$9:$BA$428,DC13) ->  | R14: =VLOOKUP(DA14,教科担当一覧2!$D$9:$BA$428,DD13) -> 物Ｄ | S14: =VLOOKUP(DA14,教科担当一覧2!$D$9:$BA$428,DE13) ->  | T14: =VLOOKUP(DA14,教科担当一覧2!$D$9:$BA$428,DF13) -> 物Ｃ | U14: =VLOOKUP(DA14,教科担当一覧2!$D$9:$BA$428,DG13) ->  | V14: =VLOOKUP(DA14,教科担当一覧2!$D$9:$BA$428,DH13) -> * | W14: =VLOOKUP(DA14,教科担当一覧2!$D$9:$BA$428,DI13) -> * | Y14: 28 | Z14: =VLOOKUP(DL14,教科担当一覧2!$D$9:$BA$428,4) ->  | AA14: =VLOOKUP(DL14,教科担当一覧2!$D$9:$BA$428,DM13) ->  | AB14: =VLOOKUP(DL14,教科担当一覧2!$D$9:$BA$428,DN13) ->  | AC14: =VLOOKUP(DL14,教科担当一覧2!$D$9:$BA$428,DO13) ->  | AD14: =VLOOKUP(DL14,教科担当一覧2!$D$9:$BA$428,DP13) -> 世史 | AE14: =VLOOKUP(DL14,教科担当一覧2!$D$9:$BA$428,DQ13) -> 世史 | AF14: =VLOOKUP(DL14,教科担当一覧2!$D$9:$BA$428,DR13) -> 世史 | AG14: =VLOOKUP(DL14,教科担当一覧2!$D$9:$BA$428,DS13) -> * | AH14: =VLOOKUP(DL14,教科担当一覧2!$D$9:$BA$428,DT13) -> * | AJ14: 4 | AK14: =VLOOKUP(DW14,教科担当一覧2!$D$9:$BA$428,4) -> 2-5担 | AL14: =VLOOKUP(DW14,教科担当一覧2!$D$9:$BA$428,DX13) -> 国Ⅱ | AM14: =VLOOKUP(DW14,教科担当一覧2!$D$9:$BA$428,DY13) -> 国Ⅱ | AN14: =VLOOKUP(DW14,教科担当一覧2!$D$9:$BA$428,DZ13) ->  | AO14: =VLOOKUP(DW14,教科担当一覧2!$D$9:$BA$428,EA13) ->  | AP14: =VLOOKUP(DW14,教科担当一覧2!$D$9:$BA$428,EB13) ->  | AQ14: =VLOOKUP(DW14,教科担当一覧2!$D$9:$BA$428,EC13) ->  | AR14: =VLOOKUP(DW14,教科担当一覧2!$D$9:$BA$428,ED13) -> * | AS14: =VLOOKUP(DW14,教科担当一覧2!$D$9:$BA$428,EE13) -> * | AU14: 43 | AV14: =VLOOKUP(EH14,教科担当一覧2!$D$9:$BA$428,4) -> 2-3担 | AW14: =VLOOKUP(EH14,教科担当一覧2!$D$9:$BA$428,EI13) -> 数Ⅱ | AX14: =VLOOKUP(EH14,教科担当一覧2!$D$9:$BA$428,EJ13) -> 数Ⅱ | AY14: =VLOOKUP(EH14,教科担当一覧2!$D$9:$BA$428,EK13) ->  | AZ14: =VLOOKUP(EH14,教科担当一覧2!$D$9:$BA$428,EL13) ->  | BA14: =VLOOKUP(EH14,教科担当一覧2!$D$9:$BA$428,EM13) ->  | BB14: =VLOOKUP(EH14,教科担当一覧2!$D$9:$BA$428,EN13) -> - | BC14: =VLOOKUP(EH14,教科担当一覧2!$D$9:$BA$428,EO13) -> * | BD14: =VLOOKUP(EH14,教科担当一覧2!$D$9:$BA$428,EP13) -> * | BF14: 121 | BG14: =VLOOKUP(ES14,教科担当一覧2!$D$9:$BA$428,4) -> 1-3担 | BH14: =VLOOKUP(ES14,教科担当一覧2!$D$9:$BA$428,ET13) ->  | BI14: =VLOOKUP(ES14,教科担当一覧2!$D$9:$BA$428,EU13) -> 英Ⅰ | BJ14: =VLOOKUP(ES14,教科担当一覧2!$D$9:$BA$428,EV13) -> - | BK14: =VLOOKUP(ES14,教科担当一覧2!$D$9:$BA$428,EW13) -> - | BL14: =VLOOKUP(ES14,教科担当一覧2!$D$9:$BA$428,EX13) -> * | BM14: =VLOOKUP(ES14,教科担当一覧2!$D$9:$BA$428,EY13) -> * | BN14: =VLOOKUP(ES14,教科担当一覧2!$D$9:$BA$428,EZ13) ->  | BO14: =VLOOKUP(ES14,教科担当一覧2!$D$9:$BA$428,FA13) ->  | BQ14: 124 | BR14: =VLOOKUP(FD14,教科担当一覧2!$D$9:$BA$428,4) -> 2-57副 | BS14: =VLOOKUP(FD14,教科担当一覧2!$D$9:$BA$428,FE13) ->  | BT14: =VLOOKUP(FD14,教科担当一覧2!$D$9:$BA$428,FF13) ->  | BU14: =VLOOKUP(FD14,教科担当一覧2!$D$9:$BA$428,FG13) -> 英Ⅱ | BV14: =VLOOKUP(FD14,教科担当一覧2!$D$9:$BA$428,FH13) ->  | BW14: =VLOOKUP(FD14,教科担当一覧2!$D$9:$BA$428,FI13) -> 英Ⅱ | BX14: =VLOOKUP(FD14,教科担当一覧2!$D$9:$BA$428,FJ13) -> 英Ⅰ | BY14: =VLOOKUP(FD14,教科担当一覧2!$D$9:$BA$428,FK13) -> * | BZ14: =VLOOKUP(FD14,教科担当一覧2!$D$9:$BA$428,FL13) -> * | CB14: 21 | CC14: =VLOOKUP(FO14,教科担当一覧2!$D$9:$BA$428,4) -> 1-2担 | CD14: =VLOOKUP(FO14,教科担当一覧2!$D$9:$BA$428,FP13) -> 日史 | CE14: =VLOOKUP(FO14,教科担当一覧2!$D$9:$BA$428,FQ13) ->  | CF14: =VLOOKUP(FO14,教科担当一覧2!$D$9:$BA$428,FR13) ->  | CG14: =VLOOKUP(FO14,教科担当一覧2!$D$9:$BA$428,FS13) -> 日史 | CH14: =VLOOKUP(FO14,教科担当一覧2!$D$9:$BA$428,FT13) -> 地理 | CI14: =VLOOKUP(FO14,教科担当一覧2!$D$9:$BA$428,FU13) -> - | CJ14: =VLOOKUP(FO14,教科担当一覧2!$D$9:$BA$428,FV13) -> * | CK14: =VLOOKUP(FO14,教科担当一覧2!$D$9:$BA$428,FW13) -> * | CP14: =C14*2 -> 92 | DA14: =N14*2 -> 128 | DL14: =Y14*2 -> 56 | DW14: =AJ14*2 -> 8 | EH14: =AU14*2 -> 86 | ES14: =BF14*2 -> 242 | FD14: =BQ14*2 -> 248 | FO14: =CB14*2 -> 42
B15: A2 | C15: 曜日ｺｰﾄﾞ | D15: 教科 | G15: =VLOOKUP(C16,曜日コード!$G$5:$H$10,2) -> 火曜 | M15: B2 | N15: 曜日ｺｰﾄﾞ | O15: 教科 | R15: =VLOOKUP(N16,曜日コード!$G$5:$H$10,2) -> 火曜 | X15: C2 | Y15: 曜日ｺｰﾄﾞ | Z15: 教科 | AC15: =VLOOKUP(Y16,曜日コード!$G$5:$H$10,2) -> 火曜 | AI15: D2 | AJ15: 曜日ｺｰﾄﾞ | AK15: 教科 | AN15: =VLOOKUP(AJ16,曜日コード!$G$5:$H$10,2) -> 火曜 | AT15: E2 | AU15: 曜日ｺｰﾄﾞ | AV15: 教科 | AY15: =VLOOKUP(AU16,曜日コード!$G$5:$H$10,2) -> 火曜 | BE15: F2 | BF15: 曜日ｺｰﾄﾞ | BG15: 教科 | BJ15: =VLOOKUP(BF16,曜日コード!$G$5:$H$10,2) -> 火曜 | BP15: G2 | BQ15: 曜日ｺｰﾄﾞ | BR15: 教科 | BU15: =VLOOKUP(BQ16,曜日コード!$G$5:$H$10,2) -> 火曜 | CA15: H2 | CB15: 曜日ｺｰﾄﾞ | CC15: 教科 | CF15: =VLOOKUP(CB16,曜日コード!$G$5:$H$10,2) -> 火曜 | CO15: A2 | CP15: ｵﾌｾｯﾄ | CS15: =VLOOKUP(C16,曜日コード!$G$5:$H$10,2) -> 火曜 | CZ15: B2 | DA15: ｵﾌｾｯﾄ | DD15: =VLOOKUP(N16,曜日コード!$G$5:$H$10,2) -> 火曜 | DK15: C2 | DL15: ｵﾌｾｯﾄ | DO15: =VLOOKUP(Y16,曜日コード!$G$5:$H$10,2) -> 火曜 | DV15: D2 | DW15: ｵﾌｾｯﾄ | DZ15: =VLOOKUP(AJ16,曜日コード!$G$5:$H$10,2) -> 火曜 | EG15: E2 | EH15: ｵﾌｾｯﾄ | EK15: =VLOOKUP(AU16,曜日コード!$G$5:$H$10,2) -> 火曜 | ER15: F2 | ES15: ｵﾌｾｯﾄ | EV15: =VLOOKUP(BF16,曜日コード!$G$5:$H$10,2) -> 火曜 | FC15: G2 | FD15: ｵﾌｾｯﾄ | FG15: =VLOOKUP(BQ16,曜日コード!$G$5:$H$10,2) -> 火曜 | FN15: H2 | FO15: ｵﾌｾｯﾄ | FR15: =VLOOKUP(CB16,曜日コード!$G$5:$H$10,2) -> 火曜
C16: 2 | D16: 担当 | E16: 1 | F16: 2 | G16: 3 | H16: 4 | I16: 5 | J16: 6 | K16: 7 | L16: 8 | N16: 2 | O16: 担当 | P16: 1 | Q16: 2 | R16: 3 | S16: 4 | T16: 5 | U16: 6 | V16: 7 | W16: 8 | Y16: 2 | Z16: 担当 | AA16: 1 | AB16: 2 | AC16: 3 | AD16: 4 | AE16: 5 | AF16: 6 | AG16: 7 | AH16: 8 | AJ16: 2 | AK16: 担当 | AL16: 1 | AM16: 2 | AN16: 3 | AO16: 4 | AP16: 5 | AQ16: 6 | AR16: 7 | AS16: 8 | AU16: 2 | AV16: 担当 | AW16: 1 | AX16: 2 | AY16: 3 | AZ16: 4 | BA16: 5 | BB16: 6 | BC16: 7 | BD16: 8 | BF16: 2 | BG16: 担当 | BH16: 1 | BI16: 2 | BJ16: 3 | BK16: 4 | BL16: 5 | BM16: 6 | BN16: 7 | BO16: 8 | BQ16: 2 | BR16: 担当 | BS16: 1 | BT16: 2 | BU16: 3 | BV16: 4 | BW16: 5 | BX16: 6 | BY16: 7 | BZ16: 8 | CB16: 2 | CC16: 担当 | CD16: 1 | CE16: 2 | CF16: 3 | CG16: 4 | CH16: 5 | CI16: 6 | CJ16: 7 | CK16: 8 | CP16: 番号 | CQ16: 1 | CR16: 2 | CS16: 3 | CT16: 4 | CU16: 5 | CV16: 6 | CW16: 7 | CX16: 8 | DA16: 番号 | DB16: 1 | DC16: 2 | DD16: 3 | DE16: 4 | DF16: 5 | DG16: 6 | DH16: 7 | DI16: 8 | DL16: 番号 | DM16: 1 | DN16: 2 | DO16: 3 | DP16: 4 | DQ16: 5 | DR16: 6 | DS16: 7 | DT16: 8 | DW16: 番号 | DX16: 1 | DY16: 2 | DZ16: 3 | EA16: 4 | EB16: 5 | EC16: 6 | ED16: 7 | EE16: 8 | EH16: 番号 | EI16: 1 | EJ16: 2 | EK16: 3 | EL16: 4 | EM16: 5 | EN16: 6 | EO16: 7 | EP16: 8 | ES16: 番号 | ET16: 1 | EU16: 2 | EV16: 3 | EW16: 4 | EX16: 5 | EY16: 6 | EZ16: 7 | FA16: 8 | FD16: 番号 | FE16: 1 | FF16: 2 | FG16: 3 | FH16: 4 | FI16: 5 | FJ16: 6 | FK16: 7 | FL16: 8 | FO16: 番号 | FP16: 1 | FQ16: 2 | FR16: 3 | FS16: 4 | FT16: 5 | FU16: 6 | FV16: 7 | FW16: 8
C17: 担当ｺｰﾄﾞ | D17: =VLOOKUP(CP17,教科担当一覧2!$D$9:$BA$428,4) -> 程田 | E17: =VLOOKUP(CP17,教科担当一覧2!$D$9:$BA$428,CQ17) -> 学年会 | F17: =VLOOKUP(CP17,教科担当一覧2!$D$9:$BA$428,CR17) -> ・ | G17: =VLOOKUP(CP17,教科担当一覧2!$D$9:$BA$428,CS17) -> 2-8 | H17: =VLOOKUP(CP17,教科担当一覧2!$D$9:$BA$428,CT17) -> 2-6 | I17: =VLOOKUP(CP17,教科担当一覧2!$D$9:$BA$428,CU17) -> 教科会 | J17: =VLOOKUP(CP17,教科担当一覧2!$D$9:$BA$428,CV17) -> 3-2 | K17: =VLOOKUP(CP17,教科担当一覧2!$D$9:$BA$428,CW17) -> * | L17: =VLOOKUP(CP17,教科担当一覧2!$D$9:$BA$428,CX17) -> * | N17: 担当ｺｰﾄﾞ | O17: =VLOOKUP(DA17,教科担当一覧2!$D$9:$BA$428,4) -> 鶴巻 | P17: =VLOOKUP(DA17,教科担当一覧2!$D$9:$BA$428,DB17) -> 2-6 | Q17: =VLOOKUP(DA17,教科担当一覧2!$D$9:$BA$428,DC17) -> 2-8 | R17: =VLOOKUP(DA17,教科担当一覧2!$D$9:$BA$428,DD17) -> ・ | S17: =VLOOKUP(DA17,教科担当一覧2!$D$9:$BA$428,DE17) -> 2-1 | T17: =VLOOKUP(DA17,教科担当一覧2!$D$9:$BA$428,DF17) -> 教科会 | U17: =VLOOKUP(DA17,教科担当一覧2!$D$9:$BA$428,DG17) -> ・ | V17: =VLOOKUP(DA17,教科担当一覧2!$D$9:$BA$428,DH17) -> * | W17: =VLOOKUP(DA17,教科担当一覧2!$D$9:$BA$428,DI17) -> * | Y17: 担当ｺｰﾄﾞ | Z17: =VLOOKUP(DL17,教科担当一覧2!$D$9:$BA$428,4) -> 高橋 | AA17: =VLOOKUP(DL17,教科担当一覧2!$D$9:$BA$428,DM17) -> ・ | AB17: =VLOOKUP(DL17,教科担当一覧2!$D$9:$BA$428,DN17) -> ・ | AC17: =VLOOKUP(DL17,教科担当一覧2!$D$9:$BA$428,DO17) -> ・ | AD17: =VLOOKUP(DL17,教科担当一覧2!$D$9:$BA$428,DP17) -> 2-3 | AE17: =VLOOKUP(DL17,教科担当一覧2!$D$9:$BA$428,DQ17) -> 2-4 | AF17: =VLOOKUP(DL17,教科担当一覧2!$D$9:$BA$428,DR17) -> 2-5 | AG17: =VLOOKUP(DL17,教科担当一覧2!$D$9:$BA$428,DS17) -> * | AH17: =VLOOKUP(DL17,教科担当一覧2!$D$9:$BA$428,DT17) -> * | AJ17: 担当ｺｰﾄﾞ | AK17: =VLOOKUP(DW17,教科担当一覧2!$D$9:$BA$428,4) -> 高橋 | AL17: =VLOOKUP(DW17,教科担当一覧2!$D$9:$BA$428,DX17) -> ・ | AM17: =VLOOKUP(DW17,教科担当一覧2!$D$9:$BA$428,DY17) -> ・ | AN17: =VLOOKUP(DW17,教科担当一覧2!$D$9:$BA$428,DZ17) -> ・ | AO17: =VLOOKUP(DW17,教科担当一覧2!$D$9:$BA$428,EA17) -> 2-3 | AP17: =VLOOKUP(DW17,教科担当一覧2!$D$9:$BA$428,EB17) -> 2-4 | AQ17: =VLOOKUP(DW17,教科担当一覧2!$D$9:$BA$428,EC17) -> 2-5 | AR17: =VLOOKUP(DW17,教科担当一覧2!$D$9:$BA$428,ED17) -> * | AS17: =VLOOKUP(DW17,教科担当一覧2!$D$9:$BA$428,EE17) -> * | AU17: 担当ｺｰﾄﾞ | AV17: =VLOOKUP(EH17,教科担当一覧2!$D$9:$BA$428,4) -> 高橋 | AW17: =VLOOKUP(EH17,教科担当一覧2!$D$9:$BA$428,EI17) -> ・ | AX17: =VLOOKUP(EH17,教科担当一覧2!$D$9:$BA$428,EJ17) -> ・ | AY17: =VLOOKUP(EH17,教科担当一覧2!$D$9:$BA$428,EK17) -> ・ | AZ17: =VLOOKUP(EH17,教科担当一覧2!$D$9:$BA$428,EL17) -> 2-3 | BA17: =VLOOKUP(EH17,教科担当一覧2!$D$9:$BA$428,EM17) -> 2-4 | BB17: =VLOOKUP(EH17,教科担当一覧2!$D$9:$BA$428,EN17) -> 2-5 | BC17: =VLOOKUP(EH17,教科担当一覧2!$D$9:$BA$428,EO17) -> * | BD17: =VLOOKUP(EH17,教科担当一覧2!$D$9:$BA$428,EP17) -> * | BF17: 担当ｺｰﾄﾞ | BG17: =VLOOKUP(ES17,教科担当一覧2!$D$9:$BA$428,4) -> 高橋 | BH17: =VLOOKUP(ES17,教科担当一覧2!$D$9:$BA$428,ET17) -> ・ | BI17: =VLOOKUP(ES17,教科担当一覧2!$D$9:$BA$428,EU17) -> ・ | BJ17: =VLOOKUP(ES17,教科担当一覧2!$D$9:$BA$428,EV17) -> ・ | BK17: =VLOOKUP(ES17,教科担当一覧2!$D$9:$BA$428,EW17) -> 2-3 | BL17: =VLOOKUP(ES17,教科担当一覧2!$D$9:$BA$428,EX17) -> 2-4 | BM17: =VLOOKUP(ES17,教科担当一覧2!$D$9:$BA$428,EY17) -> 2-5 | BN17: =VLOOKUP(ES17,教科担当一覧2!$D$9:$BA$428,EZ17) -> * | BO17: =VLOOKUP(ES17,教科担当一覧2!$D$9:$BA$428,FA17) -> * | BQ17: 担当ｺｰﾄﾞ | BR17: =VLOOKUP(FD17,教科担当一覧2!$D$9:$BA$428,4) -> 高橋 | BS17: =VLOOKUP(FD17,教科担当一覧2!$D$9:$BA$428,FE17) -> ・ | BT17: =VLOOKUP(FD17,教科担当一覧2!$D$9:$BA$428,FF17) -> ・ | BU17: =VLOOKUP(FD17,教科担当一覧2!$D$9:$BA$428,FG17) -> ・ | BV17: =VLOOKUP(FD17,教科担当一覧2!$D$9:$BA$428,FH17) -> 2-3 | BW17: =VLOOKUP(FD17,教科担当一覧2!$D$9:$BA$428,FI17) -> 2-4 | BX17: =VLOOKUP(FD17,教科担当一覧2!$D$9:$BA$428,FJ17) -> 2-5 | BY17: =VLOOKUP(FD17,教科担当一覧2!$D$9:$BA$428,FK17) -> * | BZ17: =VLOOKUP(FD17,教科担当一覧2!$D$9:$BA$428,FL17) -> * | CB17: 担当ｺｰﾄﾞ | CC17: =VLOOKUP(FO17,教科担当一覧2!$D$9:$BA$428,4) -> 高橋 | CD17: =VLOOKUP(FO17,教科担当一覧2!$D$9:$BA$428,FP17) -> ・ | CE17: =VLOOKUP(FO17,教科担当一覧2!$D$9:$BA$428,FQ17) -> ・ | CF17: =VLOOKUP(FO17,教科担当一覧2!$D$9:$BA$428,FR17) -> ・ | CG17: =VLOOKUP(FO17,教科担当一覧2!$D$9:$BA$428,FS17) -> 2-3 | CH17: =VLOOKUP(FO17,教科担当一覧2!$D$9:$BA$428,FT17) -> 2-4 | CI17: =VLOOKUP(FO17,教科担当一覧2!$D$9:$BA$428,FU17) -> 2-5 | CJ17: =VLOOKUP(FO17,教科担当一覧2!$D$9:$BA$428,FV17) -> * | CK17: =VLOOKUP(FO17,教科担当一覧2!$D$9:$BA$428,FW17) -> * | CP17: =C18*2-1 -> 49 | CQ17: =8*(C16-1)+5 -> 13 | CR17: =8*(C16-1)+6 -> 14 | CS17: =8*(C16-1)+7 -> 15 | CT17: =8*(C16-1)+8 -> 16 | CU17: =8*(C16-1)+9 -> 17 | CV17: =8*(C16-1)+10 -> 18 | CW17: =8*(C16-1)+11 -> 19 | CX17: =8*(C16-1)+12 -> 20 | DA17: =N18*2-1 -> 45 | DB17: =8*(N16-1)+5 -> 13 | DC17: =8*(N16-1)+6 -> 14 | DD17: =8*(N16-1)+7 -> 15 | DE17: =8*(N16-1)+8 -> 16 | DF17: =8*(N16-1)+9 -> 17 | DG17: =8*(N16-1)+10 -> 18 | DH17: =8*(N16-1)+11 -> 19 | DI17: =8*(N16-1)+12 -> 20 | DL17: =Y18*2-1 -> 55 | DM17: =8*(Y16-1)+5 -> 13 | DN17: =8*(Y16-1)+6 -> 14 | DO17: =8*(Y16-1)+7 -> 15 | DP17: =8*(Y16-1)+8 -> 16 | DQ17: =8*(Y16-1)+9 -> 17 | DR17: =8*(Y16-1)+10 -> 18 | DS17: =8*(Y16-1)+11 -> 19 | DT17: =8*(Y16-1)+12 -> 20 | DW17: =AJ18*2-1 -> 55 | DX17: =8*(AJ16-1)+5 -> 13 | DY17: =8*(AJ16-1)+6 -> 14 | DZ17: =8*(AJ16-1)+7 -> 15 | EA17: =8*(AJ16-1)+8 -> 16 | EB17: =8*(AJ16-1)+9 -> 17 | EC17: =8*(AJ16-1)+10 -> 18 | ED17: =8*(AJ16-1)+11 -> 19 | EE17: =8*(AJ16-1)+12 -> 20 | EH17: =AU18*2-1 -> 55 | EI17: =8*(AU16-1)+5 -> 13 | EJ17: =8*(AU16-1)+6 -> 14 | EK17: =8*(AU16-1)+7 -> 15 | EL17: =8*(AU16-1)+8 -> 16 | EM17: =8*(AU16-1)+9 -> 17 | EN17: =8*(AU16-1)+10 -> 18 | EO17: =8*(AU16-1)+11 -> 19 | EP17: =8*(AU16-1)+12 -> 20 | ES17: =BF18*2-1 -> 55 | ET17: =8*(BF16-1)+5 -> 13 | EU17: =8*(BF16-1)+6 -> 14 | EV17: =8*(BF16-1)+7 -> 15 | EW17: =8*(BF16-1)+8 -> 16 | EX17: =8*(BF16-1)+9 -> 17 | EY17: =8*(BF16-1)+10 -> 18 | EZ17: =8*(BF16-1)+11 -> 19 | FA17: =8*(BF16-1)+12 -> 20 | FD17: =BQ18*2-1 -> 55 | FE17: =8*(BQ16-1)+5 -> 13 | FF17: =8*(BQ16-1)+6 -> 14 | FG17: =8*(BQ16-1)+7 -> 15 | FH17: =8*(BQ16-1)+8 -> 16 | FI17: =8*(BQ16-1)+9 -> 17 | FJ17: =8*(BQ16-1)+10 -> 18 | FK17: =8*(BQ16-1)+11 -> 19 | FL17: =8*(BQ16-1)+12 -> 20 | FO17: =CB18*2-1 -> 55 | FP17: =8*(CB16-1)+5 -> 13 | FQ17: =8*(CB16-1)+6 -> 14 | FR17: =8*(CB16-1)+7 -> 15 | FS17: =8*(CB16-1)+8 -> 16 | FT17: =8*(CB16-1)+9 -> 17 | FU17: =8*(CB16-1)+10 -> 18 | FV17: =8*(CB16-1)+11 -> 19 | FW17: =8*(CB16-1)+12 -> 20
C18: 25 | D18: =VLOOKUP(CP18,教科担当一覧2!$D$9:$BA$428,4) -> 3年主 | E18: =VLOOKUP(CP18,教科担当一覧2!$D$9:$BA$428,CQ17) ->  | F18: =VLOOKUP(CP18,教科担当一覧2!$D$9:$BA$428,CR17) ->  | G18: =VLOOKUP(CP18,教科担当一覧2!$D$9:$BA$428,CS17) -> 世史 | H18: =VLOOKUP(CP18,教科担当一覧2!$D$9:$BA$428,CT17) -> 世史 | I18: =VLOOKUP(CP18,教科担当一覧2!$D$9:$BA$428,CU17) ->  | J18: =VLOOKUP(CP18,教科担当一覧2!$D$9:$BA$428,CV17) -> 政経 | K18: =VLOOKUP(CP18,教科担当一覧2!$D$9:$BA$428,CW17) -> * | L18: =VLOOKUP(CP18,教科担当一覧2!$D$9:$BA$428,CX17) -> * | N18: 23 | O18: =VLOOKUP(DA18,教科担当一覧2!$D$9:$BA$428,4) -> 1-57副 | P18: =VLOOKUP(DA18,教科担当一覧2!$D$9:$BA$428,DB17) -> 倫理 | Q18: =VLOOKUP(DA18,教科担当一覧2!$D$9:$BA$428,DC17) -> 倫理 | R18: =VLOOKUP(DA18,教科担当一覧2!$D$9:$BA$428,DD17) ->  | S18: =VLOOKUP(DA18,教科担当一覧2!$D$9:$BA$428,DE17) -> 倫理 | T18: =VLOOKUP(DA18,教科担当一覧2!$D$9:$BA$428,DF17) ->  | U18: =VLOOKUP(DA18,教科担当一覧2!$D$9:$BA$428,DG17) ->  | V18: =VLOOKUP(DA18,教科担当一覧2!$D$9:$BA$428,DH17) -> * | W18: =VLOOKUP(DA18,教科担当一覧2!$D$9:$BA$428,DI17) -> * | Y18: 28 | Z18: =VLOOKUP(DL18,教科担当一覧2!$D$9:$BA$428,4) ->  | AA18: =VLOOKUP(DL18,教科担当一覧2!$D$9:$BA$428,DM17) ->  | AB18: =VLOOKUP(DL18,教科担当一覧2!$D$9:$BA$428,DN17) ->  | AC18: =VLOOKUP(DL18,教科担当一覧2!$D$9:$BA$428,DO17) ->  | AD18: =VLOOKUP(DL18,教科担当一覧2!$D$9:$BA$428,DP17) -> 世史 | AE18: =VLOOKUP(DL18,教科担当一覧2!$D$9:$BA$428,DQ17) -> 世史 | AF18: =VLOOKUP(DL18,教科担当一覧2!$D$9:$BA$428,DR17) -> 世史 | AG18: =VLOOKUP(DL18,教科担当一覧2!$D$9:$BA$428,DS17) -> * | AH18: =VLOOKUP(DL18,教科担当一覧2!$D$9:$BA$428,DT17) -> * | AJ18: 28 | AK18: =VLOOKUP(DW18,教科担当一覧2!$D$9:$BA$428,4) ->  | AL18: =VLOOKUP(DW18,教科担当一覧2!$D$9:$BA$428,DX17) ->  | AM18: =VLOOKUP(DW18,教科担当一覧2!$D$9:$BA$428,DY17) ->  | AN18: =VLOOKUP(DW18,教科担当一覧2!$D$9:$BA$428,DZ17) ->  | AO18: =VLOOKUP(DW18,教科担当一覧2!$D$9:$BA$428,EA17) -> 世史 | AP18: =VLOOKUP(DW18,教科担当一覧2!$D$9:$BA$428,EB17) -> 世史 | AQ18: =VLOOKUP(DW18,教科担当一覧2!$D$9:$BA$428,EC17) -> 世史 | AR18: =VLOOKUP(DW18,教科担当一覧2!$D$9:$BA$428,ED17) -> * | AS18: =VLOOKUP(DW18,教科担当一覧2!$D$9:$BA$428,EE17) -> * | AU18: 28 | AV18: =VLOOKUP(EH18,教科担当一覧2!$D$9:$BA$428,4) ->  | AW18: =VLOOKUP(EH18,教科担当一覧2!$D$9:$BA$428,EI17) ->  | AX18: =VLOOKUP(EH18,教科担当一覧2!$D$9:$BA$428,EJ17) ->  | AY18: =VLOOKUP(EH18,教科担当一覧2!$D$9:$BA$428,EK17) ->  | AZ18: =VLOOKUP(EH18,教科担当一覧2!$D$9:$BA$428,EL17) -> 世史 | BA18: =VLOOKUP(EH18,教科担当一覧2!$D$9:$BA$428,EM17) -> 世史 | BB18: =VLOOKUP(EH18,教科担当一覧2!$D$9:$BA$428,EN17) -> 世史 | BC18: =VLOOKUP(EH18,教科担当一覧2!$D$9:$BA$428,EO17) -> * | BD18: =VLOOKUP(EH18,教科担当一覧2!$D$9:$BA$428,EP17) -> * | BF18: 28 | BG18: =VLOOKUP(ES18,教科担当一覧2!$D$9:$BA$428,4) ->  | BH18: =VLOOKUP(ES18,教科担当一覧2!$D$9:$BA$428,ET17) ->  | BI18: =VLOOKUP(ES18,教科担当一覧2!$D$9:$BA$428,EU17) ->  | BJ18: =VLOOKUP(ES18,教科担当一覧2!$D$9:$BA$428,EV17) ->  | BK18: =VLOOKUP(ES18,教科担当一覧2!$D$9:$BA$428,EW17) -> 世史 | BL18: =VLOOKUP(ES18,教科担当一覧2!$D$9:$BA$428,EX17) -> 世史 | BM18: =VLOOKUP(ES18,教科担当一覧2!$D$9:$BA$428,EY17) -> 世史 | BN18: =VLOOKUP(ES18,教科担当一覧2!$D$9:$BA$428,EZ17) -> * | BO18: =VLOOKUP(ES18,教科担当一覧2!$D$9:$BA$428,FA17) -> * | BQ18: 28 | BR18: =VLOOKUP(FD18,教科担当一覧2!$D$9:$BA$428,4) ->  | BS18: =VLOOKUP(FD18,教科担当一覧2!$D$9:$BA$428,FE17) ->  | BT18: =VLOOKUP(FD18,教科担当一覧2!$D$9:$BA$428,FF17) ->  | BU18: =VLOOKUP(FD18,教科担当一覧2!$D$9:$BA$428,FG17) ->  | BV18: =VLOOKUP(FD18,教科担当一覧2!$D$9:$BA$428,FH17) -> 世史 | BW18: =VLOOKUP(FD18,教科担当一覧2!$D$9:$BA$428,FI17) -> 世史 | BX18: =VLOOKUP(FD18,教科担当一覧2!$D$9:$BA$428,FJ17) -> 世史 | BY18: =VLOOKUP(FD18,教科担当一覧2!$D$9:$BA$428,FK17) -> * | BZ18: =VLOOKUP(FD18,教科担当一覧2!$D$9:$BA$428,FL17) -> * | CB18: 28 | CC18: =VLOOKUP(FO18,教科担当一覧2!$D$9:$BA$428,4) ->  | CD18: =VLOOKUP(FO18,教科担当一覧2!$D$9:$BA$428,FP17) ->  | CE18: =VLOOKUP(FO18,教科担当一覧2!$D$9:$BA$428,FQ17) ->  | CF18: =VLOOKUP(FO18,教科担当一覧2!$D$9:$BA$428,FR17) ->  | CG18: =VLOOKUP(FO18,教科担当一覧2!$D$9:$BA$428,FS17) -> 世史 | CH18: =VLOOKUP(FO18,教科担当一覧2!$D$9:$BA$428,FT17) -> 世史 | CI18: =VLOOKUP(FO18,教科担当一覧2!$D$9:$BA$428,FU17) -> 世史 | CJ18: =VLOOKUP(FO18,教科担当一覧2!$D$9:$BA$428,FV17) -> * | CK18: =VLOOKUP(FO18,教科担当一覧2!$D$9:$BA$428,FW17) -> * | CP18: =C18*2 -> 50 | DA18: =N18*2 -> 46 | DL18: =Y18*2 -> 56 | DW18: =AJ18*2 -> 56 | EH18: =AU18*2 -> 56 | ES18: =BF18*2 -> 56 | FD18: =BQ18*2 -> 56 | FO18: =CB18*2 -> 56
B19: A3 | C19: 曜日ｺｰﾄﾞ | D19: 教科 | G19: =VLOOKUP(C20,曜日コード!$G$5:$H$10,2) -> 木曜 | M19: B3 | N19: 曜日ｺｰﾄﾞ | O19: 教科 | R19: =VLOOKUP(N20,曜日コード!$G$5:$H$10,2) -> 金曜 | X19: C3 | Y19: 曜日ｺｰﾄﾞ | Z19: 教科 | AC19: =VLOOKUP(Y20,曜日コード!$G$5:$H$10,2) -> 火曜 | AI19: D3 | AJ19: 曜日ｺｰﾄﾞ | AK19: 教科 | AN19: =VLOOKUP(AJ20,曜日コード!$G$5:$H$10,2) -> 火曜 | AT19: E3 | AU19: 曜日ｺｰﾄﾞ | AV19: 教科 | AY19: =VLOOKUP(AU20,曜日コード!$G$5:$H$10,2) -> 火曜 | BE19: F3 | BF19: 曜日ｺｰﾄﾞ | BG19: 教科 | BJ19: =VLOOKUP(BF20,曜日コード!$G$5:$H$10,2) -> 火曜 | BP19: G3 | BQ19: 曜日ｺｰﾄﾞ | BR19: 教科 | BU19: =VLOOKUP(BQ20,曜日コード!$G$5:$H$10,2) -> 火曜 | CA19: H3 | CB19: 曜日ｺｰﾄﾞ | CC19: 教科 | CF19: =VLOOKUP(CB20,曜日コード!$G$5:$H$10,2) -> 火曜 | CO19: A3 | CP19: ｵﾌｾｯﾄ | CS19: =VLOOKUP(C20,曜日コード!$G$5:$H$10,2) -> 木曜 | CZ19: B3 | DA19: ｵﾌｾｯﾄ | DD19: =VLOOKUP(N20,曜日コード!$G$5:$H$10,2) -> 金曜 | DK19: C3 | DL19: ｵﾌｾｯﾄ | DO19: =VLOOKUP(Y20,曜日コード!$G$5:$H$10,2) -> 火曜 | DV19: D3 | DW19: ｵﾌｾｯﾄ | DZ19: =VLOOKUP(AJ20,曜日コード!$G$5:$H$10,2) -> 火曜 | EG19: E3 | EH19: ｵﾌｾｯﾄ | EK19: =VLOOKUP(AU20,曜日コード!$G$5:$H$10,2) -> 火曜 | ER19: F3 | ES19: ｵﾌｾｯﾄ | EV19: =VLOOKUP(BF20,曜日コード!$G$5:$H$10,2) -> 火曜 | FC19: G3 | FD19: ｵﾌｾｯﾄ | FG19: =VLOOKUP(BQ20,曜日コード!$G$5:$H$10,2) -> 火曜 | FN19: H3 | FO19: ｵﾌｾｯﾄ | FR19: =VLOOKUP(CB20,曜日コード!$G$5:$H$10,2) -> 火曜
C20: 4 | D20: 担当 | E20: 1 | F20: 2 | G20: 3 | H20: 4 | I20: 5 | J20: 6 | K20: 7 | L20: 8 | N20: 5 | O20: 担当 | P20: 1 | Q20: 2 | R20: 3 | S20: 4 | T20: 5 | U20: 6 | V20: 7 | W20: 8 | Y20: 2 | Z20: 担当 | AA20: 1 | AB20: 2 | AC20: 3 | AD20: 4 | AE20: 5 | AF20: 6 | AG20: 7 | AH20: 8 | AJ20: 2 | AK20: 担当 | AL20: 1 | AM20: 2 | AN20: 3 | AO20: 4 | AP20: 5 | AQ20: 6 | AR20: 7 | AS20: 8 | AU20: 2 | AV20: 担当 | AW20: 1 | AX20: 2 | AY20: 3 | AZ20: 4 | BA20: 5 | BB20: 6 | BC20: 7 | BD20: 8 | BF20: 2 | BG20: 担当 | BH20: 1 | BI20: 2 | BJ20: 3 | BK20: 4 | BL20: 5 | BM20: 6 | BN20: 7 | BO20: 8 | BQ20: 2 | BR20: 担当 | BS20: 1 | BT20: 2 | BU20: 3 | BV20: 4 | BW20: 5 | BX20: 6 | BY20: 7 | BZ20: 8 | CB20: 2 | CC20: 担当 | CD20: 1 | CE20: 2 | CF20: 3 | CG20: 4 | CH20: 5 | CI20: 6 | CJ20: 7 | CK20: 8 | CP20: 番号 | CQ20: 1 | CR20: 2 | CS20: 3 | CT20: 4 | CU20: 5 | CV20: 6 | CW20: 7 | CX20: 8 | DA20: 番号 | DB20: 1 | DC20: 2 | DD20: 3 | DE20: 4 | DF20: 5 | DG20: 6 | DH20: 7 | DI20: 8 | DL20: 番号 | DM20: 1 | DN20: 2 | DO20: 3 | DP20: 4 | DQ20: 5 | DR20: 6 | DS20: 7 | DT20: 8 | DW20: 番号 | DX20: 1 | DY20: 2 | DZ20: 3 | EA20: 4 | EB20: 5 | EC20: 6 | ED20: 7 | EE20: 8 | EH20: 番号 | EI20: 1 | EJ20: 2 | EK20: 3 | EL20: 4 | EM20: 5 | EN20: 6 | EO20: 7 | EP20: 8 | ES20: 番号 | ET20: 1 | EU20: 2 | EV20: 3 | EW20: 4 | EX20: 5 | EY20: 6 | EZ20: 7 | FA20: 8 | FD20: 番号 | FE20: 1 | FF20: 2 | FG20: 3 | FH20: 4 | FI20: 5 | FJ20: 6 | FK20: 7 | FL20: 8 | FO20: 番号 | FP20: 1 | FQ20: 2 | FR20: 3 | FS20: 4 | FT20: 5 | FU20: 6 | FV20: 7 | FW20: 8
C21: 担当ｺｰﾄﾞ | D21: =VLOOKUP(CP21,教科担当一覧2!$D$9:$BA$428,4) -> 多田 | E21: =VLOOKUP(CP21,教科担当一覧2!$D$9:$BA$428,CQ21) -> ・ | F21: =VLOOKUP(CP21,教科担当一覧2!$D$9:$BA$428,CR21) -> ・ | G21: =VLOOKUP(CP21,教科担当一覧2!$D$9:$BA$428,CS21) -> 3-4 | H21: =VLOOKUP(CP21,教科担当一覧2!$D$9:$BA$428,CT21) -> ・ | I21: =VLOOKUP(CP21,教科担当一覧2!$D$9:$BA$428,CU21) -> 3-5 | J21: =VLOOKUP(CP21,教科担当一覧2!$D$9:$BA$428,CV21) -> 3-4 | K21: =VLOOKUP(CP21,教科担当一覧2!$D$9:$BA$428,CW21) -> * | L21: =VLOOKUP(CP21,教科担当一覧2!$D$9:$BA$428,CX21) -> * | N21: 担当ｺｰﾄﾞ | O21: =VLOOKUP(DA21,教科担当一覧2!$D$9:$BA$428,4) -> t29 | P21: =VLOOKUP(DA21,教科担当一覧2!$D$9:$BA$428,DB21) -> ・ | Q21: =VLOOKUP(DA21,教科担当一覧2!$D$9:$BA$428,DC21) -> ・ | R21: =VLOOKUP(DA21,教科担当一覧2!$D$9:$BA$428,DD21) -> ・ | S21: =VLOOKUP(DA21,教科担当一覧2!$D$9:$BA$428,DE21) -> ・ | T21: =VLOOKUP(DA21,教科担当一覧2!$D$9:$BA$428,DF21) -> ・ | U21: =VLOOKUP(DA21,教科担当一覧2!$D$9:$BA$428,DG21) -> 土1,2 | V21: =VLOOKUP(DA21,教科担当一覧2!$D$9:$BA$428,DH21) -> * | W21: =VLOOKUP(DA21,教科担当一覧2!$D$9:$BA$428,DI21) -> * | Y21: 担当ｺｰﾄﾞ | Z21: =VLOOKUP(DL21,教科担当一覧2!$D$9:$BA$428,4) -> 高橋 | AA21: =VLOOKUP(DL21,教科担当一覧2!$D$9:$BA$428,DM21) -> ・ | AB21: =VLOOKUP(DL21,教科担当一覧2!$D$9:$BA$428,DN21) -> ・ | AC21: =VLOOKUP(DL21,教科担当一覧2!$D$9:$BA$428,DO21) -> ・ | AD21: =VLOOKUP(DL21,教科担当一覧2!$D$9:$BA$428,DP21) -> 2-3 | AE21: =VLOOKUP(DL21,教科担当一覧2!$D$9:$BA$428,DQ21) -> 2-4 | AF21: =VLOOKUP(DL21,教科担当一覧2!$D$9:$BA$428,DR21) -> 2-5 | AG21: =VLOOKUP(DL21,教科担当一覧2!$D$9:$BA$428,DS21) -> * | AH21: =VLOOKUP(DL21,教科担当一覧2!$D$9:$BA$428,DT21) -> * | AJ21: 担当ｺｰﾄﾞ | AK21: =VLOOKUP(DW21,教科担当一覧2!$D$9:$BA$428,4) -> 高橋 | AL21: =VLOOKUP(DW21,教科担当一覧2!$D$9:$BA$428,DX21) -> ・ | AM21: =VLOOKUP(DW21,教科担当一覧2!$D$9:$BA$428,DY21) -> ・ | AN21: =VLOOKUP(DW21,教科担当一覧2!$D$9:$BA$428,DZ21) -> ・ | AO21: =VLOOKUP(DW21,教科担当一覧2!$D$9:$BA$428,EA21) -> 2-3 | AP21: =VLOOKUP(DW21,教科担当一覧2!$D$9:$BA$428,EB21) -> 2-4 | AQ21: =VLOOKUP(DW21,教科担当一覧2!$D$9:$BA$428,EC21) -> 2-5 | AR21: =VLOOKUP(DW21,教科担当一覧2!$D$9:$BA$428,ED21) -> * | AS21: =VLOOKUP(DW21,教科担当一覧2!$D$9:$BA$428,EE21) -> * | AU21: 担当ｺｰﾄﾞ | AV21: =VLOOKUP(EH21,教科担当一覧2!$D$9:$BA$428,4) -> 高橋 | AW21: =VLOOKUP(EH21,教科担当一覧2!$D$9:$BA$428,EI21) -> ・ | AX21: =VLOOKUP(EH21,教科担当一覧2!$D$9:$BA$428,EJ21) -> ・ | AY21: =VLOOKUP(EH21,教科担当一覧2!$D$9:$BA$428,EK21) -> ・ | AZ21: =VLOOKUP(EH21,教科担当一覧2!$D$9:$BA$428,EL21) -> 2-3 | BA21: =VLOOKUP(EH21,教科担当一覧2!$D$9:$BA$428,EM21) -> 2-4 | BB21: =VLOOKUP(EH21,教科担当一覧2!$D$9:$BA$428,EN21) -> 2-5 | BC21: =VLOOKUP(EH21,教科担当一覧2!$D$9:$BA$428,EO21) -> * | BD21: =VLOOKUP(EH21,教科担当一覧2!$D$9:$BA$428,EP21) -> * | BF21: 担当ｺｰﾄﾞ | BG21: =VLOOKUP(ES21,教科担当一覧2!$D$9:$BA$428,4) -> 高橋 | BH21: =VLOOKUP(ES21,教科担当一覧2!$D$9:$BA$428,ET21) -> ・ | BI21: =VLOOKUP(ES21,教科担当一覧2!$D$9:$BA$428,EU21) -> ・ | BJ21: =VLOOKUP(ES21,教科担当一覧2!$D$9:$BA$428,EV21) -> ・ | BK21: =VLOOKUP(ES21,教科担当一覧2!$D$9:$BA$428,EW21) -> 2-3 | BL21: =VLOOKUP(ES21,教科担当一覧2!$D$9:$BA$428,EX21) -> 2-4 | BM21: =VLOOKUP(ES21,教科担当一覧2!$D$9:$BA$428,EY21) -> 2-5 | BN21: =VLOOKUP(ES21,教科担当一覧2!$D$9:$BA$428,EZ21) -> * | BO21: =VLOOKUP(ES21,教科担当一覧2!$D$9:$BA$428,FA21) -> * | BQ21: 担当ｺｰﾄﾞ | BR21: =VLOOKUP(FD21,教科担当一覧2!$D$9:$BA$428,4) -> 高橋 | BS21: =VLOOKUP(FD21,教科担当一覧2!$D$9:$BA$428,FE21) -> ・ | BT21: =VLOOKUP(FD21,教科担当一覧2!$D$9:$BA$428,FF21) -> ・ | BU21: =VLOOKUP(FD21,教科担当一覧2!$D$9:$BA$428,FG21) -> ・ | BV21: =VLOOKUP(FD21,教科担当一覧2!$D$9:$BA$428,FH21) -> 2-3 | BW21: =VLOOKUP(FD21,教科担当一覧2!$D$9:$BA$428,FI21) -> 2-4 | BX21: =VLOOKUP(FD21,教科担当一覧2!$D$9:$BA$428,FJ21) -> 2-5 | BY21: =VLOOKUP(FD21,教科担当一覧2!$D$9:$BA$428,FK21) -> * | BZ21: =VLOOKUP(FD21,教科担当一覧2!$D$9:$BA$428,FL21) -> * | CB21: 担当ｺｰﾄﾞ | CC21: =VLOOKUP(FO21,教科担当一覧2!$D$9:$BA$428,4) -> 高橋 | CD21: =VLOOKUP(FO21,教科担当一覧2!$D$9:$BA$428,FP21) -> ・ | CE21: =VLOOKUP(FO21,教科担当一覧2!$D$9:$BA$428,FQ21) -> ・ | CF21: =VLOOKUP(FO21,教科担当一覧2!$D$9:$BA$428,FR21) -> ・ | CG21: =VLOOKUP(FO21,教科担当一覧2!$D$9:$BA$428,FS21) -> 2-3 | CH21: =VLOOKUP(FO21,教科担当一覧2!$D$9:$BA$428,FT21) -> 2-4 | CI21: =VLOOKUP(FO21,教科担当一覧2!$D$9:$BA$428,FU21) -> 2-5 | CJ21: =VLOOKUP(FO21,教科担当一覧2!$D$9:$BA$428,FV21) -> * | CK21: =VLOOKUP(FO21,教科担当一覧2!$D$9:$BA$428,FW21) -> * | CP21: =C22*2-1 -> 89 | CQ21: =8*(C20-1)+5 -> 29 | CR21: =8*(C20-1)+6 -> 30 | CS21: =8*(C20-1)+7 -> 31 | CT21: =8*(C20-1)+8 -> 32 | CU21: =8*(C20-1)+9 -> 33 | CV21: =8*(C20-1)+10 -> 34 | CW21: =8*(C20-1)+11 -> 35 | CX21: =8*(C20-1)+12 -> 36 | DA21: =N22*2-1 -> 57 | DB21: =8*(N20-1)+5 -> 37 | DC21: =8*(N20-1)+6 -> 38 | DD21: =8*(N20-1)+7 -> 39 | DE21: =8*(N20-1)+8 -> 40 | DF21: =8*(N20-1)+9 -> 41 | DG21: =8*(N20-1)+10 -> 42 | DH21: =8*(N20-1)+11 -> 43 | DI21: =8*(N20-1)+12 -> 44 | DL21: =Y22*2-1 -> 55 | DM21: =8*(Y20-1)+5 -> 13 | DN21: =8*(Y20-1)+6 -> 14 | DO21: =8*(Y20-1)+7 -> 15 | DP21: =8*(Y20-1)+8 -> 16 | DQ21: =8*(Y20-1)+9 -> 17 | DR21: =8*(Y20-1)+10 -> 18 | DS21: =8*(Y20-1)+11 -> 19 | DT21: =8*(Y20-1)+12 -> 20 | DW21: =AJ22*2-1 -> 55 | DX21: =8*(AJ20-1)+5 -> 13 | DY21: =8*(AJ20-1)+6 -> 14 | DZ21: =8*(AJ20-1)+7 -> 15 | EA21: =8*(AJ20-1)+8 -> 16 | EB21: =8*(AJ20-1)+9 -> 17 | EC21: =8*(AJ20-1)+10 -> 18 | ED21: =8*(AJ20-1)+11 -> 19 | EE21: =8*(AJ20-1)+12 -> 20 | EH21: =AU22*2-1 -> 55 | EI21: =8*(AU20-1)+5 -> 13 | EJ21: =8*(AU20-1)+6 -> 14 | EK21: =8*(AU20-1)+7 -> 15 | EL21: =8*(AU20-1)+8 -> 16 | EM21: =8*(AU20-1)+9 -> 17 | EN21: =8*(AU20-1)+10 -> 18 | EO21: =8*(AU20-1)+11 -> 19 | EP21: =8*(AU20-1)+12 -> 20 | ES21: =BF22*2-1 -> 55 | ET21: =8*(BF20-1)+5 -> 13 | EU21: =8*(BF20-1)+6 -> 14 | EV21: =8*(BF20-1)+7 -> 15 | EW21: =8*(BF20-1)+8 -> 16 | EX21: =8*(BF20-1)+9 -> 17 | EY21: =8*(BF20-1)+10 -> 18 | EZ21: =8*(BF20-1)+11 -> 19 | FA21: =8*(BF20-1)+12 -> 20 | FD21: =BQ22*2-1 -> 55 | FE21: =8*(BQ20-1)+5 -> 13 | FF21: =8*(BQ20-1)+6 -> 14 | FG21: =8*(BQ20-1)+7 -> 15 | FH21: =8*(BQ20-1)+8 -> 16 | FI21: =8*(BQ20-1)+9 -> 17 | FJ21: =8*(BQ20-1)+10 -> 18 | FK21: =8*(BQ20-1)+11 -> 19 | FL21: =8*(BQ20-1)+12 -> 20 | FO21: =CB22*2-1 -> 55 | FP21: =8*(CB20-1)+5 -> 13 | FQ21: =8*(CB20-1)+6 -> 14 | FR21: =8*(CB20-1)+7 -> 15 | FS21: =8*(CB20-1)+8 -> 16 | FT21: =8*(CB20-1)+9 -> 17 | FU21: =8*(CB20-1)+10 -> 18 | FV21: =8*(CB20-1)+11 -> 19 | FW21: =8*(CB20-1)+12 -> 20
C22: 45 | D22: =VLOOKUP(CP22,教科担当一覧2!$D$9:$BA$428,4) -> 3-4担 | E22: =VLOOKUP(CP22,教科担当一覧2!$D$9:$BA$428,CQ21) ->  | F22: =VLOOKUP(CP22,教科担当一覧2!$D$9:$BA$428,CR21) ->  | G22: =VLOOKUP(CP22,教科担当一覧2!$D$9:$BA$428,CS21) -> 数Ｃ | H22: =VLOOKUP(CP22,教科担当一覧2!$D$9:$BA$428,CT21) ->  | I22: =VLOOKUP(CP22,教科担当一覧2!$D$9:$BA$428,CU21) -> 数Ⅲ | J22: =VLOOKUP(CP22,教科担当一覧2!$D$9:$BA$428,CV21) -> LHR | K22: =VLOOKUP(CP22,教科担当一覧2!$D$9:$BA$428,CW21) -> * | L22: =VLOOKUP(CP22,教科担当一覧2!$D$9:$BA$428,CX21) -> * | N22: 29 | O22: =VLOOKUP(DA22,教科担当一覧2!$D$9:$BA$428,4) ->  | P22: =VLOOKUP(DA22,教科担当一覧2!$D$9:$BA$428,DB21) ->  | Q22: =VLOOKUP(DA22,教科担当一覧2!$D$9:$BA$428,DC21) ->  | R22: =VLOOKUP(DA22,教科担当一覧2!$D$9:$BA$428,DD21) ->  | S22: =VLOOKUP(DA22,教科担当一覧2!$D$9:$BA$428,DE21) ->  | T22: =VLOOKUP(DA22,教科担当一覧2!$D$9:$BA$428,DF21) ->  | U22: =VLOOKUP(DA22,教科担当一覧2!$D$9:$BA$428,DG21) -> - | V22: =VLOOKUP(DA22,教科担当一覧2!$D$9:$BA$428,DH21) -> * | W22: =VLOOKUP(DA22,教科担当一覧2!$D$9:$BA$428,DI21) -> * | Y22: 28 | Z22: =VLOOKUP(DL22,教科担当一覧2!$D$9:$BA$428,4) ->  | AA22: =VLOOKUP(DL22,教科担当一覧2!$D$9:$BA$428,DM21) ->  | AB22: =VLOOKUP(DL22,教科担当一覧2!$D$9:$BA$428,DN21) ->  | AC22: =VLOOKUP(DL22,教科担当一覧2!$D$9:$BA$428,DO21) ->  | AD22: =VLOOKUP(DL22,教科担当一覧2!$D$9:$BA$428,DP21) -> 世史 | AE22: =VLOOKUP(DL22,教科担当一覧2!$D$9:$BA$428,DQ21) -> 世史 | AF22: =VLOOKUP(DL22,教科担当一覧2!$D$9:$BA$428,DR21) -> 世史 | AG22: =VLOOKUP(DL22,教科担当一覧2!$D$9:$BA$428,DS21) -> * | AH22: =VLOOKUP(DL22,教科担当一覧2!$D$9:$BA$428,DT21) -> * | AJ22: 28 | AK22: =VLOOKUP(DW22,教科担当一覧2!$D$9:$BA$428,4) ->  | AL22: =VLOOKUP(DW22,教科担当一覧2!$D$9:$BA$428,DX21) ->  | AM22: =VLOOKUP(DW22,教科担当一覧2!$D$9:$BA$428,DY21) ->  | AN22: =VLOOKUP(DW22,教科担当一覧2!$D$9:$BA$428,DZ21) ->  | AO22: =VLOOKUP(DW22,教科担当一覧2!$D$9:$BA$428,EA21) -> 世史 | AP22: =VLOOKUP(DW22,教科担当一覧2!$D$9:$BA$428,EB21) -> 世史 | AQ22: =VLOOKUP(DW22,教科担当一覧2!$D$9:$BA$428,EC21) -> 世史 | AR22: =VLOOKUP(DW22,教科担当一覧2!$D$9:$BA$428,ED21) -> * | AS22: =VLOOKUP(DW22,教科担当一覧2!$D$9:$BA$428,EE21) -> * | AU22: 28 | AV22: =VLOOKUP(EH22,教科担当一覧2!$D$9:$BA$428,4) ->  | AW22: =VLOOKUP(EH22,教科担当一覧2!$D$9:$BA$428,EI21) ->  | AX22: =VLOOKUP(EH22,教科担当一覧2!$D$9:$BA$428,EJ21) ->  | AY22: =VLOOKUP(EH22,教科担当一覧2!$D$9:$BA$428,EK21) ->  | AZ22: =VLOOKUP(EH22,教科担当一覧2!$D$9:$BA$428,EL21) -> 世史 | BA22: =VLOOKUP(EH22,教科担当一覧2!$D$9:$BA$428,EM21) -> 世史 | BB22: =VLOOKUP(EH22,教科担当一覧2!$D$9:$BA$428,EN21) -> 世史 | BC22: =VLOOKUP(EH22,教科担当一覧2!$D$9:$BA$428,EO21) -> * | BD22: =VLOOKUP(EH22,教科担当一覧2!$D$9:$BA$428,EP21) -> * | BF22: 28 | BG22: =VLOOKUP(ES22,教科担当一覧2!$D$9:$BA$428,4) ->  | BH22: =VLOOKUP(ES22,教科担当一覧2!$D$9:$BA$428,ET21) ->  | BI22: =VLOOKUP(ES22,教科担当一覧2!$D$9:$BA$428,EU21) ->  | BJ22: =VLOOKUP(ES22,教科担当一覧2!$D$9:$BA$428,EV21) ->  | BK22: =VLOOKUP(ES22,教科担当一覧2!$D$9:$BA$428,EW21) -> 世史 | BL22: =VLOOKUP(ES22,教科担当一覧2!$D$9:$BA$428,EX21) -> 世史 | BM22: =VLOOKUP(ES22,教科担当一覧2!$D$9:$BA$428,EY21) -> 世史 | BN22: =VLOOKUP(ES22,教科担当一覧2!$D$9:$BA$428,EZ21) -> * | BO22: =VLOOKUP(ES22,教科担当一覧2!$D$9:$BA$428,FA21) -> * | BQ22: 28 | BR22: =VLOOKUP(FD22,教科担当一覧2!$D$9:$BA$428,4) ->  | BS22: =VLOOKUP(FD22,教科担当一覧2!$D$9:$BA$428,FE21) ->  | BT22: =VLOOKUP(FD22,教科担当一覧2!$D$9:$BA$428,FF21) ->  | BU22: =VLOOKUP(FD22,教科担当一覧2!$D$9:$BA$428,FG21) ->  | BV22: =VLOOKUP(FD22,教科担当一覧2!$D$9:$BA$428,FH21) -> 世史 | BW22: =VLOOKUP(FD22,教科担当一覧2!$D$9:$BA$428,FI21) -> 世史 | BX22: =VLOOKUP(FD22,教科担当一覧2!$D$9:$BA$428,FJ21) -> 世史 | BY22: =VLOOKUP(FD22,教科担当一覧2!$D$9:$BA$428,FK21) -> * | BZ22: =VLOOKUP(FD22,教科担当一覧2!$D$9:$BA$428,FL21) -> * | CB22: 28 | CC22: =VLOOKUP(FO22,教科担当一覧2!$D$9:$BA$428,4) ->  | CD22: =VLOOKUP(FO22,教科担当一覧2!$D$9:$BA$428,FP21) ->  | CE22: =VLOOKUP(FO22,教科担当一覧2!$D$9:$BA$428,FQ21) ->  | CF22: =VLOOKUP(FO22,教科担当一覧2!$D$9:$BA$428,FR21) ->  | CG22: =VLOOKUP(FO22,教科担当一覧2!$D$9:$BA$428,FS21) -> 世史 | CH22: =VLOOKUP(FO22,教科担当一覧2!$D$9:$BA$428,FT21) -> 世史 | CI22: =VLOOKUP(FO22,教科担当一覧2!$D$9:$BA$428,FU21) -> 世史 | CJ22: =VLOOKUP(FO22,教科担当一覧2!$D$9:$BA$428,FV21) -> * | CK22: =VLOOKUP(FO22,教科担当一覧2!$D$9:$BA$428,FW21) -> * | CP22: =C22*2 -> 90 | DA22: =N22*2 -> 58 | DL22: =Y22*2 -> 56 | DW22: =AJ22*2 -> 56 | EH22: =AU22*2 -> 56 | ES22: =BF22*2 -> 56 | FD22: =BQ22*2 -> 56 | FO22: =CB22*2 -> 56
B23: A4 | C23: 曜日ｺｰﾄﾞ | D23: 教科 | G23: =VLOOKUP(C24,曜日コード!$G$5:$H$10,2) -> 木曜 | M23: B4 | N23: 曜日ｺｰﾄﾞ | O23: 教科 | R23: =VLOOKUP(N24,曜日コード!$G$5:$H$10,2) -> 金曜 | X23: C4 | Y23: 曜日ｺｰﾄﾞ | Z23: 教科 | AC23: =VLOOKUP(Y24,曜日コード!$G$5:$H$10,2) -> 火曜 | AI23: D4 | AJ23: 曜日ｺｰﾄﾞ | AK23: 教科 | AN23: =VLOOKUP(AJ24,曜日コード!$G$5:$H$10,2) -> 火曜 | AT23: E4 | AU23: 曜日ｺｰﾄﾞ | AV23: 教科 | AY23: =VLOOKUP(AU24,曜日コード!$G$5:$H$10,2) -> 火曜 | BE23: F4 | BF23: 曜日ｺｰﾄﾞ | BG23: 教科 | BJ23: =VLOOKUP(BF24,曜日コード!$G$5:$H$10,2) -> 火曜 | BP23: G4 | BQ23: 曜日ｺｰﾄﾞ | BR23: 教科 | BU23: =VLOOKUP(BQ24,曜日コード!$G$5:$H$10,2) -> 火曜 | CA23: H4 | CB23: 曜日ｺｰﾄﾞ | CC23: 教科 | CF23: =VLOOKUP(CB24,曜日コード!$G$5:$H$10,2) -> 火曜 | CO23: A4 | CP23: ｵﾌｾｯﾄ | CS23: =VLOOKUP(C24,曜日コード!$G$5:$H$10,2) -> 木曜 | CZ23: B4 | DA23: ｵﾌｾｯﾄ | DD23: =VLOOKUP(N24,曜日コード!$G$5:$H$10,2) -> 金曜 | DK23: C4 | DL23: ｵﾌｾｯﾄ | DO23: =VLOOKUP(Y24,曜日コード!$G$5:$H$10,2) -> 火曜 | DV23: D4 | DW23: ｵﾌｾｯﾄ | DZ23: =VLOOKUP(AJ24,曜日コード!$G$5:$H$10,2) -> 火曜 | EG23: E4 | EH23: ｵﾌｾｯﾄ | EK23: =VLOOKUP(AU24,曜日コード!$G$5:$H$10,2) -> 火曜 | ER23: F4 | ES23: ｵﾌｾｯﾄ | EV23: =VLOOKUP(BF24,曜日コード!$G$5:$H$10,2) -> 火曜 | FC23: G4 | FD23: ｵﾌｾｯﾄ | FG23: =VLOOKUP(BQ24,曜日コード!$G$5:$H$10,2) -> 火曜 | FN23: H4 | FO23: ｵﾌｾｯﾄ | FR23: =VLOOKUP(CB24,曜日コード!$G$5:$H$10,2) -> 火曜
C24: 4 | D24: 担当 | E24: 1 | F24: 2 | G24: 3 | H24: 4 | I24: 5 | J24: 6 | K24: 7 | L24: 8 | N24: 5 | O24: 担当 | P24: 1 | Q24: 2 | R24: 3 | S24: 4 | T24: 5 | U24: 6 | V24: 7 | W24: 8 | Y24: 2 | Z24: 担当 | AA24: 1 | AB24: 2 | AC24: 3 | AD24: 4 | AE24: 5 | AF24: 6 | AG24: 7 | AH24: 8 | AJ24: 2 | AK24: 担当 | AL24: 1 | AM24: 2 | AN24: 3 | AO24: 4 | AP24: 5 | AQ24: 6 | AR24: 7 | AS24: 8 | AU24: 2 | AV24: 担当 | AW24: 1 | AX24: 2 | AY24: 3 | AZ24: 4 | BA24: 5 | BB24: 6 | BC24: 7 | BD24: 8 | BF24: 2 | BG24: 担当 | BH24: 1 | BI24: 2 | BJ24: 3 | BK24: 4 | BL24: 5 | BM24: 6 | BN24: 7 | BO24: 8 | BQ24: 2 | BR24: 担当 | BS24: 1 | BT24: 2 | BU24: 3 | BV24: 4 | BW24: 5 | BX24: 6 | BY24: 7 | BZ24: 8 | CB24: 2 | CC24: 担当 | CD24: 1 | CE24: 2 | CF24: 3 | CG24: 4 | CH24: 5 | CI24: 6 | CJ24: 7 | CK24: 8 | CP24: 番号 | CQ24: 1 | CR24: 2 | CS24: 3 | CT24: 4 | CU24: 5 | CV24: 6 | CW24: 7 | CX24: 8 | DA24: 番号 | DB24: 1 | DC24: 2 | DD24: 3 | DE24: 4 | DF24: 5 | DG24: 6 | DH24: 7 | DI24: 8 | DL24: 番号 | DM24: 1 | DN24: 2 | DO24: 3 | DP24: 4 | DQ24: 5 | DR24: 6 | DS24: 7 | DT24: 8 | DW24: 番号 | DX24: 1 | DY24: 2 | DZ24: 3 | EA24: 4 | EB24: 5 | EC24: 6 | ED24: 7 | EE24: 8 | EH24: 番号 | EI24: 1 | EJ24: 2 | EK24: 3 | EL24: 4 | EM24: 5 | EN24: 6 | EO24: 7 | EP24: 8 | ES24: 番号 | ET24: 1 | EU24: 2 | EV24: 3 | EW24: 4 | EX24: 5 | EY24: 6 | EZ24: 7 | FA24: 8 | FD24: 番号 | FE24: 1 | FF24: 2 | FG24: 3 | FH24: 4 | FI24: 5 | FJ24: 6 | FK24: 7 | FL24: 8 | FO24: 番号 | FP24: 1 | FQ24: 2 | FR24: 3 | FS24: 4 | FT24: 5 | FU24: 6 | FV24: 7 | FW24: 8
C25: 担当ｺｰﾄﾞ | D25: =VLOOKUP(CP25,教科担当一覧2!$D$9:$BA$428,4) -> 斉藤ﾄ | E25: =VLOOKUP(CP25,教科担当一覧2!$D$9:$BA$428,CQ25) -> 1-4 | F25: =VLOOKUP(CP25,教科担当一覧2!$D$9:$BA$428,CR25) -> 2-2 | G25: =VLOOKUP(CP25,教科担当一覧2!$D$9:$BA$428,CS25) -> ・ | H25: =VLOOKUP(CP25,教科担当一覧2!$D$9:$BA$428,CT25) -> ・ | I25: =VLOOKUP(CP25,教科担当一覧2!$D$9:$BA$428,CU25) -> 2-3 | J25: =VLOOKUP(CP25,教科担当一覧2!$D$9:$BA$428,CV25) -> 2-3 | K25: =VLOOKUP(CP25,教科担当一覧2!$D$9:$BA$428,CW25) -> * | L25: =VLOOKUP(CP25,教科担当一覧2!$D$9:$BA$428,CX25) -> * | N25: 担当ｺｰﾄﾞ | O25: =VLOOKUP(DA25,教科担当一覧2!$D$9:$BA$428,4) -> t38 | P25: =VLOOKUP(DA25,教科担当一覧2!$D$9:$BA$428,DB25) -> ・ | Q25: =VLOOKUP(DA25,教科担当一覧2!$D$9:$BA$428,DC25) -> ・ | R25: =VLOOKUP(DA25,教科担当一覧2!$D$9:$BA$428,DD25) -> ・ | S25: =VLOOKUP(DA25,教科担当一覧2!$D$9:$BA$428,DE25) -> ・ | T25: =VLOOKUP(DA25,教科担当一覧2!$D$9:$BA$428,DF25) -> ・ | U25: =VLOOKUP(DA25,教科担当一覧2!$D$9:$BA$428,DG25) -> 土1,2 | V25: =VLOOKUP(DA25,教科担当一覧2!$D$9:$BA$428,DH25) -> * | W25: =VLOOKUP(DA25,教科担当一覧2!$D$9:$BA$428,DI25) -> * | Y25: 担当ｺｰﾄﾞ | Z25: =VLOOKUP(DL25,教科担当一覧2!$D$9:$BA$428,4) -> 高橋 | AA25: =VLOOKUP(DL25,教科担当一覧2!$D$9:$BA$428,DM25) -> ・ | AB25: =VLOOKUP(DL25,教科担当一覧2!$D$9:$BA$428,DN25) -> ・ | AC25: =VLOOKUP(DL25,教科担当一覧2!$D$9:$BA$428,DO25) -> ・ | AD25: =VLOOKUP(DL25,教科担当一覧2!$D$9:$BA$428,DP25) -> 2-3 | AE25: =VLOOKUP(DL25,教科担当一覧2!$D$9:$BA$428,DQ25) -> 2-4 | AF25: =VLOOKUP(DL25,教科担当一覧2!$D$9:$BA$428,DR25) -> 2-5 | AG25: =VLOOKUP(DL25,教科担当一覧2!$D$9:$BA$428,DS25) -> * | AH25: =VLOOKUP(DL25,教科担当一覧2!$D$9:$BA$428,DT25) -> * | AJ25: 担当ｺｰﾄﾞ | AK25: =VLOOKUP(DW25,教科担当一覧2!$D$9:$BA$428,4) -> 高橋 | AL25: =VLOOKUP(DW25,教科担当一覧2!$D$9:$BA$428,DX25) -> ・ | AM25: =VLOOKUP(DW25,教科担当一覧2!$D$9:$BA$428,DY25) -> ・ | AN25: =VLOOKUP(DW25,教科担当一覧2!$D$9:$BA$428,DZ25) -> ・ | AO25: =VLOOKUP(DW25,教科担当一覧2!$D$9:$BA$428,EA25) -> 2-3 | AP25: =VLOOKUP(DW25,教科担当一覧2!$D$9:$BA$428,EB25) -> 2-4 | AQ25: =VLOOKUP(DW25,教科担当一覧2!$D$9:$BA$428,EC25) -> 2-5 | AR25: =VLOOKUP(DW25,教科担当一覧2!$D$9:$BA$428,ED25) -> * | AS25: =VLOOKUP(DW25,教科担当一覧2!$D$9:$BA$428,EE25) -> * | AU25: 担当ｺｰﾄﾞ | AV25: =VLOOKUP(EH25,教科担当一覧2!$D$9:$BA$428,4) -> 高橋 | AW25: =VLOOKUP(EH25,教科担当一覧2!$D$9:$BA$428,EI25) -> ・ | AX25: =VLOOKUP(EH25,教科担当一覧2!$D$9:$BA$428,EJ25) -> ・ | AY25: =VLOOKUP(EH25,教科担当一覧2!$D$9:$BA$428,EK25) -> ・ | AZ25: =VLOOKUP(EH25,教科担当一覧2!$D$9:$BA$428,EL25) -> 2-3 | BA25: =VLOOKUP(EH25,教科担当一覧2!$D$9:$BA$428,EM25) -> 2-4 | BB25: =VLOOKUP(EH25,教科担当一覧2!$D$9:$BA$428,EN25) -> 2-5 | BC25: =VLOOKUP(EH25,教科担当一覧2!$D$9:$BA$428,EO25) -> * | BD25: =VLOOKUP(EH25,教科担当一覧2!$D$9:$BA$428,EP25) -> * | BF25: 担当ｺｰﾄﾞ | BG25: =VLOOKUP(ES25,教科担当一覧2!$D$9:$BA$428,4) -> 高橋 | BH25: =VLOOKUP(ES25,教科担当一覧2!$D$9:$BA$428,ET25) -> ・ | BI25: =VLOOKUP(ES25,教科担当一覧2!$D$9:$BA$428,EU25) -> ・ | BJ25: =VLOOKUP(ES25,教科担当一覧2!$D$9:$BA$428,EV25) -> ・ | BK25: =VLOOKUP(ES25,教科担当一覧2!$D$9:$BA$428,EW25) -> 2-3 | BL25: =VLOOKUP(ES25,教科担当一覧2!$D$9:$BA$428,EX25) -> 2-4 | BM25: =VLOOKUP(ES25,教科担当一覧2!$D$9:$BA$428,EY25) -> 2-5 | BN25: =VLOOKUP(ES25,教科担当一覧2!$D$9:$BA$428,EZ25) -> * | BO25: =VLOOKUP(ES25,教科担当一覧2!$D$9:$BA$428,FA25) -> * | BQ25: 担当ｺｰﾄﾞ | BR25: =VLOOKUP(FD25,教科担当一覧2!$D$9:$BA$428,4) -> 高橋 | BS25: =VLOOKUP(FD25,教科担当一覧2!$D$9:$BA$428,FE25) -> ・ | BT25: =VLOOKUP(FD25,教科担当一覧2!$D$9:$BA$428,FF25) -> ・ | BU25: =VLOOKUP(FD25,教科担当一覧2!$D$9:$BA$428,FG25) -> ・ | BV25: =VLOOKUP(FD25,教科担当一覧2!$D$9:$BA$428,FH25) -> 2-3 | BW25: =VLOOKUP(FD25,教科担当一覧2!$D$9:$BA$428,FI25) -> 2-4 | BX25: =VLOOKUP(FD25,教科担当一覧2!$D$9:$BA$428,FJ25) -> 2-5 | BY25: =VLOOKUP(FD25,教科担当一覧2!$D$9:$BA$428,FK25) -> * | BZ25: =VLOOKUP(FD25,教科担当一覧2!$D$9:$BA$428,FL25) -> * | CB25: 担当ｺｰﾄﾞ | CC25: =VLOOKUP(FO25,教科担当一覧2!$D$9:$BA$428,4) -> 高橋 | CD25: =VLOOKUP(FO25,教科担当一覧2!$D$9:$BA$428,FP25) -> ・ | CE25: =VLOOKUP(FO25,教科担当一覧2!$D$9:$BA$428,FQ25) -> ・ | CF25: =VLOOKUP(FO25,教科担当一覧2!$D$9:$BA$428,FR25) -> ・ | CG25: =VLOOKUP(FO25,教科担当一覧2!$D$9:$BA$428,FS25) -> 2-3 | CH25: =VLOOKUP(FO25,教科担当一覧2!$D$9:$BA$428,FT25) -> 2-4 | CI25: =VLOOKUP(FO25,教科担当一覧2!$D$9:$BA$428,FU25) -> 2-5 | CJ25: =VLOOKUP(FO25,教科担当一覧2!$D$9:$BA$428,FV25) -> * | CK25: =VLOOKUP(FO25,教科担当一覧2!$D$9:$BA$428,FW25) -> * | CP25: =C26*2-1 -> 85 | CQ25: =8*(C24-1)+5 -> 29 | CR25: =8*(C24-1)+6 -> 30 | CS25: =8*(C24-1)+7 -> 31 | CT25: =8*(C24-1)+8 -> 32 | CU25: =8*(C24-1)+9 -> 33 | CV25: =8*(C24-1)+10 -> 34 | CW25: =8*(C24-1)+11 -> 35 | CX25: =8*(C24-1)+12 -> 36 | DA25: =N26*2-1 -> 75 | DB25: =8*(N24-1)+5 -> 37 | DC25: =8*(N24-1)+6 -> 38 | DD25: =8*(N24-1)+7 -> 39 | DE25: =8*(N24-1)+8 -> 40 | DF25: =8*(N24-1)+9 -> 41 | DG25: =8*(N24-1)+10 -> 42 | DH25: =8*(N24-1)+11 -> 43 | DI25: =8*(N24-1)+12 -> 44 | DL25: =Y26*2-1 -> 55 | DM25: =8*(Y24-1)+5 -> 13 | DN25: =8*(Y24-1)+6 -> 14 | DO25: =8*(Y24-1)+7 -> 15 | DP25: =8*(Y24-1)+8 -> 16 | DQ25: =8*(Y24-1)+9 -> 17 | DR25: =8*(Y24-1)+10 -> 18 | DS25: =8*(Y24-1)+11 -> 19 | DT25: =8*(Y24-1)+12 -> 20 | DW25: =AJ26*2-1 -> 55 | DX25: =8*(AJ24-1)+5 -> 13 | DY25: =8*(AJ24-1)+6 -> 14 | DZ25: =8*(AJ24-1)+7 -> 15 | EA25: =8*(AJ24-1)+8 -> 16 | EB25: =8*(AJ24-1)+9 -> 17 | EC25: =8*(AJ24-1)+10 -> 18 | ED25: =8*(AJ24-1)+11 -> 19 | EE25: =8*(AJ24-1)+12 -> 20 | EH25: =AU26*2-1 -> 55 | EI25: =8*(AU24-1)+5 -> 13 | EJ25: =8*(AU24-1)+6 -> 14 | EK25: =8*(AU24-1)+7 -> 15 | EL25: =8*(AU24-1)+8 -> 16 | EM25: =8*(AU24-1)+9 -> 17 | EN25: =8*(AU24-1)+10 -> 18 | EO25: =8*(AU24-1)+11 -> 19 | EP25: =8*(AU24-1)+12 -> 20 | ES25: =BF26*2-1 -> 55 | ET25: =8*(BF24-1)+5 -> 13 | EU25: =8*(BF24-1)+6 -> 14 | EV25: =8*(BF24-1)+7 -> 15 | EW25: =8*(BF24-1)+8 -> 16 | EX25: =8*(BF24-1)+9 -> 17 | EY25: =8*(BF24-1)+10 -> 18 | EZ25: =8*(BF24-1)+11 -> 19 | FA25: =8*(BF24-1)+12 -> 20 | FD25: =BQ26*2-1 -> 55 | FE25: =8*(BQ24-1)+5 -> 13 | FF25: =8*(BQ24-1)+6 -> 14 | FG25: =8*(BQ24-1)+7 -> 15 | FH25: =8*(BQ24-1)+8 -> 16 | FI25: =8*(BQ24-1)+9 -> 17 | FJ25: =8*(BQ24-1)+10 -> 18 | FK25: =8*(BQ24-1)+11 -> 19 | FL25: =8*(BQ24-1)+12 -> 20 | FO25: =CB26*2-1 -> 55 | FP25: =8*(CB24-1)+5 -> 13 | FQ25: =8*(CB24-1)+6 -> 14 | FR25: =8*(CB24-1)+7 -> 15 | FS25: =8*(CB24-1)+8 -> 16 | FT25: =8*(CB24-1)+9 -> 17 | FU25: =8*(CB24-1)+10 -> 18 | FV25: =8*(CB24-1)+11 -> 19 | FW25: =8*(CB24-1)+12 -> 20
C26: 43 | D26: =VLOOKUP(CP26,教科担当一覧2!$D$9:$BA$428,4) -> 2-3担 | E26: =VLOOKUP(CP26,教科担当一覧2!$D$9:$BA$428,CQ25) -> 数Ⅰ | F26: =VLOOKUP(CP26,教科担当一覧2!$D$9:$BA$428,CR25) -> 数Ⅱ | G26: =VLOOKUP(CP26,教科担当一覧2!$D$9:$BA$428,CS25) ->  | H26: =VLOOKUP(CP26,教科担当一覧2!$D$9:$BA$428,CT25) ->  | I26: =VLOOKUP(CP26,教科担当一覧2!$D$9:$BA$428,CU25) -> 数Ⅱ | J26: =VLOOKUP(CP26,教科担当一覧2!$D$9:$BA$428,CV25) -> LHR | K26: =VLOOKUP(CP26,教科担当一覧2!$D$9:$BA$428,CW25) -> * | L26: =VLOOKUP(CP26,教科担当一覧2!$D$9:$BA$428,CX25) -> * | N26: 38 | O26: =VLOOKUP(DA26,教科担当一覧2!$D$9:$BA$428,4) ->  | P26: =VLOOKUP(DA26,教科担当一覧2!$D$9:$BA$428,DB25) ->  | Q26: =VLOOKUP(DA26,教科担当一覧2!$D$9:$BA$428,DC25) ->  | R26: =VLOOKUP(DA26,教科担当一覧2!$D$9:$BA$428,DD25) ->  | S26: =VLOOKUP(DA26,教科担当一覧2!$D$9:$BA$428,DE25) ->  | T26: =VLOOKUP(DA26,教科担当一覧2!$D$9:$BA$428,DF25) ->  | U26: =VLOOKUP(DA26,教科担当一覧2!$D$9:$BA$428,DG25) -> - | V26: =VLOOKUP(DA26,教科担当一覧2!$D$9:$BA$428,DH25) -> * | W26: =VLOOKUP(DA26,教科担当一覧2!$D$9:$BA$428,DI25) -> * | Y26: 28 | Z26: =VLOOKUP(DL26,教科担当一覧2!$D$9:$BA$428,4) ->  | AA26: =VLOOKUP(DL26,教科担当一覧2!$D$9:$BA$428,DM25) ->  | AB26: =VLOOKUP(DL26,教科担当一覧2!$D$9:$BA$428,DN25) ->  | AC26: =VLOOKUP(DL26,教科担当一覧2!$D$9:$BA$428,DO25) ->  | AD26: =VLOOKUP(DL26,教科担当一覧2!$D$9:$BA$428,DP25) -> 世史 | AE26: =VLOOKUP(DL26,教科担当一覧2!$D$9:$BA$428,DQ25) -> 世史 | AF26: =VLOOKUP(DL26,教科担当一覧2!$D$9:$BA$428,DR25) -> 世史 | AG26: =VLOOKUP(DL26,教科担当一覧2!$D$9:$BA$428,DS25) -> * | AH26: =VLOOKUP(DL26,教科担当一覧2!$D$9:$BA$428,DT25) -> * | AJ26: 28 | AK26: =VLOOKUP(DW26,教科担当一覧2!$D$9:$BA$428,4) ->  | AL26: =VLOOKUP(DW26,教科担当一覧2!$D$9:$BA$428,DX25) ->  | AM26: =VLOOKUP(DW26,教科担当一覧2!$D$9:$BA$428,DY25) ->  | AN26: =VLOOKUP(DW26,教科担当一覧2!$D$9:$BA$428,DZ25) ->  | AO26: =VLOOKUP(DW26,教科担当一覧2!$D$9:$BA$428,EA25) -> 世史 | AP26: =VLOOKUP(DW26,教科担当一覧2!$D$9:$BA$428,EB25) -> 世史 | AQ26: =VLOOKUP(DW26,教科担当一覧2!$D$9:$BA$428,EC25) -> 世史 | AR26: =VLOOKUP(DW26,教科担当一覧2!$D$9:$BA$428,ED25) -> * | AS26: =VLOOKUP(DW26,教科担当一覧2!$D$9:$BA$428,EE25) -> * | AU26: 28 | AV26: =VLOOKUP(EH26,教科担当一覧2!$D$9:$BA$428,4) ->  | AW26: =VLOOKUP(EH26,教科担当一覧2!$D$9:$BA$428,EI25) ->  | AX26: =VLOOKUP(EH26,教科担当一覧2!$D$9:$BA$428,EJ25) ->  | AY26: =VLOOKUP(EH26,教科担当一覧2!$D$9:$BA$428,EK25) ->  | AZ26: =VLOOKUP(EH26,教科担当一覧2!$D$9:$BA$428,EL25) -> 世史 | BA26: =VLOOKUP(EH26,教科担当一覧2!$D$9:$BA$428,EM25) -> 世史 | BB26: =VLOOKUP(EH26,教科担当一覧2!$D$9:$BA$428,EN25) -> 世史 | BC26: =VLOOKUP(EH26,教科担当一覧2!$D$9:$BA$428,EO25) -> * | BD26: =VLOOKUP(EH26,教科担当一覧2!$D$9:$BA$428,EP25) -> * | BF26: 28 | BG26: =VLOOKUP(ES26,教科担当一覧2!$D$9:$BA$428,4) ->  | BH26: =VLOOKUP(ES26,教科担当一覧2!$D$9:$BA$428,ET25) ->  | BI26: =VLOOKUP(ES26,教科担当一覧2!$D$9:$BA$428,EU25) ->  | BJ26: =VLOOKUP(ES26,教科担当一覧2!$D$9:$BA$428,EV25) ->  | BK26: =VLOOKUP(ES26,教科担当一覧2!$D$9:$BA$428,EW25) -> 世史 | BL26: =VLOOKUP(ES26,教科担当一覧2!$D$9:$BA$428,EX25) -> 世史 | BM26: =VLOOKUP(ES26,教科担当一覧2!$D$9:$BA$428,EY25) -> 世史 | BN26: =VLOOKUP(ES26,教科担当一覧2!$D$9:$BA$428,EZ25) -> * | BO26: =VLOOKUP(ES26,教科担当一覧2!$D$9:$BA$428,FA25) -> * | BQ26: 28 | BR26: =VLOOKUP(FD26,教科担当一覧2!$D$9:$BA$428,4) ->  | BS26: =VLOOKUP(FD26,教科担当一覧2!$D$9:$BA$428,FE25) ->  | BT26: =VLOOKUP(FD26,教科担当一覧2!$D$9:$BA$428,FF25) ->  | BU26: =VLOOKUP(FD26,教科担当一覧2!$D$9:$BA$428,FG25) ->  | BV26: =VLOOKUP(FD26,教科担当一覧2!$D$9:$BA$428,FH25) -> 世史 | BW26: =VLOOKUP(FD26,教科担当一覧2!$D$9:$BA$428,FI25) -> 世史 | BX26: =VLOOKUP(FD26,教科担当一覧2!$D$9:$BA$428,FJ25) -> 世史 | BY26: =VLOOKUP(FD26,教科担当一覧2!$D$9:$BA$428,FK25) -> * | BZ26: =VLOOKUP(FD26,教科担当一覧2!$D$9:$BA$428,FL25) -> * | CB26: 28 | CC26: =VLOOKUP(FO26,教科担当一覧2!$D$9:$BA$428,4) ->  | CD26: =VLOOKUP(FO26,教科担当一覧2!$D$9:$BA$428,FP25) ->  | CE26: =VLOOKUP(FO26,教科担当一覧2!$D$9:$BA$428,FQ25) ->  | CF26: =VLOOKUP(FO26,教科担当一覧2!$D$9:$BA$428,FR25) ->  | CG26: =VLOOKUP(FO26,教科担当一覧2!$D$9:$BA$428,FS25) -> 世史 | CH26: =VLOOKUP(FO26,教科担当一覧2!$D$9:$BA$428,FT25) -> 世史 | CI26: =VLOOKUP(FO26,教科担当一覧2!$D$9:$BA$428,FU25) -> 世史 | CJ26: =VLOOKUP(FO26,教科担当一覧2!$D$9:$BA$428,FV25) -> * | CK26: =VLOOKUP(FO26,教科担当一覧2!$D$9:$BA$428,FW25) -> * | CP26: =C26*2 -> 86 | DA26: =N26*2 -> 76 | DL26: =Y26*2 -> 56 | DW26: =AJ26*2 -> 56 | EH26: =AU26*2 -> 56 | ES26: =BF26*2 -> 56 | FD26: =BQ26*2 -> 56 | FO26: =CB26*2 -> 56
B27: A5 | C27: 曜日ｺｰﾄﾞ | D27: 教科 | G27: =VLOOKUP(C28,曜日コード!$G$5:$H$10,2) -> 水曜 | M27: B5 | N27: 曜日ｺｰﾄﾞ | O27: 教科 | R27: =VLOOKUP(N28,曜日コード!$G$5:$H$10,2) -> 火曜 | X27: C5 | Y27: 曜日ｺｰﾄﾞ | Z27: 教科 | AC27: =VLOOKUP(Y28,曜日コード!$G$5:$H$10,2) -> 火曜 | AI27: D5 | AJ27: 曜日ｺｰﾄﾞ | AK27: 教科 | AN27: =VLOOKUP(AJ28,曜日コード!$G$5:$H$10,2) -> 火曜 | AT27: E5 | AU27: 曜日ｺｰﾄﾞ | AV27: 教科 | AY27: =VLOOKUP(AU28,曜日コード!$G$5:$H$10,2) -> 火曜 | BE27: F5 | BF27: 曜日ｺｰﾄﾞ | BG27: 教科 | BJ27: =VLOOKUP(BF28,曜日コード!$G$5:$H$10,2) -> 火曜 | BP27: G5 | BQ27: 曜日ｺｰﾄﾞ | BR27: 教科 | BU27: =VLOOKUP(BQ28,曜日コード!$G$5:$H$10,2) -> 火曜 | CA27: H5 | CB27: 曜日ｺｰﾄﾞ | CC27: 教科 | CF27: =VLOOKUP(CB28,曜日コード!$G$5:$H$10,2) -> 火曜 | CO27: A5 | CP27: ｵﾌｾｯﾄ | CS27: =VLOOKUP(C28,曜日コード!$G$5:$H$10,2) -> 水曜 | CZ27: B5 | DA27: ｵﾌｾｯﾄ | DD27: =VLOOKUP(N28,曜日コード!$G$5:$H$10,2) -> 火曜 | DK27: C5 | DL27: ｵﾌｾｯﾄ | DO27: =VLOOKUP(Y28,曜日コード!$G$5:$H$10,2) -> 火曜 | DV27: D5 | DW27: ｵﾌｾｯﾄ | DZ27: =VLOOKUP(AJ28,曜日コード!$G$5:$H$10,2) -> 火曜 | EG27: E5 | EH27: ｵﾌｾｯﾄ | EK27: =VLOOKUP(AU28,曜日コード!$G$5:$H$10,2) -> 火曜 | ER27: F5 | ES27: ｵﾌｾｯﾄ | EV27: =VLOOKUP(BF28,曜日コード!$G$5:$H$10,2) -> 火曜 | FC27: G5 | FD27: ｵﾌｾｯﾄ | FG27: =VLOOKUP(BQ28,曜日コード!$G$5:$H$10,2) -> 火曜 | FN27: H5 | FO27: ｵﾌｾｯﾄ | FR27: =VLOOKUP(CB28,曜日コード!$G$5:$H$10,2) -> 火曜
C28: 3 | D28: 担当 | E28: 1 | F28: 2 | G28: 3 | H28: 4 | I28: 5 | J28: 6 | K28: 7 | L28: 8 | N28: 2 | O28: 担当 | P28: 1 | Q28: 2 | R28: 3 | S28: 4 | T28: 5 | U28: 6 | V28: 7 | W28: 8 | Y28: 2 | Z28: 担当 | AA28: 1 | AB28: 2 | AC28: 3 | AD28: 4 | AE28: 5 | AF28: 6 | AG28: 7 | AH28: 8 | AJ28: 2 | AK28: 担当 | AL28: 1 | AM28: 2 | AN28: 3 | AO28: 4 | AP28: 5 | AQ28: 6 | AR28: 7 | AS28: 8 | AU28: 2 | AV28: 担当 | AW28: 1 | AX28: 2 | AY28: 3 | AZ28: 4 | BA28: 5 | BB28: 6 | BC28: 7 | BD28: 8 | BF28: 2 | BG28: 担当 | BH28: 1 | BI28: 2 | BJ28: 3 | BK28: 4 | BL28: 5 | BM28: 6 | BN28: 7 | BO28: 8 | BQ28: 2 | BR28: 担当 | BS28: 1 | BT28: 2 | BU28: 3 | BV28: 4 | BW28: 5 | BX28: 6 | BY28: 7 | BZ28: 8 | CB28: 2 | CC28: 担当 | CD28: 1 | CE28: 2 | CF28: 3 | CG28: 4 | CH28: 5 | CI28: 6 | CJ28: 7 | CK28: 8 | CP28: 番号 | CQ28: 1 | CR28: 2 | CS28: 3 | CT28: 4 | CU28: 5 | CV28: 6 | CW28: 7 | CX28: 8 | DA28: 番号 | DB28: 1 | DC28: 2 | DD28: 3 | DE28: 4 | DF28: 5 | DG28: 6 | DH28: 7 | DI28: 8 | DL28: 番号 | DM28: 1 | DN28: 2 | DO28: 3 | DP28: 4 | DQ28: 5 | DR28: 6 | DS28: 7 | DT28: 8 | DW28: 番号 | DX28: 1 | DY28: 2 | DZ28: 3 | EA28: 4 | EB28: 5 | EC28: 6 | ED28: 7 | EE28: 8 | EH28: 番号 | EI28: 1 | EJ28: 2 | EK28: 3 | EL28: 4 | EM28: 5 | EN28: 6 | EO28: 7 | EP28: 8 | ES28: 番号 | ET28: 1 | EU28: 2 | EV28: 3 | EW28: 4 | EX28: 5 | EY28: 6 | EZ28: 7 | FA28: 8 | FD28: 番号 | FE28: 1 | FF28: 2 | FG28: 3 | FH28: 4 | FI28: 5 | FJ28: 6 | FK28: 7 | FL28: 8 | FO28: 番号 | FP28: 1 | FQ28: 2 | FR28: 3 | FS28: 4 | FT28: 5 | FU28: 6 | FV28: 7 | FW28: 8
C29: 担当ｺｰﾄﾞ | D29: =VLOOKUP(CP29,教科担当一覧2!$D$9:$BA$428,4) -> 小杉 | E29: =VLOOKUP(CP29,教科担当一覧2!$D$9:$BA$428,CQ29) -> 1-2 | F29: =VLOOKUP(CP29,教科担当一覧2!$D$9:$BA$428,CR29) -> ・ | G29: =VLOOKUP(CP29,教科担当一覧2!$D$9:$BA$428,CS29) -> 教務 | H29: =VLOOKUP(CP29,教科担当一覧2!$D$9:$BA$428,CT29) -> 1-4 | I29: =VLOOKUP(CP29,教科担当一覧2!$D$9:$BA$428,CU29) -> ・ | J29: =VLOOKUP(CP29,教科担当一覧2!$D$9:$BA$428,CV29) -> 1-7 | K29: =VLOOKUP(CP29,教科担当一覧2!$D$9:$BA$428,CW29) -> * | L29: =VLOOKUP(CP29,教科担当一覧2!$D$9:$BA$428,CX29) -> * | N29: 担当ｺｰﾄﾞ | O29: =VLOOKUP(DA29,教科担当一覧2!$D$9:$BA$428,4) -> 金室 | P29: =VLOOKUP(DA29,教科担当一覧2!$D$9:$BA$428,DB29) -> 2-3 | Q29: =VLOOKUP(DA29,教科担当一覧2!$D$9:$BA$428,DC29) -> 2-7 | R29: =VLOOKUP(DA29,教科担当一覧2!$D$9:$BA$428,DD29) -> ・ | S29: =VLOOKUP(DA29,教科担当一覧2!$D$9:$BA$428,DE29) -> 学年会 | T29: =VLOOKUP(DA29,教科担当一覧2!$D$9:$BA$428,DF29) -> 2-6 | U29: =VLOOKUP(DA29,教科担当一覧2!$D$9:$BA$428,DG29) -> ・ | V29: =VLOOKUP(DA29,教科担当一覧2!$D$9:$BA$428,DH29) -> * | W29: =VLOOKUP(DA29,教科担当一覧2!$D$9:$BA$428,DI29) -> * | Y29: 担当ｺｰﾄﾞ | Z29: =VLOOKUP(DL29,教科担当一覧2!$D$9:$BA$428,4) -> 高橋 | AA29: =VLOOKUP(DL29,教科担当一覧2!$D$9:$BA$428,DM29) -> ・ | AB29: =VLOOKUP(DL29,教科担当一覧2!$D$9:$BA$428,DN29) -> ・ | AC29: =VLOOKUP(DL29,教科担当一覧2!$D$9:$BA$428,DO29) -> ・ | AD29: =VLOOKUP(DL29,教科担当一覧2!$D$9:$BA$428,DP29) -> 2-3 | AE29: =VLOOKUP(DL29,教科担当一覧2!$D$9:$BA$428,DQ29) -> 2-4 | AF29: =VLOOKUP(DL29,教科担当一覧2!$D$9:$BA$428,DR29) -> 2-5 | AG29: =VLOOKUP(DL29,教科担当一覧2!$D$9:$BA$428,DS29) -> * | AH29: =VLOOKUP(DL29,教科担当一覧2!$D$9:$BA$428,DT29) -> * | AJ29: 担当ｺｰﾄﾞ | AK29: =VLOOKUP(DW29,教科担当一覧2!$D$9:$BA$428,4) -> 高橋 | AL29: =VLOOKUP(DW29,教科担当一覧2!$D$9:$BA$428,DX29) -> ・ | AM29: =VLOOKUP(DW29,教科担当一覧2!$D$9:$BA$428,DY29) -> ・ | AN29: =VLOOKUP(DW29,教科担当一覧2!$D$9:$BA$428,DZ29) -> ・ | AO29: =VLOOKUP(DW29,教科担当一覧2!$D$9:$BA$428,EA29) -> 2-3 | AP29: =VLOOKUP(DW29,教科担当一覧2!$D$9:$BA$428,EB29) -> 2-4 | AQ29: =VLOOKUP(DW29,教科担当一覧2!$D$9:$BA$428,EC29) -> 2-5 | AR29: =VLOOKUP(DW29,教科担当一覧2!$D$9:$BA$428,ED29) -> * | AS29: =VLOOKUP(DW29,教科担当一覧2!$D$9:$BA$428,EE29) -> * | AU29: 担当ｺｰﾄﾞ | AV29: =VLOOKUP(EH29,教科担当一覧2!$D$9:$BA$428,4) -> 高橋 | AW29: =VLOOKUP(EH29,教科担当一覧2!$D$9:$BA$428,EI29) -> ・ | AX29: =VLOOKUP(EH29,教科担当一覧2!$D$9:$BA$428,EJ29) -> ・ | AY29: =VLOOKUP(EH29,教科担当一覧2!$D$9:$BA$428,EK29) -> ・ | AZ29: =VLOOKUP(EH29,教科担当一覧2!$D$9:$BA$428,EL29) -> 2-3 | BA29: =VLOOKUP(EH29,教科担当一覧2!$D$9:$BA$428,EM29) -> 2-4 | BB29: =VLOOKUP(EH29,教科担当一覧2!$D$9:$BA$428,EN29) -> 2-5 | BC29: =VLOOKUP(EH29,教科担当一覧2!$D$9:$BA$428,EO29) -> * | BD29: =VLOOKUP(EH29,教科担当一覧2!$D$9:$BA$428,EP29) -> * | BF29: 担当ｺｰﾄﾞ | BG29: =VLOOKUP(ES29,教科担当一覧2!$D$9:$BA$428,4) -> 高橋 | BH29: =VLOOKUP(ES29,教科担当一覧2!$D$9:$BA$428,ET29) -> ・ | BI29: =VLOOKUP(ES29,教科担当一覧2!$D$9:$BA$428,EU29) -> ・ | BJ29: =VLOOKUP(ES29,教科担当一覧2!$D$9:$BA$428,EV29) -> ・ | BK29: =VLOOKUP(ES29,教科担当一覧2!$D$9:$BA$428,EW29) -> 2-3 | BL29: =VLOOKUP(ES29,教科担当一覧2!$D$9:$BA$428,EX29) -> 2-4 | BM29: =VLOOKUP(ES29,教科担当一覧2!$D$9:$BA$428,EY29) -> 2-5 | BN29: =VLOOKUP(ES29,教科担当一覧2!$D$9:$BA$428,EZ29) -> * | BO29: =VLOOKUP(ES29,教科担当一覧2!$D$9:$BA$428,FA29) -> * | BQ29: 担当ｺｰﾄﾞ | BR29: =VLOOKUP(FD29,教科担当一覧2!$D$9:$BA$428,4) -> 高橋 | BS29: =VLOOKUP(FD29,教科担当一覧2!$D$9:$BA$428,FE29) -> ・ | BT29: =VLOOKUP(FD29,教科担当一覧2!$D$9:$BA$428,FF29) -> ・ | BU29: =VLOOKUP(FD29,教科担当一覧2!$D$9:$BA$428,FG29) -> ・ | BV29: =VLOOKUP(FD29,教科担当一覧2!$D$9:$BA$428,FH29) -> 2-3 | BW29: =VLOOKUP(FD29,教科担当一覧2!$D$9:$BA$428,FI29) -> 2-4 | BX29: =VLOOKUP(FD29,教科担当一覧2!$D$9:$BA$428,FJ29) -> 2-5 | BY29: =VLOOKUP(FD29,教科担当一覧2!$D$9:$BA$428,FK29) -> * | BZ29: =VLOOKUP(FD29,教科担当一覧2!$D$9:$BA$428,FL29) -> * | CB29: 担当ｺｰﾄﾞ | CC29: =VLOOKUP(FO29,教科担当一覧2!$D$9:$BA$428,4) -> 高橋 | CD29: =VLOOKUP(FO29,教科担当一覧2!$D$9:$BA$428,FP29) -> ・ | CE29: =VLOOKUP(FO29,教科担当一覧2!$D$9:$BA$428,FQ29) -> ・ | CF29: =VLOOKUP(FO29,教科担当一覧2!$D$9:$BA$428,FR29) -> ・ | CG29: =VLOOKUP(FO29,教科担当一覧2!$D$9:$BA$428,FS29) -> 2-3 | CH29: =VLOOKUP(FO29,教科担当一覧2!$D$9:$BA$428,FT29) -> 2-4 | CI29: =VLOOKUP(FO29,教科担当一覧2!$D$9:$BA$428,FU29) -> 2-5 | CJ29: =VLOOKUP(FO29,教科担当一覧2!$D$9:$BA$428,FV29) -> * | CK29: =VLOOKUP(FO29,教科担当一覧2!$D$9:$BA$428,FW29) -> * | CP29: =C30*2-1 -> 1 | CQ29: =8*(C28-1)+5 -> 21 | CR29: =8*(C28-1)+6 -> 22 | CS29: =8*(C28-1)+7 -> 23 | CT29: =8*(C28-1)+8 -> 24 | CU29: =8*(C28-1)+9 -> 25 | CV29: =8*(C28-1)+10 -> 26 | CW29: =8*(C28-1)+11 -> 27 | CX29: =8*(C28-1)+12 -> 28 | DA29: =N30*2-1 -> 127 | DB29: =8*(N28-1)+5 -> 13 | DC29: =8*(N28-1)+6 -> 14 | DD29: =8*(N28-1)+7 -> 15 | DE29: =8*(N28-1)+8 -> 16 | DF29: =8*(N28-1)+9 -> 17 | DG29: =8*(N28-1)+10 -> 18 | DH29: =8*(N28-1)+11 -> 19 | DI29: =8*(N28-1)+12 -> 20 | DL29: =Y30*2-1 -> 55 | DM29: =8*(Y28-1)+5 -> 13 | DN29: =8*(Y28-1)+6 -> 14 | DO29: =8*(Y28-1)+7 -> 15 | DP29: =8*(Y28-1)+8 -> 16 | DQ29: =8*(Y28-1)+9 -> 17 | DR29: =8*(Y28-1)+10 -> 18 | DS29: =8*(Y28-1)+11 -> 19 | DT29: =8*(Y28-1)+12 -> 20 | DW29: =AJ30*2-1 -> 55 | DX29: =8*(AJ28-1)+5 -> 13 | DY29: =8*(AJ28-1)+6 -> 14 | DZ29: =8*(AJ28-1)+7 -> 15 | EA29: =8*(AJ28-1)+8 -> 16 | EB29: =8*(AJ28-1)+9 -> 17 | EC29: =8*(AJ28-1)+10 -> 18 | ED29: =8*(AJ28-1)+11 -> 19 | EE29: =8*(AJ28-1)+12 -> 20 | EH29: =AU30*2-1 -> 55 | EI29: =8*(AU28-1)+5 -> 13 | EJ29: =8*(AU28-1)+6 -> 14 | EK29: =8*(AU28-1)+7 -> 15 | EL29: =8*(AU28-1)+8 -> 16 | EM29: =8*(AU28-1)+9 -> 17 | EN29: =8*(AU28-1)+10 -> 18 | EO29: =8*(AU28-1)+11 -> 19 | EP29: =8*(AU28-1)+12 -> 20 | ES29: =BF30*2-1 -> 55 | ET29: =8*(BF28-1)+5 -> 13 | EU29: =8*(BF28-1)+6 -> 14 | EV29: =8*(BF28-1)+7 -> 15 | EW29: =8*(BF28-1)+8 -> 16 | EX29: =8*(BF28-1)+9 -> 17 | EY29: =8*(BF28-1)+10 -> 18 | EZ29: =8*(BF28-1)+11 -> 19 | FA29: =8*(BF28-1)+12 -> 20 | FD29: =BQ30*2-1 -> 55 | FE29: =8*(BQ28-1)+5 -> 13 | FF29: =8*(BQ28-1)+6 -> 14 | FG29: =8*(BQ28-1)+7 -> 15 | FH29: =8*(BQ28-1)+8 -> 16 | FI29: =8*(BQ28-1)+9 -> 17 | FJ29: =8*(BQ28-1)+10 -> 18 | FK29: =8*(BQ28-1)+11 -> 19 | FL29: =8*(BQ28-1)+12 -> 20 | FO29: =CB30*2-1 -> 55 | FP29: =8*(CB28-1)+5 -> 13 | FQ29: =8*(CB28-1)+6 -> 14 | FR29: =8*(CB28-1)+7 -> 15 | FS29: =8*(CB28-1)+8 -> 16 | FT29: =8*(CB28-1)+9 -> 17 | FU29: =8*(CB28-1)+10 -> 18 | FV29: =8*(CB28-1)+11 -> 19 | FW29: =8*(CB28-1)+12 -> 20
C30: 1 | D30: =VLOOKUP(CP30,教科担当一覧2!$D$9:$BA$428,4) -> 1年主 | E30: =VLOOKUP(CP30,教科担当一覧2!$D$9:$BA$428,CQ29) -> 国Ⅰ | F30: =VLOOKUP(CP30,教科担当一覧2!$D$9:$BA$428,CR29) ->  | G30: =VLOOKUP(CP30,教科担当一覧2!$D$9:$BA$428,CS29) ->  | H30: =VLOOKUP(CP30,教科担当一覧2!$D$9:$BA$428,CT29) -> 国Ⅰ | I30: =VLOOKUP(CP30,教科担当一覧2!$D$9:$BA$428,CU29) ->  | J30: =VLOOKUP(CP30,教科担当一覧2!$D$9:$BA$428,CV29) -> 国Ⅰ | K30: =VLOOKUP(CP30,教科担当一覧2!$D$9:$BA$428,CW29) -> * | L30: =VLOOKUP(CP30,教科担当一覧2!$D$9:$BA$428,CX29) -> * | N30: 64 | O30: =VLOOKUP(DA30,教科担当一覧2!$D$9:$BA$428,4) -> 2-8副 | P30: =VLOOKUP(DA30,教科担当一覧2!$D$9:$BA$428,DB29) -> 物Ｃ | Q30: =VLOOKUP(DA30,教科担当一覧2!$D$9:$BA$428,DC29) -> 物Ｄ | R30: =VLOOKUP(DA30,教科担当一覧2!$D$9:$BA$428,DD29) ->  | S30: =VLOOKUP(DA30,教科担当一覧2!$D$9:$BA$428,DE29) ->  | T30: =VLOOKUP(DA30,教科担当一覧2!$D$9:$BA$428,DF29) -> 物Ｄ | U30: =VLOOKUP(DA30,教科担当一覧2!$D$9:$BA$428,DG29) ->  | V30: =VLOOKUP(DA30,教科担当一覧2!$D$9:$BA$428,DH29) -> * | W30: =VLOOKUP(DA30,教科担当一覧2!$D$9:$BA$428,DI29) -> * | Y30: 28 | Z30: =VLOOKUP(DL30,教科担当一覧2!$D$9:$BA$428,4) ->  | AA30: =VLOOKUP(DL30,教科担当一覧2!$D$9:$BA$428,DM29) ->  | AB30: =VLOOKUP(DL30,教科担当一覧2!$D$9:$BA$428,DN29) ->  | AC30: =VLOOKUP(DL30,教科担当一覧2!$D$9:$BA$428,DO29) ->  | AD30: =VLOOKUP(DL30,教科担当一覧2!$D$9:$BA$428,DP29) -> 世史 | AE30: =VLOOKUP(DL30,教科担当一覧2!$D$9:$BA$428,DQ29) -> 世史 | AF30: =VLOOKUP(DL30,教科担当一覧2!$D$9:$BA$428,DR29) -> 世史 | AG30: =VLOOKUP(DL30,教科担当一覧2!$D$9:$BA$428,DS29) -> * | AH30: =VLOOKUP(DL30,教科担当一覧2!$D$9:$BA$428,DT29) -> * | AJ30: 28 | AK30: =VLOOKUP(DW30,教科担当一覧2!$D$9:$BA$428,4) ->  | AL30: =VLOOKUP(DW30,教科担当一覧2!$D$9:$BA$428,DX29) ->  | AM30: =VLOOKUP(DW30,教科担当一覧2!$D$9:$BA$428,DY29) ->  | AN30: =VLOOKUP(DW30,教科担当一覧2!$D$9:$BA$428,DZ29) ->  | AO30: =VLOOKUP(DW30,教科担当一覧2!$D$9:$BA$428,EA29) -> 世史 | AP30: =VLOOKUP(DW30,教科担当一覧2!$D$9:$BA$428,EB29) -> 世史 | AQ30: =VLOOKUP(DW30,教科担当一覧2!$D$9:$BA$428,EC29) -> 世史 | AR30: =VLOOKUP(DW30,教科担当一覧2!$D$9:$BA$428,ED29) -> * | AS30: =VLOOKUP(DW30,教科担当一覧2!$D$9:$BA$428,EE29) -> * | AU30: 28 | AV30: =VLOOKUP(EH30,教科担当一覧2!$D$9:$BA$428,4) ->  | AW30: =VLOOKUP(EH30,教科担当一覧2!$D$9:$BA$428,EI29) ->  | AX30: =VLOOKUP(EH30,教科担当一覧2!$D$9:$BA$428,EJ29) ->  | AY30: =VLOOKUP(EH30,教科担当一覧2!$D$9:$BA$428,EK29) ->  | AZ30: =VLOOKUP(EH30,教科担当一覧2!$D$9:$BA$428,EL29) -> 世史 | BA30: =VLOOKUP(EH30,教科担当一覧2!$D$9:$BA$428,EM29) -> 世史 | BB30: =VLOOKUP(EH30,教科担当一覧2!$D$9:$BA$428,EN29) -> 世史 | BC30: =VLOOKUP(EH30,教科担当一覧2!$D$9:$BA$428,EO29) -> * | BD30: =VLOOKUP(EH30,教科担当一覧2!$D$9:$BA$428,EP29) -> * | BF30: 28 | BG30: =VLOOKUP(ES30,教科担当一覧2!$D$9:$BA$428,4) ->  | BH30: =VLOOKUP(ES30,教科担当一覧2!$D$9:$BA$428,ET29) ->  | BI30: =VLOOKUP(ES30,教科担当一覧2!$D$9:$BA$428,EU29) ->  | BJ30: =VLOOKUP(ES30,教科担当一覧2!$D$9:$BA$428,EV29) ->  | BK30: =VLOOKUP(ES30,教科担当一覧2!$D$9:$BA$428,EW29) -> 世史 | BL30: =VLOOKUP(ES30,教科担当一覧2!$D$9:$BA$428,EX29) -> 世史 | BM30: =VLOOKUP(ES30,教科担当一覧2!$D$9:$BA$428,EY29) -> 世史 | BN30: =VLOOKUP(ES30,教科担当一覧2!$D$9:$BA$428,EZ29) -> * | BO30: =VLOOKUP(ES30,教科担当一覧2!$D$9:$BA$428,FA29) -> * | BQ30: 28 | BR30: =VLOOKUP(FD30,教科担当一覧2!$D$9:$BA$428,4) ->  | BS30: =VLOOKUP(FD30,教科担当一覧2!$D$9:$BA$428,FE29) ->  | BT30: =VLOOKUP(FD30,教科担当一覧2!$D$9:$BA$428,FF29) ->  | BU30: =VLOOKUP(FD30,教科担当一覧2!$D$9:$BA$428,FG29) ->  | BV30: =VLOOKUP(FD30,教科担当一覧2!$D$9:$BA$428,FH29) -> 世史 | BW30: =VLOOKUP(FD30,教科担当一覧2!$D$9:$BA$428,FI29) -> 世史 | BX30: =VLOOKUP(FD30,教科担当一覧2!$D$9:$BA$428,FJ29) -> 世史 | BY30: =VLOOKUP(FD30,教科担当一覧2!$D$9:$BA$428,FK29) -> * | BZ30: =VLOOKUP(FD30,教科担当一覧2!$D$9:$BA$428,FL29) -> * | CB30: 28 | CC30: =VLOOKUP(FO30,教科担当一覧2!$D$9:$BA$428,4) ->  | CD30: =VLOOKUP(FO30,教科担当一覧2!$D$9:$BA$428,FP29) ->  | CE30: =VLOOKUP(FO30,教科担当一覧2!$D$9:$BA$428,FQ29) ->  | CF30: =VLOOKUP(FO30,教科担当一覧2!$D$9:$BA$428,FR29) ->  | CG30: =VLOOKUP(FO30,教科担当一覧2!$D$9:$BA$428,FS29) -> 世史 | CH30: =VLOOKUP(FO30,教科担当一覧2!$D$9:$BA$428,FT29) -> 世史 | CI30: =VLOOKUP(FO30,教科担当一覧2!$D$9:$BA$428,FU29) -> 世史 | CJ30: =VLOOKUP(FO30,教科担当一覧2!$D$9:$BA$428,FV29) -> * | CK30: =VLOOKUP(FO30,教科担当一覧2!$D$9:$BA$428,FW29) -> * | CP30: =C30*2 -> 2 | DA30: =N30*2 -> 128 | DL30: =Y30*2 -> 56 | DW30: =AJ30*2 -> 56 | EH30: =AU30*2 -> 56 | ES30: =BF30*2 -> 56 | FD30: =BQ30*2 -> 56 | FO30: =CB30*2 -> 56
B31: A6 | C31: 曜日ｺｰﾄﾞ | D31: 教科 | G31: =VLOOKUP(C32,曜日コード!$G$5:$H$10,2) -> 火曜 | M31: B6 | N31: 曜日ｺｰﾄﾞ | O31: 教科 | R31: =VLOOKUP(N32,曜日コード!$G$5:$H$10,2) -> 火曜 | X31: C6 | Y31: 曜日ｺｰﾄﾞ | Z31: 教科 | AC31: =VLOOKUP(Y32,曜日コード!$G$5:$H$10,2) -> 火曜 | AI31: D6 | AJ31: 曜日ｺｰﾄﾞ | AK31: 教科 | AN31: =VLOOKUP(AJ32,曜日コード!$G$5:$H$10,2) -> 火曜 | AT31: E6 | AU31: 曜日ｺｰﾄﾞ | AV31: 教科 | AY31: =VLOOKUP(AU32,曜日コード!$G$5:$H$10,2) -> 火曜 | BE31: F6 | BF31: 曜日ｺｰﾄﾞ | BG31: 教科 | BJ31: =VLOOKUP(BF32,曜日コード!$G$5:$H$10,2) -> 火曜 | BP31: G6 | BQ31: 曜日ｺｰﾄﾞ | BR31: 教科 | BU31: =VLOOKUP(BQ32,曜日コード!$G$5:$H$10,2) -> 火曜 | CA31: H6 | CB31: 曜日ｺｰﾄﾞ | CC31: 教科 | CF31: =VLOOKUP(CB32,曜日コード!$G$5:$H$10,2) -> 火曜 | CO31: A6 | CP31: ｵﾌｾｯﾄ | CS31: =VLOOKUP(C32,曜日コード!$G$5:$H$10,2) -> 火曜 | CZ31: B6 | DA31: ｵﾌｾｯﾄ | DD31: =VLOOKUP(N32,曜日コード!$G$5:$H$10,2) -> 火曜 | DK31: C6 | DL31: ｵﾌｾｯﾄ | DO31: =VLOOKUP(Y32,曜日コード!$G$5:$H$10,2) -> 火曜 | DV31: D6 | DW31: ｵﾌｾｯﾄ | DZ31: =VLOOKUP(AJ32,曜日コード!$G$5:$H$10,2) -> 火曜 | EG31: E6 | EH31: ｵﾌｾｯﾄ | EK31: =VLOOKUP(AU32,曜日コード!$G$5:$H$10,2) -> 火曜 | ER31: F6 | ES31: ｵﾌｾｯﾄ | EV31: =VLOOKUP(BF32,曜日コード!$G$5:$H$10,2) -> 火曜 | FC31: G6 | FD31: ｵﾌｾｯﾄ | FG31: =VLOOKUP(BQ32,曜日コード!$G$5:$H$10,2) -> 火曜 | FN31: H6 | FO31: ｵﾌｾｯﾄ | FR31: =VLOOKUP(CB32,曜日コード!$G$5:$H$10,2) -> 火曜
C32: 2 | D32: 担当 | E32: 1 | F32: 2 | G32: 3 | H32: 4 | I32: 5 | J32: 6 | K32: 7 | L32: 8 | N32: 2 | O32: 担当 | P32: 1 | Q32: 2 | R32: 3 | S32: 4 | T32: 5 | U32: 6 | V32: 7 | W32: 8 | Y32: 2 | Z32: 担当 | AA32: 1 | AB32: 2 | AC32: 3 | AD32: 4 | AE32: 5 | AF32: 6 | AG32: 7 | AH32: 8 | AJ32: 2 | AK32: 担当 | AL32: 1 | AM32: 2 | AN32: 3 | AO32: 4 | AP32: 5 | AQ32: 6 | AR32: 7 | AS32: 8 | AU32: 2 | AV32: 担当 | AW32: 1 | AX32: 2 | AY32: 3 | AZ32: 4 | BA32: 5 | BB32: 6 | BC32: 7 | BD32: 8 | BF32: 2 | BG32: 担当 | BH32: 1 | BI32: 2 | BJ32: 3 | BK32: 4 | BL32: 5 | BM32: 6 | BN32: 7 | BO32: 8 | BQ32: 2 | BR32: 担当 | BS32: 1 | BT32: 2 | BU32: 3 | BV32: 4 | BW32: 5 | BX32: 6 | BY32: 7 | BZ32: 8 | CB32: 2 | CC32: 担当 | CD32: 1 | CE32: 2 | CF32: 3 | CG32: 4 | CH32: 5 | CI32: 6 | CJ32: 7 | CK32: 8 | CP32: 番号 | CQ32: 1 | CR32: 2 | CS32: 3 | CT32: 4 | CU32: 5 | CV32: 6 | CW32: 7 | CX32: 8 | DA32: 番号 | DB32: 1 | DC32: 2 | DD32: 3 | DE32: 4 | DF32: 5 | DG32: 6 | DH32: 7 | DI32: 8 | DL32: 番号 | DM32: 1 | DN32: 2 | DO32: 3 | DP32: 4 | DQ32: 5 | DR32: 6 | DS32: 7 | DT32: 8 | DW32: 番号 | DX32: 1 | DY32: 2 | DZ32: 3 | EA32: 4 | EB32: 5 | EC32: 6 | ED32: 7 | EE32: 8 | EH32: 番号 | EI32: 1 | EJ32: 2 | EK32: 3 | EL32: 4 | EM32: 5 | EN32: 6 | EO32: 7 | EP32: 8 | ES32: 番号 | ET32: 1 | EU32: 2 | EV32: 3 | EW32: 4 | EX32: 5 | EY32: 6 | EZ32: 7 | FA32: 8 | FD32: 番号 | FE32: 1 | FF32: 2 | FG32: 3 | FH32: 4 | FI32: 5 | FJ32: 6 | FK32: 7 | FL32: 8 | FO32: 番号 | FP32: 1 | FQ32: 2 | FR32: 3 | FS32: 4 | FT32: 5 | FU32: 6 | FV32: 7 | FW32: 8
C33: 担当ｺｰﾄﾞ | D33: =VLOOKUP(CP33,教科担当一覧2!$D$9:$BA$428,4) -> 斉藤ｻ | E33: =VLOOKUP(CP33,教科担当一覧2!$D$9:$BA$428,CQ33) -> 学年会 | F33: =VLOOKUP(CP33,教科担当一覧2!$D$9:$BA$428,CR33) -> 1-4 | G33: =VLOOKUP(CP33,教科担当一覧2!$D$9:$BA$428,CS33) -> ・ | H33: =VLOOKUP(CP33,教科担当一覧2!$D$9:$BA$428,CT33) -> 1-5 | I33: =VLOOKUP(CP33,教科担当一覧2!$D$9:$BA$428,CU33) -> ・ | J33: =VLOOKUP(CP33,教科担当一覧2!$D$9:$BA$428,CV33) -> ・ | K33: =VLOOKUP(CP33,教科担当一覧2!$D$9:$BA$428,CW33) -> * | L33: =VLOOKUP(CP33,教科担当一覧2!$D$9:$BA$428,CX33) -> * | N33: 担当ｺｰﾄﾞ | O33: =VLOOKUP(DA33,教科担当一覧2!$D$9:$BA$428,4) -> 高橋 | P33: =VLOOKUP(DA33,教科担当一覧2!$D$9:$BA$428,DB33) -> ・ | Q33: =VLOOKUP(DA33,教科担当一覧2!$D$9:$BA$428,DC33) -> ・ | R33: =VLOOKUP(DA33,教科担当一覧2!$D$9:$BA$428,DD33) -> ・ | S33: =VLOOKUP(DA33,教科担当一覧2!$D$9:$BA$428,DE33) -> 2-3 | T33: =VLOOKUP(DA33,教科担当一覧2!$D$9:$BA$428,DF33) -> 2-4 | U33: =VLOOKUP(DA33,教科担当一覧2!$D$9:$BA$428,DG33) -> 2-5 | V33: =VLOOKUP(DA33,教科担当一覧2!$D$9:$BA$428,DH33) -> * | W33: =VLOOKUP(DA33,教科担当一覧2!$D$9:$BA$428,DI33) -> * | Y33: 担当ｺｰﾄﾞ | Z33: =VLOOKUP(DL33,教科担当一覧2!$D$9:$BA$428,4) -> 高橋 | AA33: =VLOOKUP(DL33,教科担当一覧2!$D$9:$BA$428,DM33) -> ・ | AB33: =VLOOKUP(DL33,教科担当一覧2!$D$9:$BA$428,DN33) -> ・ | AC33: =VLOOKUP(DL33,教科担当一覧2!$D$9:$BA$428,DO33) -> ・ | AD33: =VLOOKUP(DL33,教科担当一覧2!$D$9:$BA$428,DP33) -> 2-3 | AE33: =VLOOKUP(DL33,教科担当一覧2!$D$9:$BA$428,DQ33) -> 2-4 | AF33: =VLOOKUP(DL33,教科担当一覧2!$D$9:$BA$428,DR33) -> 2-5 | AG33: =VLOOKUP(DL33,教科担当一覧2!$D$9:$BA$428,DS33) -> * | AH33: =VLOOKUP(DL33,教科担当一覧2!$D$9:$BA$428,DT33) -> * | AJ33: 担当ｺｰﾄﾞ | AK33: =VLOOKUP(DW33,教科担当一覧2!$D$9:$BA$428,4) -> 高橋 | AL33: =VLOOKUP(DW33,教科担当一覧2!$D$9:$BA$428,DX33) -> ・ | AM33: =VLOOKUP(DW33,教科担当一覧2!$D$9:$BA$428,DY33) -> ・ | AN33: =VLOOKUP(DW33,教科担当一覧2!$D$9:$BA$428,DZ33) -> ・ | AO33: =VLOOKUP(DW33,教科担当一覧2!$D$9:$BA$428,EA33) -> 2-3 | AP33: =VLOOKUP(DW33,教科担当一覧2!$D$9:$BA$428,EB33) -> 2-4 | AQ33: =VLOOKUP(DW33,教科担当一覧2!$D$9:$BA$428,EC33) -> 2-5 | AR33: =VLOOKUP(DW33,教科担当一覧2!$D$9:$BA$428,ED33) -> * | AS33: =VLOOKUP(DW33,教科担当一覧2!$D$9:$BA$428,EE33) -> * | AU33: 担当ｺｰﾄﾞ | AV33: =VLOOKUP(EH33,教科担当一覧2!$D$9:$BA$428,4) -> 高橋 | AW33: =VLOOKUP(EH33,教科担当一覧2!$D$9:$BA$428,EI33) -> ・ | AX33: =VLOOKUP(EH33,教科担当一覧2!$D$9:$BA$428,EJ33) -> ・ | AY33: =VLOOKUP(EH33,教科担当一覧2!$D$9:$BA$428,EK33) -> ・ | AZ33: =VLOOKUP(EH33,教科担当一覧2!$D$9:$BA$428,EL33) -> 2-3 | BA33: =VLOOKUP(EH33,教科担当一覧2!$D$9:$BA$428,EM33) -> 2-4 | BB33: =VLOOKUP(EH33,教科担当一覧2!$D$9:$BA$428,EN33) -> 2-5 | BC33: =VLOOKUP(EH33,教科担当一覧2!$D$9:$BA$428,EO33) -> * | BD33: =VLOOKUP(EH33,教科担当一覧2!$D$9:$BA$428,EP33) -> * | BF33: 担当ｺｰﾄﾞ | BG33: =VLOOKUP(ES33,教科担当一覧2!$D$9:$BA$428,4) -> 高橋 | BH33: =VLOOKUP(ES33,教科担当一覧2!$D$9:$BA$428,ET33) -> ・ | BI33: =VLOOKUP(ES33,教科担当一覧2!$D$9:$BA$428,EU33) -> ・ | BJ33: =VLOOKUP(ES33,教科担当一覧2!$D$9:$BA$428,EV33) -> ・ | BK33: =VLOOKUP(ES33,教科担当一覧2!$D$9:$BA$428,EW33) -> 2-3 | BL33: =VLOOKUP(ES33,教科担当一覧2!$D$9:$BA$428,EX33) -> 2-4 | BM33: =VLOOKUP(ES33,教科担当一覧2!$D$9:$BA$428,EY33) -> 2-5 | BN33: =VLOOKUP(ES33,教科担当一覧2!$D$9:$BA$428,EZ33) -> * | BO33: =VLOOKUP(ES33,教科担当一覧2!$D$9:$BA$428,FA33) -> * | BQ33: 担当ｺｰﾄﾞ | BR33: =VLOOKUP(FD33,教科担当一覧2!$D$9:$BA$428,4) -> 高橋 | BS33: =VLOOKUP(FD33,教科担当一覧2!$D$9:$BA$428,FE33) -> ・ | BT33: =VLOOKUP(FD33,教科担当一覧2!$D$9:$BA$428,FF33) -> ・ | BU33: =VLOOKUP(FD33,教科担当一覧2!$D$9:$BA$428,FG33) -> ・ | BV33: =VLOOKUP(FD33,教科担当一覧2!$D$9:$BA$428,FH33) -> 2-3 | BW33: =VLOOKUP(FD33,教科担当一覧2!$D$9:$BA$428,FI33) -> 2-4 | BX33: =VLOOKUP(FD33,教科担当一覧2!$D$9:$BA$428,FJ33) -> 2-5 | BY33: =VLOOKUP(FD33,教科担当一覧2!$D$9:$BA$428,FK33) -> * | BZ33: =VLOOKUP(FD33,教科担当一覧2!$D$9:$BA$428,FL33) -> * | CB33: 担当ｺｰﾄﾞ | CC33: =VLOOKUP(FO33,教科担当一覧2!$D$9:$BA$428,4) -> 高橋 | CD33: =VLOOKUP(FO33,教科担当一覧2!$D$9:$BA$428,FP33) -> ・ | CE33: =VLOOKUP(FO33,教科担当一覧2!$D$9:$BA$428,FQ33) -> ・ | CF33: =VLOOKUP(FO33,教科担当一覧2!$D$9:$BA$428,FR33) -> ・ | CG33: =VLOOKUP(FO33,教科担当一覧2!$D$9:$BA$428,FS33) -> 2-3 | CH33: =VLOOKUP(FO33,教科担当一覧2!$D$9:$BA$428,FT33) -> 2-4 | CI33: =VLOOKUP(FO33,教科担当一覧2!$D$9:$BA$428,FU33) -> 2-5 | CJ33: =VLOOKUP(FO33,教科担当一覧2!$D$9:$BA$428,FV33) -> * | CK33: =VLOOKUP(FO33,教科担当一覧2!$D$9:$BA$428,FW33) -> * | CP33: =C34*2-1 -> 131 | CQ33: =8*(C32-1)+5 -> 13 | CR33: =8*(C32-1)+6 -> 14 | CS33: =8*(C32-1)+7 -> 15 | CT33: =8*(C32-1)+8 -> 16 | CU33: =8*(C32-1)+9 -> 17 | CV33: =8*(C32-1)+10 -> 18 | CW33: =8*(C32-1)+11 -> 19 | CX33: =8*(C32-1)+12 -> 20 | DA33: =N34*2-1 -> 55 | DB33: =8*(N32-1)+5 -> 13 | DC33: =8*(N32-1)+6 -> 14 | DD33: =8*(N32-1)+7 -> 15 | DE33: =8*(N32-1)+8 -> 16 | DF33: =8*(N32-1)+9 -> 17 | DG33: =8*(N32-1)+10 -> 18 | DH33: =8*(N32-1)+11 -> 19 | DI33: =8*(N32-1)+12 -> 20 | DL33: =Y34*2-1 -> 55 | DM33: =8*(Y32-1)+5 -> 13 | DN33: =8*(Y32-1)+6 -> 14 | DO33: =8*(Y32-1)+7 -> 15 | DP33: =8*(Y32-1)+8 -> 16 | DQ33: =8*(Y32-1)+9 -> 17 | DR33: =8*(Y32-1)+10 -> 18 | DS33: =8*(Y32-1)+11 -> 19 | DT33: =8*(Y32-1)+12 -> 20 | DW33: =AJ34*2-1 -> 55 | DX33: =8*(AJ32-1)+5 -> 13 | DY33: =8*(AJ32-1)+6 -> 14 | DZ33: =8*(AJ32-1)+7 -> 15 | EA33: =8*(AJ32-1)+8 -> 16 | EB33: =8*(AJ32-1)+9 -> 17 | EC33: =8*(AJ32-1)+10 -> 18 | ED33: =8*(AJ32-1)+11 -> 19 | EE33: =8*(AJ32-1)+12 -> 20 | EH33: =AU34*2-1 -> 55 | EI33: =8*(AU32-1)+5 -> 13 | EJ33: =8*(AU32-1)+6 -> 14 | EK33: =8*(AU32-1)+7 -> 15 | EL33: =8*(AU32-1)+8 -> 16 | EM33: =8*(AU32-1)+9 -> 17 | EN33: =8*(AU32-1)+10 -> 18 | EO33: =8*(AU32-1)+11 -> 19 | EP33: =8*(AU32-1)+12 -> 20 | ES33: =BF34*2-1 -> 55 | ET33: =8*(BF32-1)+5 -> 13 | EU33: =8*(BF32-1)+6 -> 14 | EV33: =8*(BF32-1)+7 -> 15 | EW33: =8*(BF32-1)+8 -> 16 | EX33: =8*(BF32-1)+9 -> 17 | EY33: =8*(BF32-1)+10 -> 18 | EZ33: =8*(BF32-1)+11 -> 19 | FA33: =8*(BF32-1)+12 -> 20 | FD33: =BQ34*2-1 -> 55 | FE33: =8*(BQ32-1)+5 -> 13 | FF33: =8*(BQ32-1)+6 -> 14 | FG33: =8*(BQ32-1)+7 -> 15 | FH33: =8*(BQ32-1)+8 -> 16 | FI33: =8*(BQ32-1)+9 -> 17 | FJ33: =8*(BQ32-1)+10 -> 18 | FK33: =8*(BQ32-1)+11 -> 19 | FL33: =8*(BQ32-1)+12 -> 20 | FO33: =CB34*2-1 -> 55 | FP33: =8*(CB32-1)+5 -> 13 | FQ33: =8*(CB32-1)+6 -> 14 | FR33: =8*(CB32-1)+7 -> 15 | FS33: =8*(CB32-1)+8 -> 16 | FT33: =8*(CB32-1)+9 -> 17 | FU33: =8*(CB32-1)+10 -> 18 | FV33: =8*(CB32-1)+11 -> 19 | FW33: =8*(CB32-1)+12 -> 20
C34: 66 | D34: =VLOOKUP(CP34,教科担当一覧2!$D$9:$BA$428,4) -> 3-25副 | E34: =VLOOKUP(CP34,教科担当一覧2!$D$9:$BA$428,CQ33) ->  | F34: =VLOOKUP(CP34,教科担当一覧2!$D$9:$BA$428,CR33) -> 化Ｂ | G34: =VLOOKUP(CP34,教科担当一覧2!$D$9:$BA$428,CS33) ->  | H34: =VLOOKUP(CP34,教科担当一覧2!$D$9:$BA$428,CT33) -> 化Ｂ | I34: =VLOOKUP(CP34,教科担当一覧2!$D$9:$BA$428,CU33) ->  | J34: =VLOOKUP(CP34,教科担当一覧2!$D$9:$BA$428,CV33) ->  | K34: =VLOOKUP(CP34,教科担当一覧2!$D$9:$BA$428,CW33) -> * | L34: =VLOOKUP(CP34,教科担当一覧2!$D$9:$BA$428,CX33) -> * | N34: 28 | O34: =VLOOKUP(DA34,教科担当一覧2!$D$9:$BA$428,4) ->  | P34: =VLOOKUP(DA34,教科担当一覧2!$D$9:$BA$428,DB33) ->  | Q34: =VLOOKUP(DA34,教科担当一覧2!$D$9:$BA$428,DC33) ->  | R34: =VLOOKUP(DA34,教科担当一覧2!$D$9:$BA$428,DD33) ->  | S34: =VLOOKUP(DA34,教科担当一覧2!$D$9:$BA$428,DE33) -> 世史 | T34: =VLOOKUP(DA34,教科担当一覧2!$D$9:$BA$428,DF33) -> 世史 | U34: =VLOOKUP(DA34,教科担当一覧2!$D$9:$BA$428,DG33) -> 世史 | V34: =VLOOKUP(DA34,教科担当一覧2!$D$9:$BA$428,DH33) -> * | W34: =VLOOKUP(DA34,教科担当一覧2!$D$9:$BA$428,DI33) -> * | Y34: 28 | Z34: =VLOOKUP(DL34,教科担当一覧2!$D$9:$BA$428,4) ->  | AA34: =VLOOKUP(DL34,教科担当一覧2!$D$9:$BA$428,DM33) ->  | AB34: =VLOOKUP(DL34,教科担当一覧2!$D$9:$BA$428,DN33) ->  | AC34: =VLOOKUP(DL34,教科担当一覧2!$D$9:$BA$428,DO33) ->  | AD34: =VLOOKUP(DL34,教科担当一覧2!$D$9:$BA$428,DP33) -> 世史 | AE34: =VLOOKUP(DL34,教科担当一覧2!$D$9:$BA$428,DQ33) -> 世史 | AF34: =VLOOKUP(DL34,教科担当一覧2!$D$9:$BA$428,DR33) -> 世史 | AG34: =VLOOKUP(DL34,教科担当一覧2!$D$9:$BA$428,DS33) -> * | AH34: =VLOOKUP(DL34,教科担当一覧2!$D$9:$BA$428,DT33) -> * | AJ34: 28 | AK34: =VLOOKUP(DW34,教科担当一覧2!$D$9:$BA$428,4) ->  | AL34: =VLOOKUP(DW34,教科担当一覧2!$D$9:$BA$428,DX33) ->  | AM34: =VLOOKUP(DW34,教科担当一覧2!$D$9:$BA$428,DY33) ->  | AN34: =VLOOKUP(DW34,教科担当一覧2!$D$9:$BA$428,DZ33) ->  | AO34: =VLOOKUP(DW34,教科担当一覧2!$D$9:$BA$428,EA33) -> 世史 | AP34: =VLOOKUP(DW34,教科担当一覧2!$D$9:$BA$428,EB33) -> 世史 | AQ34: =VLOOKUP(DW34,教科担当一覧2!$D$9:$BA$428,EC33) -> 世史 | AR34: =VLOOKUP(DW34,教科担当一覧2!$D$9:$BA$428,ED33) -> * | AS34: =VLOOKUP(DW34,教科担当一覧2!$D$9:$BA$428,EE33) -> * | AU34: 28 | AV34: =VLOOKUP(EH34,教科担当一覧2!$D$9:$BA$428,4) ->  | AW34: =VLOOKUP(EH34,教科担当一覧2!$D$9:$BA$428,EI33) ->  | AX34: =VLOOKUP(EH34,教科担当一覧2!$D$9:$BA$428,EJ33) ->  | AY34: =VLOOKUP(EH34,教科担当一覧2!$D$9:$BA$428,EK33) ->  | AZ34: =VLOOKUP(EH34,教科担当一覧2!$D$9:$BA$428,EL33) -> 世史 | BA34: =VLOOKUP(EH34,教科担当一覧2!$D$9:$BA$428,EM33) -> 世史 | BB34: =VLOOKUP(EH34,教科担当一覧2!$D$9:$BA$428,EN33) -> 世史 | BC34: =VLOOKUP(EH34,教科担当一覧2!$D$9:$BA$428,EO33) -> * | BD34: =VLOOKUP(EH34,教科担当一覧2!$D$9:$BA$428,EP33) -> * | BF34: 28 | BG34: =VLOOKUP(ES34,教科担当一覧2!$D$9:$BA$428,4) ->  | BH34: =VLOOKUP(ES34,教科担当一覧2!$D$9:$BA$428,ET33) ->  | BI34: =VLOOKUP(ES34,教科担当一覧2!$D$9:$BA$428,EU33) ->  | BJ34: =VLOOKUP(ES34,教科担当一覧2!$D$9:$BA$428,EV33) ->  | BK34: =VLOOKUP(ES34,教科担当一覧2!$D$9:$BA$428,EW33) -> 世史 | BL34: =VLOOKUP(ES34,教科担当一覧2!$D$9:$BA$428,EX33) -> 世史 | BM34: =VLOOKUP(ES34,教科担当一覧2!$D$9:$BA$428,EY33) -> 世史 | BN34: =VLOOKUP(ES34,教科担当一覧2!$D$9:$BA$428,EZ33) -> * | BO34: =VLOOKUP(ES34,教科担当一覧2!$D$9:$BA$428,FA33) -> * | BQ34: 28 | BR34: =VLOOKUP(FD34,教科担当一覧2!$D$9:$BA$428,4) ->  | BS34: =VLOOKUP(FD34,教科担当一覧2!$D$9:$BA$428,FE33) ->  | BT34: =VLOOKUP(FD34,教科担当一覧2!$D$9:$BA$428,FF33) ->  | BU34: =VLOOKUP(FD34,教科担当一覧2!$D$9:$BA$428,FG33) ->  | BV34: =VLOOKUP(FD34,教科担当一覧2!$D$9:$BA$428,FH33) -> 世史 | BW34: =VLOOKUP(FD34,教科担当一覧2!$D$9:$BA$428,FI33) -> 世史 | BX34: =VLOOKUP(FD34,教科担当一覧2!$D$9:$BA$428,FJ33) -> 世史 | BY34: =VLOOKUP(FD34,教科担当一覧2!$D$9:$BA$428,FK33) -> * | BZ34: =VLOOKUP(FD34,教科担当一覧2!$D$9:$BA$428,FL33) -> * | CB34: 28 | CC34: =VLOOKUP(FO34,教科担当一覧2!$D$9:$BA$428,4) ->  | CD34: =VLOOKUP(FO34,教科担当一覧2!$D$9:$BA$428,FP33) ->  | CE34: =VLOOKUP(FO34,教科担当一覧2!$D$9:$BA$428,FQ33) ->  | CF34: =VLOOKUP(FO34,教科担当一覧2!$D$9:$BA$428,FR33) ->  | CG34: =VLOOKUP(FO34,教科担当一覧2!$D$9:$BA$428,FS33) -> 世史 | CH34: =VLOOKUP(FO34,教科担当一覧2!$D$9:$BA$428,FT33) -> 世史 | CI34: =VLOOKUP(FO34,教科担当一覧2!$D$9:$BA$428,FU33) -> 世史 | CJ34: =VLOOKUP(FO34,教科担当一覧2!$D$9:$BA$428,FV33) -> * | CK34: =VLOOKUP(FO34,教科担当一覧2!$D$9:$BA$428,FW33) -> * | CP34: =C34*2 -> 132 | DA34: =N34*2 -> 56 | DL34: =Y34*2 -> 56 | DW34: =AJ34*2 -> 56 | EH34: =AU34*2 -> 56 | ES34: =BF34*2 -> 56 | FD34: =BQ34*2 -> 56 | FO34: =CB34*2 -> 56
B35: A7 | C35: 曜日ｺｰﾄﾞ | D35: 教科 | G35: =VLOOKUP(C36,曜日コード!$G$5:$H$10,2) -> 火曜 | M35: B7 | N35: 曜日ｺｰﾄﾞ | O35: 教科 | R35: =VLOOKUP(N36,曜日コード!$G$5:$H$10,2) -> 火曜 | X35: C7 | Y35: 曜日ｺｰﾄﾞ | Z35: 教科 | AC35: =VLOOKUP(Y36,曜日コード!$G$5:$H$10,2) -> 火曜 | AI35: D7 | AJ35: 曜日ｺｰﾄﾞ | AK35: 教科 | AN35: =VLOOKUP(AJ36,曜日コード!$G$5:$H$10,2) -> 火曜 | AT35: E7 | AU35: 曜日ｺｰﾄﾞ | AV35: 教科 | AY35: =VLOOKUP(AU36,曜日コード!$G$5:$H$10,2) -> 火曜 | BE35: F7 | BF35: 曜日ｺｰﾄﾞ | BG35: 教科 | BJ35: =VLOOKUP(BF36,曜日コード!$G$5:$H$10,2) -> 火曜 | BP35: G7 | BQ35: 曜日ｺｰﾄﾞ | BR35: 教科 | BU35: =VLOOKUP(BQ36,曜日コード!$G$5:$H$10,2) -> 火曜 | CA35: H7 | CB35: 曜日ｺｰﾄﾞ | CC35: 教科 | CF35: =VLOOKUP(CB36,曜日コード!$G$5:$H$10,2) -> 火曜 | CO35: A7 | CP35: ｵﾌｾｯﾄ | CS35: =VLOOKUP(C36,曜日コード!$G$5:$H$10,2) -> 火曜 | CZ35: B7 | DA35: ｵﾌｾｯﾄ | DD35: =VLOOKUP(N36,曜日コード!$G$5:$H$10,2) -> 火曜 | DK35: C7 | DL35: ｵﾌｾｯﾄ | DO35: =VLOOKUP(Y36,曜日コード!$G$5:$H$10,2) -> 火曜 | DV35: D7 | DW35: ｵﾌｾｯﾄ | DZ35: =VLOOKUP(AJ36,曜日コード!$G$5:$H$10,2) -> 火曜 | EG35: E7 | EH35: ｵﾌｾｯﾄ | EK35: =VLOOKUP(AU36,曜日コード!$G$5:$H$10,2) -> 火曜 | ER35: F7 | ES35: ｵﾌｾｯﾄ | EV35: =VLOOKUP(BF36,曜日コード!$G$5:$H$10,2) -> 火曜 | FC35: G7 | FD35: ｵﾌｾｯﾄ | FG35: =VLOOKUP(BQ36,曜日コード!$G$5:$H$10,2) -> 火曜 | FN35: H7 | FO35: ｵﾌｾｯﾄ | FR35: =VLOOKUP(CB36,曜日コード!$G$5:$H$10,2) -> 火曜
C36: 2 | D36: 担当 | E36: 1 | F36: 2 | G36: 3 | H36: 4 | I36: 5 | J36: 6 | K36: 7 | L36: 8 | N36: 2 | O36: 担当 | P36: 1 | Q36: 2 | R36: 3 | S36: 4 | T36: 5 | U36: 6 | V36: 7 | W36: 8 | Y36: 2 | Z36: 担当 | AA36: 1 | AB36: 2 | AC36: 3 | AD36: 4 | AE36: 5 | AF36: 6 | AG36: 7 | AH36: 8 | AJ36: 2 | AK36: 担当 | AL36: 1 | AM36: 2 | AN36: 3 | AO36: 4 | AP36: 5 | AQ36: 6 | AR36: 7 | AS36: 8 | AU36: 2 | AV36: 担当 | AW36: 1 | AX36: 2 | AY36: 3 | AZ36: 4 | BA36: 5 | BB36: 6 | BC36: 7 | BD36: 8 | BF36: 2 | BG36: 担当 | BH36: 1 | BI36: 2 | BJ36: 3 | BK36: 4 | BL36: 5 | BM36: 6 | BN36: 7 | BO36: 8 | BQ36: 2 | BR36: 担当 | BS36: 1 | BT36: 2 | BU36: 3 | BV36: 4 | BW36: 5 | BX36: 6 | BY36: 7 | BZ36: 8 | CB36: 2 | CC36: 担当 | CD36: 1 | CE36: 2 | CF36: 3 | CG36: 4 | CH36: 5 | CI36: 6 | CJ36: 7 | CK36: 8 | CP36: 番号 | CQ36: 1 | CR36: 2 | CS36: 3 | CT36: 4 | CU36: 5 | CV36: 6 | CW36: 7 | CX36: 8 | DA36: 番号 | DB36: 1 | DC36: 2 | DD36: 3 | DE36: 4 | DF36: 5 | DG36: 6 | DH36: 7 | DI36: 8 | DL36: 番号 | DM36: 1 | DN36: 2 | DO36: 3 | DP36: 4 | DQ36: 5 | DR36: 6 | DS36: 7 | DT36: 8 | DW36: 番号 | DX36: 1 | DY36: 2 | DZ36: 3 | EA36: 4 | EB36: 5 | EC36: 6 | ED36: 7 | EE36: 8 | EH36: 番号 | EI36: 1 | EJ36: 2 | EK36: 3 | EL36: 4 | EM36: 5 | EN36: 6 | EO36: 7 | EP36: 8 | ES36: 番号 | ET36: 1 | EU36: 2 | EV36: 3 | EW36: 4 | EX36: 5 | EY36: 6 | EZ36: 7 | FA36: 8 | FD36: 番号 | FE36: 1 | FF36: 2 | FG36: 3 | FH36: 4 | FI36: 5 | FJ36: 6 | FK36: 7 | FL36: 8 | FO36: 番号 | FP36: 1 | FQ36: 2 | FR36: 3 | FS36: 4 | FT36: 5 | FU36: 6 | FV36: 7 | FW36: 8
C37: 担当ｺｰﾄﾞ | D37: =VLOOKUP(CP37,教科担当一覧2!$D$9:$BA$428,4) -> 高橋 | E37: =VLOOKUP(CP37,教科担当一覧2!$D$9:$BA$428,CQ37) -> ・ | F37: =VLOOKUP(CP37,教科担当一覧2!$D$9:$BA$428,CR37) -> ・ | G37: =VLOOKUP(CP37,教科担当一覧2!$D$9:$BA$428,CS37) -> ・ | H37: =VLOOKUP(CP37,教科担当一覧2!$D$9:$BA$428,CT37) -> 2-3 | I37: =VLOOKUP(CP37,教科担当一覧2!$D$9:$BA$428,CU37) -> 2-4 | J37: =VLOOKUP(CP37,教科担当一覧2!$D$9:$BA$428,CV37) -> 2-5 | K37: =VLOOKUP(CP37,教科担当一覧2!$D$9:$BA$428,CW37) -> * | L37: =VLOOKUP(CP37,教科担当一覧2!$D$9:$BA$428,CX37) -> * | N37: 担当ｺｰﾄﾞ | O37: =VLOOKUP(DA37,教科担当一覧2!$D$9:$BA$428,4) -> 高橋 | P37: =VLOOKUP(DA37,教科担当一覧2!$D$9:$BA$428,DB37) -> ・ | Q37: =VLOOKUP(DA37,教科担当一覧2!$D$9:$BA$428,DC37) -> ・ | R37: =VLOOKUP(DA37,教科担当一覧2!$D$9:$BA$428,DD37) -> ・ | S37: =VLOOKUP(DA37,教科担当一覧2!$D$9:$BA$428,DE37) -> 2-3 | T37: =VLOOKUP(DA37,教科担当一覧2!$D$9:$BA$428,DF37) -> 2-4 | U37: =VLOOKUP(DA37,教科担当一覧2!$D$9:$BA$428,DG37) -> 2-5 | V37: =VLOOKUP(DA37,教科担当一覧2!$D$9:$BA$428,DH37) -> * | W37: =VLOOKUP(DA37,教科担当一覧2!$D$9:$BA$428,DI37) -> * | Y37: 担当ｺｰﾄﾞ | Z37: =VLOOKUP(DL37,教科担当一覧2!$D$9:$BA$428,4) -> 高橋 | AA37: =VLOOKUP(DL37,教科担当一覧2!$D$9:$BA$428,DM37) -> ・ | AB37: =VLOOKUP(DL37,教科担当一覧2!$D$9:$BA$428,DN37) -> ・ | AC37: =VLOOKUP(DL37,教科担当一覧2!$D$9:$BA$428,DO37) -> ・ | AD37: =VLOOKUP(DL37,教科担当一覧2!$D$9:$BA$428,DP37) -> 2-3 | AE37: =VLOOKUP(DL37,教科担当一覧2!$D$9:$BA$428,DQ37) -> 2-4 | AF37: =VLOOKUP(DL37,教科担当一覧2!$D$9:$BA$428,DR37) -> 2-5 | AG37: =VLOOKUP(DL37,教科担当一覧2!$D$9:$BA$428,DS37) -> * | AH37: =VLOOKUP(DL37,教科担当一覧2!$D$9:$BA$428,DT37) -> * | AJ37: 担当ｺｰﾄﾞ | AK37: =VLOOKUP(DW37,教科担当一覧2!$D$9:$BA$428,4) -> 高橋 | AL37: =VLOOKUP(DW37,教科担当一覧2!$D$9:$BA$428,DX37) -> ・ | AM37: =VLOOKUP(DW37,教科担当一覧2!$D$9:$BA$428,DY37) -> ・ | AN37: =VLOOKUP(DW37,教科担当一覧2!$D$9:$BA$428,DZ37) -> ・ | AO37: =VLOOKUP(DW37,教科担当一覧2!$D$9:$BA$428,EA37) -> 2-3 | AP37: =VLOOKUP(DW37,教科担当一覧2!$D$9:$BA$428,EB37) -> 2-4 | AQ37: =VLOOKUP(DW37,教科担当一覧2!$D$9:$BA$428,EC37) -> 2-5 | AR37: =VLOOKUP(DW37,教科担当一覧2!$D$9:$BA$428,ED37) -> * | AS37: =VLOOKUP(DW37,教科担当一覧2!$D$9:$BA$428,EE37) -> * | AU37: 担当ｺｰﾄﾞ | AV37: =VLOOKUP(EH37,教科担当一覧2!$D$9:$BA$428,4) -> 高橋 | AW37: =VLOOKUP(EH37,教科担当一覧2!$D$9:$BA$428,EI37) -> ・ | AX37: =VLOOKUP(EH37,教科担当一覧2!$D$9:$BA$428,EJ37) -> ・ | AY37: =VLOOKUP(EH37,教科担当一覧2!$D$9:$BA$428,EK37) -> ・ | AZ37: =VLOOKUP(EH37,教科担当一覧2!$D$9:$BA$428,EL37) -> 2-3 | BA37: =VLOOKUP(EH37,教科担当一覧2!$D$9:$BA$428,EM37) -> 2-4 | BB37: =VLOOKUP(EH37,教科担当一覧2!$D$9:$BA$428,EN37) -> 2-5 | BC37: =VLOOKUP(EH37,教科担当一覧2!$D$9:$BA$428,EO37) -> * | BD37: =VLOOKUP(EH37,教科担当一覧2!$D$9:$BA$428,EP37) -> * | BF37: 担当ｺｰﾄﾞ | BG37: =VLOOKUP(ES37,教科担当一覧2!$D$9:$BA$428,4) -> 高橋 | BH37: =VLOOKUP(ES37,教科担当一覧2!$D$9:$BA$428,ET37) -> ・ | BI37: =VLOOKUP(ES37,教科担当一覧2!$D$9:$BA$428,EU37) -> ・ | BJ37: =VLOOKUP(ES37,教科担当一覧2!$D$9:$BA$428,EV37) -> ・ | BK37: =VLOOKUP(ES37,教科担当一覧2!$D$9:$BA$428,EW37) -> 2-3 | BL37: =VLOOKUP(ES37,教科担当一覧2!$D$9:$BA$428,EX37) -> 2-4 | BM37: =VLOOKUP(ES37,教科担当一覧2!$D$9:$BA$428,EY37) -> 2-5 | BN37: =VLOOKUP(ES37,教科担当一覧2!$D$9:$BA$428,EZ37) -> * | BO37: =VLOOKUP(ES37,教科担当一覧2!$D$9:$BA$428,FA37) -> * | BQ37: 担当ｺｰﾄﾞ | BR37: =VLOOKUP(FD37,教科担当一覧2!$D$9:$BA$428,4) -> 高橋 | BS37: =VLOOKUP(FD37,教科担当一覧2!$D$9:$BA$428,FE37) -> ・ | BT37: =VLOOKUP(FD37,教科担当一覧2!$D$9:$BA$428,FF37) -> ・ | BU37: =VLOOKUP(FD37,教科担当一覧2!$D$9:$BA$428,FG37) -> ・ | BV37: =VLOOKUP(FD37,教科担当一覧2!$D$9:$BA$428,FH37) -> 2-3 | BW37: =VLOOKUP(FD37,教科担当一覧2!$D$9:$BA$428,FI37) -> 2-4 | BX37: =VLOOKUP(FD37,教科担当一覧2!$D$9:$BA$428,FJ37) -> 2-5 | BY37: =VLOOKUP(FD37,教科担当一覧2!$D$9:$BA$428,FK37) -> * | BZ37: =VLOOKUP(FD37,教科担当一覧2!$D$9:$BA$428,FL37) -> * | CB37: 担当ｺｰﾄﾞ | CC37: =VLOOKUP(FO37,教科担当一覧2!$D$9:$BA$428,4) -> 高橋 | CD37: =VLOOKUP(FO37,教科担当一覧2!$D$9:$BA$428,FP37) -> ・ | CE37: =VLOOKUP(FO37,教科担当一覧2!$D$9:$BA$428,FQ37) -> ・ | CF37: =VLOOKUP(FO37,教科担当一覧2!$D$9:$BA$428,FR37) -> ・ | CG37: =VLOOKUP(FO37,教科担当一覧2!$D$9:$BA$428,FS37) -> 2-3 | CH37: =VLOOKUP(FO37,教科担当一覧2!$D$9:$BA$428,FT37) -> 2-4 | CI37: =VLOOKUP(FO37,教科担当一覧2!$D$9:$BA$428,FU37) -> 2-5 | CJ37: =VLOOKUP(FO37,教科担当一覧2!$D$9:$BA$428,FV37) -> * | CK37: =VLOOKUP(FO37,教科担当一覧2!$D$9:$BA$428,FW37) -> * | CP37: =C38*2-1 -> 55 | CQ37: =8*(C36-1)+5 -> 13 | CR37: =8*(C36-1)+6 -> 14 | CS37: =8*(C36-1)+7 -> 15 | CT37: =8*(C36-1)+8 -> 16 | CU37: =8*(C36-1)+9 -> 17 | CV37: =8*(C36-1)+10 -> 18 | CW37: =8*(C36-1)+11 -> 19 | CX37: =8*(C36-1)+12 -> 20 | DA37: =N38*2-1 -> 55 | DB37: =8*(N36-1)+5 -> 13 | DC37: =8*(N36-1)+6 -> 14 | DD37: =8*(N36-1)+7 -> 15 | DE37: =8*(N36-1)+8 -> 16 | DF37: =8*(N36-1)+9 -> 17 | DG37: =8*(N36-1)+10 -> 18 | DH37: =8*(N36-1)+11 -> 19 | DI37: =8*(N36-1)+12 -> 20 | DL37: =Y38*2-1 -> 55 | DM37: =8*(Y36-1)+5 -> 13 | DN37: =8*(Y36-1)+6 -> 14 | DO37: =8*(Y36-1)+7 -> 15 | DP37: =8*(Y36-1)+8 -> 16 | DQ37: =8*(Y36-1)+9 -> 17 | DR37: =8*(Y36-1)+10 -> 18 | DS37: =8*(Y36-1)+11 -> 19 | DT37: =8*(Y36-1)+12 -> 20 | DW37: =AJ38*2-1 -> 55 | DX37: =8*(AJ36-1)+5 -> 13 | DY37: =8*(AJ36-1)+6 -> 14 | DZ37: =8*(AJ36-1)+7 -> 15 | EA37: =8*(AJ36-1)+8 -> 16 | EB37: =8*(AJ36-1)+9 -> 17 | EC37: =8*(AJ36-1)+10 -> 18 | ED37: =8*(AJ36-1)+11 -> 19 | EE37: =8*(AJ36-1)+12 -> 20 | EH37: =AU38*2-1 -> 55 | EI37: =8*(AU36-1)+5 -> 13 | EJ37: =8*(AU36-1)+6 -> 14 | EK37: =8*(AU36-1)+7 -> 15 | EL37: =8*(AU36-1)+8 -> 16 | EM37: =8*(AU36-1)+9 -> 17 | EN37: =8*(AU36-1)+10 -> 18 | EO37: =8*(AU36-1)+11 -> 19 | EP37: =8*(AU36-1)+12 -> 20 | ES37: =BF38*2-1 -> 55 | ET37: =8*(BF36-1)+5 -> 13 | EU37: =8*(BF36-1)+6 -> 14 | EV37: =8*(BF36-1)+7 -> 15 | EW37: =8*(BF36-1)+8 -> 16 | EX37: =8*(BF36-1)+9 -> 17 | EY37: =8*(BF36-1)+10 -> 18 | EZ37: =8*(BF36-1)+11 -> 19 | FA37: =8*(BF36-1)+12 -> 20 | FD37: =BQ38*2-1 -> 55 | FE37: =8*(BQ36-1)+5 -> 13 | FF37: =8*(BQ36-1)+6 -> 14 | FG37: =8*(BQ36-1)+7 -> 15 | FH37: =8*(BQ36-1)+8 -> 16 | FI37: =8*(BQ36-1)+9 -> 17 | FJ37: =8*(BQ36-1)+10 -> 18 | FK37: =8*(BQ36-1)+11 -> 19 | FL37: =8*(BQ36-1)+12 -> 20 | FO37: =CB38*2-1 -> 55 | FP37: =8*(CB36-1)+5 -> 13 | FQ37: =8*(CB36-1)+6 -> 14 | FR37: =8*(CB36-1)+7 -> 15 | FS37: =8*(CB36-1)+8 -> 16 | FT37: =8*(CB36-1)+9 -> 17 | FU37: =8*(CB36-1)+10 -> 18 | FV37: =8*(CB36-1)+11 -> 19 | FW37: =8*(CB36-1)+12 -> 20
C38: 28 | D38: =VLOOKUP(CP38,教科担当一覧2!$D$9:$BA$428,4) ->  | E38: =VLOOKUP(CP38,教科担当一覧2!$D$9:$BA$428,CQ37) ->  | F38: =VLOOKUP(CP38,教科担当一覧2!$D$9:$BA$428,CR37) ->  | G38: =VLOOKUP(CP38,教科担当一覧2!$D$9:$BA$428,CS37) ->  | H38: =VLOOKUP(CP38,教科担当一覧2!$D$9:$BA$428,CT37) -> 世史 | I38: =VLOOKUP(CP38,教科担当一覧2!$D$9:$BA$428,CU37) -> 世史 | J38: =VLOOKUP(CP38,教科担当一覧2!$D$9:$BA$428,CV37) -> 世史 | K38: =VLOOKUP(CP38,教科担当一覧2!$D$9:$BA$428,CW37) -> * | L38: =VLOOKUP(CP38,教科担当一覧2!$D$9:$BA$428,CX37) -> * | N38: 28 | O38: =VLOOKUP(DA38,教科担当一覧2!$D$9:$BA$428,4) ->  | P38: =VLOOKUP(DA38,教科担当一覧2!$D$9:$BA$428,DB37) ->  | Q38: =VLOOKUP(DA38,教科担当一覧2!$D$9:$BA$428,DC37) ->  | R38: =VLOOKUP(DA38,教科担当一覧2!$D$9:$BA$428,DD37) ->  | S38: =VLOOKUP(DA38,教科担当一覧2!$D$9:$BA$428,DE37) -> 世史 | T38: =VLOOKUP(DA38,教科担当一覧2!$D$9:$BA$428,DF37) -> 世史 | U38: =VLOOKUP(DA38,教科担当一覧2!$D$9:$BA$428,DG37) -> 世史 | V38: =VLOOKUP(DA38,教科担当一覧2!$D$9:$BA$428,DH37) -> * | W38: =VLOOKUP(DA38,教科担当一覧2!$D$9:$BA$428,DI37) -> * | Y38: 28 | Z38: =VLOOKUP(DL38,教科担当一覧2!$D$9:$BA$428,4) ->  | AA38: =VLOOKUP(DL38,教科担当一覧2!$D$9:$BA$428,DM37) ->  | AB38: =VLOOKUP(DL38,教科担当一覧2!$D$9:$BA$428,DN37) ->  | AC38: =VLOOKUP(DL38,教科担当一覧2!$D$9:$BA$428,DO37) ->  | AD38: =VLOOKUP(DL38,教科担当一覧2!$D$9:$BA$428,DP37) -> 世史 | AE38: =VLOOKUP(DL38,教科担当一覧2!$D$9:$BA$428,DQ37) -> 世史 | AF38: =VLOOKUP(DL38,教科担当一覧2!$D$9:$BA$428,DR37) -> 世史 | AG38: =VLOOKUP(DL38,教科担当一覧2!$D$9:$BA$428,DS37) -> * | AH38: =VLOOKUP(DL38,教科担当一覧2!$D$9:$BA$428,DT37) -> * | AJ38: 28 | AK38: =VLOOKUP(DW38,教科担当一覧2!$D$9:$BA$428,4) ->  | AL38: =VLOOKUP(DW38,教科担当一覧2!$D$9:$BA$428,DX37) ->  | AM38: =VLOOKUP(DW38,教科担当一覧2!$D$9:$BA$428,DY37) ->  | AN38: =VLOOKUP(DW38,教科担当一覧2!$D$9:$BA$428,DZ37) ->  | AO38: =VLOOKUP(DW38,教科担当一覧2!$D$9:$BA$428,EA37) -> 世史 | AP38: =VLOOKUP(DW38,教科担当一覧2!$D$9:$BA$428,EB37) -> 世史 | AQ38: =VLOOKUP(DW38,教科担当一覧2!$D$9:$BA$428,EC37) -> 世史 | AR38: =VLOOKUP(DW38,教科担当一覧2!$D$9:$BA$428,ED37) -> * | AS38: =VLOOKUP(DW38,教科担当一覧2!$D$9:$BA$428,EE37) -> * | AU38: 28 | AV38: =VLOOKUP(EH38,教科担当一覧2!$D$9:$BA$428,4) ->  | AW38: =VLOOKUP(EH38,教科担当一覧2!$D$9:$BA$428,EI37) ->  | AX38: =VLOOKUP(EH38,教科担当一覧2!$D$9:$BA$428,EJ37) ->  | AY38: =VLOOKUP(EH38,教科担当一覧2!$D$9:$BA$428,EK37) ->  | AZ38: =VLOOKUP(EH38,教科担当一覧2!$D$9:$BA$428,EL37) -> 世史 | BA38: =VLOOKUP(EH38,教科担当一覧2!$D$9:$BA$428,EM37) -> 世史 | BB38: =VLOOKUP(EH38,教科担当一覧2!$D$9:$BA$428,EN37) -> 世史 | BC38: =VLOOKUP(EH38,教科担当一覧2!$D$9:$BA$428,EO37) -> * | BD38: =VLOOKUP(EH38,教科担当一覧2!$D$9:$BA$428,EP37) -> * | BF38: 28 | BG38: =VLOOKUP(ES38,教科担当一覧2!$D$9:$BA$428,4) ->  | BH38: =VLOOKUP(ES38,教科担当一覧2!$D$9:$BA$428,ET37) ->  | BI38: =VLOOKUP(ES38,教科担当一覧2!$D$9:$BA$428,EU37) ->  | BJ38: =VLOOKUP(ES38,教科担当一覧2!$D$9:$BA$428,EV37) ->  | BK38: =VLOOKUP(ES38,教科担当一覧2!$D$9:$BA$428,EW37) -> 世史 | BL38: =VLOOKUP(ES38,教科担当一覧2!$D$9:$BA$428,EX37) -> 世史 | BM38: =VLOOKUP(ES38,教科担当一覧2!$D$9:$BA$428,EY37) -> 世史 | BN38: =VLOOKUP(ES38,教科担当一覧2!$D$9:$BA$428,EZ37) -> * | BO38: =VLOOKUP(ES38,教科担当一覧2!$D$9:$BA$428,FA37) -> * | BQ38: 28 | BR38: =VLOOKUP(FD38,教科担当一覧2!$D$9:$BA$428,4) ->  | BS38: =VLOOKUP(FD38,教科担当一覧2!$D$9:$BA$428,FE37) ->  | BT38: =VLOOKUP(FD38,教科担当一覧2!$D$9:$BA$428,FF37) ->  | BU38: =VLOOKUP(FD38,教科担当一覧2!$D$9:$BA$428,FG37) ->  | BV38: =VLOOKUP(FD38,教科担当一覧2!$D$9:$BA$428,FH37) -> 世史 | BW38: =VLOOKUP(FD38,教科担当一覧2!$D$9:$BA$428,FI37) -> 世史 | BX38: =VLOOKUP(FD38,教科担当一覧2!$D$9:$BA$428,FJ37) -> 世史 | BY38: =VLOOKUP(FD38,教科担当一覧2!$D$9:$BA$428,FK37) -> * | BZ38: =VLOOKUP(FD38,教科担当一覧2!$D$9:$BA$428,FL37) -> * | CB38: 28 | CC38: =VLOOKUP(FO38,教科担当一覧2!$D$9:$BA$428,4) ->  | CD38: =VLOOKUP(FO38,教科担当一覧2!$D$9:$BA$428,FP37) ->  | CE38: =VLOOKUP(FO38,教科担当一覧2!$D$9:$BA$428,FQ37) ->  | CF38: =VLOOKUP(FO38,教科担当一覧2!$D$9:$BA$428,FR37) ->  | CG38: =VLOOKUP(FO38,教科担当一覧2!$D$9:$BA$428,FS37) -> 世史 | CH38: =VLOOKUP(FO38,教科担当一覧2!$D$9:$BA$428,FT37) -> 世史 | CI38: =VLOOKUP(FO38,教科担当一覧2!$D$9:$BA$428,FU37) -> 世史 | CJ38: =VLOOKUP(FO38,教科担当一覧2!$D$9:$BA$428,FV37) -> * | CK38: =VLOOKUP(FO38,教科担当一覧2!$D$9:$BA$428,FW37) -> * | CP38: =C38*2 -> 56 | DA38: =N38*2 -> 56 | DL38: =Y38*2 -> 56 | DW38: =AJ38*2 -> 56 | EH38: =AU38*2 -> 56 | ES38: =BF38*2 -> 56 | FD38: =BQ38*2 -> 56 | FO38: =CB38*2 -> 56
B39: A8 | C39: 曜日ｺｰﾄﾞ | D39: 教科 | G39: =VLOOKUP(C40,曜日コード!$G$5:$H$10,2) -> 火曜 | M39: B8 | N39: 曜日ｺｰﾄﾞ | O39: 教科 | R39: =VLOOKUP(N40,曜日コード!$G$5:$H$10,2) -> 火曜 | X39: C8 | Y39: 曜日ｺｰﾄﾞ | Z39: 教科 | AC39: =VLOOKUP(Y40,曜日コード!$G$5:$H$10,2) -> 火曜 | AI39: D8 | AJ39: 曜日ｺｰﾄﾞ | AK39: 教科 | AN39: =VLOOKUP(AJ40,曜日コード!$G$5:$H$10,2) -> 火曜 | AT39: E8 | AU39: 曜日ｺｰﾄﾞ | AV39: 教科 | AY39: =VLOOKUP(AU40,曜日コード!$G$5:$H$10,2) -> 火曜 | BE39: F8 | BF39: 曜日ｺｰﾄﾞ | BG39: 教科 | BJ39: =VLOOKUP(BF40,曜日コード!$G$5:$H$10,2) -> 火曜 | BP39: G8 | BQ39: 曜日ｺｰﾄﾞ | BR39: 教科 | BU39: =VLOOKUP(BQ40,曜日コード!$G$5:$H$10,2) -> 火曜 | CA39: H8 | CB39: 曜日ｺｰﾄﾞ | CC39: 教科 | CF39: =VLOOKUP(CB40,曜日コード!$G$5:$H$10,2) -> 火曜 | CO39: A8 | CP39: ｵﾌｾｯﾄ | CS39: =VLOOKUP(C40,曜日コード!$G$5:$H$10,2) -> 火曜 | CZ39: B8 | DA39: ｵﾌｾｯﾄ | DD39: =VLOOKUP(N40,曜日コード!$G$5:$H$10,2) -> 火曜 | DK39: C8 | DL39: ｵﾌｾｯﾄ | DO39: =VLOOKUP(Y40,曜日コード!$G$5:$H$10,2) -> 火曜 | DV39: D8 | DW39: ｵﾌｾｯﾄ | DZ39: =VLOOKUP(AJ40,曜日コード!$G$5:$H$10,2) -> 火曜 | EG39: E8 | EH39: ｵﾌｾｯﾄ | EK39: =VLOOKUP(AU40,曜日コード!$G$5:$H$10,2) -> 火曜 | ER39: F8 | ES39: ｵﾌｾｯﾄ | EV39: =VLOOKUP(BF40,曜日コード!$G$5:$H$10,2) -> 火曜 | FC39: G8 | FD39: ｵﾌｾｯﾄ | FG39: =VLOOKUP(BQ40,曜日コード!$G$5:$H$10,2) -> 火曜 | FN39: H8 | FO39: ｵﾌｾｯﾄ | FR39: =VLOOKUP(CB40,曜日コード!$G$5:$H$10,2) -> 火曜
C40: 2 | D40: 担当 | E40: 1 | F40: 2 | G40: 3 | H40: 4 | I40: 5 | J40: 6 | K40: 7 | L40: 8 | N40: 2 | O40: 担当 | P40: 1 | Q40: 2 | R40: 3 | S40: 4 | T40: 5 | U40: 6 | V40: 7 | W40: 8 | Y40: 2 | Z40: 担当 | AA40: 1 | AB40: 2 | AC40: 3 | AD40: 4 | AE40: 5 | AF40: 6 | AG40: 7 | AH40: 8 | AJ40: 2 | AK40: 担当 | AL40: 1 | AM40: 2 | AN40: 3 | AO40: 4 | AP40: 5 | AQ40: 6 | AR40: 7 | AS40: 8 | AU40: 2 | AV40: 担当 | AW40: 1 | AX40: 2 | AY40: 3 | AZ40: 4 | BA40: 5 | BB40: 6 | BC40: 7 | BD40: 8 | BF40: 2 | BG40: 担当 | BH40: 1 | BI40: 2 | BJ40: 3 | BK40: 4 | BL40: 5 | BM40: 6 | BN40: 7 | BO40: 8 | BQ40: 2 | BR40: 担当 | BS40: 1 | BT40: 2 | BU40: 3 | BV40: 4 | BW40: 5 | BX40: 6 | BY40: 7 | BZ40: 8 | CB40: 2 | CC40: 担当 | CD40: 1 | CE40: 2 | CF40: 3 | CG40: 4 | CH40: 5 | CI40: 6 | CJ40: 7 | CK40: 8 | CP40: 番号 | CQ40: 1 | CR40: 2 | CS40: 3 | CT40: 4 | CU40: 5 | CV40: 6 | CW40: 7 | CX40: 8 | DA40: 番号 | DB40: 1 | DC40: 2 | DD40: 3 | DE40: 4 | DF40: 5 | DG40: 6 | DH40: 7 | DI40: 8 | DL40: 番号 | DM40: 1 | DN40: 2 | DO40: 3 | DP40: 4 | DQ40: 5 | DR40: 6 | DS40: 7 | DT40: 8 | DW40: 番号 | DX40: 1 | DY40: 2 | DZ40: 3 | EA40: 4 | EB40: 5 | EC40: 6 | ED40: 7 | EE40: 8 | EH40: 番号 | EI40: 1 | EJ40: 2 | EK40: 3 | EL40: 4 | EM40: 5 | EN40: 6 | EO40: 7 | EP40: 8 | ES40: 番号 | ET40: 1 | EU40: 2 | EV40: 3 | EW40: 4 | EX40: 5 | EY40: 6 | EZ40: 7 | FA40: 8 | FD40: 番号 | FE40: 1 | FF40: 2 | FG40: 3 | FH40: 4 | FI40: 5 | FJ40: 6 | FK40: 7 | FL40: 8 | FO40: 番号 | FP40: 1 | FQ40: 2 | FR40: 3 | FS40: 4 | FT40: 5 | FU40: 6 | FV40: 7 | FW40: 8
C41: 担当ｺｰﾄﾞ | D41: =VLOOKUP(CP41,教科担当一覧2!$D$9:$BA$428,4) -> 高橋 | E41: =VLOOKUP(CP41,教科担当一覧2!$D$9:$BA$428,CQ41) -> ・ | F41: =VLOOKUP(CP41,教科担当一覧2!$D$9:$BA$428,CR41) -> ・ | G41: =VLOOKUP(CP41,教科担当一覧2!$D$9:$BA$428,CS41) -> ・ | H41: =VLOOKUP(CP41,教科担当一覧2!$D$9:$BA$428,CT41) -> 2-3 | I41: =VLOOKUP(CP41,教科担当一覧2!$D$9:$BA$428,CU41) -> 2-4 | J41: =VLOOKUP(CP41,教科担当一覧2!$D$9:$BA$428,CV41) -> 2-5 | K41: =VLOOKUP(CP41,教科担当一覧2!$D$9:$BA$428,CW41) -> * | L41: =VLOOKUP(CP41,教科担当一覧2!$D$9:$BA$428,CX41) -> * | N41: 担当ｺｰﾄﾞ | O41: =VLOOKUP(DA41,教科担当一覧2!$D$9:$BA$428,4) -> 高橋 | P41: =VLOOKUP(DA41,教科担当一覧2!$D$9:$BA$428,DB41) -> ・ | Q41: =VLOOKUP(DA41,教科担当一覧2!$D$9:$BA$428,DC41) -> ・ | R41: =VLOOKUP(DA41,教科担当一覧2!$D$9:$BA$428,DD41) -> ・ | S41: =VLOOKUP(DA41,教科担当一覧2!$D$9:$BA$428,DE41) -> 2-3 | T41: =VLOOKUP(DA41,教科担当一覧2!$D$9:$BA$428,DF41) -> 2-4 | U41: =VLOOKUP(DA41,教科担当一覧2!$D$9:$BA$428,DG41) -> 2-5 | V41: =VLOOKUP(DA41,教科担当一覧2!$D$9:$BA$428,DH41) -> * | W41: =VLOOKUP(DA41,教科担当一覧2!$D$9:$BA$428,DI41) -> * | Y41: 担当ｺｰﾄﾞ | Z41: =VLOOKUP(DL41,教科担当一覧2!$D$9:$BA$428,4) -> 高橋 | AA41: =VLOOKUP(DL41,教科担当一覧2!$D$9:$BA$428,DM41) -> ・ | AB41: =VLOOKUP(DL41,教科担当一覧2!$D$9:$BA$428,DN41) -> ・ | AC41: =VLOOKUP(DL41,教科担当一覧2!$D$9:$BA$428,DO41) -> ・ | AD41: =VLOOKUP(DL41,教科担当一覧2!$D$9:$BA$428,DP41) -> 2-3 | AE41: =VLOOKUP(DL41,教科担当一覧2!$D$9:$BA$428,DQ41) -> 2-4 | AF41: =VLOOKUP(DL41,教科担当一覧2!$D$9:$BA$428,DR41) -> 2-5 | AG41: =VLOOKUP(DL41,教科担当一覧2!$D$9:$BA$428,DS41) -> * | AH41: =VLOOKUP(DL41,教科担当一覧2!$D$9:$BA$428,DT41) -> * | AJ41: 担当ｺｰﾄﾞ | AK41: =VLOOKUP(DW41,教科担当一覧2!$D$9:$BA$428,4) -> 高橋 | AL41: =VLOOKUP(DW41,教科担当一覧2!$D$9:$BA$428,DX41) -> ・ | AM41: =VLOOKUP(DW41,教科担当一覧2!$D$9:$BA$428,DY41) -> ・ | AN41: =VLOOKUP(DW41,教科担当一覧2!$D$9:$BA$428,DZ41) -> ・ | AO41: =VLOOKUP(DW41,教科担当一覧2!$D$9:$BA$428,EA41) -> 2-3 | AP41: =VLOOKUP(DW41,教科担当一覧2!$D$9:$BA$428,EB41) -> 2-4 | AQ41: =VLOOKUP(DW41,教科担当一覧2!$D$9:$BA$428,EC41) -> 2-5 | AR41: =VLOOKUP(DW41,教科担当一覧2!$D$9:$BA$428,ED41) -> * | AS41: =VLOOKUP(DW41,教科担当一覧2!$D$9:$BA$428,EE41) -> * | AU41: 担当ｺｰﾄﾞ | AV41: =VLOOKUP(EH41,教科担当一覧2!$D$9:$BA$428,4) -> 高橋 | AW41: =VLOOKUP(EH41,教科担当一覧2!$D$9:$BA$428,EI41) -> ・ | AX41: =VLOOKUP(EH41,教科担当一覧2!$D$9:$BA$428,EJ41) -> ・ | AY41: =VLOOKUP(EH41,教科担当一覧2!$D$9:$BA$428,EK41) -> ・ | AZ41: =VLOOKUP(EH41,教科担当一覧2!$D$9:$BA$428,EL41) -> 2-3 | BA41: =VLOOKUP(EH41,教科担当一覧2!$D$9:$BA$428,EM41) -> 2-4 | BB41: =VLOOKUP(EH41,教科担当一覧2!$D$9:$BA$428,EN41) -> 2-5 | BC41: =VLOOKUP(EH41,教科担当一覧2!$D$9:$BA$428,EO41) -> * | BD41: =VLOOKUP(EH41,教科担当一覧2!$D$9:$BA$428,EP41) -> * | BF41: 担当ｺｰﾄﾞ | BG41: =VLOOKUP(ES41,教科担当一覧2!$D$9:$BA$428,4) -> 高橋 | BH41: =VLOOKUP(ES41,教科担当一覧2!$D$9:$BA$428,ET41) -> ・ | BI41: =VLOOKUP(ES41,教科担当一覧2!$D$9:$BA$428,EU41) -> ・ | BJ41: =VLOOKUP(ES41,教科担当一覧2!$D$9:$BA$428,EV41) -> ・ | BK41: =VLOOKUP(ES41,教科担当一覧2!$D$9:$BA$428,EW41) -> 2-3 | BL41: =VLOOKUP(ES41,教科担当一覧2!$D$9:$BA$428,EX41) -> 2-4 | BM41: =VLOOKUP(ES41,教科担当一覧2!$D$9:$BA$428,EY41) -> 2-5 | BN41: =VLOOKUP(ES41,教科担当一覧2!$D$9:$BA$428,EZ41) -> * | BO41: =VLOOKUP(ES41,教科担当一覧2!$D$9:$BA$428,FA41) -> * | BQ41: 担当ｺｰﾄﾞ | BR41: =VLOOKUP(FD41,教科担当一覧2!$D$9:$BA$428,4) -> 高橋 | BS41: =VLOOKUP(FD41,教科担当一覧2!$D$9:$BA$428,FE41) -> ・ | BT41: =VLOOKUP(FD41,教科担当一覧2!$D$9:$BA$428,FF41) -> ・ | BU41: =VLOOKUP(FD41,教科担当一覧2!$D$9:$BA$428,FG41) -> ・ | BV41: =VLOOKUP(FD41,教科担当一覧2!$D$9:$BA$428,FH41) -> 2-3 | BW41: =VLOOKUP(FD41,教科担当一覧2!$D$9:$BA$428,FI41) -> 2-4 | BX41: =VLOOKUP(FD41,教科担当一覧2!$D$9:$BA$428,FJ41) -> 2-5 | BY41: =VLOOKUP(FD41,教科担当一覧2!$D$9:$BA$428,FK41) -> * | BZ41: =VLOOKUP(FD41,教科担当一覧2!$D$9:$BA$428,FL41) -> * | CB41: 担当ｺｰﾄﾞ | CC41: =VLOOKUP(FO41,教科担当一覧2!$D$9:$BA$428,4) -> 高橋 | CD41: =VLOOKUP(FO41,教科担当一覧2!$D$9:$BA$428,FP41) -> ・ | CE41: =VLOOKUP(FO41,教科担当一覧2!$D$9:$BA$428,FQ41) -> ・ | CF41: =VLOOKUP(FO41,教科担当一覧2!$D$9:$BA$428,FR41) -> ・ | CG41: =VLOOKUP(FO41,教科担当一覧2!$D$9:$BA$428,FS41) -> 2-3 | CH41: =VLOOKUP(FO41,教科担当一覧2!$D$9:$BA$428,FT41) -> 2-4 | CI41: =VLOOKUP(FO41,教科担当一覧2!$D$9:$BA$428,FU41) -> 2-5 | CJ41: =VLOOKUP(FO41,教科担当一覧2!$D$9:$BA$428,FV41) -> * | CK41: =VLOOKUP(FO41,教科担当一覧2!$D$9:$BA$428,FW41) -> * | CP41: =C42*2-1 -> 55 | CQ41: =8*(C40-1)+5 -> 13 | CR41: =8*(C40-1)+6 -> 14 | CS41: =8*(C40-1)+7 -> 15 | CT41: =8*(C40-1)+8 -> 16 | CU41: =8*(C40-1)+9 -> 17 | CV41: =8*(C40-1)+10 -> 18 | CW41: =8*(C40-1)+11 -> 19 | CX41: =8*(C40-1)+12 -> 20 | DA41: =N42*2-1 -> 55 | DB41: =8*(N40-1)+5 -> 13 | DC41: =8*(N40-1)+6 -> 14 | DD41: =8*(N40-1)+7 -> 15 | DE41: =8*(N40-1)+8 -> 16 | DF41: =8*(N40-1)+9 -> 17 | DG41: =8*(N40-1)+10 -> 18 | DH41: =8*(N40-1)+11 -> 19 | DI41: =8*(N40-1)+12 -> 20 | DL41: =Y42*2-1 -> 55 | DM41: =8*(Y40-1)+5 -> 13 | DN41: =8*(Y40-1)+6 -> 14 | DO41: =8*(Y40-1)+7 -> 15 | DP41: =8*(Y40-1)+8 -> 16 | DQ41: =8*(Y40-1)+9 -> 17 | DR41: =8*(Y40-1)+10 -> 18 | DS41: =8*(Y40-1)+11 -> 19 | DT41: =8*(Y40-1)+12 -> 20 | DW41: =AJ42*2-1 -> 55 | DX41: =8*(AJ40-1)+5 -> 13 | DY41: =8*(AJ40-1)+6 -> 14 | DZ41: =8*(AJ40-1)+7 -> 15 | EA41: =8*(AJ40-1)+8 -> 16 | EB41: =8*(AJ40-1)+9 -> 17 | EC41: =8*(AJ40-1)+10 -> 18 | ED41: =8*(AJ40-1)+11 -> 19 | EE41: =8*(AJ40-1)+12 -> 20 | EH41: =AU42*2-1 -> 55 | EI41: =8*(AU40-1)+5 -> 13 | EJ41: =8*(AU40-1)+6 -> 14 | EK41: =8*(AU40-1)+7 -> 15 | EL41: =8*(AU40-1)+8 -> 16 | EM41: =8*(AU40-1)+9 -> 17 | EN41: =8*(AU40-1)+10 -> 18 | EO41: =8*(AU40-1)+11 -> 19 | EP41: =8*(AU40-1)+12 -> 20 | ES41: =BF42*2-1 -> 55 | ET41: =8*(BF40-1)+5 -> 13 | EU41: =8*(BF40-1)+6 -> 14 | EV41: =8*(BF40-1)+7 -> 15 | EW41: =8*(BF40-1)+8 -> 16 | EX41: =8*(BF40-1)+9 -> 17 | EY41: =8*(BF40-1)+10 -> 18 | EZ41: =8*(BF40-1)+11 -> 19 | FA41: =8*(BF40-1)+12 -> 20 | FD41: =BQ42*2-1 -> 55 | FE41: =8*(BQ40-1)+5 -> 13 | FF41: =8*(BQ40-1)+6 -> 14 | FG41: =8*(BQ40-1)+7 -> 15 | FH41: =8*(BQ40-1)+8 -> 16 | FI41: =8*(BQ40-1)+9 -> 17 | FJ41: =8*(BQ40-1)+10 -> 18 | FK41: =8*(BQ40-1)+11 -> 19 | FL41: =8*(BQ40-1)+12 -> 20 | FO41: =CB42*2-1 -> 55 | FP41: =8*(CB40-1)+5 -> 13 | FQ41: =8*(CB40-1)+6 -> 14 | FR41: =8*(CB40-1)+7 -> 15 | FS41: =8*(CB40-1)+8 -> 16 | FT41: =8*(CB40-1)+9 -> 17 | FU41: =8*(CB40-1)+10 -> 18 | FV41: =8*(CB40-1)+11 -> 19 | FW41: =8*(CB40-1)+12 -> 20
C42: 28 | D42: =VLOOKUP(CP42,教科担当一覧2!$D$9:$BA$428,4) ->  | E42: =VLOOKUP(CP42,教科担当一覧2!$D$9:$BA$428,CQ41) ->  | F42: =VLOOKUP(CP42,教科担当一覧2!$D$9:$BA$428,CR41) ->  | G42: =VLOOKUP(CP42,教科担当一覧2!$D$9:$BA$428,CS41) ->  | H42: =VLOOKUP(CP42,教科担当一覧2!$D$9:$BA$428,CT41) -> 世史 | I42: =VLOOKUP(CP42,教科担当一覧2!$D$9:$BA$428,CU41) -> 世史 | J42: =VLOOKUP(CP42,教科担当一覧2!$D$9:$BA$428,CV41) -> 世史 | K42: =VLOOKUP(CP42,教科担当一覧2!$D$9:$BA$428,CW41) -> * | L42: =VLOOKUP(CP42,教科担当一覧2!$D$9:$BA$428,CX41) -> * | N42: 28 | O42: =VLOOKUP(DA42,教科担当一覧2!$D$9:$BA$428,4) ->  | P42: =VLOOKUP(DA42,教科担当一覧2!$D$9:$BA$428,DB41) ->  | Q42: =VLOOKUP(DA42,教科担当一覧2!$D$9:$BA$428,DC41) ->  | R42: =VLOOKUP(DA42,教科担当一覧2!$D$9:$BA$428,DD41) ->  | S42: =VLOOKUP(DA42,教科担当一覧2!$D$9:$BA$428,DE41) -> 世史 | T42: =VLOOKUP(DA42,教科担当一覧2!$D$9:$BA$428,DF41) -> 世史 | U42: =VLOOKUP(DA42,教科担当一覧2!$D$9:$BA$428,DG41) -> 世史 | V42: =VLOOKUP(DA42,教科担当一覧2!$D$9:$BA$428,DH41) -> * | W42: =VLOOKUP(DA42,教科担当一覧2!$D$9:$BA$428,DI41) -> * | Y42: 28 | Z42: =VLOOKUP(DL42,教科担当一覧2!$D$9:$BA$428,4) ->  | AA42: =VLOOKUP(DL42,教科担当一覧2!$D$9:$BA$428,DM41) ->  | AB42: =VLOOKUP(DL42,教科担当一覧2!$D$9:$BA$428,DN41) ->  | AC42: =VLOOKUP(DL42,教科担当一覧2!$D$9:$BA$428,DO41) ->  | AD42: =VLOOKUP(DL42,教科担当一覧2!$D$9:$BA$428,DP41) -> 世史 | AE42: =VLOOKUP(DL42,教科担当一覧2!$D$9:$BA$428,DQ41) -> 世史 | AF42: =VLOOKUP(DL42,教科担当一覧2!$D$9:$BA$428,DR41) -> 世史 | AG42: =VLOOKUP(DL42,教科担当一覧2!$D$9:$BA$428,DS41) -> * | AH42: =VLOOKUP(DL42,教科担当一覧2!$D$9:$BA$428,DT41) -> * | AJ42: 28 | AK42: =VLOOKUP(DW42,教科担当一覧2!$D$9:$BA$428,4) ->  | AL42: =VLOOKUP(DW42,教科担当一覧2!$D$9:$BA$428,DX41) ->  | AM42: =VLOOKUP(DW42,教科担当一覧2!$D$9:$BA$428,DY41) ->  | AN42: =VLOOKUP(DW42,教科担当一覧2!$D$9:$BA$428,DZ41) ->  | AO42: =VLOOKUP(DW42,教科担当一覧2!$D$9:$BA$428,EA41) -> 世史 | AP42: =VLOOKUP(DW42,教科担当一覧2!$D$9:$BA$428,EB41) -> 世史 | AQ42: =VLOOKUP(DW42,教科担当一覧2!$D$9:$BA$428,EC41) -> 世史 | AR42: =VLOOKUP(DW42,教科担当一覧2!$D$9:$BA$428,ED41) -> * | AS42: =VLOOKUP(DW42,教科担当一覧2!$D$9:$BA$428,EE41) -> * | AU42: 28 | AV42: =VLOOKUP(EH42,教科担当一覧2!$D$9:$BA$428,4) ->  | AW42: =VLOOKUP(EH42,教科担当一覧2!$D$9:$BA$428,EI41) ->  | AX42: =VLOOKUP(EH42,教科担当一覧2!$D$9:$BA$428,EJ41) ->  | AY42: =VLOOKUP(EH42,教科担当一覧2!$D$9:$BA$428,EK41) ->  | AZ42: =VLOOKUP(EH42,教科担当一覧2!$D$9:$BA$428,EL41) -> 世史 | BA42: =VLOOKUP(EH42,教科担当一覧2!$D$9:$BA$428,EM41) -> 世史 | BB42: =VLOOKUP(EH42,教科担当一覧2!$D$9:$BA$428,EN41) -> 世史 | BC42: =VLOOKUP(EH42,教科担当一覧2!$D$9:$BA$428,EO41) -> * | BD42: =VLOOKUP(EH42,教科担当一覧2!$D$9:$BA$428,EP41) -> * | BF42: 28 | BG42: =VLOOKUP(ES42,教科担当一覧2!$D$9:$BA$428,4) ->  | BH42: =VLOOKUP(ES42,教科担当一覧2!$D$9:$BA$428,ET41) ->  | BI42: =VLOOKUP(ES42,教科担当一覧2!$D$9:$BA$428,EU41) ->  | BJ42: =VLOOKUP(ES42,教科担当一覧2!$D$9:$BA$428,EV41) ->  | BK42: =VLOOKUP(ES42,教科担当一覧2!$D$9:$BA$428,EW41) -> 世史 | BL42: =VLOOKUP(ES42,教科担当一覧2!$D$9:$BA$428,EX41) -> 世史 | BM42: =VLOOKUP(ES42,教科担当一覧2!$D$9:$BA$428,EY41) -> 世史 | BN42: =VLOOKUP(ES42,教科担当一覧2!$D$9:$BA$428,EZ41) -> * | BO42: =VLOOKUP(ES42,教科担当一覧2!$D$9:$BA$428,FA41) -> * | BQ42: 28 | BR42: =VLOOKUP(FD42,教科担当一覧2!$D$9:$BA$428,4) ->  | BS42: =VLOOKUP(FD42,教科担当一覧2!$D$9:$BA$428,FE41) ->  | BT42: =VLOOKUP(FD42,教科担当一覧2!$D$9:$BA$428,FF41) ->  | BU42: =VLOOKUP(FD42,教科担当一覧2!$D$9:$BA$428,FG41) ->  | BV42: =VLOOKUP(FD42,教科担当一覧2!$D$9:$BA$428,FH41) -> 世史 | BW42: =VLOOKUP(FD42,教科担当一覧2!$D$9:$BA$428,FI41) -> 世史 | BX42: =VLOOKUP(FD42,教科担当一覧2!$D$9:$BA$428,FJ41) -> 世史 | BY42: =VLOOKUP(FD42,教科担当一覧2!$D$9:$BA$428,FK41) -> * | BZ42: =VLOOKUP(FD42,教科担当一覧2!$D$9:$BA$428,FL41) -> * | CB42: 28 | CC42: =VLOOKUP(FO42,教科担当一覧2!$D$9:$BA$428,4) ->  | CD42: =VLOOKUP(FO42,教科担当一覧2!$D$9:$BA$428,FP41) ->  | CE42: =VLOOKUP(FO42,教科担当一覧2!$D$9:$BA$428,FQ41) ->  | CF42: =VLOOKUP(FO42,教科担当一覧2!$D$9:$BA$428,FR41) ->  | CG42: =VLOOKUP(FO42,教科担当一覧2!$D$9:$BA$428,FS41) -> 世史 | CH42: =VLOOKUP(FO42,教科担当一覧2!$D$9:$BA$428,FT41) -> 世史 | CI42: =VLOOKUP(FO42,教科担当一覧2!$D$9:$BA$428,FU41) -> 世史 | CJ42: =VLOOKUP(FO42,教科担当一覧2!$D$9:$BA$428,FV41) -> * | CK42: =VLOOKUP(FO42,教科担当一覧2!$D$9:$BA$428,FW41) -> * | CP42: =C42*2 -> 56 | DA42: =N42*2 -> 56 | DL42: =Y42*2 -> 56 | DW42: =AJ42*2 -> 56 | EH42: =AU42*2 -> 56 | ES42: =BF42*2 -> 56 | FD42: =BQ42*2 -> 56 | FO42: =CB42*2 -> 56
B43: A9 | C43: 曜日ｺｰﾄﾞ | D43: 教科 | G43: =VLOOKUP(C44,曜日コード!$G$5:$H$10,2) -> 火曜 | M43: B9 | N43: 曜日ｺｰﾄﾞ | O43: 教科 | R43: =VLOOKUP(N44,曜日コード!$G$5:$H$10,2) -> 火曜 | X43: C9 | Y43: 曜日ｺｰﾄﾞ | Z43: 教科 | AC43: =VLOOKUP(Y44,曜日コード!$G$5:$H$10,2) -> 火曜 | AI43: D9 | AJ43: 曜日ｺｰﾄﾞ | AK43: 教科 | AN43: =VLOOKUP(AJ44,曜日コード!$G$5:$H$10,2) -> 火曜 | AT43: E9 | AU43: 曜日ｺｰﾄﾞ | AV43: 教科 | AY43: =VLOOKUP(AU44,曜日コード!$G$5:$H$10,2) -> 火曜 | BE43: F9 | BF43: 曜日ｺｰﾄﾞ | BG43: 教科 | BJ43: =VLOOKUP(BF44,曜日コード!$G$5:$H$10,2) -> 火曜 | BP43: G9 | BQ43: 曜日ｺｰﾄﾞ | BR43: 教科 | BU43: =VLOOKUP(BQ44,曜日コード!$G$5:$H$10,2) -> 火曜 | CA43: H9 | CB43: 曜日ｺｰﾄﾞ | CC43: 教科 | CF43: =VLOOKUP(CB44,曜日コード!$G$5:$H$10,2) -> 火曜 | CO43: A9 | CP43: ｵﾌｾｯﾄ | CS43: =VLOOKUP(C44,曜日コード!$G$5:$H$10,2) -> 火曜 | CZ43: B9 | DA43: ｵﾌｾｯﾄ | DD43: =VLOOKUP(N44,曜日コード!$G$5:$H$10,2) -> 火曜 | DK43: C9 | DL43: ｵﾌｾｯﾄ | DO43: =VLOOKUP(Y44,曜日コード!$G$5:$H$10,2) -> 火曜 | DV43: D9 | DW43: ｵﾌｾｯﾄ | DZ43: =VLOOKUP(AJ44,曜日コード!$G$5:$H$10,2) -> 火曜 | EG43: E9 | EH43: ｵﾌｾｯﾄ | EK43: =VLOOKUP(AU44,曜日コード!$G$5:$H$10,2) -> 火曜 | ER43: F9 | ES43: ｵﾌｾｯﾄ | EV43: =VLOOKUP(BF44,曜日コード!$G$5:$H$10,2) -> 火曜 | FC43: G9 | FD43: ｵﾌｾｯﾄ | FG43: =VLOOKUP(BQ44,曜日コード!$G$5:$H$10,2) -> 火曜 | FN43: H9 | FO43: ｵﾌｾｯﾄ | FR43: =VLOOKUP(CB44,曜日コード!$G$5:$H$10,2) -> 火曜
C44: 2 | D44: 担当 | E44: 1 | F44: 2 | G44: 3 | H44: 4 | I44: 5 | J44: 6 | K44: 7 | L44: 8 | N44: 2 | O44: 担当 | P44: 1 | Q44: 2 | R44: 3 | S44: 4 | T44: 5 | U44: 6 | V44: 7 | W44: 8 | Y44: 2 | Z44: 担当 | AA44: 1 | AB44: 2 | AC44: 3 | AD44: 4 | AE44: 5 | AF44: 6 | AG44: 7 | AH44: 8 | AJ44: 2 | AK44: 担当 | AL44: 1 | AM44: 2 | AN44: 3 | AO44: 4 | AP44: 5 | AQ44: 6 | AR44: 7 | AS44: 8 | AU44: 2 | AV44: 担当 | AW44: 1 | AX44: 2 | AY44: 3 | AZ44: 4 | BA44: 5 | BB44: 6 | BC44: 7 | BD44: 8 | BF44: 2 | BG44: 担当 | BH44: 1 | BI44: 2 | BJ44: 3 | BK44: 4 | BL44: 5 | BM44: 6 | BN44: 7 | BO44: 8 | BQ44: 2 | BR44: 担当 | BS44: 1 | BT44: 2 | BU44: 3 | BV44: 4 | BW44: 5 | BX44: 6 | BY44: 7 | BZ44: 8 | CB44: 2 | CC44: 担当 | CD44: 1 | CE44: 2 | CF44: 3 | CG44: 4 | CH44: 5 | CI44: 6 | CJ44: 7 | CK44: 8 | CP44: 番号 | CQ44: 1 | CR44: 2 | CS44: 3 | CT44: 4 | CU44: 5 | CV44: 6 | CW44: 7 | CX44: 8 | DA44: 番号 | DB44: 1 | DC44: 2 | DD44: 3 | DE44: 4 | DF44: 5 | DG44: 6 | DH44: 7 | DI44: 8 | DL44: 番号 | DM44: 1 | DN44: 2 | DO44: 3 | DP44: 4 | DQ44: 5 | DR44: 6 | DS44: 7 | DT44: 8 | DW44: 番号 | DX44: 1 | DY44: 2 | DZ44: 3 | EA44: 4 | EB44: 5 | EC44: 6 | ED44: 7 | EE44: 8 | EH44: 番号 | EI44: 1 | EJ44: 2 | EK44: 3 | EL44: 4 | EM44: 5 | EN44: 6 | EO44: 7 | EP44: 8 | ES44: 番号 | ET44: 1 | EU44: 2 | EV44: 3 | EW44: 4 | EX44: 5 | EY44: 6 | EZ44: 7 | FA44: 8 | FD44: 番号 | FE44: 1 | FF44: 2 | FG44: 3 | FH44: 4 | FI44: 5 | FJ44: 6 | FK44: 7 | FL44: 8 | FO44: 番号 | FP44: 1 | FQ44: 2 | FR44: 3 | FS44: 4 | FT44: 5 | FU44: 6 | FV44: 7 | FW44: 8
C45: 担当ｺｰﾄﾞ | D45: =VLOOKUP(CP45,教科担当一覧2!$D$9:$BA$428,4) -> 高橋 | E45: =VLOOKUP(CP45,教科担当一覧2!$D$9:$BA$428,CQ45) -> ・ | F45: =VLOOKUP(CP45,教科担当一覧2!$D$9:$BA$428,CR45) -> ・ | G45: =VLOOKUP(CP45,教科担当一覧2!$D$9:$BA$428,CS45) -> ・ | H45: =VLOOKUP(CP45,教科担当一覧2!$D$9:$BA$428,CT45) -> 2-3 | I45: =VLOOKUP(CP45,教科担当一覧2!$D$9:$BA$428,CU45) -> 2-4 | J45: =VLOOKUP(CP45,教科担当一覧2!$D$9:$BA$428,CV45) -> 2-5 | K45: =VLOOKUP(CP45,教科担当一覧2!$D$9:$BA$428,CW45) -> * | L45: =VLOOKUP(CP45,教科担当一覧2!$D$9:$BA$428,CX45) -> * | N45: 担当ｺｰﾄﾞ | O45: =VLOOKUP(DA45,教科担当一覧2!$D$9:$BA$428,4) -> 高橋 | P45: =VLOOKUP(DA45,教科担当一覧2!$D$9:$BA$428,DB45) -> ・ | Q45: =VLOOKUP(DA45,教科担当一覧2!$D$9:$BA$428,DC45) -> ・ | R45: =VLOOKUP(DA45,教科担当一覧2!$D$9:$BA$428,DD45) -> ・ | S45: =VLOOKUP(DA45,教科担当一覧2!$D$9:$BA$428,DE45) -> 2-3 | T45: =VLOOKUP(DA45,教科担当一覧2!$D$9:$BA$428,DF45) -> 2-4 | U45: =VLOOKUP(DA45,教科担当一覧2!$D$9:$BA$428,DG45) -> 2-5 | V45: =VLOOKUP(DA45,教科担当一覧2!$D$9:$BA$428,DH45) -> * | W45: =VLOOKUP(DA45,教科担当一覧2!$D$9:$BA$428,DI45) -> * | Y45: 担当ｺｰﾄﾞ | Z45: =VLOOKUP(DL45,教科担当一覧2!$D$9:$BA$428,4) -> 高橋 | AA45: =VLOOKUP(DL45,教科担当一覧2!$D$9:$BA$428,DM45) -> ・ | AB45: =VLOOKUP(DL45,教科担当一覧2!$D$9:$BA$428,DN45) -> ・ | AC45: =VLOOKUP(DL45,教科担当一覧2!$D$9:$BA$428,DO45) -> ・ | AD45: =VLOOKUP(DL45,教科担当一覧2!$D$9:$BA$428,DP45) -> 2-3 | AE45: =VLOOKUP(DL45,教科担当一覧2!$D$9:$BA$428,DQ45) -> 2-4 | AF45: =VLOOKUP(DL45,教科担当一覧2!$D$9:$BA$428,DR45) -> 2-5 | AG45: =VLOOKUP(DL45,教科担当一覧2!$D$9:$BA$428,DS45) -> * | AH45: =VLOOKUP(DL45,教科担当一覧2!$D$9:$BA$428,DT45) -> * | AJ45: 担当ｺｰﾄﾞ | AK45: =VLOOKUP(DW45,教科担当一覧2!$D$9:$BA$428,4) -> 高橋 | AL45: =VLOOKUP(DW45,教科担当一覧2!$D$9:$BA$428,DX45) -> ・ | AM45: =VLOOKUP(DW45,教科担当一覧2!$D$9:$BA$428,DY45) -> ・ | AN45: =VLOOKUP(DW45,教科担当一覧2!$D$9:$BA$428,DZ45) -> ・ | AO45: =VLOOKUP(DW45,教科担当一覧2!$D$9:$BA$428,EA45) -> 2-3 | AP45: =VLOOKUP(DW45,教科担当一覧2!$D$9:$BA$428,EB45) -> 2-4 | AQ45: =VLOOKUP(DW45,教科担当一覧2!$D$9:$BA$428,EC45) -> 2-5 | AR45: =VLOOKUP(DW45,教科担当一覧2!$D$9:$BA$428,ED45) -> * | AS45: =VLOOKUP(DW45,教科担当一覧2!$D$9:$BA$428,EE45) -> * | AU45: 担当ｺｰﾄﾞ | AV45: =VLOOKUP(EH45,教科担当一覧2!$D$9:$BA$428,4) -> 高橋 | AW45: =VLOOKUP(EH45,教科担当一覧2!$D$9:$BA$428,EI45) -> ・ | AX45: =VLOOKUP(EH45,教科担当一覧2!$D$9:$BA$428,EJ45) -> ・ | AY45: =VLOOKUP(EH45,教科担当一覧2!$D$9:$BA$428,EK45) -> ・ | AZ45: =VLOOKUP(EH45,教科担当一覧2!$D$9:$BA$428,EL45) -> 2-3 | BA45: =VLOOKUP(EH45,教科担当一覧2!$D$9:$BA$428,EM45) -> 2-4 | BB45: =VLOOKUP(EH45,教科担当一覧2!$D$9:$BA$428,EN45) -> 2-5 | BC45: =VLOOKUP(EH45,教科担当一覧2!$D$9:$BA$428,EO45) -> * | BD45: =VLOOKUP(EH45,教科担当一覧2!$D$9:$BA$428,EP45) -> * | BF45: 担当ｺｰﾄﾞ | BG45: =VLOOKUP(ES45,教科担当一覧2!$D$9:$BA$428,4) -> 高橋 | BH45: =VLOOKUP(ES45,教科担当一覧2!$D$9:$BA$428,ET45) -> ・ | BI45: =VLOOKUP(ES45,教科担当一覧2!$D$9:$BA$428,EU45) -> ・ | BJ45: =VLOOKUP(ES45,教科担当一覧2!$D$9:$BA$428,EV45) -> ・ | BK45: =VLOOKUP(ES45,教科担当一覧2!$D$9:$BA$428,EW45) -> 2-3 | BL45: =VLOOKUP(ES45,教科担当一覧2!$D$9:$BA$428,EX45) -> 2-4 | BM45: =VLOOKUP(ES45,教科担当一覧2!$D$9:$BA$428,EY45) -> 2-5 | BN45: =VLOOKUP(ES45,教科担当一覧2!$D$9:$BA$428,EZ45) -> * | BO45: =VLOOKUP(ES45,教科担当一覧2!$D$9:$BA$428,FA45) -> * | BQ45: 担当ｺｰﾄﾞ | BR45: =VLOOKUP(FD45,教科担当一覧2!$D$9:$BA$428,4) -> 高橋 | BS45: =VLOOKUP(FD45,教科担当一覧2!$D$9:$BA$428,FE45) -> ・ | BT45: =VLOOKUP(FD45,教科担当一覧2!$D$9:$BA$428,FF45) -> ・ | BU45: =VLOOKUP(FD45,教科担当一覧2!$D$9:$BA$428,FG45) -> ・ | BV45: =VLOOKUP(FD45,教科担当一覧2!$D$9:$BA$428,FH45) -> 2-3 | BW45: =VLOOKUP(FD45,教科担当一覧2!$D$9:$BA$428,FI45) -> 2-4 | BX45: =VLOOKUP(FD45,教科担当一覧2!$D$9:$BA$428,FJ45) -> 2-5 | BY45: =VLOOKUP(FD45,教科担当一覧2!$D$9:$BA$428,FK45) -> * | BZ45: =VLOOKUP(FD45,教科担当一覧2!$D$9:$BA$428,FL45) -> * | CB45: 担当ｺｰﾄﾞ | CC45: =VLOOKUP(FO45,教科担当一覧2!$D$9:$BA$428,4) -> 高橋 | CD45: =VLOOKUP(FO45,教科担当一覧2!$D$9:$BA$428,FP45) -> ・ | CE45: =VLOOKUP(FO45,教科担当一覧2!$D$9:$BA$428,FQ45) -> ・ | CF45: =VLOOKUP(FO45,教科担当一覧2!$D$9:$BA$428,FR45) -> ・ | CG45: =VLOOKUP(FO45,教科担当一覧2!$D$9:$BA$428,FS45) -> 2-3 | CH45: =VLOOKUP(FO45,教科担当一覧2!$D$9:$BA$428,FT45) -> 2-4 | CI45: =VLOOKUP(FO45,教科担当一覧2!$D$9:$BA$428,FU45) -> 2-5 | CJ45: =VLOOKUP(FO45,教科担当一覧2!$D$9:$BA$428,FV45) -> * | CK45: =VLOOKUP(FO45,教科担当一覧2!$D$9:$BA$428,FW45) -> * | CP45: =C46*2-1 -> 55 | CQ45: =8*(C44-1)+5 -> 13 | CR45: =8*(C44-1)+6 -> 14 | CS45: =8*(C44-1)+7 -> 15 | CT45: =8*(C44-1)+8 -> 16 | CU45: =8*(C44-1)+9 -> 17 | CV45: =8*(C44-1)+10 -> 18 | CW45: =8*(C44-1)+11 -> 19 | CX45: =8*(C44-1)+12 -> 20 | DA45: =N46*2-1 -> 55 | DB45: =8*(N44-1)+5 -> 13 | DC45: =8*(N44-1)+6 -> 14 | DD45: =8*(N44-1)+7 -> 15 | DE45: =8*(N44-1)+8 -> 16 | DF45: =8*(N44-1)+9 -> 17 | DG45: =8*(N44-1)+10 -> 18 | DH45: =8*(N44-1)+11 -> 19 | DI45: =8*(N44-1)+12 -> 20 | DL45: =Y46*2-1 -> 55 | DM45: =8*(Y44-1)+5 -> 13 | DN45: =8*(Y44-1)+6 -> 14 | DO45: =8*(Y44-1)+7 -> 15 | DP45: =8*(Y44-1)+8 -> 16 | DQ45: =8*(Y44-1)+9 -> 17 | DR45: =8*(Y44-1)+10 -> 18 | DS45: =8*(Y44-1)+11 -> 19 | DT45: =8*(Y44-1)+12 -> 20 | DW45: =AJ46*2-1 -> 55 | DX45: =8*(AJ44-1)+5 -> 13 | DY45: =8*(AJ44-1)+6 -> 14 | DZ45: =8*(AJ44-1)+7 -> 15 | EA45: =8*(AJ44-1)+8 -> 16 | EB45: =8*(AJ44-1)+9 -> 17 | EC45: =8*(AJ44-1)+10 -> 18 | ED45: =8*(AJ44-1)+11 -> 19 | EE45: =8*(AJ44-1)+12 -> 20 | EH45: =AU46*2-1 -> 55 | EI45: =8*(AU44-1)+5 -> 13 | EJ45: =8*(AU44-1)+6 -> 14 | EK45: =8*(AU44-1)+7 -> 15 | EL45: =8*(AU44-1)+8 -> 16 | EM45: =8*(AU44-1)+9 -> 17 | EN45: =8*(AU44-1)+10 -> 18 | EO45: =8*(AU44-1)+11 -> 19 | EP45: =8*(AU44-1)+12 -> 20 | ES45: =BF46*2-1 -> 55 | ET45: =8*(BF44-1)+5 -> 13 | EU45: =8*(BF44-1)+6 -> 14 | EV45: =8*(BF44-1)+7 -> 15 | EW45: =8*(BF44-1)+8 -> 16 | EX45: =8*(BF44-1)+9 -> 17 | EY45: =8*(BF44-1)+10 -> 18 | EZ45: =8*(BF44-1)+11 -> 19 | FA45: =8*(BF44-1)+12 -> 20 | FD45: =BQ46*2-1 -> 55 | FE45: =8*(BQ44-1)+5 -> 13 | FF45: =8*(BQ44-1)+6 -> 14 | FG45: =8*(BQ44-1)+7 -> 15 | FH45: =8*(BQ44-1)+8 -> 16 | FI45: =8*(BQ44-1)+9 -> 17 | FJ45: =8*(BQ44-1)+10 -> 18 | FK45: =8*(BQ44-1)+11 -> 19 | FL45: =8*(BQ44-1)+12 -> 20 | FO45: =CB46*2-1 -> 55 | FP45: =8*(CB44-1)+5 -> 13 | FQ45: =8*(CB44-1)+6 -> 14 | FR45: =8*(CB44-1)+7 -> 15 | FS45: =8*(CB44-1)+8 -> 16 | FT45: =8*(CB44-1)+9 -> 17 | FU45: =8*(CB44-1)+10 -> 18 | FV45: =8*(CB44-1)+11 -> 19 | FW45: =8*(CB44-1)+12 -> 20
C46: 28 | D46: =VLOOKUP(CP46,教科担当一覧2!$D$9:$BA$428,4) ->  | E46: =VLOOKUP(CP46,教科担当一覧2!$D$9:$BA$428,CQ45) ->  | F46: =VLOOKUP(CP46,教科担当一覧2!$D$9:$BA$428,CR45) ->  | G46: =VLOOKUP(CP46,教科担当一覧2!$D$9:$BA$428,CS45) ->  | H46: =VLOOKUP(CP46,教科担当一覧2!$D$9:$BA$428,CT45) -> 世史 | I46: =VLOOKUP(CP46,教科担当一覧2!$D$9:$BA$428,CU45) -> 世史 | J46: =VLOOKUP(CP46,教科担当一覧2!$D$9:$BA$428,CV45) -> 世史 | K46: =VLOOKUP(CP46,教科担当一覧2!$D$9:$BA$428,CW45) -> * | L46: =VLOOKUP(CP46,教科担当一覧2!$D$9:$BA$428,CX45) -> * | N46: 28 | O46: =VLOOKUP(DA46,教科担当一覧2!$D$9:$BA$428,4) ->  | P46: =VLOOKUP(DA46,教科担当一覧2!$D$9:$BA$428,DB45) ->  | Q46: =VLOOKUP(DA46,教科担当一覧2!$D$9:$BA$428,DC45) ->  | R46: =VLOOKUP(DA46,教科担当一覧2!$D$9:$BA$428,DD45) ->  | S46: =VLOOKUP(DA46,教科担当一覧2!$D$9:$BA$428,DE45) -> 世史 | T46: =VLOOKUP(DA46,教科担当一覧2!$D$9:$BA$428,DF45) -> 世史 | U46: =VLOOKUP(DA46,教科担当一覧2!$D$9:$BA$428,DG45) -> 世史 | V46: =VLOOKUP(DA46,教科担当一覧2!$D$9:$BA$428,DH45) -> * | W46: =VLOOKUP(DA46,教科担当一覧2!$D$9:$BA$428,DI45) -> * | Y46: 28 | Z46: =VLOOKUP(DL46,教科担当一覧2!$D$9:$BA$428,4) ->  | AA46: =VLOOKUP(DL46,教科担当一覧2!$D$9:$BA$428,DM45) ->  | AB46: =VLOOKUP(DL46,教科担当一覧2!$D$9:$BA$428,DN45) ->  | AC46: =VLOOKUP(DL46,教科担当一覧2!$D$9:$BA$428,DO45) ->  | AD46: =VLOOKUP(DL46,教科担当一覧2!$D$9:$BA$428,DP45) -> 世史 | AE46: =VLOOKUP(DL46,教科担当一覧2!$D$9:$BA$428,DQ45) -> 世史 | AF46: =VLOOKUP(DL46,教科担当一覧2!$D$9:$BA$428,DR45) -> 世史 | AG46: =VLOOKUP(DL46,教科担当一覧2!$D$9:$BA$428,DS45) -> * | AH46: =VLOOKUP(DL46,教科担当一覧2!$D$9:$BA$428,DT45) -> * | AJ46: 28 | AK46: =VLOOKUP(DW46,教科担当一覧2!$D$9:$BA$428,4) ->  | AL46: =VLOOKUP(DW46,教科担当一覧2!$D$9:$BA$428,DX45) ->  | AM46: =VLOOKUP(DW46,教科担当一覧2!$D$9:$BA$428,DY45) ->  | AN46: =VLOOKUP(DW46,教科担当一覧2!$D$9:$BA$428,DZ45) ->  | AO46: =VLOOKUP(DW46,教科担当一覧2!$D$9:$BA$428,EA45) -> 世史 | AP46: =VLOOKUP(DW46,教科担当一覧2!$D$9:$BA$428,EB45) -> 世史 | AQ46: =VLOOKUP(DW46,教科担当一覧2!$D$9:$BA$428,EC45) -> 世史 | AR46: =VLOOKUP(DW46,教科担当一覧2!$D$9:$BA$428,ED45) -> * | AS46: =VLOOKUP(DW46,教科担当一覧2!$D$9:$BA$428,EE45) -> * | AU46: 28 | AV46: =VLOOKUP(EH46,教科担当一覧2!$D$9:$BA$428,4) ->  | AW46: =VLOOKUP(EH46,教科担当一覧2!$D$9:$BA$428,EI45) ->  | AX46: =VLOOKUP(EH46,教科担当一覧2!$D$9:$BA$428,EJ45) ->  | AY46: =VLOOKUP(EH46,教科担当一覧2!$D$9:$BA$428,EK45) ->  | AZ46: =VLOOKUP(EH46,教科担当一覧2!$D$9:$BA$428,EL45) -> 世史 | BA46: =VLOOKUP(EH46,教科担当一覧2!$D$9:$BA$428,EM45) -> 世史 | BB46: =VLOOKUP(EH46,教科担当一覧2!$D$9:$BA$428,EN45) -> 世史 | BC46: =VLOOKUP(EH46,教科担当一覧2!$D$9:$BA$428,EO45) -> * | BD46: =VLOOKUP(EH46,教科担当一覧2!$D$9:$BA$428,EP45) -> * | BF46: 28 | BG46: =VLOOKUP(ES46,教科担当一覧2!$D$9:$BA$428,4) ->  | BH46: =VLOOKUP(ES46,教科担当一覧2!$D$9:$BA$428,ET45) ->  | BI46: =VLOOKUP(ES46,教科担当一覧2!$D$9:$BA$428,EU45) ->  | BJ46: =VLOOKUP(ES46,教科担当一覧2!$D$9:$BA$428,EV45) ->  | BK46: =VLOOKUP(ES46,教科担当一覧2!$D$9:$BA$428,EW45) -> 世史 | BL46: =VLOOKUP(ES46,教科担当一覧2!$D$9:$BA$428,EX45) -> 世史 | BM46: =VLOOKUP(ES46,教科担当一覧2!$D$9:$BA$428,EY45) -> 世史 | BN46: =VLOOKUP(ES46,教科担当一覧2!$D$9:$BA$428,EZ45) -> * | BO46: =VLOOKUP(ES46,教科担当一覧2!$D$9:$BA$428,FA45) -> * | BQ46: 28 | BR46: =VLOOKUP(FD46,教科担当一覧2!$D$9:$BA$428,4) ->  | BS46: =VLOOKUP(FD46,教科担当一覧2!$D$9:$BA$428,FE45) ->  | BT46: =VLOOKUP(FD46,教科担当一覧2!$D$9:$BA$428,FF45) ->  | BU46: =VLOOKUP(FD46,教科担当一覧2!$D$9:$BA$428,FG45) ->  | BV46: =VLOOKUP(FD46,教科担当一覧2!$D$9:$BA$428,FH45) -> 世史 | BW46: =VLOOKUP(FD46,教科担当一覧2!$D$9:$BA$428,FI45) -> 世史 | BX46: =VLOOKUP(FD46,教科担当一覧2!$D$9:$BA$428,FJ45) -> 世史 | BY46: =VLOOKUP(FD46,教科担当一覧2!$D$9:$BA$428,FK45) -> * | BZ46: =VLOOKUP(FD46,教科担当一覧2!$D$9:$BA$428,FL45) -> * | CB46: 28 | CC46: =VLOOKUP(FO46,教科担当一覧2!$D$9:$BA$428,4) ->  | CD46: =VLOOKUP(FO46,教科担当一覧2!$D$9:$BA$428,FP45) ->  | CE46: =VLOOKUP(FO46,教科担当一覧2!$D$9:$BA$428,FQ45) ->  | CF46: =VLOOKUP(FO46,教科担当一覧2!$D$9:$BA$428,FR45) ->  | CG46: =VLOOKUP(FO46,教科担当一覧2!$D$9:$BA$428,FS45) -> 世史 | CH46: =VLOOKUP(FO46,教科担当一覧2!$D$9:$BA$428,FT45) -> 世史 | CI46: =VLOOKUP(FO46,教科担当一覧2!$D$9:$BA$428,FU45) -> 世史 | CJ46: =VLOOKUP(FO46,教科担当一覧2!$D$9:$BA$428,FV45) -> * | CK46: =VLOOKUP(FO46,教科担当一覧2!$D$9:$BA$428,FW45) -> * | CP46: =C46*2 -> 56 | DA46: =N46*2 -> 56 | DL46: =Y46*2 -> 56 | DW46: =AJ46*2 -> 56 | EH46: =AU46*2 -> 56 | ES46: =BF46*2 -> 56 | FD46: =BQ46*2 -> 56 | FO46: =CB46*2 -> 56
B47: A10 | C47: 曜日ｺｰﾄﾞ | D47: 教科 | G47: =VLOOKUP(C48,曜日コード!$G$5:$H$10,2) -> 火曜 | M47: B10 | N47: 曜日ｺｰﾄﾞ | O47: 教科 | R47: =VLOOKUP(N48,曜日コード!$G$5:$H$10,2) -> 火曜 | X47: C10 | Y47: 曜日ｺｰﾄﾞ | Z47: 教科 | AC47: =VLOOKUP(Y48,曜日コード!$G$5:$H$10,2) -> 火曜 | AI47: D10 | AJ47: 曜日ｺｰﾄﾞ | AK47: 教科 | AN47: =VLOOKUP(AJ48,曜日コード!$G$5:$H$10,2) -> 火曜 | AT47: E10 | AU47: 曜日ｺｰﾄﾞ | AV47: 教科 | AY47: =VLOOKUP(AU48,曜日コード!$G$5:$H$10,2) -> 火曜 | BE47: F10 | BF47: 曜日ｺｰﾄﾞ | BG47: 教科 | BJ47: =VLOOKUP(BF48,曜日コード!$G$5:$H$10,2) -> 火曜 | BP47: G10 | BQ47: 曜日ｺｰﾄﾞ | BR47: 教科 | BU47: =VLOOKUP(BQ48,曜日コード!$G$5:$H$10,2) -> 火曜 | CA47: H10 | CB47: 曜日ｺｰﾄﾞ | CC47: 教科 | CF47: =VLOOKUP(CB48,曜日コード!$G$5:$H$10,2) -> 火曜 | CO47: A10 | CP47: ｵﾌｾｯﾄ | CS47: =VLOOKUP(C48,曜日コード!$G$5:$H$10,2) -> 火曜 | CZ47: B10 | DA47: ｵﾌｾｯﾄ | DD47: =VLOOKUP(N48,曜日コード!$G$5:$H$10,2) -> 火曜 | DK47: C10 | DL47: ｵﾌｾｯﾄ | DO47: =VLOOKUP(Y48,曜日コード!$G$5:$H$10,2) -> 火曜 | DV47: D10 | DW47: ｵﾌｾｯﾄ | DZ47: =VLOOKUP(AJ48,曜日コード!$G$5:$H$10,2) -> 火曜 | EG47: E10 | EH47: ｵﾌｾｯﾄ | EK47: =VLOOKUP(AU48,曜日コード!$G$5:$H$10,2) -> 火曜 | ER47: F10 | ES47: ｵﾌｾｯﾄ | EV47: =VLOOKUP(BF48,曜日コード!$G$5:$H$10,2) -> 火曜 | FC47: G10 | FD47: ｵﾌｾｯﾄ | FG47: =VLOOKUP(BQ48,曜日コード!$G$5:$H$10,2) -> 火曜 | FN47: H10 | FO47: ｵﾌｾｯﾄ | FR47: =VLOOKUP(CB48,曜日コード!$G$5:$H$10,2) -> 火曜
C48: 2 | D48: 担当 | E48: 1 | F48: 2 | G48: 3 | H48: 4 | I48: 5 | J48: 6 | K48: 7 | L48: 8 | N48: 2 | O48: 担当 | P48: 1 | Q48: 2 | R48: 3 | S48: 4 | T48: 5 | U48: 6 | V48: 7 | W48: 8 | Y48: 2 | Z48: 担当 | AA48: 1 | AB48: 2 | AC48: 3 | AD48: 4 | AE48: 5 | AF48: 6 | AG48: 7 | AH48: 8 | AJ48: 2 | AK48: 担当 | AL48: 1 | AM48: 2 | AN48: 3 | AO48: 4 | AP48: 5 | AQ48: 6 | AR48: 7 | AS48: 8 | AU48: 2 | AV48: 担当 | AW48: 1 | AX48: 2 | AY48: 3 | AZ48: 4 | BA48: 5 | BB48: 6 | BC48: 7 | BD48: 8 | BF48: 2 | BG48: 担当 | BH48: 1 | BI48: 2 | BJ48: 3 | BK48: 4 | BL48: 5 | BM48: 6 | BN48: 7 | BO48: 8 | BQ48: 2 | BR48: 担当 | BS48: 1 | BT48: 2 | BU48: 3 | BV48: 4 | BW48: 5 | BX48: 6 | BY48: 7 | BZ48: 8 | CB48: 2 | CC48: 担当 | CD48: 1 | CE48: 2 | CF48: 3 | CG48: 4 | CH48: 5 | CI48: 6 | CJ48: 7 | CK48: 8 | CP48: 番号 | CQ48: 1 | CR48: 2 | CS48: 3 | CT48: 4 | CU48: 5 | CV48: 6 | CW48: 7 | CX48: 8 | DA48: 番号 | DB48: 1 | DC48: 2 | DD48: 3 | DE48: 4 | DF48: 5 | DG48: 6 | DH48: 7 | DI48: 8 | DL48: 番号 | DM48: 1 | DN48: 2 | DO48: 3 | DP48: 4 | DQ48: 5 | DR48: 6 | DS48: 7 | DT48: 8 | DW48: 番号 | DX48: 1 | DY48: 2 | DZ48: 3 | EA48: 4 | EB48: 5 | EC48: 6 | ED48: 7 | EE48: 8 | EH48: 番号 | EI48: 1 | EJ48: 2 | EK48: 3 | EL48: 4 | EM48: 5 | EN48: 6 | EO48: 7 | EP48: 8 | ES48: 番号 | ET48: 1 | EU48: 2 | EV48: 3 | EW48: 4 | EX48: 5 | EY48: 6 | EZ48: 7 | FA48: 8 | FD48: 番号 | FE48: 1 | FF48: 2 | FG48: 3 | FH48: 4 | FI48: 5 | FJ48: 6 | FK48: 7 | FL48: 8 | FO48: 番号 | FP48: 1 | FQ48: 2 | FR48: 3 | FS48: 4 | FT48: 5 | FU48: 6 | FV48: 7 | FW48: 8
C49: 担当ｺｰﾄﾞ | D49: =VLOOKUP(CP49,教科担当一覧2!$D$9:$BA$428,4) -> 高橋 | E49: =VLOOKUP(CP49,教科担当一覧2!$D$9:$BA$428,CQ49) -> ・ | F49: =VLOOKUP(CP49,教科担当一覧2!$D$9:$BA$428,CR49) -> ・ | G49: =VLOOKUP(CP49,教科担当一覧2!$D$9:$BA$428,CS49) -> ・ | H49: =VLOOKUP(CP49,教科担当一覧2!$D$9:$BA$428,CT49) -> 2-3 | I49: =VLOOKUP(CP49,教科担当一覧2!$D$9:$BA$428,CU49) -> 2-4 | J49: =VLOOKUP(CP49,教科担当一覧2!$D$9:$BA$428,CV49) -> 2-5 | K49: =VLOOKUP(CP49,教科担当一覧2!$D$9:$BA$428,CW49) -> * | L49: =VLOOKUP(CP49,教科担当一覧2!$D$9:$BA$428,CX49) -> * | N49: 担当ｺｰﾄﾞ | O49: =VLOOKUP(DA49,教科担当一覧2!$D$9:$BA$428,4) -> 高橋 | P49: =VLOOKUP(DA49,教科担当一覧2!$D$9:$BA$428,DB49) -> ・ | Q49: =VLOOKUP(DA49,教科担当一覧2!$D$9:$BA$428,DC49) -> ・ | R49: =VLOOKUP(DA49,教科担当一覧2!$D$9:$BA$428,DD49) -> ・ | S49: =VLOOKUP(DA49,教科担当一覧2!$D$9:$BA$428,DE49) -> 2-3 | T49: =VLOOKUP(DA49,教科担当一覧2!$D$9:$BA$428,DF49) -> 2-4 | U49: =VLOOKUP(DA49,教科担当一覧2!$D$9:$BA$428,DG49) -> 2-5 | V49: =VLOOKUP(DA49,教科担当一覧2!$D$9:$BA$428,DH49) -> * | W49: =VLOOKUP(DA49,教科担当一覧2!$D$9:$BA$428,DI49) -> * | Y49: 担当ｺｰﾄﾞ | Z49: =VLOOKUP(DL49,教科担当一覧2!$D$9:$BA$428,4) -> 高橋 | AA49: =VLOOKUP(DL49,教科担当一覧2!$D$9:$BA$428,DM49) -> ・ | AB49: =VLOOKUP(DL49,教科担当一覧2!$D$9:$BA$428,DN49) -> ・ | AC49: =VLOOKUP(DL49,教科担当一覧2!$D$9:$BA$428,DO49) -> ・ | AD49: =VLOOKUP(DL49,教科担当一覧2!$D$9:$BA$428,DP49) -> 2-3 | AE49: =VLOOKUP(DL49,教科担当一覧2!$D$9:$BA$428,DQ49) -> 2-4 | AF49: =VLOOKUP(DL49,教科担当一覧2!$D$9:$BA$428,DR49) -> 2-5 | AG49: =VLOOKUP(DL49,教科担当一覧2!$D$9:$BA$428,DS49) -> * | AH49: =VLOOKUP(DL49,教科担当一覧2!$D$9:$BA$428,DT49) -> * | AJ49: 担当ｺｰﾄﾞ | AK49: =VLOOKUP(DW49,教科担当一覧2!$D$9:$BA$428,4) -> 高橋 | AL49: =VLOOKUP(DW49,教科担当一覧2!$D$9:$BA$428,DX49) -> ・ | AM49: =VLOOKUP(DW49,教科担当一覧2!$D$9:$BA$428,DY49) -> ・ | AN49: =VLOOKUP(DW49,教科担当一覧2!$D$9:$BA$428,DZ49) -> ・ | AO49: =VLOOKUP(DW49,教科担当一覧2!$D$9:$BA$428,EA49) -> 2-3 | AP49: =VLOOKUP(DW49,教科担当一覧2!$D$9:$BA$428,EB49) -> 2-4 | AQ49: =VLOOKUP(DW49,教科担当一覧2!$D$9:$BA$428,EC49) -> 2-5 | AR49: =VLOOKUP(DW49,教科担当一覧2!$D$9:$BA$428,ED49) -> * | AS49: =VLOOKUP(DW49,教科担当一覧2!$D$9:$BA$428,EE49) -> * | AU49: 担当ｺｰﾄﾞ | AV49: =VLOOKUP(EH49,教科担当一覧2!$D$9:$BA$428,4) -> 高橋 | AW49: =VLOOKUP(EH49,教科担当一覧2!$D$9:$BA$428,EI49) -> ・ | AX49: =VLOOKUP(EH49,教科担当一覧2!$D$9:$BA$428,EJ49) -> ・ | AY49: =VLOOKUP(EH49,教科担当一覧2!$D$9:$BA$428,EK49) -> ・ | AZ49: =VLOOKUP(EH49,教科担当一覧2!$D$9:$BA$428,EL49) -> 2-3 | BA49: =VLOOKUP(EH49,教科担当一覧2!$D$9:$BA$428,EM49) -> 2-4 | BB49: =VLOOKUP(EH49,教科担当一覧2!$D$9:$BA$428,EN49) -> 2-5 | BC49: =VLOOKUP(EH49,教科担当一覧2!$D$9:$BA$428,EO49) -> * | BD49: =VLOOKUP(EH49,教科担当一覧2!$D$9:$BA$428,EP49) -> * | BF49: 担当ｺｰﾄﾞ | BG49: =VLOOKUP(ES49,教科担当一覧2!$D$9:$BA$428,4) -> 高橋 | BH49: =VLOOKUP(ES49,教科担当一覧2!$D$9:$BA$428,ET49) -> ・ | BI49: =VLOOKUP(ES49,教科担当一覧2!$D$9:$BA$428,EU49) -> ・ | BJ49: =VLOOKUP(ES49,教科担当一覧2!$D$9:$BA$428,EV49) -> ・ | BK49: =VLOOKUP(ES49,教科担当一覧2!$D$9:$BA$428,EW49) -> 2-3 | BL49: =VLOOKUP(ES49,教科担当一覧2!$D$9:$BA$428,EX49) -> 2-4 | BM49: =VLOOKUP(ES49,教科担当一覧2!$D$9:$BA$428,EY49) -> 2-5 | BN49: =VLOOKUP(ES49,教科担当一覧2!$D$9:$BA$428,EZ49) -> * | BO49: =VLOOKUP(ES49,教科担当一覧2!$D$9:$BA$428,FA49) -> * | BQ49: 担当ｺｰﾄﾞ | BR49: =VLOOKUP(FD49,教科担当一覧2!$D$9:$BA$428,4) -> 高橋 | BS49: =VLOOKUP(FD49,教科担当一覧2!$D$9:$BA$428,FE49) -> ・ | BT49: =VLOOKUP(FD49,教科担当一覧2!$D$9:$BA$428,FF49) -> ・ | BU49: =VLOOKUP(FD49,教科担当一覧2!$D$9:$BA$428,FG49) -> ・ | BV49: =VLOOKUP(FD49,教科担当一覧2!$D$9:$BA$428,FH49) -> 2-3 | BW49: =VLOOKUP(FD49,教科担当一覧2!$D$9:$BA$428,FI49) -> 2-4 | BX49: =VLOOKUP(FD49,教科担当一覧2!$D$9:$BA$428,FJ49) -> 2-5 | BY49: =VLOOKUP(FD49,教科担当一覧2!$D$9:$BA$428,FK49) -> * | BZ49: =VLOOKUP(FD49,教科担当一覧2!$D$9:$BA$428,FL49) -> * | CB49: 担当ｺｰﾄﾞ | CC49: =VLOOKUP(FO49,教科担当一覧2!$D$9:$BA$428,4) -> 高橋 | CD49: =VLOOKUP(FO49,教科担当一覧2!$D$9:$BA$428,FP49) -> ・ | CE49: =VLOOKUP(FO49,教科担当一覧2!$D$9:$BA$428,FQ49) -> ・ | CF49: =VLOOKUP(FO49,教科担当一覧2!$D$9:$BA$428,FR49) -> ・ | CG49: =VLOOKUP(FO49,教科担当一覧2!$D$9:$BA$428,FS49) -> 2-3 | CH49: =VLOOKUP(FO49,教科担当一覧2!$D$9:$BA$428,FT49) -> 2-4 | CI49: =VLOOKUP(FO49,教科担当一覧2!$D$9:$BA$428,FU49) -> 2-5 | CJ49: =VLOOKUP(FO49,教科担当一覧2!$D$9:$BA$428,FV49) -> * | CK49: =VLOOKUP(FO49,教科担当一覧2!$D$9:$BA$428,FW49) -> * | CP49: =C50*2-1 -> 55 | CQ49: =8*(C48-1)+5 -> 13 | CR49: =8*(C48-1)+6 -> 14 | CS49: =8*(C48-1)+7 -> 15 | CT49: =8*(C48-1)+8 -> 16 | CU49: =8*(C48-1)+9 -> 17 | CV49: =8*(C48-1)+10 -> 18 | CW49: =8*(C48-1)+11 -> 19 | CX49: =8*(C48-1)+12 -> 20 | DA49: =N50*2-1 -> 55 | DB49: =8*(N48-1)+5 -> 13 | DC49: =8*(N48-1)+6 -> 14 | DD49: =8*(N48-1)+7 -> 15 | DE49: =8*(N48-1)+8 -> 16 | DF49: =8*(N48-1)+9 -> 17 | DG49: =8*(N48-1)+10 -> 18 | DH49: =8*(N48-1)+11 -> 19 | DI49: =8*(N48-1)+12 -> 20 | DL49: =Y50*2-1 -> 55 | DM49: =8*(Y48-1)+5 -> 13 | DN49: =8*(Y48-1)+6 -> 14 | DO49: =8*(Y48-1)+7 -> 15 | DP49: =8*(Y48-1)+8 -> 16 | DQ49: =8*(Y48-1)+9 -> 17 | DR49: =8*(Y48-1)+10 -> 18 | DS49: =8*(Y48-1)+11 -> 19 | DT49: =8*(Y48-1)+12 -> 20 | DW49: =AJ50*2-1 -> 55 | DX49: =8*(AJ48-1)+5 -> 13 | DY49: =8*(AJ48-1)+6 -> 14 | DZ49: =8*(AJ48-1)+7 -> 15 | EA49: =8*(AJ48-1)+8 -> 16 | EB49: =8*(AJ48-1)+9 -> 17 | EC49: =8*(AJ48-1)+10 -> 18 | ED49: =8*(AJ48-1)+11 -> 19 | EE49: =8*(AJ48-1)+12 -> 20 | EH49: =AU50*2-1 -> 55 | EI49: =8*(AU48-1)+5 -> 13 | EJ49: =8*(AU48-1)+6 -> 14 | EK49: =8*(AU48-1)+7 -> 15 | EL49: =8*(AU48-1)+8 -> 16 | EM49: =8*(AU48-1)+9 -> 17 | EN49: =8*(AU48-1)+10 -> 18 | EO49: =8*(AU48-1)+11 -> 19 | EP49: =8*(AU48-1)+12 -> 20 | ES49: =BF50*2-1 -> 55 | ET49: =8*(BF48-1)+5 -> 13 | EU49: =8*(BF48-1)+6 -> 14 | EV49: =8*(BF48-1)+7 -> 15 | EW49: =8*(BF48-1)+8 -> 16 | EX49: =8*(BF48-1)+9 -> 17 | EY49: =8*(BF48-1)+10 -> 18 | EZ49: =8*(BF48-1)+11 -> 19 | FA49: =8*(BF48-1)+12 -> 20 | FD49: =BQ50*2-1 -> 55 | FE49: =8*(BQ48-1)+5 -> 13 | FF49: =8*(BQ48-1)+6 -> 14 | FG49: =8*(BQ48-1)+7 -> 15 | FH49: =8*(BQ48-1)+8 -> 16 | FI49: =8*(BQ48-1)+9 -> 17 | FJ49: =8*(BQ48-1)+10 -> 18 | FK49: =8*(BQ48-1)+11 -> 19 | FL49: =8*(BQ48-1)+12 -> 20 | FO49: =CB50*2-1 -> 55 | FP49: =8*(CB48-1)+5 -> 13 | FQ49: =8*(CB48-1)+6 -> 14 | FR49: =8*(CB48-1)+7 -> 15 | FS49: =8*(CB48-1)+8 -> 16 | FT49: =8*(CB48-1)+9 -> 17 | FU49: =8*(CB48-1)+10 -> 18 | FV49: =8*(CB48-1)+11 -> 19 | FW49: =8*(CB48-1)+12 -> 20
C50: 28 | D50: =VLOOKUP(CP50,教科担当一覧2!$D$9:$BA$428,4) ->  | E50: =VLOOKUP(CP50,教科担当一覧2!$D$9:$BA$428,CQ49) ->  | F50: =VLOOKUP(CP50,教科担当一覧2!$D$9:$BA$428,CR49) ->  | G50: =VLOOKUP(CP50,教科担当一覧2!$D$9:$BA$428,CS49) ->  | H50: =VLOOKUP(CP50,教科担当一覧2!$D$9:$BA$428,CT49) -> 世史 | I50: =VLOOKUP(CP50,教科担当一覧2!$D$9:$BA$428,CU49) -> 世史 | J50: =VLOOKUP(CP50,教科担当一覧2!$D$9:$BA$428,CV49) -> 世史 | K50: =VLOOKUP(CP50,教科担当一覧2!$D$9:$BA$428,CW49) -> * | L50: =VLOOKUP(CP50,教科担当一覧2!$D$9:$BA$428,CX49) -> * | N50: 28 | O50: =VLOOKUP(DA50,教科担当一覧2!$D$9:$BA$428,4) ->  | P50: =VLOOKUP(DA50,教科担当一覧2!$D$9:$BA$428,DB49) ->  | Q50: =VLOOKUP(DA50,教科担当一覧2!$D$9:$BA$428,DC49) ->  | R50: =VLOOKUP(DA50,教科担当一覧2!$D$9:$BA$428,DD49) ->  | S50: =VLOOKUP(DA50,教科担当一覧2!$D$9:$BA$428,DE49) -> 世史 | T50: =VLOOKUP(DA50,教科担当一覧2!$D$9:$BA$428,DF49) -> 世史 | U50: =VLOOKUP(DA50,教科担当一覧2!$D$9:$BA$428,DG49) -> 世史 | V50: =VLOOKUP(DA50,教科担当一覧2!$D$9:$BA$428,DH49) -> * | W50: =VLOOKUP(DA50,教科担当一覧2!$D$9:$BA$428,DI49) -> * | Y50: 28 | Z50: =VLOOKUP(DL50,教科担当一覧2!$D$9:$BA$428,4) ->  | AA50: =VLOOKUP(DL50,教科担当一覧2!$D$9:$BA$428,DM49) ->  | AB50: =VLOOKUP(DL50,教科担当一覧2!$D$9:$BA$428,DN49) ->  | AC50: =VLOOKUP(DL50,教科担当一覧2!$D$9:$BA$428,DO49) ->  | AD50: =VLOOKUP(DL50,教科担当一覧2!$D$9:$BA$428,DP49) -> 世史 | AE50: =VLOOKUP(DL50,教科担当一覧2!$D$9:$BA$428,DQ49) -> 世史 | AF50: =VLOOKUP(DL50,教科担当一覧2!$D$9:$BA$428,DR49) -> 世史 | AG50: =VLOOKUP(DL50,教科担当一覧2!$D$9:$BA$428,DS49) -> * | AH50: =VLOOKUP(DL50,教科担当一覧2!$D$9:$BA$428,DT49) -> * | AJ50: 28 | AK50: =VLOOKUP(DW50,教科担当一覧2!$D$9:$BA$428,4) ->  | AL50: =VLOOKUP(DW50,教科担当一覧2!$D$9:$BA$428,DX49) ->  | AM50: =VLOOKUP(DW50,教科担当一覧2!$D$9:$BA$428,DY49) ->  | AN50: =VLOOKUP(DW50,教科担当一覧2!$D$9:$BA$428,DZ49) ->  | AO50: =VLOOKUP(DW50,教科担当一覧2!$D$9:$BA$428,EA49) -> 世史 | AP50: =VLOOKUP(DW50,教科担当一覧2!$D$9:$BA$428,EB49) -> 世史 | AQ50: =VLOOKUP(DW50,教科担当一覧2!$D$9:$BA$428,EC49) -> 世史 | AR50: =VLOOKUP(DW50,教科担当一覧2!$D$9:$BA$428,ED49) -> * | AS50: =VLOOKUP(DW50,教科担当一覧2!$D$9:$BA$428,EE49) -> * | AU50: 28 | AV50: =VLOOKUP(EH50,教科担当一覧2!$D$9:$BA$428,4) ->  | AW50: =VLOOKUP(EH50,教科担当一覧2!$D$9:$BA$428,EI49) ->  | AX50: =VLOOKUP(EH50,教科担当一覧2!$D$9:$BA$428,EJ49) ->  | AY50: =VLOOKUP(EH50,教科担当一覧2!$D$9:$BA$428,EK49) ->  | AZ50: =VLOOKUP(EH50,教科担当一覧2!$D$9:$BA$428,EL49) -> 世史 | BA50: =VLOOKUP(EH50,教科担当一覧2!$D$9:$BA$428,EM49) -> 世史 | BB50: =VLOOKUP(EH50,教科担当一覧2!$D$9:$BA$428,EN49) -> 世史 | BC50: =VLOOKUP(EH50,教科担当一覧2!$D$9:$BA$428,EO49) -> * | BD50: =VLOOKUP(EH50,教科担当一覧2!$D$9:$BA$428,EP49) -> * | BF50: 28 | BG50: =VLOOKUP(ES50,教科担当一覧2!$D$9:$BA$428,4) ->  | BH50: =VLOOKUP(ES50,教科担当一覧2!$D$9:$BA$428,ET49) ->  | BI50: =VLOOKUP(ES50,教科担当一覧2!$D$9:$BA$428,EU49) ->  | BJ50: =VLOOKUP(ES50,教科担当一覧2!$D$9:$BA$428,EV49) ->  | BK50: =VLOOKUP(ES50,教科担当一覧2!$D$9:$BA$428,EW49) -> 世史 | BL50: =VLOOKUP(ES50,教科担当一覧2!$D$9:$BA$428,EX49) -> 世史 | BM50: =VLOOKUP(ES50,教科担当一覧2!$D$9:$BA$428,EY49) -> 世史 | BN50: =VLOOKUP(ES50,教科担当一覧2!$D$9:$BA$428,EZ49) -> * | BO50: =VLOOKUP(ES50,教科担当一覧2!$D$9:$BA$428,FA49) -> * | BQ50: 28 | BR50: =VLOOKUP(FD50,教科担当一覧2!$D$9:$BA$428,4) ->  | BS50: =VLOOKUP(FD50,教科担当一覧2!$D$9:$BA$428,FE49) ->  | BT50: =VLOOKUP(FD50,教科担当一覧2!$D$9:$BA$428,FF49) ->  | BU50: =VLOOKUP(FD50,教科担当一覧2!$D$9:$BA$428,FG49) ->  | BV50: =VLOOKUP(FD50,教科担当一覧2!$D$9:$BA$428,FH49) -> 世史 | BW50: =VLOOKUP(FD50,教科担当一覧2!$D$9:$BA$428,FI49) -> 世史 | BX50: =VLOOKUP(FD50,教科担当一覧2!$D$9:$BA$428,FJ49) -> 世史 | BY50: =VLOOKUP(FD50,教科担当一覧2!$D$9:$BA$428,FK49) -> * | BZ50: =VLOOKUP(FD50,教科担当一覧2!$D$9:$BA$428,FL49) -> * | CB50: 28 | CC50: =VLOOKUP(FO50,教科担当一覧2!$D$9:$BA$428,4) ->  | CD50: =VLOOKUP(FO50,教科担当一覧2!$D$9:$BA$428,FP49) ->  | CE50: =VLOOKUP(FO50,教科担当一覧2!$D$9:$BA$428,FQ49) ->  | CF50: =VLOOKUP(FO50,教科担当一覧2!$D$9:$BA$428,FR49) ->  | CG50: =VLOOKUP(FO50,教科担当一覧2!$D$9:$BA$428,FS49) -> 世史 | CH50: =VLOOKUP(FO50,教科担当一覧2!$D$9:$BA$428,FT49) -> 世史 | CI50: =VLOOKUP(FO50,教科担当一覧2!$D$9:$BA$428,FU49) -> 世史 | CJ50: =VLOOKUP(FO50,教科担当一覧2!$D$9:$BA$428,FV49) -> * | CK50: =VLOOKUP(FO50,教科担当一覧2!$D$9:$BA$428,FW49) -> * | CP50: =C50*2 -> 56 | DA50: =N50*2 -> 56 | DL50: =Y50*2 -> 56 | DW50: =AJ50*2 -> 56 | EH50: =AU50*2 -> 56 | ES50: =BF50*2 -> 56 | FD50: =BQ50*2 -> 56 | FO50: =CB50*2 -> 56
B51: A11 | C51: 曜日ｺｰﾄﾞ | D51: 教科 | G51: =VLOOKUP(C52,曜日コード!$G$5:$H$10,2) -> 火曜 | M51: B11 | N51: 曜日ｺｰﾄﾞ | O51: 教科 | R51: =VLOOKUP(N52,曜日コード!$G$5:$H$10,2) -> 火曜 | X51: C11 | Y51: 曜日ｺｰﾄﾞ | Z51: 教科 | AC51: =VLOOKUP(Y52,曜日コード!$G$5:$H$10,2) -> 火曜 | AI51: D11 | AJ51: 曜日ｺｰﾄﾞ | AK51: 教科 | AN51: =VLOOKUP(AJ52,曜日コード!$G$5:$H$10,2) -> 火曜 | AT51: E11 | AU51: 曜日ｺｰﾄﾞ | AV51: 教科 | AY51: =VLOOKUP(AU52,曜日コード!$G$5:$H$10,2) -> 火曜 | BE51: F11 | BF51: 曜日ｺｰﾄﾞ | BG51: 教科 | BJ51: =VLOOKUP(BF52,曜日コード!$G$5:$H$10,2) -> 火曜 | BP51: G11 | BQ51: 曜日ｺｰﾄﾞ | BR51: 教科 | BU51: =VLOOKUP(BQ52,曜日コード!$G$5:$H$10,2) -> 火曜 | CA51: H11 | CB51: 曜日ｺｰﾄﾞ | CC51: 教科 | CF51: =VLOOKUP(CB52,曜日コード!$G$5:$H$10,2) -> 火曜 | CO51: A11 | CP51: ｵﾌｾｯﾄ | CS51: =VLOOKUP(C52,曜日コード!$G$5:$H$10,2) -> 火曜 | CZ51: B11 | DA51: ｵﾌｾｯﾄ | DD51: =VLOOKUP(N52,曜日コード!$G$5:$H$10,2) -> 火曜 | DK51: C11 | DL51: ｵﾌｾｯﾄ | DO51: =VLOOKUP(Y52,曜日コード!$G$5:$H$10,2) -> 火曜 | DV51: D11 | DW51: ｵﾌｾｯﾄ | DZ51: =VLOOKUP(AJ52,曜日コード!$G$5:$H$10,2) -> 火曜 | EG51: E11 | EH51: ｵﾌｾｯﾄ | EK51: =VLOOKUP(AU52,曜日コード!$G$5:$H$10,2) -> 火曜 | ER51: F11 | ES51: ｵﾌｾｯﾄ | EV51: =VLOOKUP(BF52,曜日コード!$G$5:$H$10,2) -> 火曜 | FC51: G11 | FD51: ｵﾌｾｯﾄ | FG51: =VLOOKUP(BQ52,曜日コード!$G$5:$H$10,2) -> 火曜 | FN51: H11 | FO51: ｵﾌｾｯﾄ | FR51: =VLOOKUP(CB52,曜日コード!$G$5:$H$10,2) -> 火曜
C52: 2 | D52: 担当 | E52: 1 | F52: 2 | G52: 3 | H52: 4 | I52: 5 | J52: 6 | K52: 7 | L52: 8 | N52: 2 | O52: 担当 | P52: 1 | Q52: 2 | R52: 3 | S52: 4 | T52: 5 | U52: 6 | V52: 7 | W52: 8 | Y52: 2 | Z52: 担当 | AA52: 1 | AB52: 2 | AC52: 3 | AD52: 4 | AE52: 5 | AF52: 6 | AG52: 7 | AH52: 8 | AJ52: 2 | AK52: 担当 | AL52: 1 | AM52: 2 | AN52: 3 | AO52: 4 | AP52: 5 | AQ52: 6 | AR52: 7 | AS52: 8 | AU52: 2 | AV52: 担当 | AW52: 1 | AX52: 2 | AY52: 3 | AZ52: 4 | BA52: 5 | BB52: 6 | BC52: 7 | BD52: 8 | BF52: 2 | BG52: 担当 | BH52: 1 | BI52: 2 | BJ52: 3 | BK52: 4 | BL52: 5 | BM52: 6 | BN52: 7 | BO52: 8 | BQ52: 2 | BR52: 担当 | BS52: 1 | BT52: 2 | BU52: 3 | BV52: 4 | BW52: 5 | BX52: 6 | BY52: 7 | BZ52: 8 | CB52: 2 | CC52: 担当 | CD52: 1 | CE52: 2 | CF52: 3 | CG52: 4 | CH52: 5 | CI52: 6 | CJ52: 7 | CK52: 8 | CP52: 番号 | CQ52: 1 | CR52: 2 | CS52: 3 | CT52: 4 | CU52: 5 | CV52: 6 | CW52: 7 | CX52: 8 | DA52: 番号 | DB52: 1 | DC52: 2 | DD52: 3 | DE52: 4 | DF52: 5 | DG52: 6 | DH52: 7 | DI52: 8 | DL52: 番号 | DM52: 1 | DN52: 2 | DO52: 3 | DP52: 4 | DQ52: 5 | DR52: 6 | DS52: 7 | DT52: 8 | DW52: 番号 | DX52: 1 | DY52: 2 | DZ52: 3 | EA52: 4 | EB52: 5 | EC52: 6 | ED52: 7 | EE52: 8 | EH52: 番号 | EI52: 1 | EJ52: 2 | EK52: 3 | EL52: 4 | EM52: 5 | EN52: 6 | EO52: 7 | EP52: 8 | ES52: 番号 | ET52: 1 | EU52: 2 | EV52: 3 | EW52: 4 | EX52: 5 | EY52: 6 | EZ52: 7 | FA52: 8 | FD52: 番号 | FE52: 1 | FF52: 2 | FG52: 3 | FH52: 4 | FI52: 5 | FJ52: 6 | FK52: 7 | FL52: 8 | FO52: 番号 | FP52: 1 | FQ52: 2 | FR52: 3 | FS52: 4 | FT52: 5 | FU52: 6 | FV52: 7 | FW52: 8
C53: 担当ｺｰﾄﾞ | D53: =VLOOKUP(CP53,教科担当一覧2!$D$9:$BA$428,4) -> 高橋 | E53: =VLOOKUP(CP53,教科担当一覧2!$D$9:$BA$428,CQ53) -> ・ | F53: =VLOOKUP(CP53,教科担当一覧2!$D$9:$BA$428,CR53) -> ・ | G53: =VLOOKUP(CP53,教科担当一覧2!$D$9:$BA$428,CS53) -> ・ | H53: =VLOOKUP(CP53,教科担当一覧2!$D$9:$BA$428,CT53) -> 2-3 | I53: =VLOOKUP(CP53,教科担当一覧2!$D$9:$BA$428,CU53) -> 2-4 | J53: =VLOOKUP(CP53,教科担当一覧2!$D$9:$BA$428,CV53) -> 2-5 | K53: =VLOOKUP(CP53,教科担当一覧2!$D$9:$BA$428,CW53) -> * | L53: =VLOOKUP(CP53,教科担当一覧2!$D$9:$BA$428,CX53) -> * | N53: 担当ｺｰﾄﾞ | O53: =VLOOKUP(DA53,教科担当一覧2!$D$9:$BA$428,4) -> 高橋 | P53: =VLOOKUP(DA53,教科担当一覧2!$D$9:$BA$428,DB53) -> ・ | Q53: =VLOOKUP(DA53,教科担当一覧2!$D$9:$BA$428,DC53) -> ・ | R53: =VLOOKUP(DA53,教科担当一覧2!$D$9:$BA$428,DD53) -> ・ | S53: =VLOOKUP(DA53,教科担当一覧2!$D$9:$BA$428,DE53) -> 2-3 | T53: =VLOOKUP(DA53,教科担当一覧2!$D$9:$BA$428,DF53) -> 2-4 | U53: =VLOOKUP(DA53,教科担当一覧2!$D$9:$BA$428,DG53) -> 2-5 | V53: =VLOOKUP(DA53,教科担当一覧2!$D$9:$BA$428,DH53) -> * | W53: =VLOOKUP(DA53,教科担当一覧2!$D$9:$BA$428,DI53) -> * | Y53: 担当ｺｰﾄﾞ | Z53: =VLOOKUP(DL53,教科担当一覧2!$D$9:$BA$428,4) -> 高橋 | AA53: =VLOOKUP(DL53,教科担当一覧2!$D$9:$BA$428,DM53) -> ・ | AB53: =VLOOKUP(DL53,教科担当一覧2!$D$9:$BA$428,DN53) -> ・ | AC53: =VLOOKUP(DL53,教科担当一覧2!$D$9:$BA$428,DO53) -> ・ | AD53: =VLOOKUP(DL53,教科担当一覧2!$D$9:$BA$428,DP53) -> 2-3 | AE53: =VLOOKUP(DL53,教科担当一覧2!$D$9:$BA$428,DQ53) -> 2-4 | AF53: =VLOOKUP(DL53,教科担当一覧2!$D$9:$BA$428,DR53) -> 2-5 | AG53: =VLOOKUP(DL53,教科担当一覧2!$D$9:$BA$428,DS53) -> * | AH53: =VLOOKUP(DL53,教科担当一覧2!$D$9:$BA$428,DT53) -> * | AJ53: 担当ｺｰﾄﾞ | AK53: =VLOOKUP(DW53,教科担当一覧2!$D$9:$BA$428,4) -> 高橋 | AL53: =VLOOKUP(DW53,教科担当一覧2!$D$9:$BA$428,DX53) -> ・ | AM53: =VLOOKUP(DW53,教科担当一覧2!$D$9:$BA$428,DY53) -> ・ | AN53: =VLOOKUP(DW53,教科担当一覧2!$D$9:$BA$428,DZ53) -> ・ | AO53: =VLOOKUP(DW53,教科担当一覧2!$D$9:$BA$428,EA53) -> 2-3 | AP53: =VLOOKUP(DW53,教科担当一覧2!$D$9:$BA$428,EB53) -> 2-4 | AQ53: =VLOOKUP(DW53,教科担当一覧2!$D$9:$BA$428,EC53) -> 2-5 | AR53: =VLOOKUP(DW53,教科担当一覧2!$D$9:$BA$428,ED53) -> * | AS53: =VLOOKUP(DW53,教科担当一覧2!$D$9:$BA$428,EE53) -> * | AU53: 担当ｺｰﾄﾞ | AV53: =VLOOKUP(EH53,教科担当一覧2!$D$9:$BA$428,4) -> 高橋 | AW53: =VLOOKUP(EH53,教科担当一覧2!$D$9:$BA$428,EI53) -> ・ | AX53: =VLOOKUP(EH53,教科担当一覧2!$D$9:$BA$428,EJ53) -> ・ | AY53: =VLOOKUP(EH53,教科担当一覧2!$D$9:$BA$428,EK53) -> ・ | AZ53: =VLOOKUP(EH53,教科担当一覧2!$D$9:$BA$428,EL53) -> 2-3 | BA53: =VLOOKUP(EH53,教科担当一覧2!$D$9:$BA$428,EM53) -> 2-4 | BB53: =VLOOKUP(EH53,教科担当一覧2!$D$9:$BA$428,EN53) -> 2-5 | BC53: =VLOOKUP(EH53,教科担当一覧2!$D$9:$BA$428,EO53) -> * | BD53: =VLOOKUP(EH53,教科担当一覧2!$D$9:$BA$428,EP53) -> * | BF53: 担当ｺｰﾄﾞ | BG53: =VLOOKUP(ES53,教科担当一覧2!$D$9:$BA$428,4) -> 高橋 | BH53: =VLOOKUP(ES53,教科担当一覧2!$D$9:$BA$428,ET53) -> ・ | BI53: =VLOOKUP(ES53,教科担当一覧2!$D$9:$BA$428,EU53) -> ・ | BJ53: =VLOOKUP(ES53,教科担当一覧2!$D$9:$BA$428,EV53) -> ・ | BK53: =VLOOKUP(ES53,教科担当一覧2!$D$9:$BA$428,EW53) -> 2-3 | BL53: =VLOOKUP(ES53,教科担当一覧2!$D$9:$BA$428,EX53) -> 2-4 | BM53: =VLOOKUP(ES53,教科担当一覧2!$D$9:$BA$428,EY53) -> 2-5 | BN53: =VLOOKUP(ES53,教科担当一覧2!$D$9:$BA$428,EZ53) -> * | BO53: =VLOOKUP(ES53,教科担当一覧2!$D$9:$BA$428,FA53) -> * | BQ53: 担当ｺｰﾄﾞ | BR53: =VLOOKUP(FD53,教科担当一覧2!$D$9:$BA$428,4) -> 高橋 | BS53: =VLOOKUP(FD53,教科担当一覧2!$D$9:$BA$428,FE53) -> ・ | BT53: =VLOOKUP(FD53,教科担当一覧2!$D$9:$BA$428,FF53) -> ・ | BU53: =VLOOKUP(FD53,教科担当一覧2!$D$9:$BA$428,FG53) -> ・ | BV53: =VLOOKUP(FD53,教科担当一覧2!$D$9:$BA$428,FH53) -> 2-3 | BW53: =VLOOKUP(FD53,教科担当一覧2!$D$9:$BA$428,FI53) -> 2-4 | BX53: =VLOOKUP(FD53,教科担当一覧2!$D$9:$BA$428,FJ53) -> 2-5 | BY53: =VLOOKUP(FD53,教科担当一覧2!$D$9:$BA$428,FK53) -> * | BZ53: =VLOOKUP(FD53,教科担当一覧2!$D$9:$BA$428,FL53) -> * | CB53: 担当ｺｰﾄﾞ | CC53: =VLOOKUP(FO53,教科担当一覧2!$D$9:$BA$428,4) -> 高橋 | CD53: =VLOOKUP(FO53,教科担当一覧2!$D$9:$BA$428,FP53) -> ・ | CE53: =VLOOKUP(FO53,教科担当一覧2!$D$9:$BA$428,FQ53) -> ・ | CF53: =VLOOKUP(FO53,教科担当一覧2!$D$9:$BA$428,FR53) -> ・ | CG53: =VLOOKUP(FO53,教科担当一覧2!$D$9:$BA$428,FS53) -> 2-3 | CH53: =VLOOKUP(FO53,教科担当一覧2!$D$9:$BA$428,FT53) -> 2-4 | CI53: =VLOOKUP(FO53,教科担当一覧2!$D$9:$BA$428,FU53) -> 2-5 | CJ53: =VLOOKUP(FO53,教科担当一覧2!$D$9:$BA$428,FV53) -> * | CK53: =VLOOKUP(FO53,教科担当一覧2!$D$9:$BA$428,FW53) -> * | CP53: =C54*2-1 -> 55 | CQ53: =8*(C52-1)+5 -> 13 | CR53: =8*(C52-1)+6 -> 14 | CS53: =8*(C52-1)+7 -> 15 | CT53: =8*(C52-1)+8 -> 16 | CU53: =8*(C52-1)+9 -> 17 | CV53: =8*(C52-1)+10 -> 18 | CW53: =8*(C52-1)+11 -> 19 | CX53: =8*(C52-1)+12 -> 20 | DA53: =N54*2-1 -> 55 | DB53: =8*(N52-1)+5 -> 13 | DC53: =8*(N52-1)+6 -> 14 | DD53: =8*(N52-1)+7 -> 15 | DE53: =8*(N52-1)+8 -> 16 | DF53: =8*(N52-1)+9 -> 17 | DG53: =8*(N52-1)+10 -> 18 | DH53: =8*(N52-1)+11 -> 19 | DI53: =8*(N52-1)+12 -> 20 | DL53: =Y54*2-1 -> 55 | DM53: =8*(Y52-1)+5 -> 13 | DN53: =8*(Y52-1)+6 -> 14 | DO53: =8*(Y52-1)+7 -> 15 | DP53: =8*(Y52-1)+8 -> 16 | DQ53: =8*(Y52-1)+9 -> 17 | DR53: =8*(Y52-1)+10 -> 18 | DS53: =8*(Y52-1)+11 -> 19 | DT53: =8*(Y52-1)+12 -> 20 | DW53: =AJ54*2-1 -> 55 | DX53: =8*(AJ52-1)+5 -> 13 | DY53: =8*(AJ52-1)+6 -> 14 | DZ53: =8*(AJ52-1)+7 -> 15 | EA53: =8*(AJ52-1)+8 -> 16 | EB53: =8*(AJ52-1)+9 -> 17 | EC53: =8*(AJ52-1)+10 -> 18 | ED53: =8*(AJ52-1)+11 -> 19 | EE53: =8*(AJ52-1)+12 -> 20 | EH53: =AU54*2-1 -> 55 | EI53: =8*(AU52-1)+5 -> 13 | EJ53: =8*(AU52-1)+6 -> 14 | EK53: =8*(AU52-1)+7 -> 15 | EL53: =8*(AU52-1)+8 -> 16 | EM53: =8*(AU52-1)+9 -> 17 | EN53: =8*(AU52-1)+10 -> 18 | EO53: =8*(AU52-1)+11 -> 19 | EP53: =8*(AU52-1)+12 -> 20 | ES53: =BF54*2-1 -> 55 | ET53: =8*(BF52-1)+5 -> 13 | EU53: =8*(BF52-1)+6 -> 14 | EV53: =8*(BF52-1)+7 -> 15 | EW53: =8*(BF52-1)+8 -> 16 | EX53: =8*(BF52-1)+9 -> 17 | EY53: =8*(BF52-1)+10 -> 18 | EZ53: =8*(BF52-1)+11 -> 19 | FA53: =8*(BF52-1)+12 -> 20 | FD53: =BQ54*2-1 -> 55 | FE53: =8*(BQ52-1)+5 -> 13 | FF53: =8*(BQ52-1)+6 -> 14 | FG53: =8*(BQ52-1)+7 -> 15 | FH53: =8*(BQ52-1)+8 -> 16 | FI53: =8*(BQ52-1)+9 -> 17 | FJ53: =8*(BQ52-1)+10 -> 18 | FK53: =8*(BQ52-1)+11 -> 19 | FL53: =8*(BQ52-1)+12 -> 20 | FO53: =CB54*2-1 -> 55 | FP53: =8*(CB52-1)+5 -> 13 | FQ53: =8*(CB52-1)+6 -> 14 | FR53: =8*(CB52-1)+7 -> 15 | FS53: =8*(CB52-1)+8 -> 16 | FT53: =8*(CB52-1)+9 -> 17 | FU53: =8*(CB52-1)+10 -> 18 | FV53: =8*(CB52-1)+11 -> 19 | FW53: =8*(CB52-1)+12 -> 20
C54: 28 | D54: =VLOOKUP(CP54,教科担当一覧2!$D$9:$BA$428,4) ->  | E54: =VLOOKUP(CP54,教科担当一覧2!$D$9:$BA$428,CQ53) ->  | F54: =VLOOKUP(CP54,教科担当一覧2!$D$9:$BA$428,CR53) ->  | G54: =VLOOKUP(CP54,教科担当一覧2!$D$9:$BA$428,CS53) ->  | H54: =VLOOKUP(CP54,教科担当一覧2!$D$9:$BA$428,CT53) -> 世史 | I54: =VLOOKUP(CP54,教科担当一覧2!$D$9:$BA$428,CU53) -> 世史 | J54: =VLOOKUP(CP54,教科担当一覧2!$D$9:$BA$428,CV53) -> 世史 | K54: =VLOOKUP(CP54,教科担当一覧2!$D$9:$BA$428,CW53) -> * | L54: =VLOOKUP(CP54,教科担当一覧2!$D$9:$BA$428,CX53) -> * | N54: 28 | O54: =VLOOKUP(DA54,教科担当一覧2!$D$9:$BA$428,4) ->  | P54: =VLOOKUP(DA54,教科担当一覧2!$D$9:$BA$428,DB53) ->  | Q54: =VLOOKUP(DA54,教科担当一覧2!$D$9:$BA$428,DC53) ->  | R54: =VLOOKUP(DA54,教科担当一覧2!$D$9:$BA$428,DD53) ->  | S54: =VLOOKUP(DA54,教科担当一覧2!$D$9:$BA$428,DE53) -> 世史 | T54: =VLOOKUP(DA54,教科担当一覧2!$D$9:$BA$428,DF53) -> 世史 | U54: =VLOOKUP(DA54,教科担当一覧2!$D$9:$BA$428,DG53) -> 世史 | V54: =VLOOKUP(DA54,教科担当一覧2!$D$9:$BA$428,DH53) -> * | W54: =VLOOKUP(DA54,教科担当一覧2!$D$9:$BA$428,DI53) -> * | Y54: 28 | Z54: =VLOOKUP(DL54,教科担当一覧2!$D$9:$BA$428,4) ->  | AA54: =VLOOKUP(DL54,教科担当一覧2!$D$9:$BA$428,DM53) ->  | AB54: =VLOOKUP(DL54,教科担当一覧2!$D$9:$BA$428,DN53) ->  | AC54: =VLOOKUP(DL54,教科担当一覧2!$D$9:$BA$428,DO53) ->  | AD54: =VLOOKUP(DL54,教科担当一覧2!$D$9:$BA$428,DP53) -> 世史 | AE54: =VLOOKUP(DL54,教科担当一覧2!$D$9:$BA$428,DQ53) -> 世史 | AF54: =VLOOKUP(DL54,教科担当一覧2!$D$9:$BA$428,DR53) -> 世史 | AG54: =VLOOKUP(DL54,教科担当一覧2!$D$9:$BA$428,DS53) -> * | AH54: =VLOOKUP(DL54,教科担当一覧2!$D$9:$BA$428,DT53) -> * | AJ54: 28 | AK54: =VLOOKUP(DW54,教科担当一覧2!$D$9:$BA$428,4) ->  | AL54: =VLOOKUP(DW54,教科担当一覧2!$D$9:$BA$428,DX53) ->  | AM54: =VLOOKUP(DW54,教科担当一覧2!$D$9:$BA$428,DY53) ->  | AN54: =VLOOKUP(DW54,教科担当一覧2!$D$9:$BA$428,DZ53) ->  | AO54: =VLOOKUP(DW54,教科担当一覧2!$D$9:$BA$428,EA53) -> 世史 | AP54: =VLOOKUP(DW54,教科担当一覧2!$D$9:$BA$428,EB53) -> 世史 | AQ54: =VLOOKUP(DW54,教科担当一覧2!$D$9:$BA$428,EC53) -> 世史 | AR54: =VLOOKUP(DW54,教科担当一覧2!$D$9:$BA$428,ED53) -> * | AS54: =VLOOKUP(DW54,教科担当一覧2!$D$9:$BA$428,EE53) -> * | AU54: 28 | AV54: =VLOOKUP(EH54,教科担当一覧2!$D$9:$BA$428,4) ->  | AW54: =VLOOKUP(EH54,教科担当一覧2!$D$9:$BA$428,EI53) ->  | AX54: =VLOOKUP(EH54,教科担当一覧2!$D$9:$BA$428,EJ53) ->  | AY54: =VLOOKUP(EH54,教科担当一覧2!$D$9:$BA$428,EK53) ->  | AZ54: =VLOOKUP(EH54,教科担当一覧2!$D$9:$BA$428,EL53) -> 世史 | BA54: =VLOOKUP(EH54,教科担当一覧2!$D$9:$BA$428,EM53) -> 世史 | BB54: =VLOOKUP(EH54,教科担当一覧2!$D$9:$BA$428,EN53) -> 世史 | BC54: =VLOOKUP(EH54,教科担当一覧2!$D$9:$BA$428,EO53) -> * | BD54: =VLOOKUP(EH54,教科担当一覧2!$D$9:$BA$428,EP53) -> * | BF54: 28 | BG54: =VLOOKUP(ES54,教科担当一覧2!$D$9:$BA$428,4) ->  | BH54: =VLOOKUP(ES54,教科担当一覧2!$D$9:$BA$428,ET53) ->  | BI54: =VLOOKUP(ES54,教科担当一覧2!$D$9:$BA$428,EU53) ->  | BJ54: =VLOOKUP(ES54,教科担当一覧2!$D$9:$BA$428,EV53) ->  | BK54: =VLOOKUP(ES54,教科担当一覧2!$D$9:$BA$428,EW53) -> 世史 | BL54: =VLOOKUP(ES54,教科担当一覧2!$D$9:$BA$428,EX53) -> 世史 | BM54: =VLOOKUP(ES54,教科担当一覧2!$D$9:$BA$428,EY53) -> 世史 | BN54: =VLOOKUP(ES54,教科担当一覧2!$D$9:$BA$428,EZ53) -> * | BO54: =VLOOKUP(ES54,教科担当一覧2!$D$9:$BA$428,FA53) -> * | BQ54: 28 | BR54: =VLOOKUP(FD54,教科担当一覧2!$D$9:$BA$428,4) ->  | BS54: =VLOOKUP(FD54,教科担当一覧2!$D$9:$BA$428,FE53) ->  | BT54: =VLOOKUP(FD54,教科担当一覧2!$D$9:$BA$428,FF53) ->  | BU54: =VLOOKUP(FD54,教科担当一覧2!$D$9:$BA$428,FG53) ->  | BV54: =VLOOKUP(FD54,教科担当一覧2!$D$9:$BA$428,FH53) -> 世史 | BW54: =VLOOKUP(FD54,教科担当一覧2!$D$9:$BA$428,FI53) -> 世史 | BX54: =VLOOKUP(FD54,教科担当一覧2!$D$9:$BA$428,FJ53) -> 世史 | BY54: =VLOOKUP(FD54,教科担当一覧2!$D$9:$BA$428,FK53) -> * | BZ54: =VLOOKUP(FD54,教科担当一覧2!$D$9:$BA$428,FL53) -> * | CB54: 28 | CC54: =VLOOKUP(FO54,教科担当一覧2!$D$9:$BA$428,4) ->  | CD54: =VLOOKUP(FO54,教科担当一覧2!$D$9:$BA$428,FP53) ->  | CE54: =VLOOKUP(FO54,教科担当一覧2!$D$9:$BA$428,FQ53) ->  | CF54: =VLOOKUP(FO54,教科担当一覧2!$D$9:$BA$428,FR53) ->  | CG54: =VLOOKUP(FO54,教科担当一覧2!$D$9:$BA$428,FS53) -> 世史 | CH54: =VLOOKUP(FO54,教科担当一覧2!$D$9:$BA$428,FT53) -> 世史 | CI54: =VLOOKUP(FO54,教科担当一覧2!$D$9:$BA$428,FU53) -> 世史 | CJ54: =VLOOKUP(FO54,教科担当一覧2!$D$9:$BA$428,FV53) -> * | CK54: =VLOOKUP(FO54,教科担当一覧2!$D$9:$BA$428,FW53) -> * | CP54: =C54*2 -> 56 | DA54: =N54*2 -> 56 | DL54: =Y54*2 -> 56 | DW54: =AJ54*2 -> 56 | EH54: =AU54*2 -> 56 | ES54: =BF54*2 -> 56 | FD54: =BQ54*2 -> 56 | FO54: =CB54*2 -> 56
B55: A12 | C55: 曜日ｺｰﾄﾞ | D55: 教科 | G55: =VLOOKUP(C56,曜日コード!$G$5:$H$10,2) -> 火曜 | M55: B12 | N55: 曜日ｺｰﾄﾞ | O55: 教科 | R55: =VLOOKUP(N56,曜日コード!$G$5:$H$10,2) -> 火曜 | X55: C12 | Y55: 曜日ｺｰﾄﾞ | Z55: 教科 | AC55: =VLOOKUP(Y56,曜日コード!$G$5:$H$10,2) -> 火曜 | AI55: D12 | AJ55: 曜日ｺｰﾄﾞ | AK55: 教科 | AN55: =VLOOKUP(AJ56,曜日コード!$G$5:$H$10,2) -> 火曜 | AT55: E12 | AU55: 曜日ｺｰﾄﾞ | AV55: 教科 | AY55: =VLOOKUP(AU56,曜日コード!$G$5:$H$10,2) -> 火曜 | BE55: F12 | BF55: 曜日ｺｰﾄﾞ | BG55: 教科 | BJ55: =VLOOKUP(BF56,曜日コード!$G$5:$H$10,2) -> 火曜 | BP55: G12 | BQ55: 曜日ｺｰﾄﾞ | BR55: 教科 | BU55: =VLOOKUP(BQ56,曜日コード!$G$5:$H$10,2) -> 火曜 | CA55: H12 | CB55: 曜日ｺｰﾄﾞ | CC55: 教科 | CF55: =VLOOKUP(CB56,曜日コード!$G$5:$H$10,2) -> 火曜 | CO55: A12 | CP55: ｵﾌｾｯﾄ | CS55: =VLOOKUP(C56,曜日コード!$G$5:$H$10,2) -> 火曜 | CZ55: B12 | DA55: ｵﾌｾｯﾄ | DD55: =VLOOKUP(N56,曜日コード!$G$5:$H$10,2) -> 火曜 | DK55: C12 | DL55: ｵﾌｾｯﾄ | DO55: =VLOOKUP(Y56,曜日コード!$G$5:$H$10,2) -> 火曜 | DV55: D12 | DW55: ｵﾌｾｯﾄ | DZ55: =VLOOKUP(AJ56,曜日コード!$G$5:$H$10,2) -> 火曜 | EG55: E12 | EH55: ｵﾌｾｯﾄ | EK55: =VLOOKUP(AU56,曜日コード!$G$5:$H$10,2) -> 火曜 | ER55: F12 | ES55: ｵﾌｾｯﾄ | EV55: =VLOOKUP(BF56,曜日コード!$G$5:$H$10,2) -> 火曜 | FC55: G12 | FD55: ｵﾌｾｯﾄ | FG55: =VLOOKUP(BQ56,曜日コード!$G$5:$H$10,2) -> 火曜 | FN55: H12 | FO55: ｵﾌｾｯﾄ | FR55: =VLOOKUP(CB56,曜日コード!$G$5:$H$10,2) -> 火曜
C56: 2 | D56: 担当 | E56: 1 | F56: 2 | G56: 3 | H56: 4 | I56: 5 | J56: 6 | K56: 7 | L56: 8 | N56: 2 | O56: 担当 | P56: 1 | Q56: 2 | R56: 3 | S56: 4 | T56: 5 | U56: 6 | V56: 7 | W56: 8 | Y56: 2 | Z56: 担当 | AA56: 1 | AB56: 2 | AC56: 3 | AD56: 4 | AE56: 5 | AF56: 6 | AG56: 7 | AH56: 8 | AJ56: 2 | AK56: 担当 | AL56: 1 | AM56: 2 | AN56: 3 | AO56: 4 | AP56: 5 | AQ56: 6 | AR56: 7 | AS56: 8 | AU56: 2 | AV56: 担当 | AW56: 1 | AX56: 2 | AY56: 3 | AZ56: 4 | BA56: 5 | BB56: 6 | BC56: 7 | BD56: 8 | BF56: 2 | BG56: 担当 | BH56: 1 | BI56: 2 | BJ56: 3 | BK56: 4 | BL56: 5 | BM56: 6 | BN56: 7 | BO56: 8 | BQ56: 2 | BR56: 担当 | BS56: 1 | BT56: 2 | BU56: 3 | BV56: 4 | BW56: 5 | BX56: 6 | BY56: 7 | BZ56: 8 | CB56: 2 | CC56: 担当 | CD56: 1 | CE56: 2 | CF56: 3 | CG56: 4 | CH56: 5 | CI56: 6 | CJ56: 7 | CK56: 8 | CP56: 番号 | CQ56: 1 | CR56: 2 | CS56: 3 | CT56: 4 | CU56: 5 | CV56: 6 | CW56: 7 | CX56: 8 | DA56: 番号 | DB56: 1 | DC56: 2 | DD56: 3 | DE56: 4 | DF56: 5 | DG56: 6 | DH56: 7 | DI56: 8 | DL56: 番号 | DM56: 1 | DN56: 2 | DO56: 3 | DP56: 4 | DQ56: 5 | DR56: 6 | DS56: 7 | DT56: 8 | DW56: 番号 | DX56: 1 | DY56: 2 | DZ56: 3 | EA56: 4 | EB56: 5 | EC56: 6 | ED56: 7 | EE56: 8 | EH56: 番号 | EI56: 1 | EJ56: 2 | EK56: 3 | EL56: 4 | EM56: 5 | EN56: 6 | EO56: 7 | EP56: 8 | ES56: 番号 | ET56: 1 | EU56: 2 | EV56: 3 | EW56: 4 | EX56: 5 | EY56: 6 | EZ56: 7 | FA56: 8 | FD56: 番号 | FE56: 1 | FF56: 2 | FG56: 3 | FH56: 4 | FI56: 5 | FJ56: 6 | FK56: 7 | FL56: 8 | FO56: 番号 | FP56: 1 | FQ56: 2 | FR56: 3 | FS56: 4 | FT56: 5 | FU56: 6 | FV56: 7 | FW56: 8
C57: 担当ｺｰﾄﾞ | D57: =VLOOKUP(CP57,教科担当一覧2!$D$9:$BA$428,4) -> 高橋 | E57: =VLOOKUP(CP57,教科担当一覧2!$D$9:$BA$428,CQ57) -> ・ | F57: =VLOOKUP(CP57,教科担当一覧2!$D$9:$BA$428,CR57) -> ・ | G57: =VLOOKUP(CP57,教科担当一覧2!$D$9:$BA$428,CS57) -> ・ | H57: =VLOOKUP(CP57,教科担当一覧2!$D$9:$BA$428,CT57) -> 2-3 | I57: =VLOOKUP(CP57,教科担当一覧2!$D$9:$BA$428,CU57) -> 2-4 | J57: =VLOOKUP(CP57,教科担当一覧2!$D$9:$BA$428,CV57) -> 2-5 | K57: =VLOOKUP(CP57,教科担当一覧2!$D$9:$BA$428,CW57) -> * | L57: =VLOOKUP(CP57,教科担当一覧2!$D$9:$BA$428,CX57) -> * | N57: 担当ｺｰﾄﾞ | O57: =VLOOKUP(DA57,教科担当一覧2!$D$9:$BA$428,4) -> 高橋 | P57: =VLOOKUP(DA57,教科担当一覧2!$D$9:$BA$428,DB57) -> ・ | Q57: =VLOOKUP(DA57,教科担当一覧2!$D$9:$BA$428,DC57) -> ・ | R57: =VLOOKUP(DA57,教科担当一覧2!$D$9:$BA$428,DD57) -> ・ | S57: =VLOOKUP(DA57,教科担当一覧2!$D$9:$BA$428,DE57) -> 2-3 | T57: =VLOOKUP(DA57,教科担当一覧2!$D$9:$BA$428,DF57) -> 2-4 | U57: =VLOOKUP(DA57,教科担当一覧2!$D$9:$BA$428,DG57) -> 2-5 | V57: =VLOOKUP(DA57,教科担当一覧2!$D$9:$BA$428,DH57) -> * | W57: =VLOOKUP(DA57,教科担当一覧2!$D$9:$BA$428,DI57) -> * | Y57: 担当ｺｰﾄﾞ | Z57: =VLOOKUP(DL57,教科担当一覧2!$D$9:$BA$428,4) -> 高橋 | AA57: =VLOOKUP(DL57,教科担当一覧2!$D$9:$BA$428,DM57) -> ・ | AB57: =VLOOKUP(DL57,教科担当一覧2!$D$9:$BA$428,DN57) -> ・ | AC57: =VLOOKUP(DL57,教科担当一覧2!$D$9:$BA$428,DO57) -> ・ | AD57: =VLOOKUP(DL57,教科担当一覧2!$D$9:$BA$428,DP57) -> 2-3 | AE57: =VLOOKUP(DL57,教科担当一覧2!$D$9:$BA$428,DQ57) -> 2-4 | AF57: =VLOOKUP(DL57,教科担当一覧2!$D$9:$BA$428,DR57) -> 2-5 | AG57: =VLOOKUP(DL57,教科担当一覧2!$D$9:$BA$428,DS57) -> * | AH57: =VLOOKUP(DL57,教科担当一覧2!$D$9:$BA$428,DT57) -> * | AJ57: 担当ｺｰﾄﾞ | AK57: =VLOOKUP(DW57,教科担当一覧2!$D$9:$BA$428,4) -> 高橋 | AL57: =VLOOKUP(DW57,教科担当一覧2!$D$9:$BA$428,DX57) -> ・ | AM57: =VLOOKUP(DW57,教科担当一覧2!$D$9:$BA$428,DY57) -> ・ | AN57: =VLOOKUP(DW57,教科担当一覧2!$D$9:$BA$428,DZ57) -> ・ | AO57: =VLOOKUP(DW57,教科担当一覧2!$D$9:$BA$428,EA57) -> 2-3 | AP57: =VLOOKUP(DW57,教科担当一覧2!$D$9:$BA$428,EB57) -> 2-4 | AQ57: =VLOOKUP(DW57,教科担当一覧2!$D$9:$BA$428,EC57) -> 2-5 | AR57: =VLOOKUP(DW57,教科担当一覧2!$D$9:$BA$428,ED57) -> * | AS57: =VLOOKUP(DW57,教科担当一覧2!$D$9:$BA$428,EE57) -> * | AU57: 担当ｺｰﾄﾞ | AV57: =VLOOKUP(EH57,教科担当一覧2!$D$9:$BA$428,4) -> 高橋 | AW57: =VLOOKUP(EH57,教科担当一覧2!$D$9:$BA$428,EI57) -> ・ | AX57: =VLOOKUP(EH57,教科担当一覧2!$D$9:$BA$428,EJ57) -> ・ | AY57: =VLOOKUP(EH57,教科担当一覧2!$D$9:$BA$428,EK57) -> ・ | AZ57: =VLOOKUP(EH57,教科担当一覧2!$D$9:$BA$428,EL57) -> 2-3 | BA57: =VLOOKUP(EH57,教科担当一覧2!$D$9:$BA$428,EM57) -> 2-4 | BB57: =VLOOKUP(EH57,教科担当一覧2!$D$9:$BA$428,EN57) -> 2-5 | BC57: =VLOOKUP(EH57,教科担当一覧2!$D$9:$BA$428,EO57) -> * | BD57: =VLOOKUP(EH57,教科担当一覧2!$D$9:$BA$428,EP57) -> * | BF57: 担当ｺｰﾄﾞ | BG57: =VLOOKUP(ES57,教科担当一覧2!$D$9:$BA$428,4) -> 高橋 | BH57: =VLOOKUP(ES57,教科担当一覧2!$D$9:$BA$428,ET57) -> ・ | BI57: =VLOOKUP(ES57,教科担当一覧2!$D$9:$BA$428,EU57) -> ・ | BJ57: =VLOOKUP(ES57,教科担当一覧2!$D$9:$BA$428,EV57) -> ・ | BK57: =VLOOKUP(ES57,教科担当一覧2!$D$9:$BA$428,EW57) -> 2-3 | BL57: =VLOOKUP(ES57,教科担当一覧2!$D$9:$BA$428,EX57) -> 2-4 | BM57: =VLOOKUP(ES57,教科担当一覧2!$D$9:$BA$428,EY57) -> 2-5 | BN57: =VLOOKUP(ES57,教科担当一覧2!$D$9:$BA$428,EZ57) -> * | BO57: =VLOOKUP(ES57,教科担当一覧2!$D$9:$BA$428,FA57) -> * | BQ57: 担当ｺｰﾄﾞ | BR57: =VLOOKUP(FD57,教科担当一覧2!$D$9:$BA$428,4) -> 高橋 | BS57: =VLOOKUP(FD57,教科担当一覧2!$D$9:$BA$428,FE57) -> ・ | BT57: =VLOOKUP(FD57,教科担当一覧2!$D$9:$BA$428,FF57) -> ・ | BU57: =VLOOKUP(FD57,教科担当一覧2!$D$9:$BA$428,FG57) -> ・ | BV57: =VLOOKUP(FD57,教科担当一覧2!$D$9:$BA$428,FH57) -> 2-3 | BW57: =VLOOKUP(FD57,教科担当一覧2!$D$9:$BA$428,FI57) -> 2-4 | BX57: =VLOOKUP(FD57,教科担当一覧2!$D$9:$BA$428,FJ57) -> 2-5 | BY57: =VLOOKUP(FD57,教科担当一覧2!$D$9:$BA$428,FK57) -> * | BZ57: =VLOOKUP(FD57,教科担当一覧2!$D$9:$BA$428,FL57) -> * | CB57: 担当ｺｰﾄﾞ | CC57: =VLOOKUP(FO57,教科担当一覧2!$D$9:$BA$428,4) -> 高橋 | CD57: =VLOOKUP(FO57,教科担当一覧2!$D$9:$BA$428,FP57) -> ・ | CE57: =VLOOKUP(FO57,教科担当一覧2!$D$9:$BA$428,FQ57) -> ・ | CF57: =VLOOKUP(FO57,教科担当一覧2!$D$9:$BA$428,FR57) -> ・ | CG57: =VLOOKUP(FO57,教科担当一覧2!$D$9:$BA$428,FS57) -> 2-3 | CH57: =VLOOKUP(FO57,教科担当一覧2!$D$9:$BA$428,FT57) -> 2-4 | CI57: =VLOOKUP(FO57,教科担当一覧2!$D$9:$BA$428,FU57) -> 2-5 | CJ57: =VLOOKUP(FO57,教科担当一覧2!$D$9:$BA$428,FV57) -> * | CK57: =VLOOKUP(FO57,教科担当一覧2!$D$9:$BA$428,FW57) -> * | CP57: =C58*2-1 -> 55 | CQ57: =8*(C56-1)+5 -> 13 | CR57: =8*(C56-1)+6 -> 14 | CS57: =8*(C56-1)+7 -> 15 | CT57: =8*(C56-1)+8 -> 16 | CU57: =8*(C56-1)+9 -> 17 | CV57: =8*(C56-1)+10 -> 18 | CW57: =8*(C56-1)+11 -> 19 | CX57: =8*(C56-1)+12 -> 20 | DA57: =N58*2-1 -> 55 | DB57: =8*(N56-1)+5 -> 13 | DC57: =8*(N56-1)+6 -> 14 | DD57: =8*(N56-1)+7 -> 15 | DE57: =8*(N56-1)+8 -> 16 | DF57: =8*(N56-1)+9 -> 17 | DG57: =8*(N56-1)+10 -> 18 | DH57: =8*(N56-1)+11 -> 19 | DI57: =8*(N56-1)+12 -> 20 | DL57: =Y58*2-1 -> 55 | DM57: =8*(Y56-1)+5 -> 13 | DN57: =8*(Y56-1)+6 -> 14 | DO57: =8*(Y56-1)+7 -> 15 | DP57: =8*(Y56-1)+8 -> 16 | DQ57: =8*(Y56-1)+9 -> 17 | DR57: =8*(Y56-1)+10 -> 18 | DS57: =8*(Y56-1)+11 -> 19 | DT57: =8*(Y56-1)+12 -> 20 | DW57: =AJ58*2-1 -> 55 | DX57: =8*(AJ56-1)+5 -> 13 | DY57: =8*(AJ56-1)+6 -> 14 | DZ57: =8*(AJ56-1)+7 -> 15 | EA57: =8*(AJ56-1)+8 -> 16 | EB57: =8*(AJ56-1)+9 -> 17 | EC57: =8*(AJ56-1)+10 -> 18 | ED57: =8*(AJ56-1)+11 -> 19 | EE57: =8*(AJ56-1)+12 -> 20 | EH57: =AU58*2-1 -> 55 | EI57: =8*(AU56-1)+5 -> 13 | EJ57: =8*(AU56-1)+6 -> 14 | EK57: =8*(AU56-1)+7 -> 15 | EL57: =8*(AU56-1)+8 -> 16 | EM57: =8*(AU56-1)+9 -> 17 | EN57: =8*(AU56-1)+10 -> 18 | EO57: =8*(AU56-1)+11 -> 19 | EP57: =8*(AU56-1)+12 -> 20 | ES57: =BF58*2-1 -> 55 | ET57: =8*(BF56-1)+5 -> 13 | EU57: =8*(BF56-1)+6 -> 14 | EV57: =8*(BF56-1)+7 -> 15 | EW57: =8*(BF56-1)+8 -> 16 | EX57: =8*(BF56-1)+9 -> 17 | EY57: =8*(BF56-1)+10 -> 18 | EZ57: =8*(BF56-1)+11 -> 19 | FA57: =8*(BF56-1)+12 -> 20 | FD57: =BQ58*2-1 -> 55 | FE57: =8*(BQ56-1)+5 -> 13 | FF57: =8*(BQ56-1)+6 -> 14 | FG57: =8*(BQ56-1)+7 -> 15 | FH57: =8*(BQ56-1)+8 -> 16 | FI57: =8*(BQ56-1)+9 -> 17 | FJ57: =8*(BQ56-1)+10 -> 18 | FK57: =8*(BQ56-1)+11 -> 19 | FL57: =8*(BQ56-1)+12 -> 20 | FO57: =CB58*2-1 -> 55 | FP57: =8*(CB56-1)+5 -> 13 | FQ57: =8*(CB56-1)+6 -> 14 | FR57: =8*(CB56-1)+7 -> 15 | FS57: =8*(CB56-1)+8 -> 16 | FT57: =8*(CB56-1)+9 -> 17 | FU57: =8*(CB56-1)+10 -> 18 | FV57: =8*(CB56-1)+11 -> 19 | FW57: =8*(CB56-1)+12 -> 20
C58: 28 | D58: =VLOOKUP(CP58,教科担当一覧2!$D$9:$BA$428,4) ->  | E58: =VLOOKUP(CP58,教科担当一覧2!$D$9:$BA$428,CQ57) ->  | F58: =VLOOKUP(CP58,教科担当一覧2!$D$9:$BA$428,CR57) ->  | G58: =VLOOKUP(CP58,教科担当一覧2!$D$9:$BA$428,CS57) ->  | H58: =VLOOKUP(CP58,教科担当一覧2!$D$9:$BA$428,CT57) -> 世史 | I58: =VLOOKUP(CP58,教科担当一覧2!$D$9:$BA$428,CU57) -> 世史 | J58: =VLOOKUP(CP58,教科担当一覧2!$D$9:$BA$428,CV57) -> 世史 | K58: =VLOOKUP(CP58,教科担当一覧2!$D$9:$BA$428,CW57) -> * | L58: =VLOOKUP(CP58,教科担当一覧2!$D$9:$BA$428,CX57) -> * | N58: 28 | O58: =VLOOKUP(DA58,教科担当一覧2!$D$9:$BA$428,4) ->  | P58: =VLOOKUP(DA58,教科担当一覧2!$D$9:$BA$428,DB57) ->  | Q58: =VLOOKUP(DA58,教科担当一覧2!$D$9:$BA$428,DC57) ->  | R58: =VLOOKUP(DA58,教科担当一覧2!$D$9:$BA$428,DD57) ->  | S58: =VLOOKUP(DA58,教科担当一覧2!$D$9:$BA$428,DE57) -> 世史 | T58: =VLOOKUP(DA58,教科担当一覧2!$D$9:$BA$428,DF57) -> 世史 | U58: =VLOOKUP(DA58,教科担当一覧2!$D$9:$BA$428,DG57) -> 世史 | V58: =VLOOKUP(DA58,教科担当一覧2!$D$9:$BA$428,DH57) -> * | W58: =VLOOKUP(DA58,教科担当一覧2!$D$9:$BA$428,DI57) -> * | Y58: 28 | Z58: =VLOOKUP(DL58,教科担当一覧2!$D$9:$BA$428,4) ->  | AA58: =VLOOKUP(DL58,教科担当一覧2!$D$9:$BA$428,DM57) ->  | AB58: =VLOOKUP(DL58,教科担当一覧2!$D$9:$BA$428,DN57) ->  | AC58: =VLOOKUP(DL58,教科担当一覧2!$D$9:$BA$428,DO57) ->  | AD58: =VLOOKUP(DL58,教科担当一覧2!$D$9:$BA$428,DP57) -> 世史 | AE58: =VLOOKUP(DL58,教科担当一覧2!$D$9:$BA$428,DQ57) -> 世史 | AF58: =VLOOKUP(DL58,教科担当一覧2!$D$9:$BA$428,DR57) -> 世史 | AG58: =VLOOKUP(DL58,教科担当一覧2!$D$9:$BA$428,DS57) -> * | AH58: =VLOOKUP(DL58,教科担当一覧2!$D$9:$BA$428,DT57) -> * | AJ58: 28 | AK58: =VLOOKUP(DW58,教科担当一覧2!$D$9:$BA$428,4) ->  | AL58: =VLOOKUP(DW58,教科担当一覧2!$D$9:$BA$428,DX57) ->  | AM58: =VLOOKUP(DW58,教科担当一覧2!$D$9:$BA$428,DY57) ->  | AN58: =VLOOKUP(DW58,教科担当一覧2!$D$9:$BA$428,DZ57) ->  | AO58: =VLOOKUP(DW58,教科担当一覧2!$D$9:$BA$428,EA57) -> 世史 | AP58: =VLOOKUP(DW58,教科担当一覧2!$D$9:$BA$428,EB57) -> 世史 | AQ58: =VLOOKUP(DW58,教科担当一覧2!$D$9:$BA$428,EC57) -> 世史 | AR58: =VLOOKUP(DW58,教科担当一覧2!$D$9:$BA$428,ED57) -> * | AS58: =VLOOKUP(DW58,教科担当一覧2!$D$9:$BA$428,EE57) -> * | AU58: 28 | AV58: =VLOOKUP(EH58,教科担当一覧2!$D$9:$BA$428,4) ->  | AW58: =VLOOKUP(EH58,教科担当一覧2!$D$9:$BA$428,EI57) ->  | AX58: =VLOOKUP(EH58,教科担当一覧2!$D$9:$BA$428,EJ57) ->  | AY58: =VLOOKUP(EH58,教科担当一覧2!$D$9:$BA$428,EK57) ->  | AZ58: =VLOOKUP(EH58,教科担当一覧2!$D$9:$BA$428,EL57) -> 世史 | BA58: =VLOOKUP(EH58,教科担当一覧2!$D$9:$BA$428,EM57) -> 世史 | BB58: =VLOOKUP(EH58,教科担当一覧2!$D$9:$BA$428,EN57) -> 世史 | BC58: =VLOOKUP(EH58,教科担当一覧2!$D$9:$BA$428,EO57) -> * | BD58: =VLOOKUP(EH58,教科担当一覧2!$D$9:$BA$428,EP57) -> * | BF58: 28 | BG58: =VLOOKUP(ES58,教科担当一覧2!$D$9:$BA$428,4) ->  | BH58: =VLOOKUP(ES58,教科担当一覧2!$D$9:$BA$428,ET57) ->  | BI58: =VLOOKUP(ES58,教科担当一覧2!$D$9:$BA$428,EU57) ->  | BJ58: =VLOOKUP(ES58,教科担当一覧2!$D$9:$BA$428,EV57) ->  | BK58: =VLOOKUP(ES58,教科担当一覧2!$D$9:$BA$428,EW57) -> 世史 | BL58: =VLOOKUP(ES58,教科担当一覧2!$D$9:$BA$428,EX57) -> 世史 | BM58: =VLOOKUP(ES58,教科担当一覧2!$D$9:$BA$428,EY57) -> 世史 | BN58: =VLOOKUP(ES58,教科担当一覧2!$D$9:$BA$428,EZ57) -> * | BO58: =VLOOKUP(ES58,教科担当一覧2!$D$9:$BA$428,FA57) -> * | BQ58: 28 | BR58: =VLOOKUP(FD58,教科担当一覧2!$D$9:$BA$428,4) ->  | BS58: =VLOOKUP(FD58,教科担当一覧2!$D$9:$BA$428,FE57) ->  | BT58: =VLOOKUP(FD58,教科担当一覧2!$D$9:$BA$428,FF57) ->  | BU58: =VLOOKUP(FD58,教科担当一覧2!$D$9:$BA$428,FG57) ->  | BV58: =VLOOKUP(FD58,教科担当一覧2!$D$9:$BA$428,FH57) -> 世史 | BW58: =VLOOKUP(FD58,教科担当一覧2!$D$9:$BA$428,FI57) -> 世史 | BX58: =VLOOKUP(FD58,教科担当一覧2!$D$9:$BA$428,FJ57) -> 世史 | BY58: =VLOOKUP(FD58,教科担当一覧2!$D$9:$BA$428,FK57) -> * | BZ58: =VLOOKUP(FD58,教科担当一覧2!$D$9:$BA$428,FL57) -> * | CB58: 28 | CC58: =VLOOKUP(FO58,教科担当一覧2!$D$9:$BA$428,4) ->  | CD58: =VLOOKUP(FO58,教科担当一覧2!$D$9:$BA$428,FP57) ->  | CE58: =VLOOKUP(FO58,教科担当一覧2!$D$9:$BA$428,FQ57) ->  | CF58: =VLOOKUP(FO58,教科担当一覧2!$D$9:$BA$428,FR57) ->  | CG58: =VLOOKUP(FO58,教科担当一覧2!$D$9:$BA$428,FS57) -> 世史 | CH58: =VLOOKUP(FO58,教科担当一覧2!$D$9:$BA$428,FT57) -> 世史 | CI58: =VLOOKUP(FO58,教科担当一覧2!$D$9:$BA$428,FU57) -> 世史 | CJ58: =VLOOKUP(FO58,教科担当一覧2!$D$9:$BA$428,FV57) -> * | CK58: =VLOOKUP(FO58,教科担当一覧2!$D$9:$BA$428,FW57) -> * | CP58: =C58*2 -> 56 | DA58: =N58*2 -> 56 | DL58: =Y58*2 -> 56 | DW58: =AJ58*2 -> 56 | EH58: =AU58*2 -> 56 | ES58: =BF58*2 -> 56 | FD58: =BQ58*2 -> 56 | FO58: =CB58*2 -> 56
B59: A13 | C59: 曜日ｺｰﾄﾞ | D59: 教科 | G59: =VLOOKUP(C60,曜日コード!$G$5:$H$10,2) -> 火曜 | M59: B13 | N59: 曜日ｺｰﾄﾞ | O59: 教科 | R59: =VLOOKUP(N60,曜日コード!$G$5:$H$10,2) -> 火曜 | X59: C13 | Y59: 曜日ｺｰﾄﾞ | Z59: 教科 | AC59: =VLOOKUP(Y60,曜日コード!$G$5:$H$10,2) -> 火曜 | AI59: D13 | AJ59: 曜日ｺｰﾄﾞ | AK59: 教科 | AN59: =VLOOKUP(AJ60,曜日コード!$G$5:$H$10,2) -> 火曜 | AT59: E13 | AU59: 曜日ｺｰﾄﾞ | AV59: 教科 | AY59: =VLOOKUP(AU60,曜日コード!$G$5:$H$10,2) -> 火曜 | BE59: F13 | BF59: 曜日ｺｰﾄﾞ | BG59: 教科 | BJ59: =VLOOKUP(BF60,曜日コード!$G$5:$H$10,2) -> 火曜 | BP59: G13 | BQ59: 曜日ｺｰﾄﾞ | BR59: 教科 | BU59: =VLOOKUP(BQ60,曜日コード!$G$5:$H$10,2) -> 火曜 | CA59: H13 | CB59: 曜日ｺｰﾄﾞ | CC59: 教科 | CF59: =VLOOKUP(CB60,曜日コード!$G$5:$H$10,2) -> 火曜 | CO59: A13 | CP59: ｵﾌｾｯﾄ | CS59: =VLOOKUP(C60,曜日コード!$G$5:$H$10,2) -> 火曜 | CZ59: B13 | DA59: ｵﾌｾｯﾄ | DD59: =VLOOKUP(N60,曜日コード!$G$5:$H$10,2) -> 火曜 | DK59: C13 | DL59: ｵﾌｾｯﾄ | DO59: =VLOOKUP(Y60,曜日コード!$G$5:$H$10,2) -> 火曜 | DV59: D13 | DW59: ｵﾌｾｯﾄ | DZ59: =VLOOKUP(AJ60,曜日コード!$G$5:$H$10,2) -> 火曜 | EG59: E13 | EH59: ｵﾌｾｯﾄ | EK59: =VLOOKUP(AU60,曜日コード!$G$5:$H$10,2) -> 火曜 | ER59: F13 | ES59: ｵﾌｾｯﾄ | EV59: =VLOOKUP(BF60,曜日コード!$G$5:$H$10,2) -> 火曜 | FC59: G13 | FD59: ｵﾌｾｯﾄ | FG59: =VLOOKUP(BQ60,曜日コード!$G$5:$H$10,2) -> 火曜 | FN59: H13 | FO59: ｵﾌｾｯﾄ | FR59: =VLOOKUP(CB60,曜日コード!$G$5:$H$10,2) -> 火曜
C60: 2 | D60: 担当 | E60: 1 | F60: 2 | G60: 3 | H60: 4 | I60: 5 | J60: 6 | K60: 7 | L60: 8 | N60: 2 | O60: 担当 | P60: 1 | Q60: 2 | R60: 3 | S60: 4 | T60: 5 | U60: 6 | V60: 7 | W60: 8 | Y60: 2 | Z60: 担当 | AA60: 1 | AB60: 2 | AC60: 3 | AD60: 4 | AE60: 5 | AF60: 6 | AG60: 7 | AH60: 8 | AJ60: 2 | AK60: 担当 | AL60: 1 | AM60: 2 | AN60: 3 | AO60: 4 | AP60: 5 | AQ60: 6 | AR60: 7 | AS60: 8 | AU60: 2 | AV60: 担当 | AW60: 1 | AX60: 2 | AY60: 3 | AZ60: 4 | BA60: 5 | BB60: 6 | BC60: 7 | BD60: 8 | BF60: 2 | BG60: 担当 | BH60: 1 | BI60: 2 | BJ60: 3 | BK60: 4 | BL60: 5 | BM60: 6 | BN60: 7 | BO60: 8 | BQ60: 2 | BR60: 担当 | BS60: 1 | BT60: 2 | BU60: 3 | BV60: 4 | BW60: 5 | BX60: 6 | BY60: 7 | BZ60: 8 | CB60: 2 | CC60: 担当 | CD60: 1 | CE60: 2 | CF60: 3 | CG60: 4 | CH60: 5 | CI60: 6 | CJ60: 7 | CK60: 8 | CP60: 番号 | CQ60: 1 | CR60: 2 | CS60: 3 | CT60: 4 | CU60: 5 | CV60: 6 | CW60: 7 | CX60: 8 | DA60: 番号 | DB60: 1 | DC60: 2 | DD60: 3 | DE60: 4 | DF60: 5 | DG60: 6 | DH60: 7 | DI60: 8 | DL60: 番号 | DM60: 1 | DN60: 2 | DO60: 3 | DP60: 4 | DQ60: 5 | DR60: 6 | DS60: 7 | DT60: 8 | DW60: 番号 | DX60: 1 | DY60: 2 | DZ60: 3 | EA60: 4 | EB60: 5 | EC60: 6 | ED60: 7 | EE60: 8 | EH60: 番号 | EI60: 1 | EJ60: 2 | EK60: 3 | EL60: 4 | EM60: 5 | EN60: 6 | EO60: 7 | EP60: 8 | ES60: 番号 | ET60: 1 | EU60: 2 | EV60: 3 | EW60: 4 | EX60: 5 | EY60: 6 | EZ60: 7 | FA60: 8 | FD60: 番号 | FE60: 1 | FF60: 2 | FG60: 3 | FH60: 4 | FI60: 5 | FJ60: 6 | FK60: 7 | FL60: 8 | FO60: 番号 | FP60: 1 | FQ60: 2 | FR60: 3 | FS60: 4 | FT60: 5 | FU60: 6 | FV60: 7 | FW60: 8
C61: 担当ｺｰﾄﾞ | D61: =VLOOKUP(CP61,教科担当一覧2!$D$9:$BA$428,4) -> 高橋 | E61: =VLOOKUP(CP61,教科担当一覧2!$D$9:$BA$428,CQ61) -> ・ | F61: =VLOOKUP(CP61,教科担当一覧2!$D$9:$BA$428,CR61) -> ・ | G61: =VLOOKUP(CP61,教科担当一覧2!$D$9:$BA$428,CS61) -> ・ | H61: =VLOOKUP(CP61,教科担当一覧2!$D$9:$BA$428,CT61) -> 2-3 | I61: =VLOOKUP(CP61,教科担当一覧2!$D$9:$BA$428,CU61) -> 2-4 | J61: =VLOOKUP(CP61,教科担当一覧2!$D$9:$BA$428,CV61) -> 2-5 | K61: =VLOOKUP(CP61,教科担当一覧2!$D$9:$BA$428,CW61) -> * | L61: =VLOOKUP(CP61,教科担当一覧2!$D$9:$BA$428,CX61) -> * | N61: 担当ｺｰﾄﾞ | O61: =VLOOKUP(DA61,教科担当一覧2!$D$9:$BA$428,4) -> 高橋 | P61: =VLOOKUP(DA61,教科担当一覧2!$D$9:$BA$428,DB61) -> ・ | Q61: =VLOOKUP(DA61,教科担当一覧2!$D$9:$BA$428,DC61) -> ・ | R61: =VLOOKUP(DA61,教科担当一覧2!$D$9:$BA$428,DD61) -> ・ | S61: =VLOOKUP(DA61,教科担当一覧2!$D$9:$BA$428,DE61) -> 2-3 | T61: =VLOOKUP(DA61,教科担当一覧2!$D$9:$BA$428,DF61) -> 2-4 | U61: =VLOOKUP(DA61,教科担当一覧2!$D$9:$BA$428,DG61) -> 2-5 | V61: =VLOOKUP(DA61,教科担当一覧2!$D$9:$BA$428,DH61) -> * | W61: =VLOOKUP(DA61,教科担当一覧2!$D$9:$BA$428,DI61) -> * | Y61: 担当ｺｰﾄﾞ | Z61: =VLOOKUP(DL61,教科担当一覧2!$D$9:$BA$428,4) -> 高橋 | AA61: =VLOOKUP(DL61,教科担当一覧2!$D$9:$BA$428,DM61) -> ・ | AB61: =VLOOKUP(DL61,教科担当一覧2!$D$9:$BA$428,DN61) -> ・ | AC61: =VLOOKUP(DL61,教科担当一覧2!$D$9:$BA$428,DO61) -> ・ | AD61: =VLOOKUP(DL61,教科担当一覧2!$D$9:$BA$428,DP61) -> 2-3 | AE61: =VLOOKUP(DL61,教科担当一覧2!$D$9:$BA$428,DQ61) -> 2-4 | AF61: =VLOOKUP(DL61,教科担当一覧2!$D$9:$BA$428,DR61) -> 2-5 | AG61: =VLOOKUP(DL61,教科担当一覧2!$D$9:$BA$428,DS61) -> * | AH61: =VLOOKUP(DL61,教科担当一覧2!$D$9:$BA$428,DT61) -> * | AJ61: 担当ｺｰﾄﾞ | AK61: =VLOOKUP(DW61,教科担当一覧2!$D$9:$BA$428,4) -> 高橋 | AL61: =VLOOKUP(DW61,教科担当一覧2!$D$9:$BA$428,DX61) -> ・ | AM61: =VLOOKUP(DW61,教科担当一覧2!$D$9:$BA$428,DY61) -> ・ | AN61: =VLOOKUP(DW61,教科担当一覧2!$D$9:$BA$428,DZ61) -> ・ | AO61: =VLOOKUP(DW61,教科担当一覧2!$D$9:$BA$428,EA61) -> 2-3 | AP61: =VLOOKUP(DW61,教科担当一覧2!$D$9:$BA$428,EB61) -> 2-4 | AQ61: =VLOOKUP(DW61,教科担当一覧2!$D$9:$BA$428,EC61) -> 2-5 | AR61: =VLOOKUP(DW61,教科担当一覧2!$D$9:$BA$428,ED61) -> * | AS61: =VLOOKUP(DW61,教科担当一覧2!$D$9:$BA$428,EE61) -> * | AU61: 担当ｺｰﾄﾞ | AV61: =VLOOKUP(EH61,教科担当一覧2!$D$9:$BA$428,4) -> 高橋 | AW61: =VLOOKUP(EH61,教科担当一覧2!$D$9:$BA$428,EI61) -> ・ | AX61: =VLOOKUP(EH61,教科担当一覧2!$D$9:$BA$428,EJ61) -> ・ | AY61: =VLOOKUP(EH61,教科担当一覧2!$D$9:$BA$428,EK61) -> ・ | AZ61: =VLOOKUP(EH61,教科担当一覧2!$D$9:$BA$428,EL61) -> 2-3 | BA61: =VLOOKUP(EH61,教科担当一覧2!$D$9:$BA$428,EM61) -> 2-4 | BB61: =VLOOKUP(EH61,教科担当一覧2!$D$9:$BA$428,EN61) -> 2-5 | BC61: =VLOOKUP(EH61,教科担当一覧2!$D$9:$BA$428,EO61) -> * | BD61: =VLOOKUP(EH61,教科担当一覧2!$D$9:$BA$428,EP61) -> * | BF61: 担当ｺｰﾄﾞ | BG61: =VLOOKUP(ES61,教科担当一覧2!$D$9:$BA$428,4) -> 高橋 | BH61: =VLOOKUP(ES61,教科担当一覧2!$D$9:$BA$428,ET61) -> ・ | BI61: =VLOOKUP(ES61,教科担当一覧2!$D$9:$BA$428,EU61) -> ・ | BJ61: =VLOOKUP(ES61,教科担当一覧2!$D$9:$BA$428,EV61) -> ・ | BK61: =VLOOKUP(ES61,教科担当一覧2!$D$9:$BA$428,EW61) -> 2-3 | BL61: =VLOOKUP(ES61,教科担当一覧2!$D$9:$BA$428,EX61) -> 2-4 | BM61: =VLOOKUP(ES61,教科担当一覧2!$D$9:$BA$428,EY61) -> 2-5 | BN61: =VLOOKUP(ES61,教科担当一覧2!$D$9:$BA$428,EZ61) -> * | BO61: =VLOOKUP(ES61,教科担当一覧2!$D$9:$BA$428,FA61) -> * | BQ61: 担当ｺｰﾄﾞ | BR61: =VLOOKUP(FD61,教科担当一覧2!$D$9:$BA$428,4) -> 高橋 | BS61: =VLOOKUP(FD61,教科担当一覧2!$D$9:$BA$428,FE61) -> ・ | BT61: =VLOOKUP(FD61,教科担当一覧2!$D$9:$BA$428,FF61) -> ・ | BU61: =VLOOKUP(FD61,教科担当一覧2!$D$9:$BA$428,FG61) -> ・ | BV61: =VLOOKUP(FD61,教科担当一覧2!$D$9:$BA$428,FH61) -> 2-3 | BW61: =VLOOKUP(FD61,教科担当一覧2!$D$9:$BA$428,FI61) -> 2-4 | BX61: =VLOOKUP(FD61,教科担当一覧2!$D$9:$BA$428,FJ61) -> 2-5 | BY61: =VLOOKUP(FD61,教科担当一覧2!$D$9:$BA$428,FK61) -> * | BZ61: =VLOOKUP(FD61,教科担当一覧2!$D$9:$BA$428,FL61) -> * | CB61: 担当ｺｰﾄﾞ | CC61: =VLOOKUP(FO61,教科担当一覧2!$D$9:$BA$428,4) -> 高橋 | CD61: =VLOOKUP(FO61,教科担当一覧2!$D$9:$BA$428,FP61) -> ・ | CE61: =VLOOKUP(FO61,教科担当一覧2!$D$9:$BA$428,FQ61) -> ・ | CF61: =VLOOKUP(FO61,教科担当一覧2!$D$9:$BA$428,FR61) -> ・ | CG61: =VLOOKUP(FO61,教科担当一覧2!$D$9:$BA$428,FS61) -> 2-3 | CH61: =VLOOKUP(FO61,教科担当一覧2!$D$9:$BA$428,FT61) -> 2-4 | CI61: =VLOOKUP(FO61,教科担当一覧2!$D$9:$BA$428,FU61) -> 2-5 | CJ61: =VLOOKUP(FO61,教科担当一覧2!$D$9:$BA$428,FV61) -> * | CK61: =VLOOKUP(FO61,教科担当一覧2!$D$9:$BA$428,FW61) -> * | CP61: =C62*2-1 -> 55 | CQ61: =8*(C60-1)+5 -> 13 | CR61: =8*(C60-1)+6 -> 14 | CS61: =8*(C60-1)+7 -> 15 | CT61: =8*(C60-1)+8 -> 16 | CU61: =8*(C60-1)+9 -> 17 | CV61: =8*(C60-1)+10 -> 18 | CW61: =8*(C60-1)+11 -> 19 | CX61: =8*(C60-1)+12 -> 20 | DA61: =N62*2-1 -> 55 | DB61: =8*(N60-1)+5 -> 13 | DC61: =8*(N60-1)+6 -> 14 | DD61: =8*(N60-1)+7 -> 15 | DE61: =8*(N60-1)+8 -> 16 | DF61: =8*(N60-1)+9 -> 17 | DG61: =8*(N60-1)+10 -> 18 | DH61: =8*(N60-1)+11 -> 19 | DI61: =8*(N60-1)+12 -> 20 | DL61: =Y62*2-1 -> 55 | DM61: =8*(Y60-1)+5 -> 13 | DN61: =8*(Y60-1)+6 -> 14 | DO61: =8*(Y60-1)+7 -> 15 | DP61: =8*(Y60-1)+8 -> 16 | DQ61: =8*(Y60-1)+9 -> 17 | DR61: =8*(Y60-1)+10 -> 18 | DS61: =8*(Y60-1)+11 -> 19 | DT61: =8*(Y60-1)+12 -> 20 | DW61: =AJ62*2-1 -> 55 | DX61: =8*(AJ60-1)+5 -> 13 | DY61: =8*(AJ60-1)+6 -> 14 | DZ61: =8*(AJ60-1)+7 -> 15 | EA61: =8*(AJ60-1)+8 -> 16 | EB61: =8*(AJ60-1)+9 -> 17 | EC61: =8*(AJ60-1)+10 -> 18 | ED61: =8*(AJ60-1)+11 -> 19 | EE61: =8*(AJ60-1)+12 -> 20 | EH61: =AU62*2-1 -> 55 | EI61: =8*(AU60-1)+5 -> 13 | EJ61: =8*(AU60-1)+6 -> 14 | EK61: =8*(AU60-1)+7 -> 15 | EL61: =8*(AU60-1)+8 -> 16 | EM61: =8*(AU60-1)+9 -> 17 | EN61: =8*(AU60-1)+10 -> 18 | EO61: =8*(AU60-1)+11 -> 19 | EP61: =8*(AU60-1)+12 -> 20 | ES61: =BF62*2-1 -> 55 | ET61: =8*(BF60-1)+5 -> 13 | EU61: =8*(BF60-1)+6 -> 14 | EV61: =8*(BF60-1)+7 -> 15 | EW61: =8*(BF60-1)+8 -> 16 | EX61: =8*(BF60-1)+9 -> 17 | EY61: =8*(BF60-1)+10 -> 18 | EZ61: =8*(BF60-1)+11 -> 19 | FA61: =8*(BF60-1)+12 -> 20 | FD61: =BQ62*2-1 -> 55 | FE61: =8*(BQ60-1)+5 -> 13 | FF61: =8*(BQ60-1)+6 -> 14 | FG61: =8*(BQ60-1)+7 -> 15 | FH61: =8*(BQ60-1)+8 -> 16 | FI61: =8*(BQ60-1)+9 -> 17 | FJ61: =8*(BQ60-1)+10 -> 18 | FK61: =8*(BQ60-1)+11 -> 19 | FL61: =8*(BQ60-1)+12 -> 20 | FO61: =CB62*2-1 -> 55 | FP61: =8*(CB60-1)+5 -> 13 | FQ61: =8*(CB60-1)+6 -> 14 | FR61: =8*(CB60-1)+7 -> 15 | FS61: =8*(CB60-1)+8 -> 16 | FT61: =8*(CB60-1)+9 -> 17 | FU61: =8*(CB60-1)+10 -> 18 | FV61: =8*(CB60-1)+11 -> 19 | FW61: =8*(CB60-1)+12 -> 20
C62: 28 | D62: =VLOOKUP(CP62,教科担当一覧2!$D$9:$BA$428,4) ->  | E62: =VLOOKUP(CP62,教科担当一覧2!$D$9:$BA$428,CQ61) ->  | F62: =VLOOKUP(CP62,教科担当一覧2!$D$9:$BA$428,CR61) ->  | G62: =VLOOKUP(CP62,教科担当一覧2!$D$9:$BA$428,CS61) ->  | H62: =VLOOKUP(CP62,教科担当一覧2!$D$9:$BA$428,CT61) -> 世史 | I62: =VLOOKUP(CP62,教科担当一覧2!$D$9:$BA$428,CU61) -> 世史 | J62: =VLOOKUP(CP62,教科担当一覧2!$D$9:$BA$428,CV61) -> 世史 | K62: =VLOOKUP(CP62,教科担当一覧2!$D$9:$BA$428,CW61) -> * | L62: =VLOOKUP(CP62,教科担当一覧2!$D$9:$BA$428,CX61) -> * | N62: 28 | O62: =VLOOKUP(DA62,教科担当一覧2!$D$9:$BA$428,4) ->  | P62: =VLOOKUP(DA62,教科担当一覧2!$D$9:$BA$428,DB61) ->  | Q62: =VLOOKUP(DA62,教科担当一覧2!$D$9:$BA$428,DC61) ->  | R62: =VLOOKUP(DA62,教科担当一覧2!$D$9:$BA$428,DD61) ->  | S62: =VLOOKUP(DA62,教科担当一覧2!$D$9:$BA$428,DE61) -> 世史 | T62: =VLOOKUP(DA62,教科担当一覧2!$D$9:$BA$428,DF61) -> 世史 | U62: =VLOOKUP(DA62,教科担当一覧2!$D$9:$BA$428,DG61) -> 世史 | V62: =VLOOKUP(DA62,教科担当一覧2!$D$9:$BA$428,DH61) -> * | W62: =VLOOKUP(DA62,教科担当一覧2!$D$9:$BA$428,DI61) -> * | Y62: 28 | Z62: =VLOOKUP(DL62,教科担当一覧2!$D$9:$BA$428,4) ->  | AA62: =VLOOKUP(DL62,教科担当一覧2!$D$9:$BA$428,DM61) ->  | AB62: =VLOOKUP(DL62,教科担当一覧2!$D$9:$BA$428,DN61) ->  | AC62: =VLOOKUP(DL62,教科担当一覧2!$D$9:$BA$428,DO61) ->  | AD62: =VLOOKUP(DL62,教科担当一覧2!$D$9:$BA$428,DP61) -> 世史 | AE62: =VLOOKUP(DL62,教科担当一覧2!$D$9:$BA$428,DQ61) -> 世史 | AF62: =VLOOKUP(DL62,教科担当一覧2!$D$9:$BA$428,DR61) -> 世史 | AG62: =VLOOKUP(DL62,教科担当一覧2!$D$9:$BA$428,DS61) -> * | AH62: =VLOOKUP(DL62,教科担当一覧2!$D$9:$BA$428,DT61) -> * | AJ62: 28 | AK62: =VLOOKUP(DW62,教科担当一覧2!$D$9:$BA$428,4) ->  | AL62: =VLOOKUP(DW62,教科担当一覧2!$D$9:$BA$428,DX61) ->  | AM62: =VLOOKUP(DW62,教科担当一覧2!$D$9:$BA$428,DY61) ->  | AN62: =VLOOKUP(DW62,教科担当一覧2!$D$9:$BA$428,DZ61) ->  | AO62: =VLOOKUP(DW62,教科担当一覧2!$D$9:$BA$428,EA61) -> 世史 | AP62: =VLOOKUP(DW62,教科担当一覧2!$D$9:$BA$428,EB61) -> 世史 | AQ62: =VLOOKUP(DW62,教科担当一覧2!$D$9:$BA$428,EC61) -> 世史 | AR62: =VLOOKUP(DW62,教科担当一覧2!$D$9:$BA$428,ED61) -> * | AS62: =VLOOKUP(DW62,教科担当一覧2!$D$9:$BA$428,EE61) -> * | AU62: 28 | AV62: =VLOOKUP(EH62,教科担当一覧2!$D$9:$BA$428,4) ->  | AW62: =VLOOKUP(EH62,教科担当一覧2!$D$9:$BA$428,EI61) ->  | AX62: =VLOOKUP(EH62,教科担当一覧2!$D$9:$BA$428,EJ61) ->  | AY62: =VLOOKUP(EH62,教科担当一覧2!$D$9:$BA$428,EK61) ->  | AZ62: =VLOOKUP(EH62,教科担当一覧2!$D$9:$BA$428,EL61) -> 世史 | BA62: =VLOOKUP(EH62,教科担当一覧2!$D$9:$BA$428,EM61) -> 世史 | BB62: =VLOOKUP(EH62,教科担当一覧2!$D$9:$BA$428,EN61) -> 世史 | BC62: =VLOOKUP(EH62,教科担当一覧2!$D$9:$BA$428,EO61) -> * | BD62: =VLOOKUP(EH62,教科担当一覧2!$D$9:$BA$428,EP61) -> * | BF62: 28 | BG62: =VLOOKUP(ES62,教科担当一覧2!$D$9:$BA$428,4) ->  | BH62: =VLOOKUP(ES62,教科担当一覧2!$D$9:$BA$428,ET61) ->  | BI62: =VLOOKUP(ES62,教科担当一覧2!$D$9:$BA$428,EU61) ->  | BJ62: =VLOOKUP(ES62,教科担当一覧2!$D$9:$BA$428,EV61) ->  | BK62: =VLOOKUP(ES62,教科担当一覧2!$D$9:$BA$428,EW61) -> 世史 | BL62: =VLOOKUP(ES62,教科担当一覧2!$D$9:$BA$428,EX61) -> 世史 | BM62: =VLOOKUP(ES62,教科担当一覧2!$D$9:$BA$428,EY61) -> 世史 | BN62: =VLOOKUP(ES62,教科担当一覧2!$D$9:$BA$428,EZ61) -> * | BO62: =VLOOKUP(ES62,教科担当一覧2!$D$9:$BA$428,FA61) -> * | BQ62: 28 | BR62: =VLOOKUP(FD62,教科担当一覧2!$D$9:$BA$428,4) ->  | BS62: =VLOOKUP(FD62,教科担当一覧2!$D$9:$BA$428,FE61) ->  | BT62: =VLOOKUP(FD62,教科担当一覧2!$D$9:$BA$428,FF61) ->  | BU62: =VLOOKUP(FD62,教科担当一覧2!$D$9:$BA$428,FG61) ->  | BV62: =VLOOKUP(FD62,教科担当一覧2!$D$9:$BA$428,FH61) -> 世史 | BW62: =VLOOKUP(FD62,教科担当一覧2!$D$9:$BA$428,FI61) -> 世史 | BX62: =VLOOKUP(FD62,教科担当一覧2!$D$9:$BA$428,FJ61) -> 世史 | BY62: =VLOOKUP(FD62,教科担当一覧2!$D$9:$BA$428,FK61) -> * | BZ62: =VLOOKUP(FD62,教科担当一覧2!$D$9:$BA$428,FL61) -> * | CB62: 28 | CC62: =VLOOKUP(FO62,教科担当一覧2!$D$9:$BA$428,4) ->  | CD62: =VLOOKUP(FO62,教科担当一覧2!$D$9:$BA$428,FP61) ->  | CE62: =VLOOKUP(FO62,教科担当一覧2!$D$9:$BA$428,FQ61) ->  | CF62: =VLOOKUP(FO62,教科担当一覧2!$D$9:$BA$428,FR61) ->  | CG62: =VLOOKUP(FO62,教科担当一覧2!$D$9:$BA$428,FS61) -> 世史 | CH62: =VLOOKUP(FO62,教科担当一覧2!$D$9:$BA$428,FT61) -> 世史 | CI62: =VLOOKUP(FO62,教科担当一覧2!$D$9:$BA$428,FU61) -> 世史 | CJ62: =VLOOKUP(FO62,教科担当一覧2!$D$9:$BA$428,FV61) -> * | CK62: =VLOOKUP(FO62,教科担当一覧2!$D$9:$BA$428,FW61) -> * | CP62: =C62*2 -> 56 | DA62: =N62*2 -> 56 | DL62: =Y62*2 -> 56 | DW62: =AJ62*2 -> 56 | EH62: =AU62*2 -> 56 | ES62: =BF62*2 -> 56 | FD62: =BQ62*2 -> 56 | FO62: =CB62*2 -> 56
... 77 more rows

Sheet ｸﾗｽ別担当者調査
D2: クラス別担当者調査
D4: クラスコード入力 | E4: クラスコード入力 | F4: クラスコード入力 | G4: クラスコード入力 | H4: クラスコード入力 | I4: クラスコード入力 | J4: クラスコード入力 | K4: クラスコード入力 | L4: クラスコード入力 | M4: クラスコード入力 | N4: クラスコード入力 | O4: クラスコード入力
D5: ↓ | E5: ↓ | F5: ↓ | G5: ↓ | H5: ↓ | I5: ↓ | J5: ↓ | K5: ↓ | L5: ↓ | M5: ↓ | N5: ↓ | O5: ↓
B6: ｵﾌｾｯﾄ番号 | C6: ｸﾗｽ | D6: *23 | E6: *11 | F6: *12 | G6: *13 | H6: *14 | I6: *15 | J6: *16 | K6: *17 | L6: *18 | M6: *32 | N6: *31 | O6: *18
B7: 1 | D7: =HLOOKUP(D$6,ｸﾗｽ別担当!$D$4:$BN$44,$B7+1) -> 4 | E7: =HLOOKUP(E$6,ｸﾗｽ別担当!$D$4:$BN$44,$B7+1) -> 2 | F7: =HLOOKUP(F$6,ｸﾗｽ別担当!$D$4:$BN$44,$B7+1) -> 1 | G7: =HLOOKUP(G$6,ｸﾗｽ別担当!$D$4:$BN$44,$B7+1) -> 3 | H7: =HLOOKUP(H$6,ｸﾗｽ別担当!$D$4:$BN$44,$B7+1) -> 1 | I7: =HLOOKUP(I$6,ｸﾗｽ別担当!$D$4:$BN$44,$B7+1) -> 2 | J7: =HLOOKUP(J$6,ｸﾗｽ別担当!$D$4:$BN$44,$B7+1) -> 2 | K7: =HLOOKUP(K$6,ｸﾗｽ別担当!$D$4:$BN$44,$B7+1) -> 1 | L7: =HLOOKUP(L$6,ｸﾗｽ別担当!$D$4:$BN$44,$B7+1) -> 3 | M7: =HLOOKUP(M$6,ｸﾗｽ別担当!$D$4:$BN$44,$B7+1) -> 6 | N7: =HLOOKUP(N$6,ｸﾗｽ別担当!$D$4:$BN$44,$B7+1) -> 6 | O7: =HLOOKUP(O$6,ｸﾗｽ別担当!$D$4:$BN$44,$B7+1) -> 3
B8: 2 | D8: =HLOOKUP(D$6,ｸﾗｽ別担当!$D$4:$BN$44,$B8+1) -> 榎本 | E8: =HLOOKUP(E$6,ｸﾗｽ別担当!$D$4:$BN$44,$B8+1) -> 桜井 | F8: =HLOOKUP(F$6,ｸﾗｽ別担当!$D$4:$BN$44,$B8+1) -> 小杉 | G8: =HLOOKUP(G$6,ｸﾗｽ別担当!$D$4:$BN$44,$B8+1) -> 小野島 | H8: =HLOOKUP(H$6,ｸﾗｽ別担当!$D$4:$BN$44,$B8+1) -> 小杉 | I8: =HLOOKUP(I$6,ｸﾗｽ別担当!$D$4:$BN$44,$B8+1) -> 桜井 | J8: =HLOOKUP(J$6,ｸﾗｽ別担当!$D$4:$BN$44,$B8+1) -> 桜井 | K8: =HLOOKUP(K$6,ｸﾗｽ別担当!$D$4:$BN$44,$B8+1) -> 小杉 | L8: =HLOOKUP(L$6,ｸﾗｽ別担当!$D$4:$BN$44,$B8+1) -> 小野島 | M8: =HLOOKUP(M$6,ｸﾗｽ別担当!$D$4:$BN$44,$B8+1) -> 関根 | N8: =HLOOKUP(N$6,ｸﾗｽ別担当!$D$4:$BN$44,$B8+1) -> 関根 | O8: =HLOOKUP(O$6,ｸﾗｽ別担当!$D$4:$BN$44,$B8+1) -> 小野島
B9: 3 | D9: =HLOOKUP(D$6,ｸﾗｽ別担当!$D$4:$BN$44,$B9+1) -> 24 | E9: =HLOOKUP(E$6,ｸﾗｽ別担当!$D$4:$BN$44,$B9+1) -> 21 | F9: =HLOOKUP(F$6,ｸﾗｽ別担当!$D$4:$BN$44,$B9+1) -> 21 | G9: =HLOOKUP(G$6,ｸﾗｽ別担当!$D$4:$BN$44,$B9+1) -> 22 | H9: =HLOOKUP(H$6,ｸﾗｽ別担当!$D$4:$BN$44,$B9+1) -> 23 | I9: =HLOOKUP(I$6,ｸﾗｽ別担当!$D$4:$BN$44,$B9+1) -> 22 | J9: =HLOOKUP(J$6,ｸﾗｽ別担当!$D$4:$BN$44,$B9+1) -> 41 | K9: =HLOOKUP(K$6,ｸﾗｽ別担当!$D$4:$BN$44,$B9+1) -> 23 | L9: =HLOOKUP(L$6,ｸﾗｽ別担当!$D$4:$BN$44,$B9+1) -> 22 | M9: =HLOOKUP(M$6,ｸﾗｽ別担当!$D$4:$BN$44,$B9+1) -> 21 | N9: =HLOOKUP(N$6,ｸﾗｽ別担当!$D$4:$BN$44,$B9+1) -> 21 | O9: =HLOOKUP(O$6,ｸﾗｽ別担当!$D$4:$BN$44,$B9+1) -> 22
B10: 4 | D10: =HLOOKUP(D$6,ｸﾗｽ別担当!$D$4:$BN$44,$B10+1) -> 小栗 | E10: =HLOOKUP(E$6,ｸﾗｽ別担当!$D$4:$BN$44,$B10+1) -> 新井 | F10: =HLOOKUP(F$6,ｸﾗｽ別担当!$D$4:$BN$44,$B10+1) -> 新井 | G10: =HLOOKUP(G$6,ｸﾗｽ別担当!$D$4:$BN$44,$B10+1) -> 福田 | H10: =HLOOKUP(H$6,ｸﾗｽ別担当!$D$4:$BN$44,$B10+1) -> 鶴巻 | I10: =HLOOKUP(I$6,ｸﾗｽ別担当!$D$4:$BN$44,$B10+1) -> 福田 | J10: =HLOOKUP(J$6,ｸﾗｽ別担当!$D$4:$BN$44,$B10+1) -> 金子 | K10: =HLOOKUP(K$6,ｸﾗｽ別担当!$D$4:$BN$44,$B10+1) -> 鶴巻 | L10: =HLOOKUP(L$6,ｸﾗｽ別担当!$D$4:$BN$44,$B10+1) -> 福田 | M10: =HLOOKUP(M$6,ｸﾗｽ別担当!$D$4:$BN$44,$B10+1) -> 新井 | N10: =HLOOKUP(N$6,ｸﾗｽ別担当!$D$4:$BN$44,$B10+1) -> 新井 | O10: =HLOOKUP(O$6,ｸﾗｽ別担当!$D$4:$BN$44,$B10+1) -> 福田
B11: 5 | C11: 担 | D11: =HLOOKUP(D$6,ｸﾗｽ別担当!$D$4:$BN$44,$B11+1) -> 28 | E11: =HLOOKUP(E$6,ｸﾗｽ別担当!$D$4:$BN$44,$B11+1) -> 44 | F11: =HLOOKUP(F$6,ｸﾗｽ別担当!$D$4:$BN$44,$B11+1) -> 42 | G11: =HLOOKUP(G$6,ｸﾗｽ別担当!$D$4:$BN$44,$B11+1) -> 42 | H11: =HLOOKUP(H$6,ｸﾗｽ別担当!$D$4:$BN$44,$B11+1) -> 43 | I11: =HLOOKUP(I$6,ｸﾗｽ別担当!$D$4:$BN$44,$B11+1) -> 41 | J11: =HLOOKUP(J$6,ｸﾗｽ別担当!$D$4:$BN$44,$B11+1) -> 66 | K11: =HLOOKUP(K$6,ｸﾗｽ別担当!$D$4:$BN$44,$B11+1) -> 41 | L11: =HLOOKUP(L$6,ｸﾗｽ別担当!$D$4:$BN$44,$B11+1) -> 41 | M11: =HLOOKUP(M$6,ｸﾗｽ別担当!$D$4:$BN$44,$B11+1) -> 24 | N11: =HLOOKUP(N$6,ｸﾗｽ別担当!$D$4:$BN$44,$B11+1) -> 25 | O11: =HLOOKUP(O$6,ｸﾗｽ別担当!$D$4:$BN$44,$B11+1) -> 41
B12: 6 | D12: =HLOOKUP(D$6,ｸﾗｽ別担当!$D$4:$BN$44,$B12+1) -> 高橋 | E12: =HLOOKUP(E$6,ｸﾗｽ別担当!$D$4:$BN$44,$B12+1) -> 市ノ川 | F12: =HLOOKUP(F$6,ｸﾗｽ別担当!$D$4:$BN$44,$B12+1) -> 山根ﾀ | G12: =HLOOKUP(G$6,ｸﾗｽ別担当!$D$4:$BN$44,$B12+1) -> 山根ﾀ | H12: =HLOOKUP(H$6,ｸﾗｽ別担当!$D$4:$BN$44,$B12+1) -> 斉藤ﾄ | I12: =HLOOKUP(I$6,ｸﾗｽ別担当!$D$4:$BN$44,$B12+1) -> 金子 | J12: =HLOOKUP(J$6,ｸﾗｽ別担当!$D$4:$BN$44,$B12+1) -> 斉藤ｻ | K12: =HLOOKUP(K$6,ｸﾗｽ別担当!$D$4:$BN$44,$B12+1) -> 金子 | L12: =HLOOKUP(L$6,ｸﾗｽ別担当!$D$4:$BN$44,$B12+1) -> 金子 | M12: =HLOOKUP(M$6,ｸﾗｽ別担当!$D$4:$BN$44,$B12+1) -> 小栗 | N12: =HLOOKUP(N$6,ｸﾗｽ別担当!$D$4:$BN$44,$B12+1) -> 程田 | O12: =HLOOKUP(O$6,ｸﾗｽ別担当!$D$4:$BN$44,$B12+1) -> 金子
B13: 7 | D13: =HLOOKUP(D$6,ｸﾗｽ別担当!$D$4:$BN$44,$B13+1) -> 43 | E13: =HLOOKUP(E$6,ｸﾗｽ別担当!$D$4:$BN$44,$B13+1) -> 61 | F13: =HLOOKUP(F$6,ｸﾗｽ別担当!$D$4:$BN$44,$B13+1) -> 61 | G13: =HLOOKUP(G$6,ｸﾗｽ別担当!$D$4:$BN$44,$B13+1) -> 61 | H13: =HLOOKUP(H$6,ｸﾗｽ別担当!$D$4:$BN$44,$B13+1) -> 66 | I13: =HLOOKUP(I$6,ｸﾗｽ別担当!$D$4:$BN$44,$B13+1) -> 66 | J13: =HLOOKUP(J$6,ｸﾗｽ別担当!$D$4:$BN$44,$B13+1) -> 82 | K13: =HLOOKUP(K$6,ｸﾗｽ別担当!$D$4:$BN$44,$B13+1) -> 63 | L13: =HLOOKUP(L$6,ｸﾗｽ別担当!$D$4:$BN$44,$B13+1) -> 63 | M13: =HLOOKUP(M$6,ｸﾗｽ別担当!$D$4:$BN$44,$B13+1) -> 25 | N13: =HLOOKUP(N$6,ｸﾗｽ別担当!$D$4:$BN$44,$B13+1) -> 27 | O13: =HLOOKUP(O$6,ｸﾗｽ別担当!$D$4:$BN$44,$B13+1) -> 63
B14: 8 | D14: =HLOOKUP(D$6,ｸﾗｽ別担当!$D$4:$BN$44,$B14+1) -> 斉藤ﾄ | E14: =HLOOKUP(E$6,ｸﾗｽ別担当!$D$4:$BN$44,$B14+1) -> 関 | F14: =HLOOKUP(F$6,ｸﾗｽ別担当!$D$4:$BN$44,$B14+1) -> 関 | G14: =HLOOKUP(G$6,ｸﾗｽ別担当!$D$4:$BN$44,$B14+1) -> 関 | H14: =HLOOKUP(H$6,ｸﾗｽ別担当!$D$4:$BN$44,$B14+1) -> 斉藤ｻ | I14: =HLOOKUP(I$6,ｸﾗｽ別担当!$D$4:$BN$44,$B14+1) -> 斉藤ｻ | J14: =HLOOKUP(J$6,ｸﾗｽ別担当!$D$4:$BN$44,$B14+1) -> 国延 | K14: =HLOOKUP(K$6,ｸﾗｽ別担当!$D$4:$BN$44,$B14+1) -> 中田 | L14: =HLOOKUP(L$6,ｸﾗｽ別担当!$D$4:$BN$44,$B14+1) -> 中田 | M14: =HLOOKUP(M$6,ｸﾗｽ別担当!$D$4:$BN$44,$B14+1) -> 程田 | N14: =HLOOKUP(N$6,ｸﾗｽ別担当!$D$4:$BN$44,$B14+1) -> 松本ﾀ | O14: =HLOOKUP(O$6,ｸﾗｽ別担当!$D$4:$BN$44,$B14+1) -> 中田
B15: 9 | D15: =HLOOKUP(D$6,ｸﾗｽ別担当!$D$4:$BN$44,$B15+1) -> 62 | E15: =HLOOKUP(E$6,ｸﾗｽ別担当!$D$4:$BN$44,$B15+1) -> 81 | F15: =HLOOKUP(F$6,ｸﾗｽ別担当!$D$4:$BN$44,$B15+1) -> 82 | G15: =HLOOKUP(G$6,ｸﾗｽ別担当!$D$4:$BN$44,$B15+1) -> 81 | H15: =HLOOKUP(H$6,ｸﾗｽ別担当!$D$4:$BN$44,$B15+1) -> 81 | I15: =HLOOKUP(I$6,ｸﾗｽ別担当!$D$4:$BN$44,$B15+1) -> 81 | J15: =HLOOKUP(J$6,ｸﾗｽ別担当!$D$4:$BN$44,$B15+1) -> 83 | K15: =HLOOKUP(K$6,ｸﾗｽ別担当!$D$4:$BN$44,$B15+1) -> 82 | L15: =HLOOKUP(L$6,ｸﾗｽ別担当!$D$4:$BN$44,$B15+1) -> 85 | M15: =HLOOKUP(M$6,ｸﾗｽ別担当!$D$4:$BN$44,$B15+1) -> 45 | N15: =HLOOKUP(N$6,ｸﾗｽ別担当!$D$4:$BN$44,$B15+1) -> 45 | O15: =HLOOKUP(O$6,ｸﾗｽ別担当!$D$4:$BN$44,$B15+1) -> 85
B16: 10 | D16: =HLOOKUP(D$6,ｸﾗｽ別担当!$D$4:$BN$44,$B16+1) -> 上村 | E16: =HLOOKUP(E$6,ｸﾗｽ別担当!$D$4:$BN$44,$B16+1) -> 名児耶 | F16: =HLOOKUP(F$6,ｸﾗｽ別担当!$D$4:$BN$44,$B16+1) -> 国延 | G16: =HLOOKUP(G$6,ｸﾗｽ別担当!$D$4:$BN$44,$B16+1) -> 名児耶 | H16: =HLOOKUP(H$6,ｸﾗｽ別担当!$D$4:$BN$44,$B16+1) -> 名児耶 | I16: =HLOOKUP(I$6,ｸﾗｽ別担当!$D$4:$BN$44,$B16+1) -> 名児耶 | J16: =HLOOKUP(J$6,ｸﾗｽ別担当!$D$4:$BN$44,$B16+1) -> 八木 | K16: =HLOOKUP(K$6,ｸﾗｽ別担当!$D$4:$BN$44,$B16+1) -> 国延 | L16: =HLOOKUP(L$6,ｸﾗｽ別担当!$D$4:$BN$44,$B16+1) -> 大徳 | M16: =HLOOKUP(M$6,ｸﾗｽ別担当!$D$4:$BN$44,$B16+1) -> 多田 | N16: =HLOOKUP(N$6,ｸﾗｽ別担当!$D$4:$BN$44,$B16+1) -> 多田 | O16: =HLOOKUP(O$6,ｸﾗｽ別担当!$D$4:$BN$44,$B16+1) -> 大徳
B17: 11 | D17: =HLOOKUP(D$6,ｸﾗｽ別担当!$D$4:$BN$44,$B17+1) -> 64 | E17: =HLOOKUP(E$6,ｸﾗｽ別担当!$D$4:$BN$44,$B17+1) -> 86 | F17: =HLOOKUP(F$6,ｸﾗｽ別担当!$D$4:$BN$44,$B17+1) -> 85 | G17: =HLOOKUP(G$6,ｸﾗｽ別担当!$D$4:$BN$44,$B17+1) -> 86 | H17: =HLOOKUP(H$6,ｸﾗｽ別担当!$D$4:$BN$44,$B17+1) -> 82 | I17: =HLOOKUP(I$6,ｸﾗｽ別担当!$D$4:$BN$44,$B17+1) -> 82 | J17: =HLOOKUP(J$6,ｸﾗｽ別担当!$D$4:$BN$44,$B17+1) -> 85 | K17: =HLOOKUP(K$6,ｸﾗｽ別担当!$D$4:$BN$44,$B17+1) -> 101 | L17: =HLOOKUP(L$6,ｸﾗｽ別担当!$D$4:$BN$44,$B17+1) -> 86 | M17: =HLOOKUP(M$6,ｸﾗｽ別担当!$D$4:$BN$44,$B17+1) -> 62 | N17: =HLOOKUP(N$6,ｸﾗｽ別担当!$D$4:$BN$44,$B17+1) -> 67 | O17: =HLOOKUP(O$6,ｸﾗｽ別担当!$D$4:$BN$44,$B17+1) -> 86
B18: 12 | D18: =HLOOKUP(D$6,ｸﾗｽ別担当!$D$4:$BN$44,$B18+1) -> 金室 | E18: =HLOOKUP(E$6,ｸﾗｽ別担当!$D$4:$BN$44,$B18+1) -> 山崎 | F18: =HLOOKUP(F$6,ｸﾗｽ別担当!$D$4:$BN$44,$B18+1) -> 大徳 | G18: =HLOOKUP(G$6,ｸﾗｽ別担当!$D$4:$BN$44,$B18+1) -> 山崎 | H18: =HLOOKUP(H$6,ｸﾗｽ別担当!$D$4:$BN$44,$B18+1) -> 国延 | I18: =HLOOKUP(I$6,ｸﾗｽ別担当!$D$4:$BN$44,$B18+1) -> 国延 | J18: =HLOOKUP(J$6,ｸﾗｽ別担当!$D$4:$BN$44,$B18+1) -> 大徳 | K18: =HLOOKUP(K$6,ｸﾗｽ別担当!$D$4:$BN$44,$B18+1) -> 杉山 | L18: =HLOOKUP(L$6,ｸﾗｽ別担当!$D$4:$BN$44,$B18+1) -> 山崎 | M18: =HLOOKUP(M$6,ｸﾗｽ別担当!$D$4:$BN$44,$B18+1) -> 上村 | N18: =HLOOKUP(N$6,ｸﾗｽ別担当!$D$4:$BN$44,$B18+1) -> 涌井 | O18: =HLOOKUP(O$6,ｸﾗｽ別担当!$D$4:$BN$44,$B18+1) -> 山崎
B19: 13 | D19: =HLOOKUP(D$6,ｸﾗｽ別担当!$D$4:$BN$44,$B19+1) -> 83 | E19: =HLOOKUP(E$6,ｸﾗｽ別担当!$D$4:$BN$44,$B19+1) -> 103 | F19: =HLOOKUP(F$6,ｸﾗｽ別担当!$D$4:$BN$44,$B19+1) -> 86 | G19: =HLOOKUP(G$6,ｸﾗｽ別担当!$D$4:$BN$44,$B19+1) -> 102 | H19: =HLOOKUP(H$6,ｸﾗｽ別担当!$D$4:$BN$44,$B19+1) -> 85 | I19: =HLOOKUP(I$6,ｸﾗｽ別担当!$D$4:$BN$44,$B19+1) -> 101 | J19: =HLOOKUP(J$6,ｸﾗｽ別担当!$D$4:$BN$44,$B19+1) -> 104 | K19: =HLOOKUP(K$6,ｸﾗｽ別担当!$D$4:$BN$44,$B19+1) -> 122 | L19: =HLOOKUP(L$6,ｸﾗｽ別担当!$D$4:$BN$44,$B19+1) -> 102 | M19: =HLOOKUP(M$6,ｸﾗｽ別担当!$D$4:$BN$44,$B19+1) -> 67 | N19: =HLOOKUP(N$6,ｸﾗｽ別担当!$D$4:$BN$44,$B19+1) -> 81 | O19: =HLOOKUP(O$6,ｸﾗｽ別担当!$D$4:$BN$44,$B19+1) -> 102
B20: 14 | D20: =HLOOKUP(D$6,ｸﾗｽ別担当!$D$4:$BN$44,$B20+1) -> 八木 | E20: =HLOOKUP(E$6,ｸﾗｽ別担当!$D$4:$BN$44,$B20+1) -> 後藤 | F20: =HLOOKUP(F$6,ｸﾗｽ別担当!$D$4:$BN$44,$B20+1) -> 山崎 | G20: =HLOOKUP(G$6,ｸﾗｽ別担当!$D$4:$BN$44,$B20+1) -> 高橋 | H20: =HLOOKUP(H$6,ｸﾗｽ別担当!$D$4:$BN$44,$B20+1) -> 大徳 | I20: =HLOOKUP(I$6,ｸﾗｽ別担当!$D$4:$BN$44,$B20+1) -> 杉山 | J20: =HLOOKUP(J$6,ｸﾗｽ別担当!$D$4:$BN$44,$B20+1) -> 上原 | K20: =HLOOKUP(K$6,ｸﾗｽ別担当!$D$4:$BN$44,$B20+1) -> 安藤 | L20: =HLOOKUP(L$6,ｸﾗｽ別担当!$D$4:$BN$44,$B20+1) -> 高橋 | M20: =HLOOKUP(M$6,ｸﾗｽ別担当!$D$4:$BN$44,$B20+1) -> 涌井 | N20: =HLOOKUP(N$6,ｸﾗｽ別担当!$D$4:$BN$44,$B20+1) -> 名児耶 | O20: =HLOOKUP(O$6,ｸﾗｽ別担当!$D$4:$BN$44,$B20+1) -> 高橋
B21: 15 | D21: =HLOOKUP(D$6,ｸﾗｽ別担当!$D$4:$BN$44,$B21+1) -> 84 | E21: =HLOOKUP(E$6,ｸﾗｽ別担当!$D$4:$BN$44,$B21+1) -> 121 | F21: =HLOOKUP(F$6,ｸﾗｽ別担当!$D$4:$BN$44,$B21+1) -> 101 | G21: =HLOOKUP(G$6,ｸﾗｽ別担当!$D$4:$BN$44,$B21+1) -> 121 | H21: =HLOOKUP(H$6,ｸﾗｽ別担当!$D$4:$BN$44,$B21+1) -> 104 | I21: =HLOOKUP(I$6,ｸﾗｽ別担当!$D$4:$BN$44,$B21+1) -> 121 | J21: =HLOOKUP(J$6,ｸﾗｽ別担当!$D$4:$BN$44,$B21+1) -> 121 | K21: =HLOOKUP(K$6,ｸﾗｽ別担当!$D$4:$BN$44,$B21+1) -> 124 | L21: =HLOOKUP(L$6,ｸﾗｽ別担当!$D$4:$BN$44,$B21+1) -> 122 | M21: =HLOOKUP(M$6,ｸﾗｽ別担当!$D$4:$BN$44,$B21+1) -> 81 | N21: =HLOOKUP(N$6,ｸﾗｽ別担当!$D$4:$BN$44,$B21+1) -> 82 | O21: =HLOOKUP(O$6,ｸﾗｽ別担当!$D$4:$BN$44,$B21+1) -> 122
B22: 16 | D22: =HLOOKUP(D$6,ｸﾗｽ別担当!$D$4:$BN$44,$B22+1) -> 仙徳 | E22: =HLOOKUP(E$6,ｸﾗｽ別担当!$D$4:$BN$44,$B22+1) -> 木島 | F22: =HLOOKUP(F$6,ｸﾗｽ別担当!$D$4:$BN$44,$B22+1) -> 杉山 | G22: =HLOOKUP(G$6,ｸﾗｽ別担当!$D$4:$BN$44,$B22+1) -> 木島 | H22: =HLOOKUP(H$6,ｸﾗｽ別担当!$D$4:$BN$44,$B22+1) -> 上原 | I22: =HLOOKUP(I$6,ｸﾗｽ別担当!$D$4:$BN$44,$B22+1) -> 木島 | J22: =HLOOKUP(J$6,ｸﾗｽ別担当!$D$4:$BN$44,$B22+1) -> 木島 | K22: =HLOOKUP(K$6,ｸﾗｽ別担当!$D$4:$BN$44,$B22+1) -> 清水ﾀ | L22: =HLOOKUP(L$6,ｸﾗｽ別担当!$D$4:$BN$44,$B22+1) -> 安藤 | M22: =HLOOKUP(M$6,ｸﾗｽ別担当!$D$4:$BN$44,$B22+1) -> 名児耶 | N22: =HLOOKUP(N$6,ｸﾗｽ別担当!$D$4:$BN$44,$B22+1) -> 国延 | O22: =HLOOKUP(O$6,ｸﾗｽ別担当!$D$4:$BN$44,$B22+1) -> 安藤
B23: 17 | D23: =HLOOKUP(D$6,ｸﾗｽ別担当!$D$4:$BN$44,$B23+1) -> 103 | E23: =HLOOKUP(E$6,ｸﾗｽ別担当!$D$4:$BN$44,$B23+1) -> 128 | F23: =HLOOKUP(F$6,ｸﾗｽ別担当!$D$4:$BN$44,$B23+1) -> 121 | G23: =HLOOKUP(G$6,ｸﾗｽ別担当!$D$4:$BN$44,$B23+1) -> 128 | H23: =HLOOKUP(H$6,ｸﾗｽ別担当!$D$4:$BN$44,$B23+1) -> 122 | I23: =HLOOKUP(I$6,ｸﾗｽ別担当!$D$4:$BN$44,$B23+1) -> 122 | J23: =HLOOKUP(J$6,ｸﾗｽ別担当!$D$4:$BN$44,$B23+1) -> 122 | K23: =HLOOKUP(K$6,ｸﾗｽ別担当!$D$4:$BN$44,$B23+1) -> 142 | L23: =HLOOKUP(L$6,ｸﾗｽ別担当!$D$4:$BN$44,$B23+1) -> 124 | M23: =HLOOKUP(M$6,ｸﾗｽ別担当!$D$4:$BN$44,$B23+1) -> 82 | N23: =HLOOKUP(N$6,ｸﾗｽ別担当!$D$4:$BN$44,$B23+1) -> 86 | O23: =HLOOKUP(O$6,ｸﾗｽ別担当!$D$4:$BN$44,$B23+1) -> 124
B24: 18 | D24: =HLOOKUP(D$6,ｸﾗｽ別担当!$D$4:$BN$44,$B24+1) -> 後藤 | E24: =HLOOKUP(E$6,ｸﾗｽ別担当!$D$4:$BN$44,$B24+1) -> 小林 | F24: =HLOOKUP(F$6,ｸﾗｽ別担当!$D$4:$BN$44,$B24+1) -> 木島 | G24: =HLOOKUP(G$6,ｸﾗｽ別担当!$D$4:$BN$44,$B24+1) -> 小林 | H24: =HLOOKUP(H$6,ｸﾗｽ別担当!$D$4:$BN$44,$B24+1) -> 安藤 | I24: =HLOOKUP(I$6,ｸﾗｽ別担当!$D$4:$BN$44,$B24+1) -> 安藤 | J24: =HLOOKUP(J$6,ｸﾗｽ別担当!$D$4:$BN$44,$B24+1) -> 安藤 | K24: =HLOOKUP(K$6,ｸﾗｽ別担当!$D$4:$BN$44,$B24+1) -> 川崎 | L24: =HLOOKUP(L$6,ｸﾗｽ別担当!$D$4:$BN$44,$B24+1) -> 清水ﾀ | M24: =HLOOKUP(M$6,ｸﾗｽ別担当!$D$4:$BN$44,$B24+1) -> 国延 | N24: =HLOOKUP(N$6,ｸﾗｽ別担当!$D$4:$BN$44,$B24+1) -> 山崎 | O24: =HLOOKUP(O$6,ｸﾗｽ別担当!$D$4:$BN$44,$B24+1) -> 清水ﾀ
B25: 19 | D25: =HLOOKUP(D$6,ｸﾗｽ別担当!$D$4:$BN$44,$B25+1) -> 125 | E25: =HLOOKUP(E$6,ｸﾗｽ別担当!$D$4:$BN$44,$B25+1) -> 141 | F25: =HLOOKUP(F$6,ｸﾗｽ別担当!$D$4:$BN$44,$B25+1) -> 128 | G25: =HLOOKUP(G$6,ｸﾗｽ別担当!$D$4:$BN$44,$B25+1) -> 141 | H25: =HLOOKUP(H$6,ｸﾗｽ別担当!$D$4:$BN$44,$B25+1) -> 128 | I25: =HLOOKUP(I$6,ｸﾗｽ別担当!$D$4:$BN$44,$B25+1) -> 151 | J25: =HLOOKUP(J$6,ｸﾗｽ別担当!$D$4:$BN$44,$B25+1) -> 142 | K25: =HLOOKUP(K$6,ｸﾗｽ別担当!$D$4:$BN$44,$B25+1) -> 151 | L25: =HLOOKUP(L$6,ｸﾗｽ別担当!$D$4:$BN$44,$B25+1) -> 142 | M25: =HLOOKUP(M$6,ｸﾗｽ別担当!$D$4:$BN$44,$B25+1) -> 83 | N25: =HLOOKUP(N$6,ｸﾗｽ別担当!$D$4:$BN$44,$B25+1) -> 87 | O25: =HLOOKUP(O$6,ｸﾗｽ別担当!$D$4:$BN$44,$B25+1) -> 142
B26: 20 | C26: 当 | D26: =HLOOKUP(D$6,ｸﾗｽ別担当!$D$4:$BN$44,$B26+1) -> 清水ﾖ | E26: =HLOOKUP(E$6,ｸﾗｽ別担当!$D$4:$BN$44,$B26+1) -> 村山 | F26: =HLOOKUP(F$6,ｸﾗｽ別担当!$D$4:$BN$44,$B26+1) -> 小林 | G26: =HLOOKUP(G$6,ｸﾗｽ別担当!$D$4:$BN$44,$B26+1) -> 村山 | H26: =HLOOKUP(H$6,ｸﾗｽ別担当!$D$4:$BN$44,$B26+1) -> 小林 | I26: =HLOOKUP(I$6,ｸﾗｽ別担当!$D$4:$BN$44,$B26+1) -> 宮木 | J26: =HLOOKUP(J$6,ｸﾗｽ別担当!$D$4:$BN$44,$B26+1) -> 川崎 | K26: =HLOOKUP(K$6,ｸﾗｽ別担当!$D$4:$BN$44,$B26+1) -> 宮木 | L26: =HLOOKUP(L$6,ｸﾗｽ別担当!$D$4:$BN$44,$B26+1) -> 川崎 | M26: =HLOOKUP(M$6,ｸﾗｽ別担当!$D$4:$BN$44,$B26+1) -> 八木 | N26: =HLOOKUP(N$6,ｸﾗｽ別担当!$D$4:$BN$44,$B26+1) -> 井上 | O26: =HLOOKUP(O$6,ｸﾗｽ別担当!$D$4:$BN$44,$B26+1) -> 川崎
B27: 21 | D27: =HLOOKUP(D$6,ｸﾗｽ別担当!$D$4:$BN$44,$B27+1) -> 127 | E27: =HLOOKUP(E$6,ｸﾗｽ別担当!$D$4:$BN$44,$B27+1) -> 151 | F27: =HLOOKUP(F$6,ｸﾗｽ別担当!$D$4:$BN$44,$B27+1) -> 141 | G27: =HLOOKUP(G$6,ｸﾗｽ別担当!$D$4:$BN$44,$B27+1) -> 151 | H27: =HLOOKUP(H$6,ｸﾗｽ別担当!$D$4:$BN$44,$B27+1) -> 141 | I27: =HLOOKUP(I$6,ｸﾗｽ別担当!$D$4:$BN$44,$B27+1) ->  | J27: =HLOOKUP(J$6,ｸﾗｽ別担当!$D$4:$BN$44,$B27+1) -> 151 | K27: =HLOOKUP(K$6,ｸﾗｽ別担当!$D$4:$BN$44,$B27+1) ->  | L27: =HLOOKUP(L$6,ｸﾗｽ別担当!$D$4:$BN$44,$B27+1) -> 151 | M27: =HLOOKUP(M$6,ｸﾗｽ別担当!$D$4:$BN$44,$B27+1) -> 86 | N27: =HLOOKUP(N$6,ｸﾗｽ別担当!$D$4:$BN$44,$B27+1) -> 101 | O27: =HLOOKUP(O$6,ｸﾗｽ別担当!$D$4:$BN$44,$B27+1) -> 151
B28: 22 | D28: =HLOOKUP(D$6,ｸﾗｽ別担当!$D$4:$BN$44,$B28+1) -> 松田 | E28: =HLOOKUP(E$6,ｸﾗｽ別担当!$D$4:$BN$44,$B28+1) -> 宮木 | F28: =HLOOKUP(F$6,ｸﾗｽ別担当!$D$4:$BN$44,$B28+1) -> 村山 | G28: =HLOOKUP(G$6,ｸﾗｽ別担当!$D$4:$BN$44,$B28+1) -> 宮木 | H28: =HLOOKUP(H$6,ｸﾗｽ別担当!$D$4:$BN$44,$B28+1) -> 村山 | I28: =HLOOKUP(I$6,ｸﾗｽ別担当!$D$4:$BN$44,$B28+1) ->  | J28: =HLOOKUP(J$6,ｸﾗｽ別担当!$D$4:$BN$44,$B28+1) -> 宮木 | K28: =HLOOKUP(K$6,ｸﾗｽ別担当!$D$4:$BN$44,$B28+1) ->  | L28: =HLOOKUP(L$6,ｸﾗｽ別担当!$D$4:$BN$44,$B28+1) -> 宮木 | M28: =HLOOKUP(M$6,ｸﾗｽ別担当!$D$4:$BN$44,$B28+1) -> 山崎 | N28: =HLOOKUP(N$6,ｸﾗｽ別担当!$D$4:$BN$44,$B28+1) -> 杉山 | O28: =HLOOKUP(O$6,ｸﾗｽ別担当!$D$4:$BN$44,$B28+1) -> 宮木
B29: 23 | D29: =HLOOKUP(D$6,ｸﾗｽ別担当!$D$4:$BN$44,$B29+1) -> 141 | E29: =HLOOKUP(E$6,ｸﾗｽ別担当!$D$4:$BN$44,$B29+1) ->  | F29: =HLOOKUP(F$6,ｸﾗｽ別担当!$D$4:$BN$44,$B29+1) -> 151 | G29: =HLOOKUP(G$6,ｸﾗｽ別担当!$D$4:$BN$44,$B29+1) ->  | H29: =HLOOKUP(H$6,ｸﾗｽ別担当!$D$4:$BN$44,$B29+1) -> 151 | I29: =HLOOKUP(I$6,ｸﾗｽ別担当!$D$4:$BN$44,$B29+1) ->  | J29: =HLOOKUP(J$6,ｸﾗｽ別担当!$D$4:$BN$44,$B29+1) ->  | K29: =HLOOKUP(K$6,ｸﾗｽ別担当!$D$4:$BN$44,$B29+1) ->  | L29: =HLOOKUP(L$6,ｸﾗｽ別担当!$D$4:$BN$44,$B29+1) ->  | M29: =HLOOKUP(M$6,ｸﾗｽ別担当!$D$4:$BN$44,$B29+1) -> 87 | N29: =HLOOKUP(N$6,ｸﾗｽ別担当!$D$4:$BN$44,$B29+1) -> 128 | O29: =HLOOKUP(O$6,ｸﾗｽ別担当!$D$4:$BN$44,$B29+1) -> 
B30: 24 | D30: =HLOOKUP(D$6,ｸﾗｽ別担当!$D$4:$BN$44,$B30+1) -> 村山 | E30: =HLOOKUP(E$6,ｸﾗｽ別担当!$D$4:$BN$44,$B30+1) ->  | F30: =HLOOKUP(F$6,ｸﾗｽ別担当!$D$4:$BN$44,$B30+1) -> 宮木 | G30: =HLOOKUP(G$6,ｸﾗｽ別担当!$D$4:$BN$44,$B30+1) ->  | H30: =HLOOKUP(H$6,ｸﾗｽ別担当!$D$4:$BN$44,$B30+1) -> 宮木 | I30: =HLOOKUP(I$6,ｸﾗｽ別担当!$D$4:$BN$44,$B30+1) ->  | J30: =HLOOKUP(J$6,ｸﾗｽ別担当!$D$4:$BN$44,$B30+1) ->  | K30: =HLOOKUP(K$6,ｸﾗｽ別担当!$D$4:$BN$44,$B30+1) ->  | L30: =HLOOKUP(L$6,ｸﾗｽ別担当!$D$4:$BN$44,$B30+1) ->  | M30: =HLOOKUP(M$6,ｸﾗｽ別担当!$D$4:$BN$44,$B30+1) -> 井上 | N30: =HLOOKUP(N$6,ｸﾗｽ別担当!$D$4:$BN$44,$B30+1) -> 小林 | O30: =HLOOKUP(O$6,ｸﾗｽ別担当!$D$4:$BN$44,$B30+1) -> 
B31: 25 | D31: =HLOOKUP(D$6,ｸﾗｽ別担当!$D$4:$BN$44,$B31+1) ->  | E31: =HLOOKUP(E$6,ｸﾗｽ別担当!$D$4:$BN$44,$B31+1) ->  | F31: =HLOOKUP(F$6,ｸﾗｽ別担当!$D$4:$BN$44,$B31+1) ->  | G31: =HLOOKUP(G$6,ｸﾗｽ別担当!$D$4:$BN$44,$B31+1) ->  | H31: =HLOOKUP(H$6,ｸﾗｽ別担当!$D$4:$BN$44,$B31+1) ->  | I31: =HLOOKUP(I$6,ｸﾗｽ別担当!$D$4:$BN$44,$B31+1) ->  | J31: =HLOOKUP(J$6,ｸﾗｽ別担当!$D$4:$BN$44,$B31+1) ->  | K31: =HLOOKUP(K$6,ｸﾗｽ別担当!$D$4:$BN$44,$B31+1) ->  | L31: =HLOOKUP(L$6,ｸﾗｽ別担当!$D$4:$BN$44,$B31+1) ->  | M31: =HLOOKUP(M$6,ｸﾗｽ別担当!$D$4:$BN$44,$B31+1) -> 101 | N31: =HLOOKUP(N$6,ｸﾗｽ別担当!$D$4:$BN$44,$B31+1) ->  | O31: =HLOOKUP(O$6,ｸﾗｽ別担当!$D$4:$BN$44,$B31+1) -> 
B32: 26 | D32: =HLOOKUP(D$6,ｸﾗｽ別担当!$D$4:$BN$44,$B32+1) ->  | E32: =HLOOKUP(E$6,ｸﾗｽ別担当!$D$4:$BN$44,$B32+1) ->  | F32: =HLOOKUP(F$6,ｸﾗｽ別担当!$D$4:$BN$44,$B32+1) ->  | G32: =HLOOKUP(G$6,ｸﾗｽ別担当!$D$4:$BN$44,$B32+1) ->  | H32: =HLOOKUP(H$6,ｸﾗｽ別担当!$D$4:$BN$44,$B32+1) ->  | I32: =HLOOKUP(I$6,ｸﾗｽ別担当!$D$4:$BN$44,$B32+1) ->  | J32: =HLOOKUP(J$6,ｸﾗｽ別担当!$D$4:$BN$44,$B32+1) ->  | K32: =HLOOKUP(K$6,ｸﾗｽ別担当!$D$4:$BN$44,$B32+1) ->  | L32: =HLOOKUP(L$6,ｸﾗｽ別担当!$D$4:$BN$44,$B32+1) ->  | M32: =HLOOKUP(M$6,ｸﾗｽ別担当!$D$4:$BN$44,$B32+1) -> 杉山 | N32: =HLOOKUP(N$6,ｸﾗｽ別担当!$D$4:$BN$44,$B32+1) ->  | O32: =HLOOKUP(O$6,ｸﾗｽ別担当!$D$4:$BN$44,$B32+1) -> 
B33: 27 | D33: =HLOOKUP(D$6,ｸﾗｽ別担当!$D$4:$BN$44,$B33+1) ->  | E33: =HLOOKUP(E$6,ｸﾗｽ別担当!$D$4:$BN$44,$B33+1) ->  | F33: =HLOOKUP(F$6,ｸﾗｽ別担当!$D$4:$BN$44,$B33+1) ->  | G33: =HLOOKUP(G$6,ｸﾗｽ別担当!$D$4:$BN$44,$B33+1) ->  | H33: =HLOOKUP(H$6,ｸﾗｽ別担当!$D$4:$BN$44,$B33+1) ->  | I33: =HLOOKUP(I$6,ｸﾗｽ別担当!$D$4:$BN$44,$B33+1) ->  | J33: =HLOOKUP(J$6,ｸﾗｽ別担当!$D$4:$BN$44,$B33+1) ->  | K33: =HLOOKUP(K$6,ｸﾗｽ別担当!$D$4:$BN$44,$B33+1) ->  | L33: =HLOOKUP(L$6,ｸﾗｽ別担当!$D$4:$BN$44,$B33+1) ->  | M33: =HLOOKUP(M$6,ｸﾗｽ別担当!$D$4:$BN$44,$B33+1) -> 103 | N33: =HLOOKUP(N$6,ｸﾗｽ別担当!$D$4:$BN$44,$B33+1) ->  | O33: =HLOOKUP(O$6,ｸﾗｽ別担当!$D$4:$BN$44,$B33+1) -> 
B34: 28 | D34: =HLOOKUP(D$6,ｸﾗｽ別担当!$D$4:$BN$44,$B34+1) ->  | E34: =HLOOKUP(E$6,ｸﾗｽ別担当!$D$4:$BN$44,$B34+1) ->  | F34: =HLOOKUP(F$6,ｸﾗｽ別担当!$D$4:$BN$44,$B34+1) ->  | G34: =HLOOKUP(G$6,ｸﾗｽ別担当!$D$4:$BN$44,$B34+1) ->  | H34: =HLOOKUP(H$6,ｸﾗｽ別担当!$D$4:$BN$44,$B34+1) ->  | I34: =HLOOKUP(I$6,ｸﾗｽ別担当!$D$4:$BN$44,$B34+1) ->  | J34: =HLOOKUP(J$6,ｸﾗｽ別担当!$D$4:$BN$44,$B34+1) ->  | K34: =HLOOKUP(K$6,ｸﾗｽ別担当!$D$4:$BN$44,$B34+1) ->  | L34: =HLOOKUP(L$6,ｸﾗｽ別担当!$D$4:$BN$44,$B34+1) ->  | M34: =HLOOKUP(M$6,ｸﾗｽ別担当!$D$4:$BN$44,$B34+1) -> 後藤 | N34: =HLOOKUP(N$6,ｸﾗｽ別担当!$D$4:$BN$44,$B34+1) ->  | O34: =HLOOKUP(O$6,ｸﾗｽ別担当!$D$4:$BN$44,$B34+1) -> 
B35: 29 | D35: =HLOOKUP(D$6,ｸﾗｽ別担当!$D$4:$BN$44,$B35+1) ->  | E35: =HLOOKUP(E$6,ｸﾗｽ別担当!$D$4:$BN$44,$B35+1) ->  | F35: =HLOOKUP(F$6,ｸﾗｽ別担当!$D$4:$BN$44,$B35+1) ->  | G35: =HLOOKUP(G$6,ｸﾗｽ別担当!$D$4:$BN$44,$B35+1) ->  | H35: =HLOOKUP(H$6,ｸﾗｽ別担当!$D$4:$BN$44,$B35+1) ->  | I35: =HLOOKUP(I$6,ｸﾗｽ別担当!$D$4:$BN$44,$B35+1) ->  | J35: =HLOOKUP(J$6,ｸﾗｽ別担当!$D$4:$BN$44,$B35+1) ->  | K35: =HLOOKUP(K$6,ｸﾗｽ別担当!$D$4:$BN$44,$B35+1) ->  | L35: =HLOOKUP(L$6,ｸﾗｽ別担当!$D$4:$BN$44,$B35+1) ->  | M35: =HLOOKUP(M$6,ｸﾗｽ別担当!$D$4:$BN$44,$B35+1) -> 126 | N35: =HLOOKUP(N$6,ｸﾗｽ別担当!$D$4:$BN$44,$B35+1) ->  | O35: =HLOOKUP(O$6,ｸﾗｽ別担当!$D$4:$BN$44,$B35+1) -> 
B36: 30 | D36: =HLOOKUP(D$6,ｸﾗｽ別担当!$D$4:$BN$44,$B36+1) ->  | E36: =HLOOKUP(E$6,ｸﾗｽ別担当!$D$4:$BN$44,$B36+1) ->  | F36: =HLOOKUP(F$6,ｸﾗｽ別担当!$D$4:$BN$44,$B36+1) ->  | G36: =HLOOKUP(G$6,ｸﾗｽ別担当!$D$4:$BN$44,$B36+1) ->  | H36: =HLOOKUP(H$6,ｸﾗｽ別担当!$D$4:$BN$44,$B36+1) ->  | I36: =HLOOKUP(I$6,ｸﾗｽ別担当!$D$4:$BN$44,$B36+1) ->  | J36: =HLOOKUP(J$6,ｸﾗｽ別担当!$D$4:$BN$44,$B36+1) ->  | K36: =HLOOKUP(K$6,ｸﾗｽ別担当!$D$4:$BN$44,$B36+1) ->  | L36: =HLOOKUP(L$6,ｸﾗｽ別担当!$D$4:$BN$44,$B36+1) ->  | M36: =HLOOKUP(M$6,ｸﾗｽ別担当!$D$4:$BN$44,$B36+1) -> 加藤 | N36: =HLOOKUP(N$6,ｸﾗｽ別担当!$D$4:$BN$44,$B36+1) ->  | O36: =HLOOKUP(O$6,ｸﾗｽ別担当!$D$4:$BN$44,$B36+1) -> 
B37: 31 | D37: =HLOOKUP(D$6,ｸﾗｽ別担当!$D$4:$BN$44,$B37+1) ->  | E37: =HLOOKUP(E$6,ｸﾗｽ別担当!$D$4:$BN$44,$B37+1) ->  | F37: =HLOOKUP(F$6,ｸﾗｽ別担当!$D$4:$BN$44,$B37+1) ->  | G37: =HLOOKUP(G$6,ｸﾗｽ別担当!$D$4:$BN$44,$B37+1) ->  | H37: =HLOOKUP(H$6,ｸﾗｽ別担当!$D$4:$BN$44,$B37+1) ->  | I37: =HLOOKUP(I$6,ｸﾗｽ別担当!$D$4:$BN$44,$B37+1) ->  | J37: =HLOOKUP(J$6,ｸﾗｽ別担当!$D$4:$BN$44,$B37+1) ->  | K37: =HLOOKUP(K$6,ｸﾗｽ別担当!$D$4:$BN$44,$B37+1) ->  | L37: =HLOOKUP(L$6,ｸﾗｽ別担当!$D$4:$BN$44,$B37+1) ->  | M37: =HLOOKUP(M$6,ｸﾗｽ別担当!$D$4:$BN$44,$B37+1) -> 142 | N37: =HLOOKUP(N$6,ｸﾗｽ別担当!$D$4:$BN$44,$B37+1) ->  | O37: =HLOOKUP(O$6,ｸﾗｽ別担当!$D$4:$BN$44,$B37+1) -> 
B38: 32 | D38: =HLOOKUP(D$6,ｸﾗｽ別担当!$D$4:$BN$44,$B38+1) ->  | E38: =HLOOKUP(E$6,ｸﾗｽ別担当!$D$4:$BN$44,$B38+1) ->  | F38: =HLOOKUP(F$6,ｸﾗｽ別担当!$D$4:$BN$44,$B38+1) ->  | G38: =HLOOKUP(G$6,ｸﾗｽ別担当!$D$4:$BN$44,$B38+1) ->  | H38: =HLOOKUP(H$6,ｸﾗｽ別担当!$D$4:$BN$44,$B38+1) ->  | I38: =HLOOKUP(I$6,ｸﾗｽ別担当!$D$4:$BN$44,$B38+1) ->  | J38: =HLOOKUP(J$6,ｸﾗｽ別担当!$D$4:$BN$44,$B38+1) ->  | K38: =HLOOKUP(K$6,ｸﾗｽ別担当!$D$4:$BN$44,$B38+1) ->  | L38: =HLOOKUP(L$6,ｸﾗｽ別担当!$D$4:$BN$44,$B38+1) ->  | M38: =HLOOKUP(M$6,ｸﾗｽ別担当!$D$4:$BN$44,$B38+1) -> 川崎 | N38: =HLOOKUP(N$6,ｸﾗｽ別担当!$D$4:$BN$44,$B38+1) ->  | O38: =HLOOKUP(O$6,ｸﾗｽ別担当!$D$4:$BN$44,$B38+1) -> 
B39: 33 | D39: =HLOOKUP(D$6,ｸﾗｽ別担当!$D$4:$BN$44,$B39+1) ->  | E39: =HLOOKUP(E$6,ｸﾗｽ別担当!$D$4:$BN$44,$B39+1) ->  | F39: =HLOOKUP(F$6,ｸﾗｽ別担当!$D$4:$BN$44,$B39+1) ->  | G39: =HLOOKUP(G$6,ｸﾗｽ別担当!$D$4:$BN$44,$B39+1) ->  | H39: =HLOOKUP(H$6,ｸﾗｽ別担当!$D$4:$BN$44,$B39+1) ->  | I39: =HLOOKUP(I$6,ｸﾗｽ別担当!$D$4:$BN$44,$B39+1) ->  | J39: =HLOOKUP(J$6,ｸﾗｽ別担当!$D$4:$BN$44,$B39+1) ->  | K39: =HLOOKUP(K$6,ｸﾗｽ別担当!$D$4:$BN$44,$B39+1) ->  | L39: =HLOOKUP(L$6,ｸﾗｽ別担当!$D$4:$BN$44,$B39+1) ->  | M39: =HLOOKUP(M$6,ｸﾗｽ別担当!$D$4:$BN$44,$B39+1) ->  | N39: =HLOOKUP(N$6,ｸﾗｽ別担当!$D$4:$BN$44,$B39+1) ->  | O39: =HLOOKUP(O$6,ｸﾗｽ別担当!$D$4:$BN$44,$B39+1) -> 
B40: 34 | D40: =HLOOKUP(D$6,ｸﾗｽ別担当!$D$4:$BN$44,$B40+1) ->  | E40: =HLOOKUP(E$6,ｸﾗｽ別担当!$D$4:$BN$44,$B40+1) ->  | F40: =HLOOKUP(F$6,ｸﾗｽ別担当!$D$4:$BN$44,$B40+1) ->  | G40: =HLOOKUP(G$6,ｸﾗｽ別担当!$D$4:$BN$44,$B40+1) ->  | H40: =HLOOKUP(H$6,ｸﾗｽ別担当!$D$4:$BN$44,$B40+1) ->  | I40: =HLOOKUP(I$6,ｸﾗｽ別担当!$D$4:$BN$44,$B40+1) ->  | J40: =HLOOKUP(J$6,ｸﾗｽ別担当!$D$4:$BN$44,$B40+1) ->  | K40: =HLOOKUP(K$6,ｸﾗｽ別担当!$D$4:$BN$44,$B40+1) ->  | L40: =HLOOKUP(L$6,ｸﾗｽ別担当!$D$4:$BN$44,$B40+1) ->  | M40: =HLOOKUP(M$6,ｸﾗｽ別担当!$D$4:$BN$44,$B40+1) ->  | N40: =HLOOKUP(N$6,ｸﾗｽ別担当!$D$4:$BN$44,$B40+1) ->  | O40: =HLOOKUP(O$6,ｸﾗｽ別担当!$D$4:$BN$44,$B40+1) -> 
B41: 35 | D41: =HLOOKUP(D$6,ｸﾗｽ別担当!$D$4:$BN$44,$B41+1) ->  | E41: =HLOOKUP(E$6,ｸﾗｽ別担当!$D$4:$BN$44,$B41+1) ->  | F41: =HLOOKUP(F$6,ｸﾗｽ別担当!$D$4:$BN$44,$B41+1) ->  | G41: =HLOOKUP(G$6,ｸﾗｽ別担当!$D$4:$BN$44,$B41+1) ->  | H41: =HLOOKUP(H$6,ｸﾗｽ別担当!$D$4:$BN$44,$B41+1) ->  | I41: =HLOOKUP(I$6,ｸﾗｽ別担当!$D$4:$BN$44,$B41+1) ->  | J41: =HLOOKUP(J$6,ｸﾗｽ別担当!$D$4:$BN$44,$B41+1) ->  | K41: =HLOOKUP(K$6,ｸﾗｽ別担当!$D$4:$BN$44,$B41+1) ->  | L41: =HLOOKUP(L$6,ｸﾗｽ別担当!$D$4:$BN$44,$B41+1) ->  | M41: =HLOOKUP(M$6,ｸﾗｽ別担当!$D$4:$BN$44,$B41+1) ->  | N41: =HLOOKUP(N$6,ｸﾗｽ別担当!$D$4:$BN$44,$B41+1) ->  | O41: =HLOOKUP(O$6,ｸﾗｽ別担当!$D$4:$BN$44,$B41+1) -> 
B42: 36 | C42: 者 | D42: =HLOOKUP(D$6,ｸﾗｽ別担当!$D$4:$BN$44,$B42+1) ->  | E42: =HLOOKUP(E$6,ｸﾗｽ別担当!$D$4:$BN$44,$B42+1) ->  | F42: =HLOOKUP(F$6,ｸﾗｽ別担当!$D$4:$BN$44,$B42+1) ->  | G42: =HLOOKUP(G$6,ｸﾗｽ別担当!$D$4:$BN$44,$B42+1) ->  | H42: =HLOOKUP(H$6,ｸﾗｽ別担当!$D$4:$BN$44,$B42+1) ->  | I42: =HLOOKUP(I$6,ｸﾗｽ別担当!$D$4:$BN$44,$B42+1) ->  | J42: =HLOOKUP(J$6,ｸﾗｽ別担当!$D$4:$BN$44,$B42+1) ->  | K42: =HLOOKUP(K$6,ｸﾗｽ別担当!$D$4:$BN$44,$B42+1) ->  | L42: =HLOOKUP(L$6,ｸﾗｽ別担当!$D$4:$BN$44,$B42+1) ->  | M42: =HLOOKUP(M$6,ｸﾗｽ別担当!$D$4:$BN$44,$B42+1) ->  | N42: =HLOOKUP(N$6,ｸﾗｽ別担当!$D$4:$BN$44,$B42+1) ->  | O42: =HLOOKUP(O$6,ｸﾗｽ別担当!$D$4:$BN$44,$B42+1) -> 
B43: 37 | D43: =HLOOKUP(D$6,ｸﾗｽ別担当!$D$4:$BN$44,$B43+1) ->  | E43: =HLOOKUP(E$6,ｸﾗｽ別担当!$D$4:$BN$44,$B43+1) ->  | F43: =HLOOKUP(F$6,ｸﾗｽ別担当!$D$4:$BN$44,$B43+1) ->  | G43: =HLOOKUP(G$6,ｸﾗｽ別担当!$D$4:$BN$44,$B43+1) ->  | H43: =HLOOKUP(H$6,ｸﾗｽ別担当!$D$4:$BN$44,$B43+1) ->  | I43: =HLOOKUP(I$6,ｸﾗｽ別担当!$D$4:$BN$44,$B43+1) ->  | J43: =HLOOKUP(J$6,ｸﾗｽ別担当!$D$4:$BN$44,$B43+1) ->  | K43: =HLOOKUP(K$6,ｸﾗｽ別担当!$D$4:$BN$44,$B43+1) ->  | L43: =HLOOKUP(L$6,ｸﾗｽ別担当!$D$4:$BN$44,$B43+1) ->  | M43: =HLOOKUP(M$6,ｸﾗｽ別担当!$D$4:$BN$44,$B43+1) ->  | N43: =HLOOKUP(N$6,ｸﾗｽ別担当!$D$4:$BN$44,$B43+1) ->  | O43: =HLOOKUP(O$6,ｸﾗｽ別担当!$D$4:$BN$44,$B43+1) -> 
B44: 38 | D44: =HLOOKUP(D$6,ｸﾗｽ別担当!$D$4:$BN$44,$B44+1) ->  | E44: =HLOOKUP(E$6,ｸﾗｽ別担当!$D$4:$BN$44,$B44+1) ->  | F44: =HLOOKUP(F$6,ｸﾗｽ別担当!$D$4:$BN$44,$B44+1) ->  | G44: =HLOOKUP(G$6,ｸﾗｽ別担当!$D$4:$BN$44,$B44+1) ->  | H44: =HLOOKUP(H$6,ｸﾗｽ別担当!$D$4:$BN$44,$B44+1) ->  | I44: =HLOOKUP(I$6,ｸﾗｽ別担当!$D$4:$BN$44,$B44+1) ->  | J44: =HLOOKUP(J$6,ｸﾗｽ別担当!$D$4:$BN$44,$B44+1) ->  | K44: =HLOOKUP(K$6,ｸﾗｽ別担当!$D$4:$BN$44,$B44+1) ->  | L44: =HLOOKUP(L$6,ｸﾗｽ別担当!$D$4:$BN$44,$B44+1) ->  | M44: =HLOOKUP(M$6,ｸﾗｽ別担当!$D$4:$BN$44,$B44+1) ->  | N44: =HLOOKUP(N$6,ｸﾗｽ別担当!$D$4:$BN$44,$B44+1) ->  | O44: =HLOOKUP(O$6,ｸﾗｽ別担当!$D$4:$BN$44,$B44+1) -> 
B45: 39 | D45: =HLOOKUP(D$6,ｸﾗｽ別担当!$D$4:$BN$44,$B45+1) ->  | E45: =HLOOKUP(E$6,ｸﾗｽ別担当!$D$4:$BN$44,$B45+1) ->  | F45: =HLOOKUP(F$6,ｸﾗｽ別担当!$D$4:$BN$44,$B45+1) ->  | G45: =HLOOKUP(G$6,ｸﾗｽ別担当!$D$4:$BN$44,$B45+1) ->  | H45: =HLOOKUP(H$6,ｸﾗｽ別担当!$D$4:$BN$44,$B45+1) ->  | I45: =HLOOKUP(I$6,ｸﾗｽ別担当!$D$4:$BN$44,$B45+1) ->  | J45: =HLOOKUP(J$6,ｸﾗｽ別担当!$D$4:$BN$44,$B45+1) ->  | K45: =HLOOKUP(K$6,ｸﾗｽ別担当!$D$4:$BN$44,$B45+1) ->  | L45: =HLOOKUP(L$6,ｸﾗｽ別担当!$D$4:$BN$44,$B45+1) ->  | M45: =HLOOKUP(M$6,ｸﾗｽ別担当!$D$4:$BN$44,$B45+1) ->  | N45: =HLOOKUP(N$6,ｸﾗｽ別担当!$D$4:$BN$44,$B45+1) ->  | O45: =HLOOKUP(O$6,ｸﾗｽ別担当!$D$4:$BN$44,$B45+1) -> 
B46: 40 | D46: =HLOOKUP(D$6,ｸﾗｽ別担当!$D$4:$BN$44,$B46+1) ->  | E46: =HLOOKUP(E$6,ｸﾗｽ別担当!$D$4:$BN$44,$B46+1) ->  | F46: =HLOOKUP(F$6,ｸﾗｽ別担当!$D$4:$BN$44,$B46+1) ->  | G46: =HLOOKUP(G$6,ｸﾗｽ別担当!$D$4:$BN$44,$B46+1) ->  | H46: =HLOOKUP(H$6,ｸﾗｽ別担当!$D$4:$BN$44,$B46+1) ->  | I46: =HLOOKUP(I$6,ｸﾗｽ別担当!$D$4:$BN$44,$B46+1) ->  | J46: =HLOOKUP(J$6,ｸﾗｽ別担当!$D$4:$BN$44,$B46+1) ->  | K46: =HLOOKUP(K$6,ｸﾗｽ別担当!$D$4:$BN$44,$B46+1) ->  | L46: =HLOOKUP(L$6,ｸﾗｽ別担当!$D$4:$BN$44,$B46+1) ->  | M46: =HLOOKUP(M$6,ｸﾗｽ別担当!$D$4:$BN$44,$B46+1) ->  | N46: =HLOOKUP(N$6,ｸﾗｽ別担当!$D$4:$BN$44,$B46+1) ->  | O46: =HLOOKUP(O$6,ｸﾗｽ別担当!$D$4:$BN$44,$B46+1) -> 

Sheet ｸﾗｽ曜日切替
B2: 乱数入力ｺｰﾄﾞ表示０の際の調査テーブル
D4: 担当者ｺｰﾄﾞ調査① | J4: 担当者ｺｰﾄﾞ調査② | N4: ① | O4: 担当科目調査 | R4: ② | S4: 担当科目調査 | V4: ③ | W4: 担当科目調査 | Z4: ④ | AA4: 担当科目調査
E5: ｺｰﾄﾞ | F5: 出力 | K5: ｺｰﾄﾞ | L5: 出力 | O5: 35 | P5: =VLOOKUP(O5*2-1,教科担当一覧2!$D$9:$BA$428,4,0) -> t35 | S5: 1 | T5: =VLOOKUP(S5*2-1,教科担当一覧2!$D$9:$BA$428,4,0) -> 小杉 | W5: 36 | X5: =VLOOKUP(W5*2-1,教科担当一覧2!$D$9:$BA$428,4,0) -> t36 | AA5: 29 | AB5: =VLOOKUP(AA5*2-1,教科担当一覧2!$D$9:$BA$428,4,0) -> t29
B6: 曜日時間ｺｰﾄﾞ入力→ | E6: 46 | F6: =VLOOKUP(E6,曜日コード!D5:E52,2,0) -> 木６限 | H6: 曜日時間ｺｰﾄﾞ入力→ | K6: 43 | L6: =VLOOKUP(K6,曜日コード!$D$5:$E$52,2,0) -> 木３限 | O6: 43 | P6: =VLOOKUP(O6,曜日コード!$B$5:$E$52,4,0) -> 木３限 | S6: 11 | T6: =VLOOKUP(S6,曜日コード!$B$5:$E$52,4,0) -> 月１限 | W6: 45 | X6: =VLOOKUP(W6,曜日コード!$B$5:$E$52,4,0) -> 木５限 | AA6: 33 | AB6: =VLOOKUP(AA6,曜日コード!$B$5:$E$52,4,0) -> 水３限
C7: ｸﾗｽｺｰﾄﾞ→ | E7: =乱数表示!G5 -> *11 | F7: =VLOOKUP(E7,ｸﾗｽｺｰﾄﾞ等!B4:C2106,2,0) -> 1-1 | H7: ｸﾗｽｺｰﾄﾞ入力→ | K7: 34 | L7: =VLOOKUP(K7,ｸﾗｽｺｰﾄﾞ等!$B$4:$C$2106,2,0) -> 3-4 | O7: =VLOOKUP(O5*2-1,教科担当一覧2!$D$9:$BA$428,VLOOKUP(O6,曜日コード!$B$5:$C$52,2,0)+3+1,0) -> ・ | P7: =VLOOKUP(O5*2,教科担当一覧2!$D$9:$BA$428,VLOOKUP(O6,曜日コード!$B$5:$C$52,2,0)+3+1,0) ->  | S7: =VLOOKUP(S5*2-1,教科担当一覧2!$D$9:$BA$428,VLOOKUP(S6,曜日コード!$B$5:$C$52,2,0)+3+1,0) -> 1-7 | T7: =VLOOKUP(S5*2,教科担当一覧2!$D$9:$BA$428,VLOOKUP(S6,曜日コード!$B$5:$C$52,2,0)+3+1,0) -> 国Ⅰ | W7: =VLOOKUP(W5*2-1,教科担当一覧2!$D$9:$BA$428,VLOOKUP(W6,曜日コード!$B$5:$C$52,2,0)+3+1,0) -> ・ | X7: =VLOOKUP(W5*2,教科担当一覧2!$D$9:$BA$428,VLOOKUP(W6,曜日コード!$B$5:$C$52,2,0)+3+1,0) ->  | AA7: =VLOOKUP(AA5*2-1,教科担当一覧2!$D$9:$BA$428,VLOOKUP(AA6,曜日コード!$B$5:$C$52,2,0)+3+1,0) -> ・ | AB7: =VLOOKUP(AA5*2,教科担当一覧2!$D$9:$BA$428,VLOOKUP(AA6,曜日コード!$B$5:$C$52,2,0)+3+1,0) -> 
C8: 担当者ｺｰﾄﾞ→ | E8: =教科担当一覧2!BB429 -> 61 | F8: =IF(ISERR(VLOOKUP(E8*2-1,教科担当一覧2!$D$9:$G$428,4)),"なし",VLOOKUP(E8*2-1,教科担当一覧2!$D$9:$G$428,4)) -> 関 | H8: 担当者ｺｰﾄﾞ→ | K8: =教科担当一覧2!BC429 -> 91 | L8: =IF(ISERR(VLOOKUP(K8*2-1,教科担当一覧2!$D$9:$G$428,4,0)),"なし",VLOOKUP(K8*2-1,教科担当一覧2!$D$9:$G$428,4,0)) -> t91
C10: 入力場所 | D10: クラス | E10: 曜日1 | F10: 曜日2 | G10: 行1
C11: 切替 | D11: 3 | E11: 3 | F11: 3 | G11: 3
C14: クラス曜日切り替えテーブルB
C16: 一斉ｸﾗｽ | F16: 一斉曜日1 | I16: 一斉曜日2 | M16: 一斉行1
D17: ｸﾗｽｺｰﾄﾞ | E17: 曜日1ｺ | F17: 曜日2ｺ | G17: ｸﾗｽｺｰﾄﾞ | H17: 曜日1ｺ | I17: 曜日2ｺ | J17: 曜日1 | K17: 曜日2 | N17: 行1 | O17: 行1 | P17: 行2 | Q17: 行3 | R17: 行4 | S17: 行5 | T17: 行6 | U17: 行7 | V17: 行8 | W17: 行9 | X17: 行10 | Y17: 行11 | Z17: 行12 | AA17: 行13 | AB17: 行14 | AC17: 行15 | AD17: 行16 | AE17: 行17 | AF17: 行18 | AG17: 行19 | AH17: 行20
C18: ① | D18: 11 | E18: 1 | F18: 2 | G18: =IF($D$11=1,$E$16,IF($D$11=2,D18,IF($D$11=3,調整ﾃｰﾌﾞﾙB!I14,""))) -> *11 | H18: =IF($E$11=1,$H$16,IF($E$11=2,E18,IF($E$11=3,調整ﾃｰﾌﾞﾙB!J14,""))) -> 1 | I18: =IF($F$11=1,$K$16,IF($F$11=2,F18,IF($F$11=3,調整ﾃｰﾌﾞﾙB!K14,""))) -> 2 | J18: =IF(ISERROR(VLOOKUP(H18,曜日コード!$G$5:$H$10,2))=TRUE,"",VLOOKUP(H18,曜日コード!$G$5:$H$10,2)) -> 月曜 | K18: =IF(ISERROR(VLOOKUP(I18,曜日コード!$G$5:$H$10,2))=TRUE,"",VLOOKUP(I18,曜日コード!$G$5:$H$10,2)) -> 火曜 | M18: ① | N18: =IF($G$11=1,$N$16,IF($G$11=2,O18,IF($G$11=3,調整ﾃｰﾌﾞﾙB!L14,""))) -> 1 | O18: 1 | P18: 2 | Q18: 3 | R18: 4 | S18: 5 | T18: 6 | U18: 7 | V18: 8 | W18: 9 | X18: 10 | Y18: 11 | Z18: 12 | AA18: 13 | AB18: 14 | AC18: 15 | AD18: 16 | AE18: 17 | AF18: 18 | AG18: 19 | AH18: 20
C19: ② | D19: 11 | E19: 2 | F19: 3 | G19: =IF($D$11=1,$E$16,IF($D$11=2,D19,IF($D$11=3,調整ﾃｰﾌﾞﾙB!I18,""))) -> *11 | H19: =IF($E$11=1,$H$16,IF($E$11=2,E19,IF($E$11=3,調整ﾃｰﾌﾞﾙB!J18,""))) -> 2 | I19: =IF($F$11=1,$K$16,IF($F$11=2,F19,IF($F$11=3,調整ﾃｰﾌﾞﾙB!K18,""))) -> 3 | J19: =IF(ISERROR(VLOOKUP(H19,曜日コード!$G$5:$H$10,2))=TRUE,"",VLOOKUP(H19,曜日コード!$G$5:$H$10,2)) -> 火曜 | K19: =IF(ISERROR(VLOOKUP(I19,曜日コード!$G$5:$H$10,2))=TRUE,"",VLOOKUP(I19,曜日コード!$G$5:$H$10,2)) -> 水曜 | M19: ② | N19: =IF($G$11=1,$N$16,IF($G$11=2,O19,IF($G$11=3,調整ﾃｰﾌﾞﾙB!L18,""))) -> 2 | O19: 1 | P19: 2 | Q19: 3 | R19: 4 | S19: 5 | T19: 6 | U19: 7 | V19: 8 | W19: 9 | X19: 10 | Y19: 11 | Z19: 12 | AA19: 13 | AB19: 14 | AC19: 15 | AD19: 16 | AE19: 17 | AF19: 18 | AG19: 19 | AH19: 20
C20: ③ | D20: 11 | E20: 3 | F20: 4 | G20: =IF($D$11=1,$E$16,IF($D$11=2,D20,IF($D$11=3,調整ﾃｰﾌﾞﾙB!I22,""))) -> *11 | H20: =IF($E$11=1,$H$16,IF($E$11=2,E20,IF($E$11=3,調整ﾃｰﾌﾞﾙB!J22,""))) -> 3 | I20: =IF($F$11=1,$K$16,IF($F$11=2,F20,IF($F$11=3,調整ﾃｰﾌﾞﾙB!K22,""))) -> 4 | J20: =IF(ISERROR(VLOOKUP(H20,曜日コード!$G$5:$H$10,2))=TRUE,"",VLOOKUP(H20,曜日コード!$G$5:$H$10,2)) -> 水曜 | K20: =IF(ISERROR(VLOOKUP(I20,曜日コード!$G$5:$H$10,2))=TRUE,"",VLOOKUP(I20,曜日コード!$G$5:$H$10,2)) -> 木曜 | M20: ③ | N20: =IF($G$11=1,$N$16,IF($G$11=2,O20,IF($G$11=3,調整ﾃｰﾌﾞﾙB!L22,""))) -> 3 | O20: 1 | P20: 2 | Q20: 3 | R20: 4 | S20: 5 | T20: 6 | U20: 7 | V20: 8 | W20: 9 | X20: 10 | Y20: 11 | Z20: 12 | AA20: 13 | AB20: 14 | AC20: 15 | AD20: 16 | AE20: 17 | AF20: 18 | AG20: 19 | AH20: 20
C21: ④ | D21: 11 | E21: 4 | F21: 5 | G21: =IF($D$11=1,$E$16,IF($D$11=2,D21,IF($D$11=3,調整ﾃｰﾌﾞﾙB!I26,""))) -> *11 | H21: =IF($E$11=1,$H$16,IF($E$11=2,E21,IF($E$11=3,調整ﾃｰﾌﾞﾙB!J26,""))) -> 4 | I21: =IF($F$11=1,$K$16,IF($F$11=2,F21,IF($F$11=3,調整ﾃｰﾌﾞﾙB!K26,""))) -> 5 | J21: =IF(ISERROR(VLOOKUP(H21,曜日コード!$G$5:$H$10,2))=TRUE,"",VLOOKUP(H21,曜日コード!$G$5:$H$10,2)) -> 木曜 | K21: =IF(ISERROR(VLOOKUP(I21,曜日コード!$G$5:$H$10,2))=TRUE,"",VLOOKUP(I21,曜日コード!$G$5:$H$10,2)) -> 金曜 | M21: ④ | N21: =IF($G$11=1,$N$16,IF($G$11=2,O21,IF($G$11=3,調整ﾃｰﾌﾞﾙB!L26,""))) -> 4 | O21: 1 | P21: 2 | Q21: 3 | R21: 4 | S21: 5 | T21: 6 | U21: 7 | V21: 8 | W21: 9 | X21: 10 | Y21: 11 | Z21: 12 | AA21: 13 | AB21: 14 | AC21: 15 | AD21: 16 | AE21: 17 | AF21: 18 | AG21: 19 | AH21: 20
C22: ⑤ | D22: 11 | E22: 5 | F22: 6 | G22: =IF($D$11=1,$E$16,IF($D$11=2,D22,IF($D$11=3,調整ﾃｰﾌﾞﾙB!I30,""))) -> *11 | H22: =IF($E$11=1,$H$16,IF($E$11=2,E22,IF($E$11=3,調整ﾃｰﾌﾞﾙB!J30,""))) -> 5 | I22: =IF($F$11=1,$K$16,IF($F$11=2,F22,IF($F$11=3,調整ﾃｰﾌﾞﾙB!K30,""))) -> 6 | J22: =IF(ISERROR(VLOOKUP(H22,曜日コード!$G$5:$H$10,2))=TRUE,"",VLOOKUP(H22,曜日コード!$G$5:$H$10,2)) -> 金曜 | K22: =IF(ISERROR(VLOOKUP(I22,曜日コード!$G$5:$H$10,2))=TRUE,"",VLOOKUP(I22,曜日コード!$G$5:$H$10,2)) -> 土曜 | M22: ⑤ | N22: =IF($G$11=1,$N$16,IF($G$11=2,O22,IF($G$11=3,調整ﾃｰﾌﾞﾙB!L30,""))) -> 5 | O22: 1 | P22: 2 | Q22: 3 | R22: 4 | S22: 5 | T22: 6 | U22: 7 | V22: 8 | W22: 9 | X22: 10 | Y22: 11 | Z22: 12 | AA22: 13 | AB22: 14 | AC22: 15 | AD22: 16 | AE22: 17 | AF22: 18 | AG22: 19 | AH22: 20
C23: ⑥ | D23: 11 | E23: 6 | F23: 1 | G23: =IF($D$11=1,$E$16,IF($D$11=2,D23,IF($D$11=3,調整ﾃｰﾌﾞﾙB!I34,""))) -> *11 | H23: =IF($E$11=1,$H$16,IF($E$11=2,E23,IF($E$11=3,調整ﾃｰﾌﾞﾙB!J34,""))) -> 6 | I23: =IF($F$11=1,$K$16,IF($F$11=2,F23,IF($F$11=3,調整ﾃｰﾌﾞﾙB!K34,""))) -> 5 | J23: =IF(ISERROR(VLOOKUP(H23,曜日コード!$G$5:$H$10,2))=TRUE,"",VLOOKUP(H23,曜日コード!$G$5:$H$10,2)) -> 土曜 | K23: =IF(ISERROR(VLOOKUP(I23,曜日コード!$G$5:$H$10,2))=TRUE,"",VLOOKUP(I23,曜日コード!$G$5:$H$10,2)) -> 金曜 | M23: ⑥ | N23: =IF($G$11=1,$N$16,IF($G$11=2,O23,IF($G$11=3,調整ﾃｰﾌﾞﾙB!L34,""))) -> 6 | O23: 1 | P23: 2 | Q23: 3 | R23: 4 | S23: 5 | T23: 6 | U23: 7 | V23: 8 | W23: 9 | X23: 10 | Y23: 11 | Z23: 12 | AA23: 13 | AB23: 14 | AC23: 15 | AD23: 16 | AE23: 17 | AF23: 18 | AG23: 19 | AH23: 20
C24: ⑦ | D24: 11 | E24: 1 | F24: 2 | G24: =IF($D$11=1,$E$16,IF($D$11=2,D24,IF($D$11=3,調整ﾃｰﾌﾞﾙB!I38,""))) -> *11 | H24: =IF($E$11=1,$H$16,IF($E$11=2,E24,IF($E$11=3,調整ﾃｰﾌﾞﾙB!J38,""))) -> 5 | I24: =IF($F$11=1,$K$16,IF($F$11=2,F24,IF($F$11=3,調整ﾃｰﾌﾞﾙB!K38,""))) -> 3 | J24: =IF(ISERROR(VLOOKUP(H24,曜日コード!$G$5:$H$10,2))=TRUE,"",VLOOKUP(H24,曜日コード!$G$5:$H$10,2)) -> 金曜 | K24: =IF(ISERROR(VLOOKUP(I24,曜日コード!$G$5:$H$10,2))=TRUE,"",VLOOKUP(I24,曜日コード!$G$5:$H$10,2)) -> 水曜 | M24: ⑦ | N24: =IF($G$11=1,$N$16,IF($G$11=2,O24,IF($G$11=3,調整ﾃｰﾌﾞﾙB!L38,""))) -> 7 | O24: 1 | P24: 2 | Q24: 3 | R24: 4 | S24: 5 | T24: 6 | U24: 7 | V24: 8 | W24: 9 | X24: 10 | Y24: 11 | Z24: 12 | AA24: 13 | AB24: 14 | AC24: 15 | AD24: 16 | AE24: 17 | AF24: 18 | AG24: 19 | AH24: 20
C25: ⑧ | D25: 11 | E25: 2 | F25: 3 | G25: =IF($D$11=1,$E$16,IF($D$11=2,D25,IF($D$11=3,調整ﾃｰﾌﾞﾙB!I42,""))) -> *11 | H25: =IF($E$11=1,$H$16,IF($E$11=2,E25,IF($E$11=3,調整ﾃｰﾌﾞﾙB!J42,""))) -> 3 | I25: =IF($F$11=1,$K$16,IF($F$11=2,F25,IF($F$11=3,調整ﾃｰﾌﾞﾙB!K42,""))) -> 1 | J25: =IF(ISERROR(VLOOKUP(H25,曜日コード!$G$5:$H$10,2))=TRUE,"",VLOOKUP(H25,曜日コード!$G$5:$H$10,2)) -> 水曜 | K25: =IF(ISERROR(VLOOKUP(I25,曜日コード!$G$5:$H$10,2))=TRUE,"",VLOOKUP(I25,曜日コード!$G$5:$H$10,2)) -> 月曜 | M25: ⑧ | N25: =IF($G$11=1,$N$16,IF($G$11=2,O25,IF($G$11=3,調整ﾃｰﾌﾞﾙB!L42,""))) -> 8 | O25: 1 | P25: 2 | Q25: 3 | R25: 4 | S25: 5 | T25: 6 | U25: 7 | V25: 8 | W25: 9 | X25: 10 | Y25: 11 | Z25: 12 | AA25: 13 | AB25: 14 | AC25: 15 | AD25: 16 | AE25: 17 | AF25: 18 | AG25: 19 | AH25: 20
C26: ⑨ | D26: 11 | E26: 3 | F26: 4 | G26: =IF($D$11=1,$E$16,IF($D$11=2,D26,IF($D$11=3,調整ﾃｰﾌﾞﾙB!I46,""))) -> *11 | H26: =IF($E$11=1,$H$16,IF($E$11=2,E26,IF($E$11=3,調整ﾃｰﾌﾞﾙB!J46,""))) -> 4 | I26: =IF($F$11=1,$K$16,IF($F$11=2,F26,IF($F$11=3,調整ﾃｰﾌﾞﾙB!K46,""))) -> 2 | J26: =IF(ISERROR(VLOOKUP(H26,曜日コード!$G$5:$H$10,2))=TRUE,"",VLOOKUP(H26,曜日コード!$G$5:$H$10,2)) -> 木曜 | K26: =IF(ISERROR(VLOOKUP(I26,曜日コード!$G$5:$H$10,2))=TRUE,"",VLOOKUP(I26,曜日コード!$G$5:$H$10,2)) -> 火曜 | M26: ⑨ | N26: =IF($G$11=1,$N$16,IF($G$11=2,O26,IF($G$11=3,調整ﾃｰﾌﾞﾙB!L46,""))) -> 9 | O26: 1 | P26: 2 | Q26: 3 | R26: 4 | S26: 5 | T26: 6 | U26: 7 | V26: 8 | W26: 9 | X26: 10 | Y26: 11 | Z26: 12 | AA26: 13 | AB26: 14 | AC26: 15 | AD26: 16 | AE26: 17 | AF26: 18 | AG26: 19 | AH26: 20
C27: ⑩ | D27: 11 | E27: 4 | F27: 5 | G27: =IF($D$11=1,$E$16,IF($D$11=2,D27,IF($D$11=3,調整ﾃｰﾌﾞﾙB!I50,""))) -> *11 | H27: =IF($E$11=1,$H$16,IF($E$11=2,E27,IF($E$11=3,調整ﾃｰﾌﾞﾙB!J50,""))) -> 5 | I27: =IF($F$11=1,$K$16,IF($F$11=2,F27,IF($F$11=3,調整ﾃｰﾌﾞﾙB!K50,""))) -> 1 | J27: =IF(ISERROR(VLOOKUP(H27,曜日コード!$G$5:$H$10,2))=TRUE,"",VLOOKUP(H27,曜日コード!$G$5:$H$10,2)) -> 金曜 | K27: =IF(ISERROR(VLOOKUP(I27,曜日コード!$G$5:$H$10,2))=TRUE,"",VLOOKUP(I27,曜日コード!$G$5:$H$10,2)) -> 月曜 | M27: ⑩ | N27: =IF($G$11=1,$N$16,IF($G$11=2,O27,IF($G$11=3,調整ﾃｰﾌﾞﾙB!L50,""))) -> 10 | O27: 1 | P27: 2 | Q27: 3 | R27: 4 | S27: 5 | T27: 6 | U27: 7 | V27: 8 | W27: 9 | X27: 10 | Y27: 11 | Z27: 12 | AA27: 13 | AB27: 14 | AC27: 15 | AD27: 16 | AE27: 17 | AF27: 18 | AG27: 19 | AH27: 20
C28: ⑪ | D28: 11 | E28: 5 | F28: 6 | G28: =IF($D$11=1,$E$16,IF($D$11=2,D28,IF($D$11=3,調整ﾃｰﾌﾞﾙB!I54,""))) -> *11 | H28: =IF($E$11=1,$H$16,IF($E$11=2,E28,IF($E$11=3,調整ﾃｰﾌﾞﾙB!J54,""))) -> 5 | I28: =IF($F$11=1,$K$16,IF($F$11=2,F28,IF($F$11=3,調整ﾃｰﾌﾞﾙB!K54,""))) -> 4 | J28: =IF(ISERROR(VLOOKUP(H28,曜日コード!$G$5:$H$10,2))=TRUE,"",VLOOKUP(H28,曜日コード!$G$5:$H$10,2)) -> 金曜 | K28: =IF(ISERROR(VLOOKUP(I28,曜日コード!$G$5:$H$10,2))=TRUE,"",VLOOKUP(I28,曜日コード!$G$5:$H$10,2)) -> 木曜 | M28: ⑪ | N28: =IF($G$11=1,$N$16,IF($G$11=2,O28,IF($G$11=3,調整ﾃｰﾌﾞﾙB!L54,""))) -> 11 | O28: 1 | P28: 2 | Q28: 3 | R28: 4 | S28: 5 | T28: 6 | U28: 7 | V28: 8 | W28: 9 | X28: 10 | Y28: 11 | Z28: 12 | AA28: 13 | AB28: 14 | AC28: 15 | AD28: 16 | AE28: 17 | AF28: 18 | AG28: 19 | AH28: 20
C29: ⑫ | D29: 11 | E29: 6 | F29: 1 | G29: =IF($D$11=1,$E$16,IF($D$11=2,D29,IF($D$11=3,調整ﾃｰﾌﾞﾙB!I58,""))) -> *11 | H29: =IF($E$11=1,$H$16,IF($E$11=2,E29,IF($E$11=3,調整ﾃｰﾌﾞﾙB!J58,""))) -> 1 | I29: =IF($F$11=1,$K$16,IF($F$11=2,F29,IF($F$11=3,調整ﾃｰﾌﾞﾙB!K58,""))) -> 2 | J29: =IF(ISERROR(VLOOKUP(H29,曜日コード!$G$5:$H$10,2))=TRUE,"",VLOOKUP(H29,曜日コード!$G$5:$H$10,2)) -> 月曜 | K29: =IF(ISERROR(VLOOKUP(I29,曜日コード!$G$5:$H$10,2))=TRUE,"",VLOOKUP(I29,曜日コード!$G$5:$H$10,2)) -> 火曜 | M29: ⑫ | N29: =IF($G$11=1,$N$16,IF($G$11=2,O29,IF($G$11=3,調整ﾃｰﾌﾞﾙB!L58,""))) -> 12 | O29: 1 | P29: 2 | Q29: 3 | R29: 4 | S29: 5 | T29: 6 | U29: 7 | V29: 8 | W29: 9 | X29: 10 | Y29: 11 | Z29: 12 | AA29: 13 | AB29: 14 | AC29: 15 | AD29: 16 | AE29: 17 | AF29: 18 | AG29: 19 | AH29: 20
C30: ⑬ | D30: 11 | E30: 1 | F30: 2 | G30: =IF($D$11=1,$E$16,IF($D$11=2,D30,IF($D$11=3,調整ﾃｰﾌﾞﾙB!I62,""))) -> *11 | H30: =IF($E$11=1,$H$16,IF($E$11=2,E30,IF($E$11=3,調整ﾃｰﾌﾞﾙB!J62,""))) -> 2 | I30: =IF($F$11=1,$K$16,IF($F$11=2,F30,IF($F$11=3,調整ﾃｰﾌﾞﾙB!K62,""))) -> 3 | J30: =IF(ISERROR(VLOOKUP(H30,曜日コード!$G$5:$H$10,2))=TRUE,"",VLOOKUP(H30,曜日コード!$G$5:$H$10,2)) -> 火曜 | K30: =IF(ISERROR(VLOOKUP(I30,曜日コード!$G$5:$H$10,2))=TRUE,"",VLOOKUP(I30,曜日コード!$G$5:$H$10,2)) -> 水曜 | M30: ⑬ | N30: =IF($G$11=1,$N$16,IF($G$11=2,O30,IF($G$11=3,調整ﾃｰﾌﾞﾙB!L62,""))) -> 13 | O30: 1 | P30: 2 | Q30: 3 | R30: 4 | S30: 5 | T30: 6 | U30: 7 | V30: 8 | W30: 9 | X30: 10 | Y30: 11 | Z30: 12 | AA30: 13 | AB30: 14 | AC30: 15 | AD30: 16 | AE30: 17 | AF30: 18 | AG30: 19 | AH30: 20
C31: ⑬ | D31: 11 | E31: 2 | F31: 3 | G31: =IF($D$11=1,$E$16,IF($D$11=2,D31,IF($D$11=3,調整ﾃｰﾌﾞﾙB!I66,""))) -> *11 | H31: =IF($E$11=1,$H$16,IF($E$11=2,E31,IF($E$11=3,調整ﾃｰﾌﾞﾙB!J66,""))) -> 3 | I31: =IF($F$11=1,$K$16,IF($F$11=2,F31,IF($F$11=3,調整ﾃｰﾌﾞﾙB!K66,""))) -> 4 | J31: =IF(ISERROR(VLOOKUP(H31,曜日コード!$G$5:$H$10,2))=TRUE,"",VLOOKUP(H31,曜日コード!$G$5:$H$10,2)) -> 水曜 | K31: =IF(ISERROR(VLOOKUP(I31,曜日コード!$G$5:$H$10,2))=TRUE,"",VLOOKUP(I31,曜日コード!$G$5:$H$10,2)) -> 木曜 | M31: ⑭ | N31: =IF($G$11=1,$N$16,IF($G$11=2,O31,IF($G$11=3,調整ﾃｰﾌﾞﾙB!L66,""))) -> 14 | O31: 1 | P31: 2 | Q31: 3 | R31: 4 | S31: 5 | T31: 6 | U31: 7 | V31: 8 | W31: 9 | X31: 10 | Y31: 11 | Z31: 12 | AA31: 13 | AB31: 14 | AC31: 15 | AD31: 16 | AE31: 17 | AF31: 18 | AG31: 19 | AH31: 20
C32: ⑮ | D32: 11 | E32: 3 | F32: 4 | G32: =IF($D$11=1,$E$16,IF($D$11=2,D32,IF($D$11=3,調整ﾃｰﾌﾞﾙB!I70,""))) -> *11 | H32: =IF($E$11=1,$H$16,IF($E$11=2,E32,IF($E$11=3,調整ﾃｰﾌﾞﾙB!J70,""))) -> 4 | I32: =IF($F$11=1,$K$16,IF($F$11=2,F32,IF($F$11=3,調整ﾃｰﾌﾞﾙB!K70,""))) -> 5 | J32: =IF(ISERROR(VLOOKUP(H32,曜日コード!$G$5:$H$10,2))=TRUE,"",VLOOKUP(H32,曜日コード!$G$5:$H$10,2)) -> 木曜 | K32: =IF(ISERROR(VLOOKUP(I32,曜日コード!$G$5:$H$10,2))=TRUE,"",VLOOKUP(I32,曜日コード!$G$5:$H$10,2)) -> 金曜 | M32: ⑮ | N32: =IF($G$11=1,$N$16,IF($G$11=2,O32,IF($G$11=3,調整ﾃｰﾌﾞﾙB!L70,""))) -> 15 | O32: 1 | P32: 2 | Q32: 3 | R32: 4 | S32: 5 | T32: 6 | U32: 7 | V32: 8 | W32: 9 | X32: 10 | Y32: 11 | Z32: 12 | AA32: 13 | AB32: 14 | AC32: 15 | AD32: 16 | AE32: 17 | AF32: 18 | AG32: 19 | AH32: 20
C33: ⑯ | D33: 11 | E33: 4 | F33: 5 | G33: =IF($D$11=1,$E$16,IF($D$11=2,D33,IF($D$11=3,調整ﾃｰﾌﾞﾙB!I74,""))) -> *11 | H33: =IF($E$11=1,$H$16,IF($E$11=2,E33,IF($E$11=3,調整ﾃｰﾌﾞﾙB!J74,""))) -> 5 | I33: =IF($F$11=1,$K$16,IF($F$11=2,F33,IF($F$11=3,調整ﾃｰﾌﾞﾙB!K74,""))) -> 1 | J33: =IF(ISERROR(VLOOKUP(H33,曜日コード!$G$5:$H$10,2))=TRUE,"",VLOOKUP(H33,曜日コード!$G$5:$H$10,2)) -> 金曜 | K33: =IF(ISERROR(VLOOKUP(I33,曜日コード!$G$5:$H$10,2))=TRUE,"",VLOOKUP(I33,曜日コード!$G$5:$H$10,2)) -> 月曜 | M33: ⑯ | N33: =IF($G$11=1,$N$16,IF($G$11=2,O33,IF($G$11=3,調整ﾃｰﾌﾞﾙB!L74,""))) -> 16 | O33: 1 | P33: 2 | Q33: 3 | R33: 4 | S33: 5 | T33: 6 | U33: 7 | V33: 8 | W33: 9 | X33: 10 | Y33: 11 | Z33: 12 | AA33: 13 | AB33: 14 | AC33: 15 | AD33: 16 | AE33: 17 | AF33: 18 | AG33: 19 | AH33: 20
C34: ⑰ | D34: 11 | E34: 5 | F34: 6 | G34: =IF($D$11=1,$E$16,IF($D$11=2,D34,IF($D$11=3,調整ﾃｰﾌﾞﾙB!I78,""))) -> *11 | H34: =IF($E$11=1,$H$16,IF($E$11=2,E34,IF($E$11=3,調整ﾃｰﾌﾞﾙB!J78,""))) -> 3 | I34: =IF($F$11=1,$K$16,IF($F$11=2,F34,IF($F$11=3,調整ﾃｰﾌﾞﾙB!K78,""))) -> 2 | J34: =IF(ISERROR(VLOOKUP(H34,曜日コード!$G$5:$H$10,2))=TRUE,"",VLOOKUP(H34,曜日コード!$G$5:$H$10,2)) -> 水曜 | K34: =IF(ISERROR(VLOOKUP(I34,曜日コード!$G$5:$H$10,2))=TRUE,"",VLOOKUP(I34,曜日コード!$G$5:$H$10,2)) -> 火曜 | M34: ⑰ | N34: =IF($G$11=1,$N$16,IF($G$11=2,O34,IF($G$11=3,調整ﾃｰﾌﾞﾙB!L78,""))) -> 17 | O34: 1 | P34: 2 | Q34: 3 | R34: 4 | S34: 5 | T34: 6 | U34: 7 | V34: 8 | W34: 9 | X34: 10 | Y34: 11 | Z34: 12 | AA34: 13 | AB34: 14 | AC34: 15 | AD34: 16 | AE34: 17 | AF34: 18 | AG34: 19 | AH34: 20
C35: ⑱ | D35: 11 | E35: 6 | F35: 1 | G35: =IF($D$11=1,$E$16,IF($D$11=2,D35,IF($D$11=3,調整ﾃｰﾌﾞﾙB!I82,""))) -> *11 | H35: =IF($E$11=1,$H$16,IF($E$11=2,E35,IF($E$11=3,調整ﾃｰﾌﾞﾙB!J82,""))) -> 4 | I35: =IF($F$11=1,$K$16,IF($F$11=2,F35,IF($F$11=3,調整ﾃｰﾌﾞﾙB!K82,""))) -> 3 | J35: =IF(ISERROR(VLOOKUP(H35,曜日コード!$G$5:$H$10,2))=TRUE,"",VLOOKUP(H35,曜日コード!$G$5:$H$10,2)) -> 木曜 | K35: =IF(ISERROR(VLOOKUP(I35,曜日コード!$G$5:$H$10,2))=TRUE,"",VLOOKUP(I35,曜日コード!$G$5:$H$10,2)) -> 水曜 | M35: ⑱ | N35: =IF($G$11=1,$N$16,IF($G$11=2,O35,IF($G$11=3,調整ﾃｰﾌﾞﾙB!L82,""))) -> 18 | O35: 1 | P35: 2 | Q35: 3 | R35: 4 | S35: 5 | T35: 6 | U35: 7 | V35: 8 | W35: 9 | X35: 10 | Y35: 11 | Z35: 12 | AA35: 13 | AB35: 14 | AC35: 15 | AD35: 16 | AE35: 17 | AF35: 18 | AG35: 19 | AH35: 20
C36: ⑲ | D36: 11 | E36: 1 | F36: 2 | G36: =IF($D$11=1,$E$16,IF($D$11=2,D36,IF($D$11=3,調整ﾃｰﾌﾞﾙB!I86,""))) -> *11 | H36: =IF($E$11=1,$H$16,IF($E$11=2,E36,IF($E$11=3,調整ﾃｰﾌﾞﾙB!J86,""))) -> 3 | I36: =IF($F$11=1,$K$16,IF($F$11=2,F36,IF($F$11=3,調整ﾃｰﾌﾞﾙB!K86,""))) -> 4 | J36: =IF(ISERROR(VLOOKUP(H36,曜日コード!$G$5:$H$10,2))=TRUE,"",VLOOKUP(H36,曜日コード!$G$5:$H$10,2)) -> 水曜 | K36: =IF(ISERROR(VLOOKUP(I36,曜日コード!$G$5:$H$10,2))=TRUE,"",VLOOKUP(I36,曜日コード!$G$5:$H$10,2)) -> 木曜 | M36: ⑲ | N36: =IF($G$11=1,$N$16,IF($G$11=2,O36,IF($G$11=3,調整ﾃｰﾌﾞﾙB!L86,""))) -> 19 | O36: 1 | P36: 2 | Q36: 3 | R36: 4 | S36: 5 | T36: 6 | U36: 7 | V36: 8 | W36: 9 | X36: 10 | Y36: 11 | Z36: 12 | AA36: 13 | AB36: 14 | AC36: 15 | AD36: 16 | AE36: 17 | AF36: 18 | AG36: 19 | AH36: 20
C37: ⑳ | D37: 11 | E37: 2 | F37: 3 | G37: =IF($D$11=1,$E$16,IF($D$11=2,D37,IF($D$11=3,調整ﾃｰﾌﾞﾙB!I90,""))) -> *11 | H37: =IF($E$11=1,$H$16,IF($E$11=2,E37,IF($E$11=3,調整ﾃｰﾌﾞﾙB!J90,""))) -> 4 | I37: =IF($F$11=1,$K$16,IF($F$11=2,F37,IF($F$11=3,調整ﾃｰﾌﾞﾙB!K90,""))) -> 5 | J37: =IF(ISERROR(VLOOKUP(H37,曜日コード!$G$5:$H$10,2))=TRUE,"",VLOOKUP(H37,曜日コード!$G$5:$H$10,2)) -> 木曜 | K37: =IF(ISERROR(VLOOKUP(I37,曜日コード!$G$5:$H$10,2))=TRUE,"",VLOOKUP(I37,曜日コード!$G$5:$H$10,2)) -> 金曜 | M37: ⑳ | N37: =IF($G$11=1,$N$16,IF($G$11=2,O37,IF($G$11=3,調整ﾃｰﾌﾞﾙB!L90,""))) -> 20 | O37: 1 | P37: 2 | Q37: 3 | R37: 4 | S37: 5 | T37: 6 | U37: 7 | V37: 8 | W37: 9 | X37: 10 | Y37: 11 | Z37: 12 | AA37: 13 | AB37: 14 | AC37: 15 | AD37: 16 | AE37: 17 | AF37: 18 | AG37: 19 | AH37: 20

Sheet 調整ﾃｰﾌﾞﾙB
K2: 調整テーブルB
B4: クラスコード | H4: 担当科目調査 | L4: 名前入力による担当者コード調査 | Q4: 担当者ｺｰﾄﾞ調査A1 | Z4: 担当者ｺｰﾄﾞ調査A1 | AS4: 名前入力による担当者コード調査 | AY4: 担当者ｺｰﾄﾞ調査A1
B5: ｸﾗｽｺｰﾄ | D5: *11 | H5: 23 | I5: =VLOOKUP(H5*2-1,教科担当一覧2!$D$9:$BA$428,4,0) -> 鶴巻 | M5: 担当者 | N5: コード | R5: ｺｰﾄﾞ | S5: 出力 | AA5: ｺｰﾄﾞ | AB5: 出力 | AT5: 担当者 | AU5: コード | AZ5: ｺｰﾄﾞ | BA5: 出力
B6: 上から何個目から | D6: 1 | H6: 14 | I6: =VLOOKUP(H6,曜日コード!$B$5:$E$52,4,0) -> 月４限 | K6: 担当者入力→ | M6: 榎本 | N6: =VLOOKUP(M6,曜日コード!$B$56:$C$265,2,1) -> 4 | O6: 曜日時間ｺｰﾄﾞ入力→ | R6: 45 | S6: =VLOOKUP(R6,曜日コード!$D$5:$E$52,2,0) -> 木５限 | U6: =MID(S6,1,1) -> 木 | V6: =MID(S6,2,3) -> ５限 | X6: 曜日時間ｺｰﾄﾞ入力→ | AA6: 45 | AB6: =VLOOKUP(AA6,曜日コード!$D$5:$E$52,2,0) -> 木５限 | AD6: =MID(AB6,1,1) -> 木 | AE6: =MID(AB6,2,3) -> ５限 | AR6: 担当者入力→ | AT6: 榎本 | AU6: =VLOOKUP(AT6,曜日コード!$B$56:$C$265,2,1) -> 4 | AW6: 曜日時間ｺｰﾄﾞ入力→ | AZ6: 45 | BA6: =VLOOKUP(AZ6,曜日コード!$D$5:$E$52,2,0) -> 木５限 | BC6: =MID(BA6,1,1) -> 木 | BD6: =MID(BA6,2,3) -> ５限
B7: 個数 | D7: 20 | H7: =VLOOKUP(H5*2-1,教科担当一覧2!$D$9:$BA$428,VLOOKUP(H6,曜日コード!$B$5:$C$52,2,0)+3+1,0) -> 2-5 | I7: =VLOOKUP(H5*2,教科担当一覧2!$D$9:$BA$428,VLOOKUP(H6,曜日コード!$B$5:$C$52,2,0)+3+1,0) -> 倫理 | O7: ｸﾗｽｺｰﾄﾞ入力→ | R7: 35 | S7: =VLOOKUP(R7,ｸﾗｽｺｰﾄﾞ等!$B$4:$C$2110,2,0) -> 3-5 | U7: =VLOOKUP(U6,曜日コード!$G$13:$H$18,2,1) -> 4 | V7: =VLOOKUP(V6,曜日コード!$G$21:$H$28,2,1) -> 5 | X7: ｸﾗｽｺｰﾄﾞ入力→ | AA7: 35 | AB7: =VLOOKUP(AA7,ｸﾗｽｺｰﾄﾞ等!$B$4:$C$2110,2,0) -> 3-5 | AD7: =VLOOKUP(AD6,曜日コード!$G$13:$H$18,2,1) -> 4 | AE7: =VLOOKUP(AE6,曜日コード!$G$21:$H$28,2,1) -> 5 | AW7: ｸﾗｽｺｰﾄﾞ入力→ | AZ7: 35 | BA7: =VLOOKUP(AZ7,ｸﾗｽｺｰﾄﾞ等!$B$4:$C$2110,2,0) -> 3-5 | BC7: =VLOOKUP(BC6,曜日コード!$G$13:$H$18,2,1) -> 4 | BD7: =VLOOKUP(BD6,曜日コード!$G$21:$H$28,2,1) -> 5
N8: ｸﾗｽｺｰﾄﾞ入力→ | O8: 担当者ｺｰﾄﾞ→ | R8: =VLOOKUP(S8,曜日コード!$B$56:$C$265,2,1) -> 45 | S8: =IF(R7<=19,VLOOKUP(2*(R7-10),ｸﾗｽ一覧60!$B$125:$AZ$244,5+(U7-1)*8+V7,1),IF(R7<=29,VLOOKUP(2*R7,ｸﾗｽ一覧60!$B$125:$AZ$244,5+(U7-1)*8+V7,1),IF(R7<=39,VLOOKUP(2*(R7+10),ｸﾗｽ一覧60!$B$125:$AZ$244,5+(U7-1)*8+V7,1),IF(R7<=120,VLOOKUP(2*(R7-100),ｸﾗｽ一覧60!$B$125:$AZ$244,5+(U7-1)*8+V7,1),IF(R7<=220,VLOOKUP(2*(R7-180),ｸﾗｽ一覧60!$B$125:$AZ$244,5+(U7-1)*8+V7,1),IF(R7392,VLOOKUP(2*(R7-260),ｸﾗｽ一覧60!$B$125:$AZ$244,5+(U7-1)*8+V7,1),"なし")))))) -> 多田 | U8: =VLOOKUP(S7,ｸﾗｽｺｰﾄﾞ等!$Q$4:$R$63,2,1) -> 175 | X8: 担当者ｺｰﾄﾞ→ | AA8: =VLOOKUP(AB8,曜日コード!$B$56:$C$265,2,1) -> 45 | AB8: =IF(AA7<=19,VLOOKUP(2*(AA7-10),ｸﾗｽ一覧60!$B$125:$AZ$244,5+(AD7-1)*8+AE7,1),IF(AA7<=29,VLOOKUP(2*AA7,ｸﾗｽ一覧60!$B$125:$AZ$244,5+(AD7-1)*8+AE7,1),IF(AA7<=39,VLOOKUP(2*(AA7+10),ｸﾗｽ一覧60!$B$125:$AZ$244,5+(AD7-1)*8+AE7,1),IF(AA7<=120,VLOOKUP(2*(AA7-100),ｸﾗｽ一覧60!$B$125:$AZ$244,5+(AD7-1)*8+AE7,1),IF(AA7<=220,VLOOKUP(2*(AA7-180),ｸﾗｽ一覧60!$B$125:$AZ$244,5+(AD7-1)*8+AE7,1),IF(AA7392,VLOOKUP(2*(AA7-260),ｸﾗｽ一覧60!$B$125:$AZ$244,5+(AD7-1)*8+AE7,1),"なし")))))) -> 多田 | AD8: =VLOOKUP(AB7,ｸﾗｽｺｰﾄﾞ等!$Q$4:$R$63,2,1) -> 175 | AW8: 担当者ｺｰﾄﾞ→ | AZ8: =VLOOKUP(BA8,曜日コード!$B$56:$C$265,2,1) -> 45 | BA8: =IF(AZ7<=19,VLOOKUP(2*(AZ7-10),ｸﾗｽ一覧60!$B$125:$AZ$244,5+(BC7-1)*8+BD7,1),IF(AZ7<=29,VLOOKUP(2*AZ7,ｸﾗｽ一覧60!$B$125:$AZ$244,5+(BC7-1)*8+BD7,1),IF(AZ7<=39,VLOOKUP(2*(AZ7+10),ｸﾗｽ一覧60!$B$125:$AZ$244,5+(BC7-1)*8+BD7,1),IF(AZ7<=120,VLOOKUP(2*(AZ7-100),ｸﾗｽ一覧60!$B$125:$AZ$244,5+(BC7-1)*8+BD7,1),IF(AZ7<=220,VLOOKUP(2*(AZ7-180),ｸﾗｽ一覧60!$B$125:$AZ$244,5+(BC7-1)*8+BD7,1),IF(AZ7392,VLOOKUP(2*(AZ7-260),ｸﾗｽ一覧60!$B$125:$AZ$244,5+(BC7-1)*8+BD7,1),"なし")))))) -> 多田 | BC8: =VLOOKUP(BA7,ｸﾗｽｺｰﾄﾞ等!$Q$4:$R$63,2,1) -> 175
H11: クラス曜日切り替えテーブルB | U11: 調整テーブルB
A12: 担当者ｺｰﾄﾞ調査① | E12: ｺｰﾄﾞ | F12: 出力 | H12: ① | I12: ｸﾗｽｺｰﾄﾞ | J12: 曜日1ｺ | K12: 曜日2ｺ | L12: 行1 | M12: ① | N12: クラス | O12: 教科 | R12: =担当曜日別調査!J5 -> 月曜 | Z12: =担当曜日別調査!R5 -> 火曜 | AS12: 名前入力による担当者コード調査 | AW12: 担当者ｺｰﾄﾞ調査① | BA12: ｺｰﾄﾞ | BB12: 出力
